Workbook

Sheet Intro and Data Inputs
B1: GASB 75 Alternative Measurement Method for PEBB OPEB
B3: Welcome to the Office of the State Actuary's AMM Online Tool
B4: Intended Use
C5: This Alternate Measurement Method (AMM) Online Tool is intended to assist employers covering employees under Public Employees' Benefit Board (PEBB) health insurance with their reporting requirements for Other Post-Employment Benefits (OPEB) healthcare obligations under Governmental Accounting Standards Board Statement No. 75 (GASB 75). Please review the following explanation and directions below, along with the Additional Disclosures and Certification Letter before proceeding.
B7: Requirements to use this tool
B8: The following requirements must be met to use this tool:
C9: (1) Employers must be non-state entities. State employers and employers outside the State of Washington are not eligible to use this tool.
C10: (2) Current employees must be covered under PEBB health insurance.
C11: (3) Employers must have less than 100 total members. This includes all current employees and retirees participating in PEBB health insurance, but not covered spouses.
B13: Steps to calculate your reporting results
C14: (1) Enable Macros. For Excel versions 2010 or greater, there should be a tan strip across the top of the screen when you open Excel - please allow macros to run.
C15: (2) Gather member information on the age and payroll of covered current employees. The WA Health Care Authority can assist with providing member information on participating retirees. Please see the Additional Disclosures for further guidance.
C16: (3) Group your member information by status and age divisions according to the Data Inputs table below. Important note, do not include covered spouses in the retiree count and member statistics.
C17: (4) Calculate average age for each age division of current employees and retirees.
C18: (5) Copy your data into the Data Inputs table below. There has been an effort by OSA to screen unreasonable inputs into the tool. However, the ultimate responsibility of the accuracy of the inputs, and in effect the results, falls on the user of the tool.
C19: (6) Determine if you want to include Excise Tax in your reporting results.
C20: (7) Press the Calculate button. Please print the entire workbook for your records.
C22: Data Inputs
C23: Current Employees
C24: Age Divisions | D24: 20-35 | E24: 36-46 | F24: 47-56 | G24: 57+
C25: Number Active | D25: 0 | E25: 0 | F25: 0 | G25: 0
C26: Average Active Age | D26: 30 | E26: 40 | F26: 50 | G26: 60
C27: Annual Covered Employee Payroll = | E27: 0
C28: Retirees
C29: Age Divisions | D29: 20-64 | E29: 65-70 | F29: 71-77 | G29: 78+
C30: Number Inactive | D30: 0 | E30: 0 | F30: 0 | G30: 0
C31: Average Inactive Age | D31: 60 | E31: 67 | F31: 75 | G31: 80
B33: Excise Tax
C34: The federal Patient Protection and Affordable Care Act levies a 40 percent excise tax on employers for the value of health plan costs that exceed certain thresholds. Plans that exceed this threshold are considered high cost or "Cadillac" health plans. The excise tax impacts the medical inflation trend for these "Cadillac" plans. Medical trend, claims costs, and aging factors were determined by healthcare actuaries at Milliman. The medical inflation trend is the percent that medical costs are expected to increase in future years. This tool allows the user to calculate costs with and without the excise tax included in the medical inflation trend. The inclusion of this excise tax in the tool does not represent tax advice or an opinion that this tax applies to this plan. Please consult your auditor or tax advisor for further information. Please see the PEBB OPEB Actuarial Valuation Report on our website for more information.
B36: Do you want to include Excise Tax in your reporting results?
I39: Page 1 of 5

Sheet GASB Results
B1: GASB 75 Reporting Results and Required Disclosures
C3: Schedule of Changes in Total Other Liability and Related Ratios
C4: Measurement Date of June 30, 2018
C5: Total OPEB Liability (TOL)
C6: Service Cost | E6: =ROUND(Log!L5,0) -> 0
C7: Interest | E7: =ROUND(((E6+E13)*Lookups!S1+E10*((1+Lookups!S1)^0.5-1)),0) -> 0
C8: Changes in Experience Data and Assumptions | E8: =E12-E6-E7-E10 -> 0
C9: Changes in Benefit Terms | E9: 0
C10: Benefit Payments | E10: =-ROUND(SUM(Log!G7:J7)/Trends!P4,0) -> 0
C11: Other | E11: 0
C12: Net Change in Total OPEB Liability | E12: =E14-E13 -> 0
C13: Total OPEB Liability - Beginning | E13: =ROUND((Log!L6-E6-E10)/(1+Lookups!S1),0) -> 0
C14: Total OPEB Liability - Ending | E14: =ROUND(Log!L11,0) -> 0
C15: Covered Employee Payroll | E15: ='Intro and Data Inputs'!E27 -> 0
C16: TOL as a Percentage of Covered Payroll | E16: =IFERROR(E14/E15, 0) -> 0
C18: OPEB Expense for Fiscal Year Ending June 30, 2018
D19: a. Service Cost | E19: ='GASB Results'!E6 -> 0
D20: b. Interest Cost | E20: ='GASB Results'!E7 -> 0
D21: c. Changes in Experience Data and Assumptions | E21: ='GASB Results'!E8 -> 0
D22: d. Changes in Benefit Terms | E22: =E9 -> 0
D23: e. Transactions Subsequent to Measurement Date | E23: N/A* | F23: *See Additional Disclosures tab for more details and guidance.
D24: f. Other Changes in Fiduciary Net Position | E24: 0
D25: Total OPEB Expense | E25: =SUM(E19:E24) -> 0
C27: Sensitivity Analysis
C28: Total OPEB Liability | E28: 1% Decrease | F28: Current | G28: 1% Increase
C29: Discount Rate | E29: =ROUND(Log!L26,0) -> 0 | F29: ='GASB Results'!E14 -> 0 | G29: =ROUND(Log!L31,0) -> 0
C30: Healthcare Trend | E30: =ROUND(Log!L16,0) -> 0 | F30: ='GASB Results'!E14 -> 0 | G30: =ROUND(Log!L21,0) -> 0
C32: Methodology
C33: Actuarial Valuation Date | E33: ="6/30/"&Lookups!S29 -> 6/30/2018
C34: Actuarial Measurement Date | E34: =E33 -> 6/30/2018
C35: Actuarial Cost Method | E35: Entry Age
C36: Amortization Method | E36: Recognized Immediately
C37: Asset Valuation Method | E37: N/A (No Assets)
C38: Assumptions
C39: Discount Rate*
C40: Beginning of Measurement Year | E40: =Lookups!S1 -> 0.0358
C41: End of Measurement Year | E41: =Lookups!S2 -> 0.0387
C42: Projected Salary Changes | E42: =Active!CQ60*100&"% + Service-Based Increases" -> 3.75% + Service-Based Increases
C43: Healthcare Trend Rates** | E43: Initial rate is approximately 7%, trends down to about 5% in 2080.
C44: Mortality Rates
C45: Base Mortality Table | E45: Healthy RP-2000
C46: Age Setback | E46: 1 year
C47: Mortality Improvements | E47: 100% Scale BB
C48: Projection Period | E48: Generational
C49: Inflation Rate | E49: 0.03
C50: Post-Retirement Participation Percentage | E50: =Lookups!S8 -> 0.65
C51: Percentage with Spouse Coverage | E51: =Lookups!S26 -> 0.45
C52: *Source: Bond Buyer General Obligation 20-Bond Municipal Index.
C53: **Trend rate assumptions vary slightly by medical plan. For additional detail on the healthcare trend rates, please see OSA's 2017 PEBB OPEB Actuarial Valuation Report.
H55: Page 2 of 5

Sheet Additional Disclosures
B1: AMM Online Tool Additional Disclosures
C3: This tab is intended to:
C4: (1) Provide guidance on concepts that require users to apply their judgment and/or consult with their auditor.
C5: (2) Document the assumptions and methods we employed for purposes of this AMM Online Tool that vary from the underlying GASB 75 actuarial valuation we performed for the State.
C7: Data Inputs:
C9: We assume the inputs you provide are as of the measurement date of 6/30. If you are not able to determine the counts and average ages as of that time, utilizing your current data or as of your reporting date may be reasonable. Please consult with your auditor for further guidance.
C11: Unless readily identifiable by the user of this tool, we also inherently assume that there are no inactive members entitled to but not currently receiving a benefit. In other words, certain members who stopped working may be eligible to join PEBB as a retiree at a later date.
C13: Transactions Subsequent to Measurement Date:
C15: ="We estimate your first-year projected monthly subsidy is $"&ROUND(Log!L7/12,0)&". If your reporting date is after the 6/30 measurement date, multiply this amount by the number of months between your fiscal year-end and the measurement date. We believe this approach will serve as a reasonable estimate under this AMM Online Tool." -> We estimate your first-year projected monthly subsidy is $0. If your reporting date is after the 6/30 measurement date, multiply this amount by the number of months between your fiscal year-end and the measurement date. We believe this approach will serve as a reasonable estimate under this AMM Online Tool.
C17: ="In other words, if you have a 12/31 reporting date, your estimated transactions subsequent to the measurement date would be $"&ROUND(Log!L7/12,0)&" x 6 = $"&ROUND(Log!L7/2,0)&"." -> In other words, if you have a 12/31 reporting date, your estimated transactions subsequent to the measurement date would be $0 x 6 = $0.
C19: OSA actuarial reports relied upon for purposes of this AMM Online Tool:
C20: 2017 PEBB OPEB Actuarial Valuation Report
C21: OPEB Actuarial Valuation for the State’s June 30, 2018 Fiscal Year-End
C23: Specific assumptions we made when developing this AMM Online Tool:
C25: ◊ We assumed 2/3 of members select a UMP plan and 1/3 select a Group Health plan.
C26: ▪ UMP pre- and post-Medicare costs and premiums are equal to the Uniform Medical Plan.
C27: ▪ The Group Health pre-Medicare costs and premiums are a 50/50 blend of GH Classic and GH Value.
C28: ▪ The Group Health post-Medicare costs and premiums are equal to GH Medicare.
C30: ◊ We estimated retirement service for each active cohort based on the average entry age of 35. For example, an age 47 member is assumed to have 12 years of service. Service is a component of benefit eligibility.
C32: ◊ Assumptions for retirement, disability, termination, and mortality are based on the 2017 AVR.
C33: ▪ We made the following changes for simplicity. Assumed all employees are retirement eligible at age 55. Relied on our retirement rates for members with < 30 years of service. Assumed a 100% rate of retirement at the age of 70.
C35: ◊ Each cohort is assumed to be a 50/50 male/female split.
C36: ▪ We further assume that eligible spouses are the same age as the primary member. Generally males are older than females, however for purposes of this AMM Online Tool we believe this simplification is reasonable.
C38: ◊ We selected the age-based cohorts for this AMM Online Tool based upon the overall distribution of State employees and retirees that participate in PEBB. We believe this grouping approach is reasonable for purposes of the AMM.
C44: We would like to hear your feedback if you used this tool. Please send us an email at:
C45: State.Actuary@leg.wa.gov
C47: Glossary
C48: Link to the OSA website that includes definitions for frequently used actuarial and OPEB terms.
D49: Page 3 of 5

Sheet Certification Letter
B1: GASB 75 AMM Online Tool Actuarial Certification
D57: Page 4 of 5
B59: GASB 75 AMM Online Tool Actuarial Certification (Continued)
D115: Page 5 of 5

Sheet Active (hidden)
A1: Actives | B1: 30040 | D1: Insured | G1: UMP | J1: Pre-Med (Implicit) | K1: Insured | L1: Pst-Med (Explicit) | M1: Insured | O1: Pre-Med (Implicit) | P1: UMP | Q1: Pst-Med (Explicit) | R1: UMP | U1: Insured | Y1: UMP | AB1: Average | AF1: 0.5 | AW1: Survive pst Decrement | BC1: Retires at age XX, implicit subsidy | BN1: Retires at age XX, explicit subsidy | CE1: =MAX(B2-35,0) -> 27
A2: Year | B2: 62 | D2: Costs | E2: Prem | G2: Costs | H2: Prem | J2: Trend | K2: Rel Trend | L2: Trend | M2: Rel Trend | O2: Trend | P2: Rel Trend | Q2: Trend | R2: Rel Trend | T2: Costs | U2: Prem | V2: Net | X2: Costs | Y2: Prem | Z2: Net | AB2: Net | AD2: Retire - M | AE2: Retire - F | AF2: Retire | AG2: Term - M | AH2: Term - F | AI2: Term | AJ2: Dis - M | AK2: Dis - F | AL2: Disab | AM2: Mort - M | AN2: Mort - F | AO2: Death | AP2: Decrement | AQ2: Survive | AR2: Interest | AT2: Mort - M | AU2: Mort - F | AV2: Mortality | AX2: Interest | AY2: Pay Timing | BA2: Age | BB2: Net | BC2: Imp 55 | BD2: Imp 56 | BE2: Imp 57 | BF2: Imp 58 | BG2: Imp 59 | BH2: Imp 60 | BI2: Imp 61 | BJ2: Imp 62 | BK2: Imp 63 | BL2: Imp 64 | BN2: Exp 55 | BO2: Exp 56 | BP2: Exp 57 | BQ2: Exp 58 | BR2: Exp 59 | BS2: Exp 60 | BT2: Exp 61 | BU2: Exp 62 | BV2: Exp 63 | BW2: Exp 64 | BX2: Exp 65 | BY2: Exp 66 | BZ2: Exp 67 | CA2: Exp 68 | CB2: Exp 69 | CC2: Exp 70 | CE2: Estimated MS
A3: =ValYear - MS -> 1991 | B3: =B2-MS -> 35 | D3: =VLOOKUP(B3,Lookups!A:B,2) -> 9692.89943 | E3: =VLOOKUP(B3,Lookups!A:C,3) -> 9144.804934 | G3: =VLOOKUP(B3,Lookups!A:D,4) -> 6364.446606 | H3: =VLOOKUP(B3,Lookups!A:E,5) -> 8673.277821 | J3: =VLOOKUP(A3,Trends!$A$3:$Q$94,IF(ExFlg=0,2,10))+IF(B3>=$B$2,Sens,0) -> 1.048 | K3: =IF(B3=$B$2,1,IF(B3<$B$2,K4/J3,K2*J2)) -> 0.2819975716 | L3: =VLOOKUP(A3,Trends!$A$3:$Q$94,IF(ExFlg=0,4,12))+IF(B3>=$B$2,Sens,0) -> 1.049 | M3: =IF(B3=$B$2,1,IF(B3<$B$2,M4/L3,M2*L2)) -> 0.2748285324 | O3: =VLOOKUP(A3,Trends!$A$3:$Q$94,IF(ExFlg=0,6,14))+IF(B3>=$B$2,Sens,0) -> 1.048 | P3: =IF(B3=$B$2,1,IF(B3<$B$2,P4/O3,P2*O2)) -> 0.2819975716 | Q3: =VLOOKUP(A3,Trends!$A$3:$Q$94,IF(ExFlg=0,8,16))+IF(B3>=$B$2,Sens,0) -> 1.048 | R3: =IF(B3=$B$2,1,IF(B3<$B$2,R4/Q3,R2*Q2)) -> 0.2819975716 | T3: =IF(B3<65,D3*K3,D3*M3) -> 2733.374101 | U3: =IF(B3=$B$2, E3, IF(B3<$B$2, E3 * Trends!$S$3^(B3 - $B$2), IF(ExFlg=0,E3*VLOOKUP(A3,Trends!$A$4:$V$94,20),E3*VLOOKUP(A3,Trends!$A$4:$Z$94,24)))) -> 2715.307153 | V3: =T3-U3 -> 18.06694827 | X3: =IF(B3<65,G3*P3,G3*R3) -> 1794.758488 | Y3: =IF(B3=$B$2, H3, IF(B3<$B$2, H3 * Trends!$U$3^(B3 - $B$2), IF(ExFlg=0,H3*VLOOKUP(A3,Trends!$A$4:$V$94,22),H3*VLOOKUP(A3,Trends!$A$4:$Z$94,26)))) -> 2575.29969 | Z3: =X3-Y3 -> -780.5412019 | AB3: =(1-PctUMP)*V3+PctUMP*Z3 -> -514.3411472 | AD3: =IF(B3<71,VLOOKUP(B3,Lookups!A:F,6),"") -> 0 | AE3: =IF(B3<71,VLOOKUP(Active!B3,Lookups!A:G,7),"") -> 0 | AF3: =IF(B3<71,PCTMALE*AD3+(1-PCTMALE)*AE3,"") -> 0 | AG3: =IF(B3<55,VLOOKUP(B3-$B$3,Lookups!$O$3:$Q$53,2),"") -> 0.262397 | AH3: =IF(B3<55,VLOOKUP(B3-$B$3,Lookups!$O$3:$Q$53,3),"") -> 0.262397 | AI3: =IF(B3<55,PCTMALE*AG3+(1-PCTMALE)*AH3,"") -> 0.262397 | AJ3: =IF(B3<55,VLOOKUP(B3,Lookups!A:M,12),"") -> 0.000156 | AK3: =IF(B3<55,VLOOKUP(B3,Lookups!A:M,13),"") -> 0.000194 | AL3: =IF(B3<55,PCTMALE*AJ3+(1-PCTMALE)*AK3,"") -> 0.000175 | AM3: =IF(B3<70,VLOOKUP(B3,Lookups!A:H,8)*(1-VLOOKUP(B3,Lookups!$U$3:$W$103,2))^(A3-2018),"") -> 0.0007211944416 | AN3: =IF(B3<70,VLOOKUP(B3,Lookups!A:I,9)*(1-VLOOKUP(B3,Lookups!$U$3:$W$103,3))^(A3-2018),"") -> 0.0004468152029 | AO3: =IF(AM3<>"",PCTMALE*AM3+(1-PCTMALE)*AN3,"") -> 0.0005840048223 | AP3: =IF(B3<71,SUM(AF3,AI3,AL3,AO3),"") -> 0.2631560048 | AQ3: =IF(B3<71,IF(B3=$B$2,1, IF(B3<$B$2, AQ4/(1-AP3), AQ2*(1-AP2))),"") -> 5.4315236 | AR3: =IF(B3<71,IF(B3=$B$2,1,IF(B3<$B$2,AR4*(1+IntRt),AR2/(1+IntRt))),"") -> 2.584934128 | AT3: =IF(BA3>=$B$3,VLOOKUP(BA3,Lookups!A:H,8)*(1-VLOOKUP(BA3,Lookups!U:W,2))^(BA3-$B$3),"") ->  | AU3: =IF(BA3>=$B$3,VLOOKUP(BA3,Lookups!A:I,9)*(1-VLOOKUP(BA3,Lookups!U:W,3))^(BA3-$B$3),"") ->  | AV3: =IFERROR(PCTMALE*AT3+(1-PCTMALE)*AU3,"") -> 
A4: =1+A3 -> 1992 | B4: 36 | D4: =VLOOKUP(B4,Lookups!A:B,2) -> 10559.05081 | E4: =VLOOKUP(B4,Lookups!A:C,3) -> 9144.804934 | G4: =VLOOKUP(B4,Lookups!A:D,4) -> 6933.169534 | H4: =VLOOKUP(B4,Lookups!A:E,5) -> 8673.277821 | J4: =VLOOKUP(A4,Trends!$A$3:$Q$94,IF(ExFlg=0,2,10))+IF(B4>=$B$2,Sens,0) -> 1.048 | K4: 0.2955334551 | L4: =VLOOKUP(A4,Trends!$A$3:$Q$94,IF(ExFlg=0,4,12))+IF(B4>=$B$2,Sens,0) -> 1.049 | M4: =IF(B4=$B$2,1,IF(B4<$B$2,M5/L4,M3*L3)) -> 0.2882951305 | O4: =VLOOKUP(A4,Trends!$A$3:$Q$94,IF(ExFlg=0,6,14))+IF(B4>=$B$2,Sens,0) -> 1.048 | P4: 0.2955334551 | Q4: =VLOOKUP(A4,Trends!$A$3:$Q$94,IF(ExFlg=0,8,16))+IF(B4>=$B$2,Sens,0) -> 1.048 | R4: 0.2955334551 | T4: =IF(B4<65,D4*K4,D4*M4) -> 3120.552768 | U4: =IF(B4=$B$2, E4, IF(B4<$B$2, E4 * Trends!$S$3^(B4 - $B$2), IF(ExFlg=0,E4*VLOOKUP(A4,Trends!$A$4:$V$94,20),E4*VLOOKUP(A4,Trends!$A$4:$Z$94,24)))) -> 2840.211282 | V4: 280.3414856 | X4: =IF(B4<65,G4*P4,G4*R4) -> 2048.983547 | Y4: =IF(B4=$B$2, H4, IF(B4<$B$2, H4 * Trends!$U$3^(B4 - $B$2), IF(ExFlg=0,H4*VLOOKUP(A4,Trends!$A$4:$V$94,22),H4*VLOOKUP(A4,Trends!$A$4:$Z$94,26)))) -> 2693.763475 | Z4: =X4-Y4 -> -644.7799285 | AB4: =(1-PctUMP)*V4+PctUMP*Z4 -> -336.4092075 | AD4: =IF(B4<71,VLOOKUP(B4,Lookups!A:F,6),"") -> 0 | AE4: =IF(B4<71,VLOOKUP(Active!B4,Lookups!A:G,7),"") -> 0 | AF4: 0 | AG4: =IF(B4<55,VLOOKUP(B4-$B$3,Lookups!$O$3:$Q$53,2),"") -> 0.154534 | AH4: =IF(B4<55,VLOOKUP(B4-$B$3,Lookups!$O$3:$Q$53,3),"") -> 0.167747 | AI4: 0.1611405 | AJ4: =IF(B4<55,VLOOKUP(B4,Lookups!A:M,12),"") -> 0.000164 | AK4: =IF(B4<55,VLOOKUP(B4,Lookups!A:M,13),"") -> 0.000228 | AL4: 0.000196 | AM4: =IF(B4<70,VLOOKUP(B4,Lookups!A:H,8)*(1-VLOOKUP(B4,Lookups!$U$3:$W$103,2))^(A4-2018),"") -> 0.0007914745689 | AN4: =IF(B4<70,VLOOKUP(B4,Lookups!A:I,9)*(1-VLOOKUP(B4,Lookups!$U$3:$W$103,3))^(A4-2018),"") -> 0.000486562235 | AO4: 0.0006390184019 | AP4: =IF(B4<71,SUM(AF4,AI4,AL4,AO4),"") -> 0.1619755184 | AQ4: =IF(B4<71,IF(B4=$B$2,1, IF(B4<$B$2, AQ5/(1-AP4), AQ3*(1-AP3))),"") -> 4.002185549 | AR4: 2.495591937 | AT4: =IF(BA4>=$B$3,VLOOKUP(BA4,Lookups!A:H,8)*(1-VLOOKUP(BA4,Lookups!U:W,2))^(BA4-$B$3),"") ->  | AU4: =IF(BA4>=$B$3,VLOOKUP(BA4,Lookups!A:I,9)*(1-VLOOKUP(BA4,Lookups!U:W,3))^(BA4-$B$3),"") -> 
A5: 1993 | B5: 37 | D5: =VLOOKUP(B5,Lookups!A:B,2) -> 10781.98853 | E5: =VLOOKUP(B5,Lookups!A:C,3) -> 9144.804934 | G5: =VLOOKUP(B5,Lookups!A:D,4) -> 7079.552485 | H5: =VLOOKUP(B5,Lookups!A:E,5) -> 8673.277821 | J5: =VLOOKUP(A5,Trends!$A$3:$Q$94,IF(ExFlg=0,2,10))+IF(B5>=$B$2,Sens,0) -> 1.048 | K5: 0.3097190609 | L5: =VLOOKUP(A5,Trends!$A$3:$Q$94,IF(ExFlg=0,4,12))+IF(B5>=$B$2,Sens,0) -> 1.049 | M5: 0.3024215919 | O5: =VLOOKUP(A5,Trends!$A$3:$Q$94,IF(ExFlg=0,6,14))+IF(B5>=$B$2,Sens,0) -> 1.048 | P5: 0.3097190609 | Q5: =VLOOKUP(A5,Trends!$A$3:$Q$94,IF(ExFlg=0,8,16))+IF(B5>=$B$2,Sens,0) -> 1.048 | R5: 0.3097190609 | T5: =IF(B5<65,D5*K5,D5*M5) -> 3339.387363 | U5: =IF(B5=$B$2, E5, IF(B5<$B$2, E5 * Trends!$S$3^(B5 - $B$2), IF(ExFlg=0,E5*VLOOKUP(A5,Trends!$A$4:$V$94,20),E5*VLOOKUP(A5,Trends!$A$4:$Z$94,24)))) -> 2970.861001 | V5: 368.5263615 | X5: 2192.672347 | Y5: =IF(B5=$B$2, H5, IF(B5<$B$2, H5 * Trends!$U$3^(B5 - $B$2), IF(ExFlg=0,H5*VLOOKUP(A5,Trends!$A$4:$V$94,22),H5*VLOOKUP(A5,Trends!$A$4:$Z$94,26)))) -> 2817.676595 | Z5: =X5-Y5 -> -625.0042479 | AB5: =(1-PctUMP)*V5+PctUMP*Z5 -> -293.8306899 | AD5: =IF(B5<71,VLOOKUP(B5,Lookups!A:F,6),"") -> 0 | AE5: =IF(B5<71,VLOOKUP(Active!B5,Lookups!A:G,7),"") -> 0 | AF5: 0 | AG5: =IF(B5<55,VLOOKUP(B5-$B$3,Lookups!$O$3:$Q$53,2),"") -> 0.100683 | AH5: =IF(B5<55,VLOOKUP(B5-$B$3,Lookups!$O$3:$Q$53,3),"") -> 0.117007 | AI5: 0.108845 | AJ5: =IF(B5<55,VLOOKUP(B5,Lookups!A:M,12),"") -> 0.000171 | AK5: =IF(B5<55,VLOOKUP(B5,Lookups!A:M,13),"") -> 0.000262 | AL5: 0.0002165 | AM5: =IF(B5<70,VLOOKUP(B5,Lookups!A:H,8)*(1-VLOOKUP(B5,Lookups!$U$3:$W$103,2))^(A5-2018),"") -> 0.0008591705132 | AN5: =IF(B5<70,VLOOKUP(B5,Lookups!A:I,9)*(1-VLOOKUP(B5,Lookups!$U$3:$W$103,3))^(A5-2018),"") -> 0.0005249887578 | AO5: 0.0006920796355 | AP5: 0.1097535796 | AQ5: 3.35392947 | AR5: 2.409337649 | AT5: =IF(BA5>=$B$3,VLOOKUP(BA5,Lookups!A:H,8)*(1-VLOOKUP(BA5,Lookups!U:W,2))^(BA5-$B$3),"") ->  | AU5: =IF(BA5>=$B$3,VLOOKUP(BA5,Lookups!A:I,9)*(1-VLOOKUP(BA5,Lookups!U:W,3))^(BA5-$B$3),"") -> 
A6: 1994 | B6: 38 | D6: =VLOOKUP(B6,Lookups!A:B,2) -> 11009.64593 | E6: =VLOOKUP(B6,Lookups!A:C,3) -> 9144.804934 | G6: =VLOOKUP(B6,Lookups!A:D,4) -> 7229.034419 | H6: =VLOOKUP(B6,Lookups!A:E,5) -> 8673.277821 | J6: =VLOOKUP(A6,Trends!$A$3:$Q$94,IF(ExFlg=0,2,10))+IF(B6>=$B$2,Sens,0) -> 1.048 | K6: 0.3245855759 | L6: =VLOOKUP(A6,Trends!$A$3:$Q$94,IF(ExFlg=0,4,12))+IF(B6>=$B$2,Sens,0) -> 1.049 | M6: 0.3172402499 | O6: =VLOOKUP(A6,Trends!$A$3:$Q$94,IF(ExFlg=0,6,14))+IF(B6>=$B$2,Sens,0) -> 1.048 | P6: 0.3245855759 | Q6: =VLOOKUP(A6,Trends!$A$3:$Q$94,IF(ExFlg=0,8,16))+IF(B6>=$B$2,Sens,0) -> 1.048 | R6: 0.3245855759 | T6: =IF(B6<65,D6*K6,D6*M6) -> 3573.572264 | U6: =IF(B6=$B$2, E6, IF(B6<$B$2, E6 * Trends!$S$3^(B6 - $B$2), IF(ExFlg=0,E6*VLOOKUP(A6,Trends!$A$4:$V$94,20),E6*VLOOKUP(A6,Trends!$A$4:$Z$94,24)))) -> 3107.520607 | V6: 466.0516566 | X6: 2346.4403 | Y6: =IF(B6=$B$2, H6, IF(B6<$B$2, H6 * Trends!$U$3^(B6 - $B$2), IF(ExFlg=0,H6*VLOOKUP(A6,Trends!$A$4:$V$94,22),H6*VLOOKUP(A6,Trends!$A$4:$Z$94,26)))) -> 2947.289719 | Z6: -600.849419 | AB6: -245.2192835 | AD6: =IF(B6<71,VLOOKUP(B6,Lookups!A:F,6),"") -> 0 | AE6: =IF(B6<71,VLOOKUP(Active!B6,Lookups!A:G,7),"") -> 0 | AF6: 0 | AG6: =IF(B6<55,VLOOKUP(B6-$B$3,Lookups!$O$3:$Q$53,2),"") -> 0.075236 | AH6: =IF(B6<55,VLOOKUP(B6-$B$3,Lookups!$O$3:$Q$53,3),"") -> 0.092904 | AI6: 0.08407 | AJ6: =IF(B6<55,VLOOKUP(B6,Lookups!A:M,12),"") -> 0.000192 | AK6: =IF(B6<55,VLOOKUP(B6,Lookups!A:M,13),"") -> 0.000266 | AL6: 0.000229 | AM6: =IF(B6<70,VLOOKUP(B6,Lookups!A:H,8)*(1-VLOOKUP(B6,Lookups!$U$3:$W$103,2))^(A6-2018),"") -> 0.0009200045288 | AN6: =IF(B6<70,VLOOKUP(B6,Lookups!A:I,9)*(1-VLOOKUP(B6,Lookups!$U$3:$W$103,3))^(A6-2018),"") -> 0.000564255114 | AO6: 0.0007421298214 | AP6: 0.08504112982 | AQ6: 2.985823705 | AR6: 2.326064538 | AT6: =IF(BA6>=$B$3,VLOOKUP(BA6,Lookups!A:H,8)*(1-VLOOKUP(BA6,Lookups!U:W,2))^(BA6-$B$3),"") ->  | AU6: =IF(BA6>=$B$3,VLOOKUP(BA6,Lookups!A:I,9)*(1-VLOOKUP(BA6,Lookups!U:W,3))^(BA6-$B$3),"") -> 
A7: 1995 | B7: 39 | D7: =VLOOKUP(B7,Lookups!A:B,2) -> 11242.12319 | E7: =VLOOKUP(B7,Lookups!A:C,3) -> 9144.804934 | G7: =VLOOKUP(B7,Lookups!A:D,4) -> 7381.681119 | H7: =VLOOKUP(B7,Lookups!A:E,5) -> 8673.277821 | J7: =VLOOKUP(A7,Trends!$A$3:$Q$94,IF(ExFlg=0,2,10))+IF(B7>=$B$2,Sens,0) -> 1.048 | K7: 0.3401656835 | L7: =VLOOKUP(A7,Trends!$A$3:$Q$94,IF(ExFlg=0,4,12))+IF(B7>=$B$2,Sens,0) -> 1.049 | M7: 0.3327850222 | O7: =VLOOKUP(A7,Trends!$A$3:$Q$94,IF(ExFlg=0,6,14))+IF(B7>=$B$2,Sens,0) -> 1.048 | P7: 0.3401656835 | Q7: =VLOOKUP(A7,Trends!$A$3:$Q$94,IF(ExFlg=0,8,16))+IF(B7>=$B$2,Sens,0) -> 1.048 | R7: 0.3401656835 | T7: 3824.184519 | U7: =IF(B7=$B$2, E7, IF(B7<$B$2, E7 * Trends!$S$3^(B7 - $B$2), IF(ExFlg=0,E7*VLOOKUP(A7,Trends!$A$4:$V$94,20),E7*VLOOKUP(A7,Trends!$A$4:$Z$94,24)))) -> 3250.466555 | V7: =T7-U7 -> 573.7179638 | X7: 2510.994603 | Y7: =IF(B7=$B$2, H7, IF(B7<$B$2, H7 * Trends!$U$3^(B7 - $B$2), IF(ExFlg=0,H7*VLOOKUP(A7,Trends!$A$4:$V$94,22),H7*VLOOKUP(A7,Trends!$A$4:$Z$94,26)))) -> 3082.865046 | Z7: -571.8704425 | AB7: -190.0114591 | AD7: =IF(B7<71,VLOOKUP(B7,Lookups!A:F,6),"") -> 0 | AE7: =IF(B7<71,VLOOKUP(Active!B7,Lookups!A:G,7),"") -> 0 | AF7: 0 | AG7: =IF(B7<55,VLOOKUP(B7-$B$3,Lookups!$O$3:$Q$53,2),"") -> 0.063052 | AH7: =IF(B7<55,VLOOKUP(B7-$B$3,Lookups!$O$3:$Q$53,3),"") -> 0.076024 | AI7: 0.069538 | AJ7: =IF(B7<55,VLOOKUP(B7,Lookups!A:M,12),"") -> 0.000213 | AK7: =IF(B7<55,VLOOKUP(B7,Lookups!A:M,13),"") -> 0.000271 | AL7: 0.000242 | AM7: =IF(B7<70,VLOOKUP(B7,Lookups!A:H,8)*(1-VLOOKUP(B7,Lookups!$U$3:$W$103,2))^(A7-2018),"") -> 0.0009783227131 | AN7: =IF(B7<70,VLOOKUP(B7,Lookups!A:I,9)*(1-VLOOKUP(B7,Lookups!$U$3:$W$103,3))^(A7-2018),"") -> 0.0006075673366 | AO7: 0.0007929450248 | AP7: 0.07057294502 | AQ7: 2.731905883 | AR7: 2.245669568 | AT7: =IF(BA7>=$B$3,VLOOKUP(BA7,Lookups!A:H,8)*(1-VLOOKUP(BA7,Lookups!U:W,2))^(BA7-$B$3),"") ->  | AU7: =IF(BA7>=$B$3,VLOOKUP(BA7,Lookups!A:I,9)*(1-VLOOKUP(BA7,Lookups!U:W,3))^(BA7-$B$3),"") -> 
A8: 1996 | B8: 40 | D8: =VLOOKUP(B8,Lookups!A:B,2) -> 11479.52263 | E8: =VLOOKUP(B8,Lookups!A:C,3) -> 9144.804934 | G8: =VLOOKUP(B8,Lookups!A:D,4) -> 7537.559769 | H8: =VLOOKUP(B8,Lookups!A:E,5) -> 8673.277821 | J8: =VLOOKUP(A8,Trends!$A$3:$Q$94,IF(ExFlg=0,2,10))+IF(B8>=$B$2,Sens,0) -> 1.048 | K8: =IF(B8=$B$2,1,IF(B8<$B$2,K9/J8,K7*J7)) -> 0.3564936363 | L8: =VLOOKUP(A8,Trends!$A$3:$Q$94,IF(ExFlg=0,4,12))+IF(B8>=$B$2,Sens,0) -> 1.049 | M8: =IF(B8=$B$2,1,IF(B8<$B$2,M9/L8,M7*L7)) -> 0.3490914883 | O8: =VLOOKUP(A8,Trends!$A$3:$Q$94,IF(ExFlg=0,6,14))+IF(B8>=$B$2,Sens,0) -> 1.048 | P8: =IF(B8=$B$2,1,IF(B8<$B$2,P9/O8,P7*O7)) -> 0.3564936363 | Q8: =VLOOKUP(A8,Trends!$A$3:$Q$94,IF(ExFlg=0,8,16))+IF(B8>=$B$2,Sens,0) -> 1.048 | R8: =IF(B8=$B$2,1,IF(B8<$B$2,R9/Q8,R7*Q7)) -> 0.3564936363 | T8: =IF(B8<65,D8*K8,D8*M8) -> 4092.376767 | U8: =IF(B8=$B$2, E8, IF(B8<$B$2, E8 * Trends!$S$3^(B8 - $B$2), IF(ExFlg=0,E8*VLOOKUP(A8,Trends!$A$4:$V$94,20),E8*VLOOKUP(A8,Trends!$A$4:$Z$94,24)))) -> 3399.988017 | V8: 692.3887501 | X8: 2687.092091 | Y8: =IF(B8=$B$2, H8, IF(B8<$B$2, H8 * Trends!$U$3^(B8 - $B$2), IF(ExFlg=0,H8*VLOOKUP(A8,Trends!$A$4:$V$94,22),H8*VLOOKUP(A8,Trends!$A$4:$Z$94,26)))) -> 3224.676838 | Z8: -537.5847469 | AB8: -127.5976811 | AD8: =IF(B8<71,VLOOKUP(B8,Lookups!A:F,6),"") -> 0 | AE8: =IF(B8<71,VLOOKUP(Active!B8,Lookups!A:G,7),"") -> 0 | AF8: 0 | AG8: =IF(B8<55,VLOOKUP(B8-$B$3,Lookups!$O$3:$Q$53,2),"") -> 0.054443 | AH8: =IF(B8<55,VLOOKUP(B8-$B$3,Lookups!$O$3:$Q$53,3),"") -> 0.066544 | AI8: 0.0604935 | AJ8: =IF(B8<55,VLOOKUP(B8,Lookups!A:M,12),"") -> 0.000235 | AK8: =IF(B8<55,VLOOKUP(B8,Lookups!A:M,13),"") -> 0.000275 | AL8: 0.000255 | AM8: =IF(B8<70,VLOOKUP(B8,Lookups!A:H,8)*(1-VLOOKUP(B8,Lookups!$U$3:$W$103,2))^(A8-2018),"") -> 0.00103307771 | AN8: =IF(B8<70,VLOOKUP(B8,Lookups!A:I,9)*(1-VLOOKUP(B8,Lookups!$U$3:$W$103,3))^(A8-2018),"") -> 0.000655956271 | AO8: 0.0008445169905 | AP8: 0.06159301699 | AQ8: 2.53910724 | AR8: 2.168053261 | AT8: =IF(BA8>=$B$3,VLOOKUP(BA8,Lookups!A:H,8)*(1-VLOOKUP(BA8,Lookups!U:W,2))^(BA8-$B$3),"") ->  | AU8: =IF(BA8>=$B$3,VLOOKUP(BA8,Lookups!A:I,9)*(1-VLOOKUP(BA8,Lookups!U:W,3))^(BA8-$B$3),"") -> 
A9: 1997 | B9: 41 | D9: =VLOOKUP(B9,Lookups!A:B,2) -> 11721.94876 | E9: =VLOOKUP(B9,Lookups!A:C,3) -> 9144.804934 | G9: =VLOOKUP(B9,Lookups!A:D,4) -> 7696.738983 | H9: =VLOOKUP(B9,Lookups!A:E,5) -> 8673.277821 | J9: =VLOOKUP(A9,Trends!$A$3:$Q$94,IF(ExFlg=0,2,10))+IF(B9>=$B$2,Sens,0) -> 1.048 | K9: =IF(B9=$B$2,1,IF(B9<$B$2,K10/J9,K8*J8)) -> 0.3736053308 | L9: =VLOOKUP(A9,Trends!$A$3:$Q$94,IF(ExFlg=0,4,12))+IF(B9>=$B$2,Sens,0) -> 1.049 | M9: =IF(B9=$B$2,1,IF(B9<$B$2,M10/L9,M8*L8)) -> 0.3661969712 | O9: =VLOOKUP(A9,Trends!$A$3:$Q$94,IF(ExFlg=0,6,14))+IF(B9>=$B$2,Sens,0) -> 1.048 | P9: =IF(B9=$B$2,1,IF(B9<$B$2,P10/O9,P8*O8)) -> 0.3736053308 | Q9: =VLOOKUP(A9,Trends!$A$3:$Q$94,IF(ExFlg=0,8,16))+IF(B9>=$B$2,Sens,0) -> 1.048 | R9: =IF(B9=$B$2,1,IF(B9<$B$2,R10/Q9,R8*Q8)) -> 0.3736053308 | T9: =IF(B9<65,D9*K9,D9*M9) -> 4379.382544 | U9: =IF(B9=$B$2, E9, IF(B9<$B$2, E9 * Trends!$S$3^(B9 - $B$2), IF(ExFlg=0,E9*VLOOKUP(A9,Trends!$A$4:$V$94,20),E9*VLOOKUP(A9,Trends!$A$4:$Z$94,24)))) -> 3556.387466 | V9: 822.995078 | X9: 2875.542714 | Y9: =IF(B9=$B$2, H9, IF(B9<$B$2, H9 * Trends!$U$3^(B9 - $B$2), IF(ExFlg=0,H9*VLOOKUP(A9,Trends!$A$4:$V$94,22),H9*VLOOKUP(A9,Trends!$A$4:$Z$94,26)))) -> 3373.011972 | Z9: -497.4692582 | AB9: -57.31888098 | AD9: =IF(B9<71,VLOOKUP(B9,Lookups!A:F,6),"") -> 0 | AE9: =IF(B9<71,VLOOKUP(Active!B9,Lookups!A:G,7),"") -> 0 | AF9: 0 | AG9: =IF(B9<55,VLOOKUP(B9-$B$3,Lookups!$O$3:$Q$53,2),"") -> 0.044874 | AH9: =IF(B9<55,VLOOKUP(B9-$B$3,Lookups!$O$3:$Q$53,3),"") -> 0.057856 | AI9: 0.051365 | AJ9: =IF(B9<55,VLOOKUP(B9,Lookups!A:M,12),"") -> 0.000256 | AK9: =IF(B9<55,VLOOKUP(B9,Lookups!A:M,13),"") -> 0.000279 | AL9: 0.0002675 | AM9: =IF(B9<70,VLOOKUP(B9,Lookups!A:H,8)*(1-VLOOKUP(B9,Lookups!$U$3:$W$103,2))^(A9-2018),"") -> 0.0010885605 | AN9: =IF(B9<70,VLOOKUP(B9,Lookups!A:I,9)*(1-VLOOKUP(B9,Lookups!$U$3:$W$103,3))^(A9-2018),"") -> 0.0007125704251 | AO9: 0.0009005654626 | AP9: 0.05253306546 | AQ9: =IF(B9<71,IF(B9=$B$2,1, IF(B9<$B$2, AQ10/(1-AP9), AQ8*(1-AP8))),"") -> 2.382715964 | AR9: 2.09311958 | AT9: =IF(BA9>=$B$3,VLOOKUP(BA9,Lookups!A:H,8)*(1-VLOOKUP(BA9,Lookups!U:W,2))^(BA9-$B$3),"") ->  | AU9: =IF(BA9>=$B$3,VLOOKUP(BA9,Lookups!A:I,9)*(1-VLOOKUP(BA9,Lookups!U:W,3))^(BA9-$B$3),"") -> 
A10: 1998 | B10: 42 | D10: =VLOOKUP(B10,Lookups!A:B,2) -> 11446.20211 | E10: =VLOOKUP(B10,Lookups!A:C,3) -> 9144.804934 | G10: =VLOOKUP(B10,Lookups!A:D,4) -> 7515.681209 | H10: =VLOOKUP(B10,Lookups!A:E,5) -> 8673.277821 | J10: =VLOOKUP(A10,Trends!$A$3:$Q$94,IF(ExFlg=0,2,10))+IF(B10>=$B$2,Sens,0) -> 1.048 | K10: =IF(B10=$B$2,1,IF(B10<$B$2,K11/J10,K9*J9)) -> 0.3915383867 | L10: =VLOOKUP(A10,Trends!$A$3:$Q$94,IF(ExFlg=0,4,12))+IF(B10>=$B$2,Sens,0) -> 1.049 | M10: 0.3841406228 | O10: =VLOOKUP(A10,Trends!$A$3:$Q$94,IF(ExFlg=0,6,14))+IF(B10>=$B$2,Sens,0) -> 1.048 | P10: 0.3915383867 | Q10: =VLOOKUP(A10,Trends!$A$3:$Q$94,IF(ExFlg=0,8,16))+IF(B10>=$B$2,Sens,0) -> 1.048 | R10: 0.3915383867 | T10: 4481.627509 | U10: =IF(B10=$B$2, E10, IF(B10<$B$2, E10 * Trends!$S$3^(B10 - $B$2), IF(ExFlg=0,E10*VLOOKUP(A10,Trends!$A$4:$V$94,20),E10*VLOOKUP(A10,Trends!$A$4:$Z$94,24)))) -> 3719.981289 | V10: 761.6462201 | X10: 2942.677696 | Y10: =IF(B10=$B$2, H10, IF(B10<$B$2, H10 * Trends!$U$3^(B10 - $B$2), IF(ExFlg=0,H10*VLOOKUP(A10,Trends!$A$4:$V$94,22),H10*VLOOKUP(A10,Trends!$A$4:$Z$94,26)))) -> 3528.170523 | Z10: -585.4928273 | AB10: -136.4509686 | AD10: =IF(B10<71,VLOOKUP(B10,Lookups!A:F,6),"") -> 0 | AE10: =IF(B10<71,VLOOKUP(Active!B10,Lookups!A:G,7),"") -> 0 | AF10: 0 | AG10: =IF(B10<55,VLOOKUP(B10-$B$3,Lookups!$O$3:$Q$53,2),"") -> 0.041778 | AH10: =IF(B10<55,VLOOKUP(B10-$B$3,Lookups!$O$3:$Q$53,3),"") -> 0.053301 | AI10: =IF(B10<55,PCTMALE*AG10+(1-PCTMALE)*AH10,"") -> 0.0475395 | AJ10: =IF(B10<55,VLOOKUP(B10,Lookups!A:M,12),"") -> 0.000277 | AK10: =IF(B10<55,VLOOKUP(B10,Lookups!A:M,13),"") -> 0.000283 | AL10: 0.00028 | AM10: =IF(B10<70,VLOOKUP(B10,Lookups!A:H,8)*(1-VLOOKUP(B10,Lookups!$U$3:$W$103,2))^(A10-2018),"") -> 0.001149010757 | AN10: =IF(B10<70,VLOOKUP(B10,Lookups!A:I,9)*(1-VLOOKUP(B10,Lookups!$U$3:$W$103,3))^(A10-2018),"") -> 0.0007783963816 | AO10: 0.0009637035693 | AP10: 0.04878320357 | AQ10: 2.257544591 | AR10: 2.020775806 | AT10: =IF(BA10>=$B$3,VLOOKUP(BA10,Lookups!A:H,8)*(1-VLOOKUP(BA10,Lookups!U:W,2))^(BA10-$B$3),"") ->  | AU10: =IF(BA10>=$B$3,VLOOKUP(BA10,Lookups!A:I,9)*(1-VLOOKUP(BA10,Lookups!U:W,3))^(BA10-$B$3),"") -> 
A11: 1999 | B11: 43 | D11: =VLOOKUP(B11,Lookups!A:B,2) -> 11177.00927 | E11: =VLOOKUP(B11,Lookups!A:C,3) -> 9144.804934 | G11: =VLOOKUP(B11,Lookups!A:D,4) -> 7338.926726 | H11: =VLOOKUP(B11,Lookups!A:E,5) -> 8673.277821 | J11: =VLOOKUP(A11,Trends!$A$3:$Q$94,IF(ExFlg=0,2,10))+IF(B11>=$B$2,Sens,0) -> 1.048 | K11: 0.4103322293 | L11: =VLOOKUP(A11,Trends!$A$3:$Q$94,IF(ExFlg=0,4,12))+IF(B11>=$B$2,Sens,0) -> 1.049 | M11: 0.4029635133 | O11: =VLOOKUP(A11,Trends!$A$3:$Q$94,IF(ExFlg=0,6,14))+IF(B11>=$B$2,Sens,0) -> 1.048 | P11: 0.4103322293 | Q11: =VLOOKUP(A11,Trends!$A$3:$Q$94,IF(ExFlg=0,8,16))+IF(B11>=$B$2,Sens,0) -> 1.048 | R11: 0.4103322293 | T11: 4586.287132 | U11: =IF(B11=$B$2, E11, IF(B11<$B$2, E11 * Trends!$S$3^(B11 - $B$2), IF(ExFlg=0,E11*VLOOKUP(A11,Trends!$A$4:$V$94,20),E11*VLOOKUP(A11,Trends!$A$4:$Z$94,24)))) -> 3891.100428 | V11: 695.1867043 | X11: 3011.398164 | Y11: =IF(B11=$B$2, H11, IF(B11<$B$2, H11 * Trends!$U$3^(B11 - $B$2), IF(ExFlg=0,H11*VLOOKUP(A11,Trends!$A$4:$V$94,22),H11*VLOOKUP(A11,Trends!$A$4:$Z$94,26)))) -> 3690.466367 | Z11: =X11-Y11 -> -679.0682031 | AB11: -220.9878149 | AD11: =IF(B11<71,VLOOKUP(B11,Lookups!A:F,6),"") -> 0 | AE11: =IF(B11<71,VLOOKUP(Active!B11,Lookups!A:G,7),"") -> 0 | AF11: 0 | AG11: =IF(B11<55,VLOOKUP(B11-$B$3,Lookups!$O$3:$Q$53,2),"") -> 0.038895 | AH11: =IF(B11<55,VLOOKUP(B11-$B$3,Lookups!$O$3:$Q$53,3),"") -> 0.049105 | AI11: 0.044 | AJ11: =IF(B11<55,VLOOKUP(B11,Lookups!A:M,12),"") -> 0.000344 | AK11: =IF(B11<55,VLOOKUP(B11,Lookups!A:M,13),"") -> 0.000345 | AL11: 0.0003445 | AM11: =IF(B11<70,VLOOKUP(B11,Lookups!A:H,8)*(1-VLOOKUP(B11,Lookups!$U$3:$W$103,2))^(A11-2018),"") -> 0.001218617234 | AN11: =IF(B11<70,VLOOKUP(B11,Lookups!A:I,9)*(1-VLOOKUP(B11,Lookups!$U$3:$W$103,3))^(A11-2018),"") -> 0.0008544084342 | AO11: 0.001036512834 | AP11: 0.04538101283 | AQ11: 2.147414333 | AR11: 1.950932425 | AS11: Age | AT11: =IF(BA11>=$B$3,VLOOKUP(BA11,Lookups!A:H,8)*(1-VLOOKUP(BA11,Lookups!U:W,2))^(BA11-$B$3),"") ->  | AU11: =IF(BA11>=$B$3,VLOOKUP(BA11,Lookups!A:I,9)*(1-VLOOKUP(BA11,Lookups!U:W,3))^(BA11-$B$3),"") -> 
A12: 2000 | B12: 44 | D12: =VLOOKUP(B12,Lookups!A:B,2) -> 10914.21289 | E12: =VLOOKUP(B12,Lookups!A:C,3) -> 9144.804934 | G12: =VLOOKUP(B12,Lookups!A:D,4) -> 7166.372212 | H12: =VLOOKUP(B12,Lookups!A:E,5) -> 8673.277821 | J12: =VLOOKUP(A12,Trends!$A$3:$Q$94,IF(ExFlg=0,2,10))+IF(B12>=$B$2,Sens,0) -> 1.048 | K12: 0.4300281763 | L12: =VLOOKUP(A12,Trends!$A$3:$Q$94,IF(ExFlg=0,4,12))+IF(B12>=$B$2,Sens,0) -> 1.049 | M12: 0.4227087254 | O12: =VLOOKUP(A12,Trends!$A$3:$Q$94,IF(ExFlg=0,6,14))+IF(B12>=$B$2,Sens,0) -> 1.048 | P12: 0.4300281763 | Q12: =VLOOKUP(A12,Trends!$A$3:$Q$94,IF(ExFlg=0,8,16))+IF(B12>=$B$2,Sens,0) -> 1.048 | R12: 0.4300281763 | T12: 4693.419065 | U12: =IF(B12=$B$2, E12, IF(B12<$B$2, E12 * Trends!$S$3^(B12 - $B$2), IF(ExFlg=0,E12*VLOOKUP(A12,Trends!$A$4:$V$94,20),E12*VLOOKUP(A12,Trends!$A$4:$Z$94,24)))) -> 4070.091048 | V12: 623.3280173 | X12: 3081.741973 | Y12: =IF(B12=$B$2, H12, IF(B12<$B$2, H12 * Trends!$U$3^(B12 - $B$2), IF(ExFlg=0,H12*VLOOKUP(A12,Trends!$A$4:$V$94,22),H12*VLOOKUP(A12,Trends!$A$4:$Z$94,26)))) -> 3860.22782 | Z12: -778.4858469 | AB12: -311.2192316 | AD12: =IF(B12<71,VLOOKUP(B12,Lookups!A:F,6),"") -> 0 | AE12: =IF(B12<71,VLOOKUP(Active!B12,Lookups!A:G,7),"") -> 0 | AF12: 0 | AG12: =IF(B12<55,VLOOKUP(B12-$B$3,Lookups!$O$3:$Q$53,2),"") -> 0.036211 | AH12: =IF(B12<55,VLOOKUP(B12-$B$3,Lookups!$O$3:$Q$53,3),"") -> 0.045239 | AI12: 0.040725 | AJ12: =IF(B12<55,VLOOKUP(B12,Lookups!A:M,12),"") -> 0.00041 | AK12: =IF(B12<55,VLOOKUP(B12,Lookups!A:M,13),"") -> 0.000406 | AL12: 0.000408 | AM12: =IF(B12<70,VLOOKUP(B12,Lookups!A:H,8)*(1-VLOOKUP(B12,Lookups!$U$3:$W$103,2))^(A12-2018),"") -> 0.001299407004 | AN12: =IF(B12<70,VLOOKUP(B12,Lookups!A:I,9)*(1-VLOOKUP(B12,Lookups!$U$3:$W$103,3))^(A12-2018),"") -> 0.0009373464009 | AO12: 0.001118376702 | AP12: 0.0422513767 | AQ12: 2.049962496 | AR12: 1.883503017 | AS12: 55 | AT12: =IF(BA12>=$B$3,VLOOKUP(BA12,Lookups!A:H,8)*(1-VLOOKUP(BA12,Lookups!U:W,2))^(BA12-$B$2 + ValYear - 2017),"") -> 0.003083080901 | AU12: =IF(BA12>=$B$3,VLOOKUP(BA12,Lookups!A:I,9)*(1-VLOOKUP(BA12,Lookups!U:W,3))^(BA12-$B$2 + ValYear - 2017),"") -> 0.002282628556 | AV12: 0.002682854729 | AW12: =IF(AV11="",1,AW11*(1-AV11)) -> 1 | AX12: =IF(AV11="",1,AX11/(1+IntRt)) -> 1 | AY12: =IF(AV12="",1,ROUND((13/24)+(11/24)*(1/(1+IntRt))*(1-AV12),6)) -> 0.982972 | BA12: 55 | BB12: =IF(BA12>=$B$3,VLOOKUP(BA12,$B$3:$AB$93,27),"") -> -412.4844069 | BC12: =IF(BB12<>"",BB12*AX12*AY12*AW12,"") -> -405.4606225 | BN12: 0
A13: 2001 | B13: 45 | D13: =VLOOKUP(B13,Lookups!A:B,2) -> 10657.65942 | E13: =VLOOKUP(B13,Lookups!A:C,3) -> 9144.804934 | G13: =VLOOKUP(B13,Lookups!A:D,4) -> 6997.916853 | H13: =VLOOKUP(B13,Lookups!A:E,5) -> 8673.277821 | J13: =VLOOKUP(A13,Trends!$A$3:$Q$94,IF(ExFlg=0,2,10))+IF(B13>=$B$2,Sens,0) -> 1.048 | K13: 0.4506695288 | L13: =VLOOKUP(A13,Trends!$A$3:$Q$94,IF(ExFlg=0,4,12))+IF(B13>=$B$2,Sens,0) -> 1.049 | M13: 0.443421453 | O13: =VLOOKUP(A13,Trends!$A$3:$Q$94,IF(ExFlg=0,6,14))+IF(B13>=$B$2,Sens,0) -> 1.048 | P13: 0.4506695288 | Q13: =VLOOKUP(A13,Trends!$A$3:$Q$94,IF(ExFlg=0,8,16))+IF(B13>=$B$2,Sens,0) -> 1.048 | R13: 0.4506695288 | T13: 4803.082349 | U13: =IF(B13=$B$2, E13, IF(B13<$B$2, E13 * Trends!$S$3^(B13 - $B$2), IF(ExFlg=0,E13*VLOOKUP(A13,Trends!$A$4:$V$94,20),E13*VLOOKUP(A13,Trends!$A$4:$Z$94,24)))) -> 4257.315236 | V13: 545.7671128 | X13: 3153.747891 | Y13: =IF(B13=$B$2, H13, IF(B13<$B$2, H13 * Trends!$U$3^(B13 - $B$2), IF(ExFlg=0,H13*VLOOKUP(A13,Trends!$A$4:$V$94,22),H13*VLOOKUP(A13,Trends!$A$4:$Z$94,26)))) -> 4037.7983 | Z13: -884.0504093 | AB13: -407.4493347 | AD13: =IF(B13<71,VLOOKUP(B13,Lookups!A:F,6),"") -> 0 | AE13: =IF(B13<71,VLOOKUP(Active!B13,Lookups!A:G,7),"") -> 0 | AF13: 0 | AG13: =IF(B13<55,VLOOKUP(B13-$B$3,Lookups!$O$3:$Q$53,2),"") -> 0.033712 | AH13: =IF(B13<55,VLOOKUP(B13-$B$3,Lookups!$O$3:$Q$53,3),"") -> 0.041677 | AI13: 0.0376945 | AJ13: =IF(B13<55,VLOOKUP(B13,Lookups!A:M,12),"") -> 0.000476 | AK13: =IF(B13<55,VLOOKUP(B13,Lookups!A:M,13),"") -> 0.000467 | AL13: 0.0004715 | AM13: =IF(B13<70,VLOOKUP(B13,Lookups!A:H,8)*(1-VLOOKUP(B13,Lookups!$U$3:$W$103,2))^(A13-2018),"") -> 0.00139232991 | AN13: =IF(B13<70,VLOOKUP(B13,Lookups!A:I,9)*(1-VLOOKUP(B13,Lookups!$U$3:$W$103,3))^(A13-2018),"") -> 0.001026093471 | AO13: 0.001209211691 | AP13: 0.03937521169 | AQ13: 1.963348758 | AR13: 1.818404149 | AS13: 56 | AT13: =IF(BA13>=$B$3,VLOOKUP(BA13,Lookups!A:H,8)*(1-VLOOKUP(BA13,Lookups!U:W,2))^(BA13-$B$2 + ValYear - 2017),"") -> 0.003484961719 | AU13: =IF(BA13>=$B$3,VLOOKUP(BA13,Lookups!A:I,9)*(1-VLOOKUP(BA13,Lookups!U:W,3))^(BA13-$B$2 + ValYear - 2017),"") -> 0.002512475175 | AV13: 0.002998718447 | AW13: 0.9973171453 | AX13: 0.9654373431 | AY13: 0.982832 | BA13: =1+BA12 -> 56 | BB13: =IF(BA13>=$B$3,VLOOKUP(BA13,$B$3:$AB$93,27),"") -> -274.8470627 | BC13: =IF(BB13<>"",BB13*AX13*AY13*AW13,"") -> -260.0924626 | BD13: =IF(BB13<>"",BB13*AW13/$AW$13*AX13/$AX$13*AY13,"") -> -270.1284883 | BN13: 0 | BO13: 0
A14: 2002 | B14: 46 | D14: =VLOOKUP(B14,Lookups!A:B,2) -> 10407.19905 | E14: =VLOOKUP(B14,Lookups!A:C,3) -> 9144.804934 | G14: =VLOOKUP(B14,Lookups!A:D,4) -> 6833.462277 | H14: =VLOOKUP(B14,Lookups!A:E,5) -> 8673.277821 | J14: =VLOOKUP(A14,Trends!$A$3:$Q$94,IF(ExFlg=0,2,10))+IF(B14>=$B$2,Sens,0) -> 1.048 | K14: =IF(B14=$B$2,1,IF(B14<$B$2,K15/J14,K13*J13)) -> 0.4723016661 | L14: =VLOOKUP(A14,Trends!$A$3:$Q$94,IF(ExFlg=0,4,12))+IF(B14>=$B$2,Sens,0) -> 1.049 | M14: 0.4651491042 | O14: =VLOOKUP(A14,Trends!$A$3:$Q$94,IF(ExFlg=0,6,14))+IF(B14>=$B$2,Sens,0) -> 1.048 | P14: 0.4723016661 | Q14: =VLOOKUP(A14,Trends!$A$3:$Q$94,IF(ExFlg=0,8,16))+IF(B14>=$B$2,Sens,0) -> 1.048 | R14: 0.4723016661 | T14: 4915.33745 | U14: =IF(B14=$B$2, E14, IF(B14<$B$2, E14 * Trends!$S$3^(B14 - $B$2), IF(ExFlg=0,E14*VLOOKUP(A14,Trends!$A$4:$V$94,20),E14*VLOOKUP(A14,Trends!$A$4:$Z$94,24)))) -> 4453.151737 | V14: 462.1857128 | X14: 3227.455619 | Y14: =IF(B14=$B$2, H14, IF(B14<$B$2, H14 * Trends!$U$3^(B14 - $B$2), IF(ExFlg=0,H14*VLOOKUP(A14,Trends!$A$4:$V$94,22),H14*VLOOKUP(A14,Trends!$A$4:$Z$94,26)))) -> 4223.537022 | Z14: -996.0814028 | AB14: -509.9972252 | AD14: =IF(B14<71,VLOOKUP(B14,Lookups!A:F,6),"") -> 0 | AE14: =IF(B14<71,VLOOKUP(Active!B14,Lookups!A:G,7),"") -> 0 | AF14: 0 | AG14: =IF(B14<55,VLOOKUP(B14-$B$3,Lookups!$O$3:$Q$53,2),"") -> 0.031386 | AH14: =IF(B14<55,VLOOKUP(B14-$B$3,Lookups!$O$3:$Q$53,3),"") -> 0.038396 | AI14: 0.034891 | AJ14: =IF(B14<55,VLOOKUP(B14,Lookups!A:M,12),"") -> 0.000542 | AK14: =IF(B14<55,VLOOKUP(B14,Lookups!A:M,13),"") -> 0.000528 | AL14: 0.000535 | AM14: =IF(B14<70,VLOOKUP(B14,Lookups!A:H,8)*(1-VLOOKUP(B14,Lookups!$U$3:$W$103,2))^(A14-2018),"") -> 0.001499373034 | AN14: =IF(B14<70,VLOOKUP(B14,Lookups!A:I,9)*(1-VLOOKUP(B14,Lookups!$U$3:$W$103,3))^(A14-2018),"") -> 0.001117447362 | AO14: 0.001308410198 | AP14: 0.0367344102 | AQ14: 1.886041485 | AR14: 1.75555527 | AS14: 57 | AT14: =IF(BA14>=$B$3,VLOOKUP(BA14,Lookups!A:H,8)*(1-VLOOKUP(BA14,Lookups!U:W,2))^(BA14-$B$2 + ValYear - 2017),"") -> 0.003971158317 | AU14: =IF(BA14>=$B$3,VLOOKUP(BA14,Lookups!A:I,9)*(1-VLOOKUP(BA14,Lookups!U:W,3))^(BA14-$B$2 + ValYear - 2017),"") -> 0.002800597181 | AV14: 0.003385877749 | AW14: =IF(AV13="",1,AW13*(1-AV13)) -> 0.994326472 | AX14: 0.9320692635 | AY14: 0.982661 | BA14: =1+BA13 -> 57 | BB14: 1.699087703 | BC14: =IF(BB14<>"",BB14*AX14*AY14*AW14,"") -> 1.547379023 | BD14: =IF(BB14<>"",BB14*AW14/$AW$13*AX14/$AX$13*AY14,"") -> 1.607086773 | BE14: =IF(BB14<>"",BB14*AW14/$AW$14*AX14/$AX$14*AY14,"") -> 1.669627221 | BN14: 0 | BO14: 0 | BP14: 0
A15: 2003 | B15: 47 | D15: =VLOOKUP(B15,Lookups!A:B,2) -> 10309.73579 | E15: =VLOOKUP(B15,Lookups!A:C,3) -> 9144.804934 | G15: =VLOOKUP(B15,Lookups!A:D,4) -> 6769.467005 | H15: =VLOOKUP(B15,Lookups!A:E,5) -> 8673.277821 | J15: =VLOOKUP(A15,Trends!$A$3:$Q$94,IF(ExFlg=0,2,10))+IF(B15>=$B$2,Sens,0) -> 1.048 | K15: 0.4949721461 | L15: =VLOOKUP(A15,Trends!$A$3:$Q$94,IF(ExFlg=0,4,12))+IF(B15>=$B$2,Sens,0) -> 1.049 | M15: 0.4879414103 | O15: =VLOOKUP(A15,Trends!$A$3:$Q$94,IF(ExFlg=0,6,14))+IF(B15>=$B$2,Sens,0) -> 1.048 | P15: 0.4949721461 | Q15: =VLOOKUP(A15,Trends!$A$3:$Q$94,IF(ExFlg=0,8,16))+IF(B15>=$B$2,Sens,0) -> 1.048 | R15: 0.4949721461 | T15: 5103.032048 | U15: =IF(B15=$B$2, E15, IF(B15<$B$2, E15 * Trends!$S$3^(B15 - $B$2), IF(ExFlg=0,E15*VLOOKUP(A15,Trends!$A$4:$V$94,20),E15*VLOOKUP(A15,Trends!$A$4:$Z$94,24)))) -> 4657.996717 | V15: 445.0353311 | X15: 3350.697612 | Y15: =IF(B15=$B$2, H15, IF(B15<$B$2, H15 * Trends!$U$3^(B15 - $B$2), IF(ExFlg=0,H15*VLOOKUP(A15,Trends!$A$4:$V$94,22),H15*VLOOKUP(A15,Trends!$A$4:$Z$94,26)))) -> 4417.819725 | Z15: -1067.122113 | AB15: -563.0746721 | AD15: =IF(B15<71,VLOOKUP(B15,Lookups!A:F,6),"") -> 0 | AE15: =IF(B15<71,VLOOKUP(Active!B15,Lookups!A:G,7),"") -> 0 | AF15: 0 | AG15: =IF(B15<55,VLOOKUP(B15-$B$3,Lookups!$O$3:$Q$53,2),"") -> 0.02922 | AH15: =IF(B15<55,VLOOKUP(B15-$B$3,Lookups!$O$3:$Q$53,3),"") -> 0.035373 | AI15: 0.0322965 | AJ15: =IF(B15<55,VLOOKUP(B15,Lookups!A:M,12),"") -> 0.000609 | AK15: =IF(B15<55,VLOOKUP(B15,Lookups!A:M,13),"") -> 0.000589 | AL15: 0.000599 | AM15: =IF(B15<70,VLOOKUP(B15,Lookups!A:H,8)*(1-VLOOKUP(B15,Lookups!$U$3:$W$103,2))^(A15-2018),"") -> 0.001601576973 | AN15: =IF(B15<70,VLOOKUP(B15,Lookups!A:I,9)*(1-VLOOKUP(B15,Lookups!$U$3:$W$103,3))^(A15-2018),"") -> 0.00121242829 | AO15: 0.001407002631 | AP15: 0.03430250263 | AQ15: 1.816758864 | AR15: 1.694878616 | AS15: 58 | AT15: =IF(BA15>=$B$3,VLOOKUP(BA15,Lookups!A:H,8)*(1-VLOOKUP(BA15,Lookups!U:W,2))^(BA15-$B$2 + ValYear - 2017),"") -> 0.0043529686 | AU15: =IF(BA15>=$B$3,VLOOKUP(BA15,Lookups!A:I,9)*(1-VLOOKUP(BA15,Lookups!U:W,3))^(BA15-$B$2 + ValYear - 2017),"") -> 0.003083411438 | AV15: 0.003718190019 | AW15: 0.9909598041 | AX15: 0.8998544733 | AY15: 0.982514 | BA15: 58 | BB15: 317.5584097 | BC15: =IF(BB15<>"",BB15*AX15*AY15*AW15,"") -> 278.2214979 | BD15: =IF(BB15<>"",BB15*AW15/$AW$13*AX15/$AX$13*AY15,"") -> 288.9570573 | BE15: =IF(BB15<>"",BB15*AW15/$AW$14*AX15/$AX$14*AY15,"") -> 300.2019411 | BF15: =IF(BB15<>"",BB15*AW15/$AW$15*AX15/$AX$15*AY15,"") -> 312.0055833 | BN15: 0 | BO15: 0 | BP15: 0 | BQ15: 0
A16: 2004 | B16: 48 | D16: =VLOOKUP(B16,Lookups!A:B,2) -> 10213.42828 | E16: =VLOOKUP(B16,Lookups!A:C,3) -> 9144.804934 | G16: =VLOOKUP(B16,Lookups!A:D,4) -> 6706.230612 | H16: =VLOOKUP(B16,Lookups!A:E,5) -> 8673.277821 | J16: =VLOOKUP(A16,Trends!$A$3:$Q$94,IF(ExFlg=0,2,10))+IF(B16>=$B$2,Sens,0) -> 1.048 | K16: 0.5187308091 | L16: =VLOOKUP(A16,Trends!$A$3:$Q$94,IF(ExFlg=0,4,12))+IF(B16>=$B$2,Sens,0) -> 1.049 | M16: 0.5118505394 | O16: =VLOOKUP(A16,Trends!$A$3:$Q$94,IF(ExFlg=0,6,14))+IF(B16>=$B$2,Sens,0) -> 1.048 | P16: 0.5187308091 | Q16: =VLOOKUP(A16,Trends!$A$3:$Q$94,IF(ExFlg=0,8,16))+IF(B16>=$B$2,Sens,0) -> 1.048 | R16: 0.5187308091 | T16: 5298.019915 | U16: =IF(B16=$B$2, E16, IF(B16<$B$2, E16 * Trends!$S$3^(B16 - $B$2), IF(ExFlg=0,E16*VLOOKUP(A16,Trends!$A$4:$V$94,20),E16*VLOOKUP(A16,Trends!$A$4:$Z$94,24)))) -> 4872.264566 | V16: 425.755349 | X16: 3478.728432 | Y16: =IF(B16=$B$2, H16, IF(B16<$B$2, H16 * Trends!$U$3^(B16 - $B$2), IF(ExFlg=0,H16*VLOOKUP(A16,Trends!$A$4:$V$94,22),H16*VLOOKUP(A16,Trends!$A$4:$Z$94,26)))) -> 4621.039432 | Z16: -1142.311 | AB16: -619.6274441 | AD16: =IF(B16<71,VLOOKUP(B16,Lookups!A:F,6),"") -> 0 | AE16: =IF(B16<71,VLOOKUP(Active!B16,Lookups!A:G,7),"") -> 0 | AF16: 0 | AG16: =IF(B16<55,VLOOKUP(B16-$B$3,Lookups!$O$3:$Q$53,2),"") -> 0.027204 | AH16: =IF(B16<55,VLOOKUP(B16-$B$3,Lookups!$O$3:$Q$53,3),"") -> 0.032588 | AI16: 0.029896 | AJ16: =IF(B16<55,VLOOKUP(B16,Lookups!A:M,12),"") -> 0.000713 | AK16: =IF(B16<55,VLOOKUP(B16,Lookups!A:M,13),"") -> 0.000727 | AL16: 0.00072 | AM16: =IF(B16<70,VLOOKUP(B16,Lookups!A:H,8)*(1-VLOOKUP(B16,Lookups!$U$3:$W$103,2))^(A16-2018),"") -> 0.001713583797 | AN16: =IF(B16<70,VLOOKUP(B16,Lookups!A:I,9)*(1-VLOOKUP(B16,Lookups!$U$3:$W$103,3))^(A16-2018),"") -> 0.001309958155 | AO16: 0.001511770976 | AP16: 0.03212777098 | AQ16: 1.754439488 | AR16: 1.636299108 | AS16: 59 | AT16: =IF(BA16>=$B$3,VLOOKUP(BA16,Lookups!A:H,8)*(1-VLOOKUP(BA16,Lookups!U:W,2))^(BA16-$B$2 + ValYear - 2017),"") -> 0.004789299175 | AU16: =IF(BA16>=$B$3,VLOOKUP(BA16,Lookups!A:I,9)*(1-VLOOKUP(BA16,Lookups!U:W,3))^(BA16-$B$2 + ValYear - 2017),"") -> 0.003394831995 | AV16: 0.004092065585 | AW16: 0.9872752272 | AX16: 0.8687531119 | AY16: 0.982348 | BA16: 59 | BB16: 677.0002172 | BC16: 570.4121747 | BD16: 592.4223136 | BE16: =IF(BB16<>"",BB16*AW16/$AW$14*AX16/$AX$14*AY16,"") -> 615.4766737 | BF16: 639.6766054 | BG16: =IF(BB16<>"",BB16*AW16/$AW$16*AX16/$AX$16*AY16,"") -> 665.0498094 | BN16: 0 | BO16: 0 | BP16: 0 | BQ16: 0 | BR16: 0
A17: 2005 | B17: 49 | D17: =VLOOKUP(B17,Lookups!A:B,2) -> 10118.26135 | E17: =VLOOKUP(B17,Lookups!A:C,3) -> 9144.804934 | G17: =VLOOKUP(B17,Lookups!A:D,4) -> 6643.743134 | H17: =VLOOKUP(B17,Lookups!A:E,5) -> 8673.277821 | J17: =VLOOKUP(A17,Trends!$A$3:$Q$94,IF(ExFlg=0,2,10))+IF(B17>=$B$2,Sens,0) -> 1.048 | K17: 0.543629888 | L17: =VLOOKUP(A17,Trends!$A$3:$Q$94,IF(ExFlg=0,4,12))+IF(B17>=$B$2,Sens,0) -> 1.049 | M17: 0.5369312158 | O17: =VLOOKUP(A17,Trends!$A$3:$Q$94,IF(ExFlg=0,6,14))+IF(B17>=$B$2,Sens,0) -> 1.048 | P17: 0.543629888 | Q17: =VLOOKUP(A17,Trends!$A$3:$Q$94,IF(ExFlg=0,8,16))+IF(B17>=$B$2,Sens,0) -> 1.048 | R17: 0.543629888 | T17: 5500.589284 | U17: =IF(B17=$B$2, E17, IF(B17<$B$2, E17 * Trends!$S$3^(B17 - $B$2), IF(ExFlg=0,E17*VLOOKUP(A17,Trends!$A$4:$V$94,20),E17*VLOOKUP(A17,Trends!$A$4:$Z$94,24)))) -> 5096.388736 | V17: 404.2005484 | X17: 3611.737336 | Y17: =IF(B17=$B$2, H17, IF(B17<$B$2, H17 * Trends!$U$3^(B17 - $B$2), IF(ExFlg=0,H17*VLOOKUP(A17,Trends!$A$4:$V$94,22),H17*VLOOKUP(A17,Trends!$A$4:$Z$94,26)))) -> 4833.607246 | Z17: -1221.86991 | AB17: -679.8518443 | AD17: =IF(B17<71,VLOOKUP(B17,Lookups!A:F,6),"") -> 0 | AE17: =IF(B17<71,VLOOKUP(Active!B17,Lookups!A:G,7),"") -> 0 | AF17: 0 | AG17: =IF(B17<55,VLOOKUP(B17-$B$3,Lookups!$O$3:$Q$53,2),"") -> 0.025327 | AH17: =IF(B17<55,VLOOKUP(B17-$B$3,Lookups!$O$3:$Q$53,3),"") -> 0.030023 | AI17: 0.027675 | AJ17: =IF(B17<55,VLOOKUP(B17,Lookups!A:M,12),"") -> 0.000817 | AK17: =IF(B17<55,VLOOKUP(B17,Lookups!A:M,13),"") -> 0.000865 | AL17: 0.000841 | AM17: =IF(B17<70,VLOOKUP(B17,Lookups!A:H,8)*(1-VLOOKUP(B17,Lookups!$U$3:$W$103,2))^(A17-2018),"") -> 0.001832182987 | AN17: =IF(B17<70,VLOOKUP(B17,Lookups!A:I,9)*(1-VLOOKUP(B17,Lookups!$U$3:$W$103,3))^(A17-2018),"") -> 0.001413130919 | AO17: 0.001622656953 | AP17: 0.03013865695 | AQ17: 1.698073258 | AR17: 1.579744263 | AS17: 60 | AT17: =IF(BA17>=$B$3,VLOOKUP(BA17,Lookups!A:H,8)*(1-VLOOKUP(BA17,Lookups!U:W,2))^(BA17-$B$2 + ValYear - 2017),"") -> 0.005275931521 | AU17: =IF(BA17>=$B$3,VLOOKUP(BA17,Lookups!A:I,9)*(1-VLOOKUP(BA17,Lookups!U:W,3))^(BA17-$B$2 + ValYear - 2017),"") -> 0.003743434343 | AV17: 0.004509682932 | AW17: 0.9832352322 | AX17: 0.8387266962 | AY17: 0.982163 | BA17: 60 | BB17: 1084.71935 | BC17: =IF(BB17<>"",BB17*AX17*AY17*AW17,"") -> 878.5750291 | BD17: 912.4760558 | BE17: 947.9854401 | BF17: 985.2592863 | BG17: 1024.340261 | BH17: =IF(BB17<>"",BB17*AW17/$AW$17*AX17/$AX$17*AY17,"") -> 1065.371211 | BN17: 0 | BO17: 0 | BP17: 0 | BQ17: 0 | BR17: 0 | BS17: 0
A18: 2006 | B18: 50 | D18: =VLOOKUP(B18,Lookups!A:B,2) -> 10024.22003 | E18: =VLOOKUP(B18,Lookups!A:C,3) -> 9144.804934 | G18: =VLOOKUP(B18,Lookups!A:D,4) -> 6581.994743 | H18: =VLOOKUP(B18,Lookups!A:E,5) -> 8673.277821 | J18: =VLOOKUP(A18,Trends!$A$3:$Q$94,IF(ExFlg=0,2,10))+IF(B18>=$B$2,Sens,0) -> 1.048 | K18: 0.5697241226 | L18: =VLOOKUP(A18,Trends!$A$3:$Q$94,IF(ExFlg=0,4,12))+IF(B18>=$B$2,Sens,0) -> 1.049 | M18: 0.5632408454 | O18: =VLOOKUP(A18,Trends!$A$3:$Q$94,IF(ExFlg=0,6,14))+IF(B18>=$B$2,Sens,0) -> 1.048 | P18: 0.5697241226 | Q18: =VLOOKUP(A18,Trends!$A$3:$Q$94,IF(ExFlg=0,8,16))+IF(B18>=$B$2,Sens,0) -> 1.048 | R18: 0.5697241226 | T18: 5711.039964 | U18: =IF(B18=$B$2, E18, IF(B18<$B$2, E18 * Trends!$S$3^(B18 - $B$2), IF(ExFlg=0,E18*VLOOKUP(A18,Trends!$A$4:$V$94,20),E18*VLOOKUP(A18,Trends!$A$4:$Z$94,24)))) -> 5330.822618 | V18: 380.2173459 | X18: 3749.92118 | Y18: =IF(B18=$B$2, H18, IF(B18<$B$2, H18 * Trends!$U$3^(B18 - $B$2), IF(ExFlg=0,H18*VLOOKUP(A18,Trends!$A$4:$V$94,22),H18*VLOOKUP(A18,Trends!$A$4:$Z$94,26)))) -> 5055.953179 | Z18: -1306.031999 | AB18: -743.954505 | AD18: =IF(B18<71,VLOOKUP(B18,Lookups!A:F,6),"") -> 0 | AE18: =IF(B18<71,VLOOKUP(Active!B18,Lookups!A:G,7),"") -> 0 | AF18: 0 | AG18: =IF(B18<55,VLOOKUP(B18-$B$3,Lookups!$O$3:$Q$53,2),"") -> 0.023579 | AH18: =IF(B18<55,VLOOKUP(B18-$B$3,Lookups!$O$3:$Q$53,3),"") -> 0.027659 | AI18: 0.025619 | AJ18: =IF(B18<55,VLOOKUP(B18,Lookups!A:M,12),"") -> 0.000922 | AK18: =IF(B18<55,VLOOKUP(B18,Lookups!A:M,13),"") -> 0.001003 | AL18: 0.0009625 | AM18: =IF(B18<70,VLOOKUP(B18,Lookups!A:H,8)*(1-VLOOKUP(B18,Lookups!$U$3:$W$103,2))^(A18-2018),"") -> 0.001959385566 | AN18: =IF(B18<70,VLOOKUP(B18,Lookups!A:I,9)*(1-VLOOKUP(B18,Lookups!$U$3:$W$103,3))^(A18-2018),"") -> 0.001521893127 | AO18: 0.001740639347 | AP18: 0.02832213935 | AQ18: 1.646895611 | AR18: 1.525144104 | AS18: 61 | AT18: =IF(BA18>=$B$3,VLOOKUP(BA18,Lookups!A:H,8)*(1-VLOOKUP(BA18,Lookups!U:W,2))^(BA18-$B$2 + ValYear - 2017),"") -> 0.005839 | AU18: =IF(BA18>=$B$3,VLOOKUP(BA18,Lookups!A:I,9)*(1-VLOOKUP(BA18,Lookups!U:W,3))^(BA18-$B$2 + ValYear - 2017),"") -> 0.004142 | AV18: 0.0049905 | AW18: 0.9788011531 | AX18: 0.8097380732 | AY18: 0.981951 | BA18: 61 | BB18: 1545.877205 | BC18: 1203.10586 | BD18: 1249.529356 | BE18: 1298.155309 | BF18: 1349.197487 | BG18: 1402.714315 | BH18: =IF(BB18<>"",BB18*AW18/$AW$17*AX18/$AX$17*AY18,"") -> 1458.901408 | BI18: =IF(BB18<>"",BB18*AW18/$AW$18*AX18/$AX$18*AY18,"") -> 1517.975668 | BN18: 0 | BO18: 0 | BP18: 0 | BQ18: 0 | BR18: 0 | BS18: 0 | BT18: 0
A19: 2007 | B19: 51 | D19: =VLOOKUP(B19,Lookups!A:B,2) -> 9931.289567 | E19: =VLOOKUP(B19,Lookups!A:C,3) -> 9144.804934 | G19: =VLOOKUP(B19,Lookups!A:D,4) -> 6520.975745 | H19: =VLOOKUP(B19,Lookups!A:E,5) -> 8673.277821 | J19: =VLOOKUP(A19,Trends!$A$3:$Q$94,IF(ExFlg=0,2,10))+IF(B19>=$B$2,Sens,0) -> 1.048 | K19: 0.5970708805 | L19: =VLOOKUP(A19,Trends!$A$3:$Q$94,IF(ExFlg=0,4,12))+IF(B19>=$B$2,Sens,0) -> 1.049 | M19: 0.5908396468 | O19: =VLOOKUP(A19,Trends!$A$3:$Q$94,IF(ExFlg=0,6,14))+IF(B19>=$B$2,Sens,0) -> 1.048 | P19: 0.5970708805 | Q19: =VLOOKUP(A19,Trends!$A$3:$Q$94,IF(ExFlg=0,8,16))+IF(B19>=$B$2,Sens,0) -> 1.048 | R19: 0.5970708805 | T19: 5929.683806 | U19: =IF(B19=$B$2, E19, IF(B19<$B$2, E19 * Trends!$S$3^(B19 - $B$2), IF(ExFlg=0,E19*VLOOKUP(A19,Trends!$A$4:$V$94,20),E19*VLOOKUP(A19,Trends!$A$4:$Z$94,24)))) -> 5576.040458 | V19: 353.6433476 | X19: 3893.48473 | Y19: =IF(B19=$B$2, H19, IF(B19<$B$2, H19 * Trends!$U$3^(B19 - $B$2), IF(ExFlg=0,H19*VLOOKUP(A19,Trends!$A$4:$V$94,22),H19*VLOOKUP(A19,Trends!$A$4:$Z$94,26)))) -> 5288.527025 | Z19: -1395.042296 | AB19: -812.1529101 | AD19: =IF(B19<71,VLOOKUP(B19,Lookups!A:F,6),"") -> 0 | AE19: =IF(B19<71,VLOOKUP(Active!B19,Lookups!A:G,7),"") -> 0 | AF19: 0 | AG19: =IF(B19<55,VLOOKUP(B19-$B$3,Lookups!$O$3:$Q$53,2),"") -> 0.021952 | AH19: =IF(B19<55,VLOOKUP(B19-$B$3,Lookups!$O$3:$Q$53,3),"") -> 0.025482 | AI19: 0.023717 | AJ19: =IF(B19<55,VLOOKUP(B19,Lookups!A:M,12),"") -> 0.001026 | AK19: =IF(B19<55,VLOOKUP(B19,Lookups!A:M,13),"") -> 0.001141 | AL19: 0.0010835 | AM19: =IF(B19<70,VLOOKUP(B19,Lookups!A:H,8)*(1-VLOOKUP(B19,Lookups!$U$3:$W$103,2))^(A19-2018),"") -> 0.002093043653 | AN19: =IF(B19<70,VLOOKUP(B19,Lookups!A:I,9)*(1-VLOOKUP(B19,Lookups!$U$3:$W$103,3))^(A19-2018),"") -> 0.001641359664 | AO19: 0.001867201659 | AP19: 0.02666770166 | AQ19: 1.600252004 | AR19: 1.472431072 | AS19: 62 | AT19: =IF(BA19>=$B$3,VLOOKUP(BA19,Lookups!A:H,8)*(1-VLOOKUP(BA19,Lookups!U:W,2))^(BA19-$B$2 + ValYear - 2017),"") -> 0.006464293 | AU19: =IF(BA19>=$B$3,VLOOKUP(BA19,Lookups!A:I,9)*(1-VLOOKUP(BA19,Lookups!U:W,3))^(BA19-$B$2 + ValYear - 2017),"") -> 0.004621864 | AV19: 0.0055430785 | AW19: 0.9739164459 | AX19: 0.781751374 | AY19: 0.981706 | BA19: 62 | BB19: 2178.728034 | BC19: 1628.451467 | BD19: 1691.287508 | BE19: 1757.104663 | BF19: 1826.192274 | BG19: 1898.629422 | BH19: =IF(BB19<>"",BB19*AW19/$AW$17*AX19/$AX$17*AY19,"") -> 1974.680879 | BI19: =IF(BB19<>"",BB19*AW19/$AW$18*AX19/$AX$18*AY19,"") -> 2054.64023 | BJ19: =IF(BB19<>"",BB19*AW19/$AW$19*AX19/$AX$19*AY19,"") -> 2138.870383 | BN19: 0 | BO19: 0 | BP19: 0 | BQ19: 0 | BR19: 0 | BS19: 0 | BT19: 0 | BU19: 0
A20: =1+A19 -> 2008 | B20: 52 | D20: =VLOOKUP(B20,Lookups!A:B,2) -> 10155.53376 | E20: =VLOOKUP(B20,Lookups!A:C,3) -> 9144.804934 | G20: =VLOOKUP(B20,Lookups!A:D,4) -> 6668.216535 | H20: =VLOOKUP(B20,Lookups!A:E,5) -> 8673.277821 | J20: =VLOOKUP(A20,Trends!$A$3:$Q$94,IF(ExFlg=0,2,10))+IF(B20>=$B$2,Sens,0) -> 1.048 | K20: 0.6257302827 | L20: =VLOOKUP(A20,Trends!$A$3:$Q$94,IF(ExFlg=0,4,12))+IF(B20>=$B$2,Sens,0) -> 1.049 | M20: 0.6197907895 | O20: =VLOOKUP(A20,Trends!$A$3:$Q$94,IF(ExFlg=0,6,14))+IF(B20>=$B$2,Sens,0) -> 1.048 | P20: 0.6257302827 | Q20: =VLOOKUP(A20,Trends!$A$3:$Q$94,IF(ExFlg=0,8,16))+IF(B20>=$B$2,Sens,0) -> 1.048 | R20: 0.6257302827 | T20: 6354.62501 | U20: =IF(B20=$B$2, E20, IF(B20<$B$2, E20 * Trends!$S$3^(B20 - $B$2), IF(ExFlg=0,E20*VLOOKUP(A20,Trends!$A$4:$V$94,20),E20*VLOOKUP(A20,Trends!$A$4:$Z$94,24)))) -> 5832.538319 | V20: 522.0866905 | X20: 4172.505018 | Y20: =IF(B20=$B$2, H20, IF(B20<$B$2, H20 * Trends!$U$3^(B20 - $B$2), IF(ExFlg=0,H20*VLOOKUP(A20,Trends!$A$4:$V$94,22),H20*VLOOKUP(A20,Trends!$A$4:$Z$94,26)))) -> 5531.799268 | Z20: -1359.294251 | AB20: -732.1735417 | AD20: =IF(B20<71,VLOOKUP(B20,Lookups!A:F,6),"") -> 0 | AE20: =IF(B20<71,VLOOKUP(Active!B20,Lookups!A:G,7),"") -> 0 | AF20: 0 | AG20: =IF(B20<55,VLOOKUP(B20-$B$3,Lookups!$O$3:$Q$53,2),"") -> 0.020437 | AH20: =IF(B20<55,VLOOKUP(B20-$B$3,Lookups!$O$3:$Q$53,3),"") -> 0.023475 | AI20: 0.021956 | AJ20: =IF(B20<55,VLOOKUP(B20,Lookups!A:M,12),"") -> 0.001131 | AK20: =IF(B20<55,VLOOKUP(B20,Lookups!A:M,13),"") -> 0.001278 | AL20: 0.0012045 | AM20: =IF(B20<70,VLOOKUP(B20,Lookups!A:H,8)*(1-VLOOKUP(B20,Lookups!$U$3:$W$103,2))^(A20-2018),"") -> 0.002390762316 | AN20: =IF(B20<70,VLOOKUP(B20,Lookups!A:I,9)*(1-VLOOKUP(B20,Lookups!$U$3:$W$103,3))^(A20-2018),"") -> 0.001808529252 | AO20: 0.002099645784 | AP20: 0.02526014578 | AQ20: 1.557576961 | AR20: 1.421539942 | AS20: 63 | AT20: =IF(BA20>=$B$3,VLOOKUP(BA20,Lookups!A:H,8)*(1-VLOOKUP(BA20,Lookups!U:W,2))^(BA20-$B$2 + ValYear - 2017),"") -> 0.0071625708 | AU20: =IF(BA20>=$B$3,VLOOKUP(BA20,Lookups!A:I,9)*(1-VLOOKUP(BA20,Lookups!U:W,3))^(BA20-$B$2 + ValYear - 2017),"") -> 0.005229203408 | AV20: 0.006195887104 | AW20: =IF(AV19="",1,AW19*(1-AV19)) -> 0.9685179506 | AX20: 0.7547319695 | AY20: 0.981417 | BA20: 63 | BB20: 2696.119239 | BC20: 1934.163097 | BD20: 2008.795442 | BE20: 2086.96855 | BF20: 2169.026081 | BG20: 2255.061964 | BH20: =IF(BB20<>"",BB20*AW20/$AW$17*AX20/$AX$17*AY20,"") -> 2345.390675 | BI20: =IF(BB20<>"",BB20*AW20/$AW$18*AX20/$AX$18*AY20,"") -> 2440.360915 | BJ20: =IF(BB20<>"",BB20*AW20/$AW$19*AX20/$AX$19*AY20,"") -> 2540.40372 | BK20: =IF(BB20<>"",BB20*AW20/$AW$20*AX20/$AX$20*AY20,"") -> 2646.017255 | BN20: 0 | BO20: 0 | BP20: 0 | BQ20: 0 | BR20: 0 | BS20: 0 | BT20: 0 | BU20: 0 | BV20: 0
A21: 2009 | B21: 53 | D21: =VLOOKUP(B21,Lookups!A:B,2) -> 10385.55613 | E21: =VLOOKUP(B21,Lookups!A:C,3) -> 9144.804934 | G21: =VLOOKUP(B21,Lookups!A:D,4) -> 6819.251331 | H21: =VLOOKUP(B21,Lookups!A:E,5) -> 8673.277821 | J21: =VLOOKUP(A21,Trends!$A$3:$Q$94,IF(ExFlg=0,2,10))+IF(B21>=$B$2,Sens,0) -> 1.048 | K21: 0.6557653363 | L21: =VLOOKUP(A21,Trends!$A$3:$Q$94,IF(ExFlg=0,4,12))+IF(B21>=$B$2,Sens,0) -> 1.049 | M21: 0.6501605382 | O21: =VLOOKUP(A21,Trends!$A$3:$Q$94,IF(ExFlg=0,6,14))+IF(B21>=$B$2,Sens,0) -> 1.048 | P21: 0.6557653363 | Q21: =VLOOKUP(A21,Trends!$A$3:$Q$94,IF(ExFlg=0,8,16))+IF(B21>=$B$2,Sens,0) -> 1.048 | R21: 0.6557653363 | T21: 6810.487709 | U21: =IF(B21=$B$2, E21, IF(B21<$B$2, E21 * Trends!$S$3^(B21 - $B$2), IF(ExFlg=0,E21*VLOOKUP(A21,Trends!$A$4:$V$94,20),E21*VLOOKUP(A21,Trends!$A$4:$Z$94,24)))) -> 6100.835082 | V21: 709.6526272 | X21: 4471.828643 | Y21: =IF(B21=$B$2, H21, IF(B21<$B$2, H21 * Trends!$U$3^(B21 - $B$2), IF(ExFlg=0,H21*VLOOKUP(A21,Trends!$A$4:$V$94,22),H21*VLOOKUP(A21,Trends!$A$4:$Z$94,26)))) -> 5786.262035 | Z21: -1314.433392 | AB21: -639.7447994 | AD21: =IF(B21<71,VLOOKUP(B21,Lookups!A:F,6),"") -> 0 | AE21: =IF(B21<71,VLOOKUP(Active!B21,Lookups!A:G,7),"") -> 0 | AF21: 0 | AG21: =IF(B21<55,VLOOKUP(B21-$B$3,Lookups!$O$3:$Q$53,2),"") -> 0.019027 | AH21: =IF(B21<55,VLOOKUP(B21-$B$3,Lookups!$O$3:$Q$53,3),"") -> 0.021627 | AI21: 0.020327 | AJ21: =IF(B21<55,VLOOKUP(B21,Lookups!A:M,12),"") -> 0.001631 | AK21: =IF(B21<55,VLOOKUP(B21,Lookups!A:M,13),"") -> 0.00178 | AL21: 0.0017055 | AM21: =IF(B21<70,VLOOKUP(B21,Lookups!A:H,8)*(1-VLOOKUP(B21,Lookups!$U$3:$W$103,2))^(A21-2018),"") -> 0.002596263795 | AN21: =IF(B21<70,VLOOKUP(B21,Lookups!A:I,9)*(1-VLOOKUP(B21,Lookups!$U$3:$W$103,3))^(A21-2018),"") -> 0.001964406955 | AO21: 0.002280335375 | AP21: 0.02431283538 | AQ21: =IF(B21<71,IF(B21=$B$2,1, IF(B21<$B$2, AQ22/(1-AP21), AQ20*(1-AP20))),"") -> 1.518232339 | AR21: 1.372407745 | AS21: 64 | AT21: =IF(BA21>=$B$3,VLOOKUP(BA21,Lookups!A:H,8)*(1-VLOOKUP(BA21,Lookups!U:W,2))^(BA21-$B$2 + ValYear - 2017),"") -> 0.007937202494 | AU21: =IF(BA21>=$B$3,VLOOKUP(BA21,Lookups!A:I,9)*(1-VLOOKUP(BA21,Lookups!U:W,3))^(BA21-$B$2 + ValYear - 2017),"") -> 0.005935103894 | AV21: 0.006936153194 | AW21: =IF(AV20="",1,AW20*(1-AV20)) -> 0.9625171227 | AX21: 0.7286464274 | AY21: 0.98109 | BA21: 64 | BB21: 3537.505324 | BC21: 2434.059865 | BD21: =IF(BB21<>"",BB21*AW21/$AW$13*AX21/$AX$13*AY21,"") -> 2527.981415 | BE21: 2626.35886 | BF21: 2729.624683 | BG21: 2837.897087 | BH21: =IF(BB21<>"",BB21*AW21/$AW$17*AX21/$AX$17*AY21,"") -> 2951.571828 | BI21: =IF(BB21<>"",BB21*AW21/$AW$18*AX21/$AX$18*AY21,"") -> 3071.087732 | BJ21: =IF(BB21<>"",BB21*AW21/$AW$19*AX21/$AX$19*AY21,"") -> 3196.987237 | BK21: =IF(BB21<>"",BB21*AW21/$AW$20*AX21/$AX$20*AY21,"") -> 3329.897262 | BL21: =IF(BB21<>"",BB21*AW21/$AW$21*AX21/$AX$21*AY21,"") -> 3470.611099 | BN21: 0 | BO21: 0 | BP21: 0 | BQ21: 0 | BR21: 0 | BS21: 0 | BT21: 0 | BU21: 0 | BV21: 0 | BW21: 0
A22: 2010 | B22: 54 | D22: =VLOOKUP(B22,Lookups!A:B,2) -> 10621.52018 | E22: =VLOOKUP(B22,Lookups!A:C,3) -> 9144.804934 | G22: =VLOOKUP(B22,Lookups!A:D,4) -> 6974.187487 | H22: =VLOOKUP(B22,Lookups!A:E,5) -> 8673.277821 | J22: =VLOOKUP(A22,Trends!$A$3:$Q$94,IF(ExFlg=0,2,10))+IF(B22>=$B$2,Sens,0) -> 1.048 | K22: 0.6872420724 | L22: =VLOOKUP(A22,Trends!$A$3:$Q$94,IF(ExFlg=0,4,12))+IF(B22>=$B$2,Sens,0) -> 1.049 | M22: 0.6820184046 | O22: =VLOOKUP(A22,Trends!$A$3:$Q$94,IF(ExFlg=0,6,14))+IF(B22>=$B$2,Sens,0) -> 1.048 | P22: 0.6872420724 | Q22: =VLOOKUP(A22,Trends!$A$3:$Q$94,IF(ExFlg=0,8,16))+IF(B22>=$B$2,Sens,0) -> 1.048 | R22: 0.6872420724 | T22: 7299.555542 | U22: =IF(B22=$B$2, E22, IF(B22<$B$2, E22 * Trends!$S$3^(B22 - $B$2), IF(ExFlg=0,E22*VLOOKUP(A22,Trends!$A$4:$V$94,20),E22*VLOOKUP(A22,Trends!$A$4:$Z$94,24)))) -> 6381.473496 | V22: 918.0820461 | X22: 4792.955062 | Y22: =IF(B22=$B$2, H22, IF(B22<$B$2, H22 * Trends!$U$3^(B22 - $B$2), IF(ExFlg=0,H22*VLOOKUP(A22,Trends!$A$4:$V$94,22),H22*VLOOKUP(A22,Trends!$A$4:$Z$94,26)))) -> 6052.430088 | Z22: -1259.475026 | AB22: -533.6299274 | AD22: =IF(B22<71,VLOOKUP(B22,Lookups!A:F,6),"") -> 0 | AE22: =IF(B22<71,VLOOKUP(Active!B22,Lookups!A:G,7),"") -> 0 | AF22: 0 | AG22: =IF(B22<55,VLOOKUP(B22-$B$3,Lookups!$O$3:$Q$53,2),"") -> 0.017714 | AH22: =IF(B22<55,VLOOKUP(B22-$B$3,Lookups!$O$3:$Q$53,3),"") -> 0.019925 | AI22: 0.0188195 | AJ22: =IF(B22<55,VLOOKUP(B22,Lookups!A:M,12),"") -> 0.00213 | AK22: =IF(B22<55,VLOOKUP(B22,Lookups!A:M,13),"") -> 0.002281 | AL22: 0.0022055 | AM22: =IF(B22<70,VLOOKUP(B22,Lookups!A:H,8)*(1-VLOOKUP(B22,Lookups!$U$3:$W$103,2))^(A22-2018),"") -> 0.002829191911 | AN22: =IF(B22<70,VLOOKUP(B22,Lookups!A:I,9)*(1-VLOOKUP(B22,Lookups!$U$3:$W$103,3))^(A22-2018),"") -> 0.00211989447 | AO22: 0.002474543191 | AP22: 0.02349954319 | AQ22: 1.481319807 | AR22: 1.324973687 | AS22: 65 | AT22: =IF(BA22>=$B$3,VLOOKUP(BA22,Lookups!A:H,8)*(1-VLOOKUP(BA22,Lookups!U:W,2))^(BA22-$B$2 + ValYear - 2017),"") -> 0.008649083976 | AU22: =IF(BA22>=$B$3,VLOOKUP(BA22,Lookups!A:I,9)*(1-VLOOKUP(BA22,Lookups!U:W,3))^(BA22-$B$2 + ValYear - 2017),"") -> 0.006609016906 | AV22: 0.007629050441 | AW22: 0.9558409565 | AX22: 0.7034624709 | AY22: 0.980783 | BA22: 65 | BB22: =IF(BA22>=$B$3,VLOOKUP(BA22,$B$3:$AB$93,27),"") -> 1618.214897 | BN22: =IF(BB22<>"",$BB22*$AW22/$AW$12*$AX22/$AX$12*$AY22,"") -> 1067.175124 | BO22: =IF(BB22<>"",$BB22*$AW22/$AW$13*$AX22/$AX$13*$AY22,"") -> 1108.353545 | BP22: =IF(BB22<>"",$BB22*$AW22/$AW$14*$AX22/$AX$14*$AY22,"") -> 1151.485583 | BQ22: =IF(BB22<>"",$BB22*$AW22/$AW$15*$AX22/$AX$15*$AY22,"") -> 1196.760853 | BR22: =IF(BB22<>"",$BB22*$AW22/$AW$16*$AX22/$AX$16*$AY22,"") -> 1244.231179 | BS22: =IF(BB22<>"",$BB22*$AW22/$AW$17*$AX22/$AX$17*$AY22,"") -> 1294.070075 | BT22: =IF(BB22<>"",$BB22*$AW22/$AW$18*$AX22/$AX$18*$AY22,"") -> 1346.469936 | BU22: =IF(BB22<>"",$BB22*$AW22/$AW$19*$AX22/$AX$19*$AY22,"") -> 1401.668587 | BV22: =IF(BB22<>"",$BB22*$AW22/$AW$20*$AX22/$AX$20*$AY22,"") -> 1459.940889 | BW22: =IF(BB22<>"",$BB22*$AW22/$AW$21*$AX22/$AX$21*$AY22,"") -> 1521.63465 | BX22: =IF(BB22<>"",$BB22*$AW22/$AW$22*$AX22/$AX$22*$AY22,"") -> 1587.117662
A23: 2011 | B23: 55 | D23: =VLOOKUP(B23,Lookups!A:B,2) -> 10863.59429 | E23: =VLOOKUP(B23,Lookups!A:C,3) -> 9144.804934 | G23: =VLOOKUP(B23,Lookups!A:D,4) -> 7133.135563 | H23: =VLOOKUP(B23,Lookups!A:E,5) -> 8673.277821 | J23: =VLOOKUP(A23,Trends!$A$3:$Q$94,IF(ExFlg=0,2,10))+IF(B23>=$B$2,Sens,0) -> 1.048 | K23: =IF(B23=$B$2,1,IF(B23<$B$2,K24/J23,K22*J22)) -> 0.7202296919 | L23: =VLOOKUP(A23,Trends!$A$3:$Q$94,IF(ExFlg=0,4,12))+IF(B23>=$B$2,Sens,0) -> 1.049 | M23: =IF(B23=$B$2,1,IF(B23<$B$2,M24/L23,M22*L22)) -> 0.7154373064 | O23: =VLOOKUP(A23,Trends!$A$3:$Q$94,IF(ExFlg=0,6,14))+IF(B23>=$B$2,Sens,0) -> 1.048 | P23: 0.7202296919 | Q23: =VLOOKUP(A23,Trends!$A$3:$Q$94,IF(ExFlg=0,8,16))+IF(B23>=$B$2,Sens,0) -> 1.048 | R23: 0.7202296919 | T23: 7824.283169 | U23: =IF(B23=$B$2, E23, IF(B23<$B$2, E23 * Trends!$S$3^(B23 - $B$2), IF(ExFlg=0,E23*VLOOKUP(A23,Trends!$A$4:$V$94,20),E23*VLOOKUP(A23,Trends!$A$4:$Z$94,24)))) -> 6675.021276 | V23: 1149.261892 | X23: 5137.496029 | Y23: =IF(B23=$B$2, H23, IF(B23<$B$2, H23 * Trends!$U$3^(B23 - $B$2), IF(ExFlg=0,H23*VLOOKUP(A23,Trends!$A$4:$V$94,22),H23*VLOOKUP(A23,Trends!$A$4:$Z$94,26)))) -> 6330.841873 | Z23: -1193.345843 | AB23: -412.4844069 | AD23: =IF(B23<71,VLOOKUP(B23,Lookups!A:F,6),"") -> 0.02 | AE23: =IF(B23<71,VLOOKUP(Active!B23,Lookups!A:G,7),"") -> 0.02 | AF23: 0.02 | AG23: =IF(B23<55,VLOOKUP(B23-$B$3,Lookups!$O$3:$Q$53,2),"") ->  | AH23: =IF(B23<55,VLOOKUP(B23-$B$3,Lookups!$O$3:$Q$53,3),"") ->  | AJ23: =IF(B23<55,VLOOKUP(B23,Lookups!A:M,12),"") ->  | AK23: =IF(B23<55,VLOOKUP(B23,Lookups!A:M,13),"") ->  | AM23: =IF(B23<70,VLOOKUP(B23,Lookups!A:H,8)*(1-VLOOKUP(B23,Lookups!$U$3:$W$103,2))^(A23-2018),"") -> 0.003092357975 | AN23: =IF(B23<70,VLOOKUP(B23,Lookups!A:I,9)*(1-VLOOKUP(B23,Lookups!$U$3:$W$103,3))^(A23-2018),"") -> 0.002294099051 | AO23: 0.002693228513 | AP23: 0.02269322851 | AQ23: 1.446509468 | AR23: 1.279179076 | AS23: 66 | AT23: =IF(BA23>=$B$3,VLOOKUP(BA23,Lookups!A:H,8)*(1-VLOOKUP(BA23,Lookups!U:W,2))^(BA23-$B$2 + ValYear - 2017),"") -> 0.009426628487 | AU23: =IF(BA23>=$B$3,VLOOKUP(BA23,Lookups!A:I,9)*(1-VLOOKUP(BA23,Lookups!U:W,3))^(BA23-$B$2 + ValYear - 2017),"") -> 0.007352512251 | AV23: 0.008389570369 | AW23: 0.9485487977 | AX23: 0.6791489389 | AY23: 0.980446 | BA23: 66 | BB23: 1844.235933 | BN23: =IF(BB23<>"",$BB23*$AW23/$AW$12*$AX23/$AX$12*$AY23,"") -> 1164.836211 | BO23: =IF(BB23<>"",$BB23*$AW23/$AW$13*$AX23/$AX$13*$AY23,"") -> 1209.783019 | BP23: =IF(BB23<>"",$BB23*$AW23/$AW$14*$AX23/$AX$14*$AY23,"") -> 1256.862227 | BQ23: =IF(BB23<>"",$BB23*$AW23/$AW$15*$AX23/$AX$15*$AY23,"") -> 1306.280802 | BR23: =IF(BB23<>"",$BB23*$AW23/$AW$16*$AX23/$AX$16*$AY23,"") -> 1358.095311 | BS23: =IF(BB23<>"",$BB23*$AW23/$AW$17*$AX23/$AX$17*$AY23,"") -> 1412.495146 | BT23: =IF(BB23<>"",$BB23*$AW23/$AW$18*$AX23/$AX$18*$AY23,"") -> 1469.69031 | BU23: =IF(BB23<>"",$BB23*$AW23/$AW$19*$AX23/$AX$19*$AY23,"") -> 1529.94039 | BV23: =IF(BB23<>"",$BB23*$AW23/$AW$20*$AX23/$AX$20*$AY23,"") -> 1593.545403 | BW23: =IF(BB23<>"",$BB23*$AW23/$AW$21*$AX23/$AX$21*$AY23,"") -> 1660.884985 | BX23: =IF(BB23<>"",$BB23*$AW23/$AW$22*$AX23/$AX$22*$AY23,"") -> 1732.360586 | BY23: =IF(BB23<>"",$BB23*$AW23/$AW$23*$AX23/$AX$23*$AY23,"") -> 1808.173743
A24: 2012 | B24: 56 | D24: =VLOOKUP(B24,Lookups!A:B,2) -> 11111.95188 | E24: =VLOOKUP(B24,Lookups!A:C,3) -> 9144.804934 | G24: =VLOOKUP(B24,Lookups!A:D,4) -> 7296.20943 | H24: =VLOOKUP(B24,Lookups!A:E,5) -> 8673.277821 | J24: =VLOOKUP(A24,Trends!$A$3:$Q$94,IF(ExFlg=0,2,10))+IF(B24>=$B$2,Sens,0) -> 1.048 | K24: =IF(B24=$B$2,1,IF(B24<$B$2,K25/J24,K23*J23)) -> 0.7548007171 | L24: =VLOOKUP(A24,Trends!$A$3:$Q$94,IF(ExFlg=0,4,12))+IF(B24>=$B$2,Sens,0) -> 1.049 | M24: 0.7504937344 | O24: =VLOOKUP(A24,Trends!$A$3:$Q$94,IF(ExFlg=0,6,14))+IF(B24>=$B$2,Sens,0) -> 1.048 | P24: 0.7548007171 | Q24: =VLOOKUP(A24,Trends!$A$3:$Q$94,IF(ExFlg=0,8,16))+IF(B24>=$B$2,Sens,0) -> 1.048 | R24: 0.7548007171 | T24: =IF(B24<65,D24*K24,D24*M24) -> 8387.309246 | U24: =IF(B24=$B$2, E24, IF(B24<$B$2, E24 * Trends!$S$3^(B24 - $B$2), IF(ExFlg=0,E24*VLOOKUP(A24,Trends!$A$4:$V$94,20),E24*VLOOKUP(A24,Trends!$A$4:$Z$94,24)))) -> 6982.072255 | V24: 1405.236991 | X24: 5507.18411 | Y24: =IF(B24=$B$2, H24, IF(B24<$B$2, H24 * Trends!$U$3^(B24 - $B$2), IF(ExFlg=0,H24*VLOOKUP(A24,Trends!$A$4:$V$94,22),H24*VLOOKUP(A24,Trends!$A$4:$Z$94,26)))) -> 6622.060599 | Z24: -1114.876489 | AB24: -274.8470627 | AD24: =IF(B24<71,VLOOKUP(B24,Lookups!A:F,6),"") -> 0.03 | AE24: =IF(B24<71,VLOOKUP(Active!B24,Lookups!A:G,7),"") -> 0.02 | AF24: 0.025 | AG24: =IF(B24<55,VLOOKUP(B24-$B$3,Lookups!$O$3:$Q$53,2),"") ->  | AH24: =IF(B24<55,VLOOKUP(B24-$B$3,Lookups!$O$3:$Q$53,3),"") ->  | AJ24: =IF(B24<55,VLOOKUP(B24,Lookups!A:M,12),"") ->  | AK24: =IF(B24<55,VLOOKUP(B24,Lookups!A:M,13),"") ->  | AM24: =IF(B24<70,VLOOKUP(B24,Lookups!A:H,8)*(1-VLOOKUP(B24,Lookups!$U$3:$W$103,2))^(A24-2018),"") -> 0.003495448063 | AN24: =IF(B24<70,VLOOKUP(B24,Lookups!A:I,9)*(1-VLOOKUP(B24,Lookups!$U$3:$W$103,3))^(A24-2018),"") -> 0.002527641021 | AO24: 0.003011544542 | AP24: 0.02801154454 | AQ24: 1.413683498 | AR24: 1.234967248 | AS24: 67 | AT24: =IF(BA24>=$B$3,VLOOKUP(BA24,Lookups!A:H,8)*(1-VLOOKUP(BA24,Lookups!U:W,2))^(BA24-$B$2 + ValYear - 2017),"") -> 0.01027222316 | AU24: =IF(BA24>=$B$3,VLOOKUP(BA24,Lookups!A:I,9)*(1-VLOOKUP(BA24,Lookups!U:W,3))^(BA24-$B$2 + ValYear - 2017),"") -> 0.008199058482 | AV24: 0.009235640822 | AW24: 0.9405908808 | AX24: 0.6556757472 | AY24: 0.980072 | BA24: 67 | BB24: 2094.403715 | BN24: 1265.925841 | BO24: 1314.773332 | BP24: 1365.938282 | BQ24: 1419.645619 | BR24: 1475.95682 | BS24: 1535.077712 | BT24: 1597.236525 | BU24: 1662.715374 | BV24: 1731.840311 | BW24: 1805.023918 | BX24: =IF(BB24<>"",$BB24*$AW24/$AW$22*$AX24/$AX$22*$AY24,"") -> 1882.702487 | BY24: =IF(BB24<>"",$BB24*$AW24/$AW$23*$AX24/$AX$23*$AY24,"") -> 1965.095046 | BZ24: =IF(BB24<>"",$BB24*$AW24/$AW$24*$AX24/$AX$24*$AY24,"") -> 2052.666438
A25: 2013 | B25: 57 | D25: =VLOOKUP(B25,Lookups!A:B,2) -> 11564.87171 | E25: =VLOOKUP(B25,Lookups!A:C,3) -> 9144.804934 | G25: =VLOOKUP(B25,Lookups!A:D,4) -> 7593.60074 | H25: =VLOOKUP(B25,Lookups!A:E,5) -> 8673.277821 | J25: =VLOOKUP(A25,Trends!$A$3:$Q$94,IF(ExFlg=0,2,10))+IF(B25>=$B$2,Sens,0) -> 1.048 | K25: 0.7910311516 | L25: =VLOOKUP(A25,Trends!$A$3:$Q$94,IF(ExFlg=0,4,12))+IF(B25>=$B$2,Sens,0) -> 1.049 | M25: 0.7872679274 | O25: =VLOOKUP(A25,Trends!$A$3:$Q$94,IF(ExFlg=0,6,14))+IF(B25>=$B$2,Sens,0) -> 1.048 | P25: 0.7910311516 | Q25: =VLOOKUP(A25,Trends!$A$3:$Q$94,IF(ExFlg=0,8,16))+IF(B25>=$B$2,Sens,0) -> 1.048 | R25: 0.7910311516 | T25: 9148.173787 | U25: =IF(B25=$B$2, E25, IF(B25<$B$2, E25 * Trends!$S$3^(B25 - $B$2), IF(ExFlg=0,E25*VLOOKUP(A25,Trends!$A$4:$V$94,20),E25*VLOOKUP(A25,Trends!$A$4:$Z$94,24)))) -> 7303.247579 | V25: 1844.926208 | X25: 6006.774738 | Y25: =IF(B25=$B$2, H25, IF(B25<$B$2, H25 * Trends!$U$3^(B25 - $B$2), IF(ExFlg=0,H25*VLOOKUP(A25,Trends!$A$4:$V$94,22),H25*VLOOKUP(A25,Trends!$A$4:$Z$94,26)))) -> 6926.675386 | Z25: -919.9006482 | AB25: 1.699087703 | AD25: =IF(B25<71,VLOOKUP(B25,Lookups!A:F,6),"") -> 0.04 | AE25: =IF(B25<71,VLOOKUP(Active!B25,Lookups!A:G,7),"") -> 0.02 | AF25: 0.03 | AG25: =IF(B25<55,VLOOKUP(B25-$B$3,Lookups!$O$3:$Q$53,2),"") ->  | AH25: =IF(B25<55,VLOOKUP(B25-$B$3,Lookups!$O$3:$Q$53,3),"") ->  | AJ25: =IF(B25<55,VLOOKUP(B25,Lookups!A:M,12),"") ->  | AK25: =IF(B25<55,VLOOKUP(B25,Lookups!A:M,13),"") ->  | AM25: =IF(B25<70,VLOOKUP(B25,Lookups!A:H,8)*(1-VLOOKUP(B25,Lookups!$U$3:$W$103,2))^(A25-2018),"") -> 0.003987106744 | AN25: =IF(B25<70,VLOOKUP(B25,Lookups!A:I,9)*(1-VLOOKUP(B25,Lookups!$U$3:$W$103,3))^(A25-2018),"") -> 0.002820339558 | AO25: 0.003403723151 | AP25: 0.03340372315 | AQ25: =IF(B25<71,IF(B25=$B$2,1, IF(B25<$B$2, AQ26/(1-AP25), AQ24*(1-AP24))),"") -> 1.37408404 | AR25: 1.192283499 | AS25: 68 | AT25: =IF(BA25>=$B$3,VLOOKUP(BA25,Lookups!A:H,8)*(1-VLOOKUP(BA25,Lookups!U:W,2))^(BA25-$B$2 + ValYear - 2017),"") -> 0.0110166073 | AU25: =IF(BA25>=$B$3,VLOOKUP(BA25,Lookups!A:I,9)*(1-VLOOKUP(BA25,Lookups!U:W,3))^(BA25-$B$2 + ValYear - 2017),"") -> 0.008993903022 | AV25: 0.01000525516 | AW25: 0.9319039212 | AX25: 0.6330138513 | AY25: 0.979732 | BA25: 68 | BB25: 2371.225069 | BN25: 1370.453875 | BO25: 1423.334724 | BP25: 1478.724386 | BQ25: 1536.86636 | BR25: 1597.827201 | BS25: 1661.829731 | BT25: 1729.121023 | BU25: 1800.006488 | BV25: 1874.839101 | BW25: 1954.06551 | BX25: 2038.158031 | BY25: =IF(BB25<>"",$BB25*$AW25/$AW$23*$AX25/$AX$23*$AY25,"") -> 2127.353778 | BZ25: =IF(BB25<>"",$BB25*$AW25/$AW$24*$AX25/$AX$24*$AY25,"") -> 2222.155977 | CA25: =IF(BB25<>"",$BB25*$AW25/$AW$25*$AX25/$AX$25*$AY25,"") -> 2323.16508 | CK25: Age | CL25: Service | CM25: Salary
A26: 2014 | B26: 58 | D26: =VLOOKUP(B26,Lookups!A:B,2) -> 12036.81235 | E26: =VLOOKUP(B26,Lookups!A:C,3) -> 9144.804934 | G26: =VLOOKUP(B26,Lookups!A:D,4) -> 7903.48129 | H26: =VLOOKUP(B26,Lookups!A:E,5) -> 8673.277821 | J26: =VLOOKUP(A26,Trends!$A$3:$Q$94,IF(ExFlg=0,2,10))+IF(B26>=$B$2,Sens,0) -> 1.048 | K26: 0.8290006468 | L26: =VLOOKUP(A26,Trends!$A$3:$Q$94,IF(ExFlg=0,4,12))+IF(B26>=$B$2,Sens,0) -> 1.049 | M26: 0.8258440558 | O26: =VLOOKUP(A26,Trends!$A$3:$Q$94,IF(ExFlg=0,6,14))+IF(B26>=$B$2,Sens,0) -> 1.048 | P26: 0.8290006468 | Q26: =VLOOKUP(A26,Trends!$A$3:$Q$94,IF(ExFlg=0,8,16))+IF(B26>=$B$2,Sens,0) -> 1.048 | R26: 0.8290006468 | T26: 9978.525228 | U26: =IF(B26=$B$2, E26, IF(B26<$B$2, E26 * Trends!$S$3^(B26 - $B$2), IF(ExFlg=0,E26*VLOOKUP(A26,Trends!$A$4:$V$94,20),E26*VLOOKUP(A26,Trends!$A$4:$Z$94,24)))) -> 7639.196968 | V26: 2339.32826 | X26: 6551.991102 | Y26: =IF(B26=$B$2, H26, IF(B26<$B$2, H26 * Trends!$U$3^(B26 - $B$2), IF(ExFlg=0,H26*VLOOKUP(A26,Trends!$A$4:$V$94,22),H26*VLOOKUP(A26,Trends!$A$4:$Z$94,26)))) -> 7245.302454 | Z26: -693.3113523 | AB26: 317.5584097 | AD26: =IF(B26<71,VLOOKUP(B26,Lookups!A:F,6),"") -> 0.05 | AE26: =IF(B26<71,VLOOKUP(Active!B26,Lookups!A:G,7),"") -> 0.02 | AF26: 0.035 | AG26: =IF(B26<55,VLOOKUP(B26-$B$3,Lookups!$O$3:$Q$53,2),"") ->  | AH26: =IF(B26<55,VLOOKUP(B26-$B$3,Lookups!$O$3:$Q$53,3),"") ->  | AJ26: =IF(B26<55,VLOOKUP(B26,Lookups!A:M,12),"") ->  | AK26: =IF(B26<55,VLOOKUP(B26,Lookups!A:M,13),"") ->  | AM26: =IF(B26<70,VLOOKUP(B26,Lookups!A:H,8)*(1-VLOOKUP(B26,Lookups!$U$3:$W$103,2))^(A26-2018),"") -> 0.004374842815 | AN26: =IF(B26<70,VLOOKUP(B26,Lookups!A:I,9)*(1-VLOOKUP(B26,Lookups!$U$3:$W$103,3))^(A26-2018),"") -> 0.00310827766 | AO26: 0.003741560237 | AP26: 0.03874156024 | AQ26: 1.328184517 | AR26: 1.151075013 | AS26: 69 | AT26: =IF(BA26>=$B$3,VLOOKUP(BA26,Lookups!A:H,8)*(1-VLOOKUP(BA26,Lookups!U:W,2))^(BA26-$B$2 + ValYear - 2017),"") -> 0.01206356282 | AU26: =IF(BA26>=$B$3,VLOOKUP(BA26,Lookups!A:I,9)*(1-VLOOKUP(BA26,Lookups!U:W,3))^(BA26-$B$2 + ValYear - 2017),"") -> 0.009822966829 | AV26: 0.01094326483 | AW26: 0.9225799847 | AX26: 0.6111352107 | AY26: 0.979316 | BA26: 69 | BB26: 2677.470216 | BN26: 1478.389378 | BO26: 1535.435067 | BP26: 1595.187159 | BQ26: 1657.908334 | BR26: 1723.670387 | BS26: 1792.713689 | BT26: 1865.304772 | BU26: 1941.773101 | BV26: 2022.499451 | BW26: 2107.965649 | BX26: 2198.681209 | BY26: 2294.901919 | BZ26: =IF(BB26<>"",$BB26*$AW26/$AW$24*$AX26/$AX$24*$AY26,"") -> 2397.170639 | CA26: =IF(BB26<>"",$BB26*$AW26/$AW$25*$AX26/$AX$25*$AY26,"") -> 2506.135112 | CB26: =IF(BB26<>"",$BB26*$AW26/$AW$26*$AX26/$AX$26*$AY26,"") -> 2622.089422 | CK26: =IF(OR(CK27<=($CK$76-MS), CK27 = 20), CK27, CK27-1) -> 35 | CL26: =IF(CL27=0,0,CL27-1) -> 0 | CM26: =IF(CK26<CK27,CM27*1/(1-VLOOKUP(CK26,$B$3:$AR$93,41,FALSE)) * (1+IntRt) * 1/(1+$CQ$60) * 1/VLOOKUP(MIN(CL26,30),$CO$63:$CQ$93,3,FALSE), "") -> 
A27: 2015 | B27: 59 | D27: =VLOOKUP(B27,Lookups!A:B,2) -> 12528.5949 | E27: =VLOOKUP(B27,Lookups!A:C,3) -> 9144.804934 | G27: =VLOOKUP(B27,Lookups!A:D,4) -> 8226.390211 | H27: =VLOOKUP(B27,Lookups!A:E,5) -> 8673.277821 | J27: =VLOOKUP(A27,Trends!$A$3:$Q$94,IF(ExFlg=0,2,10))+IF(B27>=$B$2,Sens,0) -> 1.048 | K27: 0.8687926779 | L27: =VLOOKUP(A27,Trends!$A$3:$Q$94,IF(ExFlg=0,4,12))+IF(B27>=$B$2,Sens,0) -> 1.049 | M27: 0.8663104146 | O27: =VLOOKUP(A27,Trends!$A$3:$Q$94,IF(ExFlg=0,6,14))+IF(B27>=$B$2,Sens,0) -> 1.048 | P27: 0.8687926779 | Q27: =VLOOKUP(A27,Trends!$A$3:$Q$94,IF(ExFlg=0,8,16))+IF(B27>=$B$2,Sens,0) -> 1.048 | R27: 0.8687926779 | T27: 10884.75151 | U27: =IF(B27=$B$2, E27, IF(B27<$B$2, E27 * Trends!$S$3^(B27 - $B$2), IF(ExFlg=0,E27*VLOOKUP(A27,Trends!$A$4:$V$94,20),E27*VLOOKUP(A27,Trends!$A$4:$Z$94,24)))) -> 7990.600028 | V27: 2894.151481 | X27: 7147.027581 | Y27: =IF(B27=$B$2, H27, IF(B27<$B$2, H27 * Trends!$U$3^(B27 - $B$2), IF(ExFlg=0,H27*VLOOKUP(A27,Trends!$A$4:$V$94,22),H27*VLOOKUP(A27,Trends!$A$4:$Z$94,26)))) -> 7578.586367 | Z27: -431.5587861 | AB27: 677.0002172 | AD27: =IF(B27<71,VLOOKUP(B27,Lookups!A:F,6),"") -> 0.06 | AE27: =IF(B27<71,VLOOKUP(Active!B27,Lookups!A:G,7),"") -> 0.04 | AF27: 0.05 | AG27: =IF(B27<55,VLOOKUP(B27-$B$3,Lookups!$O$3:$Q$53,2),"") ->  | AH27: =IF(B27<55,VLOOKUP(B27-$B$3,Lookups!$O$3:$Q$53,3),"") ->  | AJ27: =IF(B27<55,VLOOKUP(B27,Lookups!A:M,12),"") ->  | AK27: =IF(B27<55,VLOOKUP(B27,Lookups!A:M,13),"") ->  | AM27: =IF(B27<70,VLOOKUP(B27,Lookups!A:H,8)*(1-VLOOKUP(B27,Lookups!$U$3:$W$103,2))^(A27-2018),"") -> 0.004818208426 | AN27: =IF(B27<70,VLOOKUP(B27,Lookups!A:I,9)*(1-VLOOKUP(B27,Lookups!$U$3:$W$103,3))^(A27-2018),"") -> 0.003425662961 | AO27: 0.004121935694 | AP27: 0.05412193569 | AQ27: =IF(B27<71,IF(B27=$B$2,1, IF(B27<$B$2, AQ28/(1-AP27), AQ26*(1-AP26))),"") -> 1.276728576 | AR27: 1.111290803 | AS27: 70 | AT27: =IF(BA27>=$B$3,VLOOKUP(BA27,Lookups!A:H,8)*(1-VLOOKUP(BA27,Lookups!U:W,2))^(BA27-$B$2 + ValYear - 2017),"") -> 0.01316740452 | AU27: =IF(BA27>=$B$3,VLOOKUP(BA27,Lookups!A:I,9)*(1-VLOOKUP(BA27,Lookups!U:W,3))^(BA27-$B$2 + ValYear - 2017),"") -> 0.01072682142 | AV27: 0.01194711297 | AW27: 0.9124839476 | AX27: 0.5900127541 | AY27: 0.978872 | BA27: 70 | BB27: 3016.201143 | BN27: 1589.545043 | BO27: 1650.879826 | BP27: 1715.124499 | BQ27: 1782.561492 | BR27: 1853.267996 | BS27: 1927.502457 | BT27: 2005.551446 | BU27: 2087.7692 | BV27: 2174.565122 | BW27: 2266.457267 | BX27: 2363.993458 | BY27: 2467.448714 | BZ27: 2577.406713 | CA27: =IF(BB27<>"",$BB27*$AW27/$AW$25*$AX27/$AX$25*$AY27,"") -> 2694.563898 | CB27: =IF(BB27<>"",$BB27*$AW27/$AW$26*$AX27/$AX$26*$AY27,"") -> 2819.236466 | CC27: =IF(BB27<>"",$BB27*$AW27/$AW$27*$AX27/$AX$27*$AY27,"") -> 2952.474845 | CK27: 35 | CL27: 0
A28: 2016 | B28: 60 | D28: =VLOOKUP(B28,Lookups!A:B,2) -> 13041.07672 | E28: =VLOOKUP(B28,Lookups!A:C,3) -> 9144.804934 | G28: =VLOOKUP(B28,Lookups!A:D,4) -> 8562.890474 | H28: =VLOOKUP(B28,Lookups!A:E,5) -> 8673.277821 | J28: =VLOOKUP(A28,Trends!$A$3:$Q$94,IF(ExFlg=0,2,10))+IF(B28>=$B$2,Sens,0) -> 1.048 | K28: 0.9104947264 | L28: =VLOOKUP(A28,Trends!$A$3:$Q$94,IF(ExFlg=0,4,12))+IF(B28>=$B$2,Sens,0) -> 1.049 | M28: 0.9087596249 | O28: =VLOOKUP(A28,Trends!$A$3:$Q$94,IF(ExFlg=0,6,14))+IF(B28>=$B$2,Sens,0) -> 1.048 | P28: 0.9104947264 | Q28: =VLOOKUP(A28,Trends!$A$3:$Q$94,IF(ExFlg=0,8,16))+IF(B28>=$B$2,Sens,0) -> 1.048 | R28: 0.9104947264 | T28: 11873.83158 | U28: =IF(B28=$B$2, E28, IF(B28<$B$2, E28 * Trends!$S$3^(B28 - $B$2), IF(ExFlg=0,E28*VLOOKUP(A28,Trends!$A$4:$V$94,20),E28*VLOOKUP(A28,Trends!$A$4:$Z$94,24)))) -> 8358.167629 | V28: 3515.663954 | X28: 7796.466619 | Y28: =IF(B28=$B$2, H28, IF(B28<$B$2, H28 * Trends!$U$3^(B28 - $B$2), IF(ExFlg=0,H28*VLOOKUP(A28,Trends!$A$4:$V$94,22),H28*VLOOKUP(A28,Trends!$A$4:$Z$94,26)))) -> 7927.20134 | Z28: -130.7347205 | AB28: 1084.71935 | AD28: =IF(B28<71,VLOOKUP(B28,Lookups!A:F,6),"") -> 0.07 | AE28: =IF(B28<71,VLOOKUP(Active!B28,Lookups!A:G,7),"") -> 0.06 | AF28: 0.065 | AG28: =IF(B28<55,VLOOKUP(B28-$B$3,Lookups!$O$3:$Q$53,2),"") ->  | AH28: =IF(B28<55,VLOOKUP(B28-$B$3,Lookups!$O$3:$Q$53,3),"") ->  | AJ28: =IF(B28<55,VLOOKUP(B28,Lookups!A:M,12),"") ->  | AK28: =IF(B28<55,VLOOKUP(B28,Lookups!A:M,13),"") ->  | AM28: =IF(B28<70,VLOOKUP(B28,Lookups!A:H,8)*(1-VLOOKUP(B28,Lookups!$U$3:$W$103,2))^(A28-2018),"") -> 0.005313123384 | AN28: =IF(B28<70,VLOOKUP(B28,Lookups!A:I,9)*(1-VLOOKUP(B28,Lookups!$U$3:$W$103,3))^(A28-2018),"") -> 0.003781246812 | AO28: 0.004547185098 | AP28: 0.0695471851 | AQ28: 1.207629554 | AR28: =IF(B28<71,IF(B28=$B$2,1,IF(B28<$B$2,AR29*(1+IntRt),AR27/(1+IntRt))),"") -> 1.07288164 | AS28: 71 | AT28: =IF(BA28>=$B$3,VLOOKUP(BA28,Lookups!A:H,8)*(1-VLOOKUP(BA28,Lookups!U:W,2))^(BA28-$B$2 + ValYear - 2017),"") -> 0.01454405989 | AU28: =IF(BA28>=$B$3,VLOOKUP(BA28,Lookups!A:I,9)*(1-VLOOKUP(BA28,Lookups!U:W,3))^(BA28-$B$2 + ValYear - 2017),"") -> 0.01193992283 | AV28: 0.01324199136 | AW28: 0.9015823988 | AX28: 0.5696203458 | AY28: 0.978299 | BA28: 71 | BB28: 3390.348429 | BN28: 1703.361632 | BO28: 1769.088185 | BP28: 1837.932986 | BQ28: 1910.198686 | BR28: 1985.968005 | BS28: 2065.517894 | BT28: 2149.155445 | BU28: 2237.260257 | BV28: 2330.27105 | BW28: 2428.74297 | BX28: 2533.263069 | BY28: 2644.126058 | BZ28: 2761.957407 | CA28: 2887.503427 | CB28: =IF(BB28<>"",$BB28*$AW28/$AW$26*$AX28/$AX$26*$AY28,"") -> 3021.102956 | CC28: =IF(BB28<>"",$BB28*$AW28/$AW$27*$AX28/$AX$27*$AY28,"") -> 3163.881636 | CK28: 35 | CL28: 0
A29: 2017 | B29: 61 | D29: =VLOOKUP(B29,Lookups!A:B,2) -> 13575.15317 | E29: =VLOOKUP(B29,Lookups!A:C,3) -> 9144.804934 | G29: =VLOOKUP(B29,Lookups!A:D,4) -> 8913.569962 | H29: =VLOOKUP(B29,Lookups!A:E,5) -> 8673.277821 | J29: =VLOOKUP(A29,Trends!$A$3:$Q$94,IF(ExFlg=0,2,10))+IF(B29>=$B$2,Sens,0) -> 1.048 | K29: 0.9541984733 | L29: =VLOOKUP(A29,Trends!$A$3:$Q$94,IF(ExFlg=0,4,12))+IF(B29>=$B$2,Sens,0) -> 1.049 | M29: 0.9532888465 | O29: =VLOOKUP(A29,Trends!$A$3:$Q$94,IF(ExFlg=0,6,14))+IF(B29>=$B$2,Sens,0) -> 1.048 | P29: 0.9541984733 | Q29: =VLOOKUP(A29,Trends!$A$3:$Q$94,IF(ExFlg=0,8,16))+IF(B29>=$B$2,Sens,0) -> 1.048 | R29: 0.9541984733 | T29: 12953.39043 | U29: =IF(B29=$B$2, E29, IF(B29<$B$2, E29 * Trends!$S$3^(B29 - $B$2), IF(ExFlg=0,E29*VLOOKUP(A29,Trends!$A$4:$V$94,20),E29*VLOOKUP(A29,Trends!$A$4:$Z$94,24)))) -> 8742.64334 | V29: 4210.747092 | X29: 8505.31485 | Y29: =IF(B29=$B$2, H29, IF(B29<$B$2, H29 * Trends!$U$3^(B29 - $B$2), IF(ExFlg=0,H29*VLOOKUP(A29,Trends!$A$4:$V$94,22),H29*VLOOKUP(A29,Trends!$A$4:$Z$94,26)))) -> 8291.852601 | Z29: 213.4622483 | AB29: 1545.877205 | AD29: =IF(B29<71,VLOOKUP(B29,Lookups!A:F,6),"") -> 0.08 | AE29: =IF(B29<71,VLOOKUP(Active!B29,Lookups!A:G,7),"") -> 0.13 | AF29: 0.105 | AG29: =IF(B29<55,VLOOKUP(B29-$B$3,Lookups!$O$3:$Q$53,2),"") ->  | AH29: =IF(B29<55,VLOOKUP(B29-$B$3,Lookups!$O$3:$Q$53,3),"") ->  | AJ29: =IF(B29<55,VLOOKUP(B29,Lookups!A:M,12),"") ->  | AK29: =IF(B29<55,VLOOKUP(B29,Lookups!A:M,13),"") ->  | AM29: =IF(B29<70,VLOOKUP(B29,Lookups!A:H,8)*(1-VLOOKUP(B29,Lookups!$U$3:$W$103,2))^(A29-2018),"") -> 0.00588608871 | AN29: =IF(B29<70,VLOOKUP(B29,Lookups!A:I,9)*(1-VLOOKUP(B29,Lookups!$U$3:$W$103,3))^(A29-2018),"") -> 0.004188068756 | AO29: 0.005037078733 | AP29: 0.1100370787 | AQ29: =IF(B29<71,IF(B29=$B$2,1, IF(B29<$B$2, AQ30/(1-AP29), AQ28*(1-AP28))),"") -> 1.123642318 | AR29: 1.0358 | AS29: 72 | AT29: =IF(BA29>=$B$3,VLOOKUP(BA29,Lookups!A:H,8)*(1-VLOOKUP(BA29,Lookups!U:W,2))^(BA29-$B$2 + ValYear - 2017),"") -> 0.0158510479 | AU29: =IF(BA29>=$B$3,VLOOKUP(BA29,Lookups!A:I,9)*(1-VLOOKUP(BA29,Lookups!U:W,3))^(BA29-$B$2 + ValYear - 2017),"") -> 0.01309084206 | AV29: 0.01447094498 | AW29: 0.8896436525 | AX29: 0.5499327532 | AY29: 0.977756 | BA29: 72 | BB29: 3704.203158 | BN29: 1771.94794 | BO29: 1840.32099 | BP29: 1911.937845 | BQ29: 1987.113343 | BR29: 2065.933534 | BS29: 2148.68652 | BT29: 2235.691759 | BU29: 2327.344135 | BV29: 2424.100032 | BW29: 2526.53695 | BX29: 2635.265579 | BY29: 2750.592496 | BZ29: 2873.168355 | CA29: 3003.769519 | CB29: 3142.748468 | CC29: =IF(BB29<>"",$BB29*$AW29/$AW$27*$AX29/$AX$27*$AY29,"") -> 3291.276169 | CK29: 35 | CL29: 0
A30: 2018 | B30: 62 | D30: =VLOOKUP(B30,Lookups!A:B,2) -> 14277.76558 | E30: =VLOOKUP(B30,Lookups!A:C,3) -> 9144.804934 | G30: =VLOOKUP(B30,Lookups!A:D,4) -> 9374.911704 | H30: =VLOOKUP(B30,Lookups!A:E,5) -> 8673.277821 | J30: =VLOOKUP(A30,Trends!$A$3:$Q$94,IF(ExFlg=0,2,10))+IF(B30>=$B$2,Sens,0) -> 1.0685 | K30: 1 | L30: =VLOOKUP(A30,Trends!$A$3:$Q$94,IF(ExFlg=0,4,12))+IF(B30>=$B$2,Sens,0) -> 1.074 | M30: 1 | O30: =VLOOKUP(A30,Trends!$A$3:$Q$94,IF(ExFlg=0,6,14))+IF(B30>=$B$2,Sens,0) -> 1.0685 | P30: 1 | Q30: =VLOOKUP(A30,Trends!$A$3:$Q$94,IF(ExFlg=0,8,16))+IF(B30>=$B$2,Sens,0) -> 1.074 | R30: 1 | T30: 14277.76558 | U30: =IF(B30=$B$2, E30, IF(B30<$B$2, E30 * Trends!$S$3^(B30 - $B$2), IF(ExFlg=0,E30*VLOOKUP(A30,Trends!$A$4:$V$94,20),E30*VLOOKUP(A30,Trends!$A$4:$Z$94,24)))) -> 9144.804934 | V30: 5132.960649 | X30: 9374.911704 | Y30: =IF(B30=$B$2, H30, IF(B30<$B$2, H30 * Trends!$U$3^(B30 - $B$2), IF(ExFlg=0,H30*VLOOKUP(A30,Trends!$A$4:$V$94,22),H30*VLOOKUP(A30,Trends!$A$4:$Z$94,26)))) -> 8673.277821 | Z30: 701.6338833 | AB30: 2178.728034 | AD30: =IF(B30<71,VLOOKUP(B30,Lookups!A:F,6),"") -> 0.24 | AE30: =IF(B30<71,VLOOKUP(Active!B30,Lookups!A:G,7),"") -> 0.2 | AF30: 0.22 | AG30: =IF(B30<55,VLOOKUP(B30-$B$3,Lookups!$O$3:$Q$53,2),"") ->  | AH30: =IF(B30<55,VLOOKUP(B30-$B$3,Lookups!$O$3:$Q$53,3),"") ->  | AJ30: =IF(B30<55,VLOOKUP(B30,Lookups!A:M,12),"") ->  | AK30: =IF(B30<55,VLOOKUP(B30,Lookups!A:M,13),"") ->  | AM30: =IF(B30<70,VLOOKUP(B30,Lookups!A:H,8)*(1-VLOOKUP(B30,Lookups!$U$3:$W$103,2))^(A30-2018),"") -> 0.006523 | AN30: =IF(B30<70,VLOOKUP(B30,Lookups!A:I,9)*(1-VLOOKUP(B30,Lookups!$U$3:$W$103,3))^(A30-2018),"") -> 0.004678 | AO30: 0.0056005 | AP30: 0.2256005 | AQ30: 1 | AR30: 1 | AS30: 73 | AT30: =IF(BA30>=$B$3,VLOOKUP(BA30,Lookups!A:H,8)*(1-VLOOKUP(BA30,Lookups!U:W,2))^(BA30-$B$2 + ValYear - 2017),"") -> 0.0173357647 | AU30: =IF(BA30>=$B$3,VLOOKUP(BA30,Lookups!A:I,9)*(1-VLOOKUP(BA30,Lookups!U:W,3))^(BA30-$B$2 + ValYear - 2017),"") -> 0.01438631179 | AV30: 0.01586103824 | AW30: 0.8767696681 | AX30: 0.5309256161 | AY30: 0.97714 | BA30: 73 | BB30: 4044.398148 | BN30: 1839.627493 | BO30: 1910.612052 | BP30: 1984.964312 | BQ30: 2063.011138 | BR30: 2144.841867 | BS30: 2230.755604 | BT30: 2321.084007 | BU30: 2416.237046 | BV30: 2516.688534 | BW30: 2623.038031 | BX30: 2735.91955 | BY30: 2855.651378 | BZ30: 2982.909022 | CA30: 3118.498497 | CB30: 3262.785748 | CC30: 3416.986465 | CK30: 35 | CL30: 0
A31: 2019 | B31: 63 | D31: =VLOOKUP(B31,Lookups!A:B,2) -> 15019.57721 | E31: =VLOOKUP(B31,Lookups!A:C,3) -> 9144.804934 | G31: =VLOOKUP(B31,Lookups!A:D,4) -> 9861.992012 | H31: =VLOOKUP(B31,Lookups!A:E,5) -> 8673.277821 | J31: =VLOOKUP(A31,Trends!$A$3:$Q$94,IF(ExFlg=0,2,10))+IF(B31>=$B$2,Sens,0) -> 1.0625 | K31: 1.0685 | L31: =VLOOKUP(A31,Trends!$A$3:$Q$94,IF(ExFlg=0,4,12))+IF(B31>=$B$2,Sens,0) -> 1.0635 | M31: 1.074 | O31: =VLOOKUP(A31,Trends!$A$3:$Q$94,IF(ExFlg=0,6,14))+IF(B31>=$B$2,Sens,0) -> 1.0625 | P31: 1.0685 | Q31: =VLOOKUP(A31,Trends!$A$3:$Q$94,IF(ExFlg=0,8,16))+IF(B31>=$B$2,Sens,0) -> 1.064 | R31: 1.074 | T31: 16048.41825 | U31: =IF(B31=$B$2, E31, IF(B31<$B$2, E31 * Trends!$S$3^(B31 - $B$2), IF(ExFlg=0,E31*VLOOKUP(A31,Trends!$A$4:$V$94,20),E31*VLOOKUP(A31,Trends!$A$4:$Z$94,24)))) -> 10083.9764 | V31: 5964.441849 | X31: 10537.53847 | Y31: =IF(B31=$B$2, H31, IF(B31<$B$2, H31 * Trends!$U$3^(B31 - $B$2), IF(ExFlg=0,H31*VLOOKUP(A31,Trends!$A$4:$V$94,22),H31*VLOOKUP(A31,Trends!$A$4:$Z$94,26)))) -> 9475.556019 | Z31: 1061.982446 | AB31: 2696.119239 | AD31: =IF(B31<71,VLOOKUP(B31,Lookups!A:F,6),"") -> 0.22 | AE31: =IF(B31<71,VLOOKUP(Active!B31,Lookups!A:G,7),"") -> 0.18 | AF31: 0.2 | AG31: =IF(B31<55,VLOOKUP(B31-$B$3,Lookups!$O$3:$Q$53,2),"") ->  | AH31: =IF(B31<55,VLOOKUP(B31-$B$3,Lookups!$O$3:$Q$53,3),"") ->  | AJ31: =IF(B31<55,VLOOKUP(B31,Lookups!A:M,12),"") ->  | AK31: =IF(B31<55,VLOOKUP(B31,Lookups!A:M,13),"") ->  | AM31: =IF(B31<70,VLOOKUP(B31,Lookups!A:H,8)*(1-VLOOKUP(B31,Lookups!$U$3:$W$103,2))^(A31-2018),"") -> 0.00723492 | AN31: =IF(B31<70,VLOOKUP(B31,Lookups!A:I,9)*(1-VLOOKUP(B31,Lookups!$U$3:$W$103,3))^(A31-2018),"") -> 0.005292716 | AO31: 0.006263818 | AP31: 0.206263818 | AQ31: 0.7743995 | AR31: 0.9654373431 | AS31: 74 | AT31: =IF(BA31>=$B$3,VLOOKUP(BA31,Lookups!A:H,8)*(1-VLOOKUP(BA31,Lookups!U:W,2))^(BA31-$B$2 + ValYear - 2017),"") -> 0.01901968112 | AU31: =IF(BA31>=$B$3,VLOOKUP(BA31,Lookups!A:I,9)*(1-VLOOKUP(BA31,Lookups!U:W,3))^(BA31-$B$2 + ValYear - 2017),"") -> 0.01579924157 | AV31: 0.01740946135 | AW31: 0.8628631909 | AX31: 0.5125754162 | AY31: 0.976455 | BA31: 74 | BB31: 4413.613427 | BN31: 1906.102459 | BO31: 1979.652046 | BP31: 2056.691026 | BQ31: 2137.558075 | BR31: 2222.345758 | BS31: 2311.363989 | BT31: 2404.956411 | BU31: 2503.547806 | BV31: 2607.62911 | BW31: 2717.821548 | BX31: 2834.782042 | BY31: 2958.840381 | BZ31: 3090.696482 | CA31: 3231.185485 | CB31: 3380.686557 | CC31: 3540.45932 | CK31: 35 | CL31: 0
A32: 2020 | B32: 64 | D32: =VLOOKUP(B32,Lookups!A:B,2) -> 15802.90908 | E32: =VLOOKUP(B32,Lookups!A:C,3) -> 9144.804934 | G32: =VLOOKUP(B32,Lookups!A:D,4) -> 10376.33489 | H32: =VLOOKUP(B32,Lookups!A:E,5) -> 8673.277821 | J32: =VLOOKUP(A32,Trends!$A$3:$Q$94,IF(ExFlg=0,2,10))+IF(B32>=$B$2,Sens,0) -> 1.0555 | K32: 1.13528125 | L32: =VLOOKUP(A32,Trends!$A$3:$Q$94,IF(ExFlg=0,4,12))+IF(B32>=$B$2,Sens,0) -> 1.0535 | M32: 1.142199 | O32: =VLOOKUP(A32,Trends!$A$3:$Q$94,IF(ExFlg=0,6,14))+IF(B32>=$B$2,Sens,0) -> 1.055 | P32: 1.13528125 | Q32: =VLOOKUP(A32,Trends!$A$3:$Q$94,IF(ExFlg=0,8,16))+IF(B32>=$B$2,Sens,0) -> 1.054 | R32: 1.142736 | T32: 17940.74638 | U32: =IF(B32=$B$2, E32, IF(B32<$B$2, E32 * Trends!$S$3^(B32 - $B$2), IF(ExFlg=0,E32*VLOOKUP(A32,Trends!$A$4:$V$94,20),E32*VLOOKUP(A32,Trends!$A$4:$Z$94,24)))) -> 10724.3089 | V32: 7216.437474 | X32: 11780.05845 | Y32: =IF(B32=$B$2, H32, IF(B32<$B$2, H32 * Trends!$U$3^(B32 - $B$2), IF(ExFlg=0,H32*VLOOKUP(A32,Trends!$A$4:$V$94,22),H32*VLOOKUP(A32,Trends!$A$4:$Z$94,26)))) -> 10081.9916 | Z32: 1698.066841 | AB32: 3537.505324 | AD32: =IF(B32<71,VLOOKUP(B32,Lookups!A:F,6),"") -> 0.56 | AE32: =IF(B32<71,VLOOKUP(Active!B32,Lookups!A:G,7),"") -> 0.56 | AF32: 0.56 | AG32: =IF(B32<55,VLOOKUP(B32-$B$3,Lookups!$O$3:$Q$53,2),"") ->  | AH32: =IF(B32<55,VLOOKUP(B32-$B$3,Lookups!$O$3:$Q$53,3),"") ->  | AJ32: =IF(B32<55,VLOOKUP(B32,Lookups!A:M,12),"") ->  | AK32: =IF(B32<55,VLOOKUP(B32,Lookups!A:M,13),"") ->  | AM32: =IF(B32<70,VLOOKUP(B32,Lookups!A:H,8)*(1-VLOOKUP(B32,Lookups!$U$3:$W$103,2))^(A32-2018),"") -> 0.008025482805 | AN32: =IF(B32<70,VLOOKUP(B32,Lookups!A:I,9)*(1-VLOOKUP(B32,Lookups!$U$3:$W$103,3))^(A32-2018),"") -> 0.006007190176 | AO32: 0.007016336491 | AP32: 0.5670163365 | AQ32: 0.6146689025 | AR32: 0.9320692635 | AS32: 75 | AT32: =IF(BA32>=$B$3,VLOOKUP(BA32,Lookups!A:H,8)*(1-VLOOKUP(BA32,Lookups!U:W,2))^(BA32-$B$2 + ValYear - 2017),"") -> 0.02090087046 | AU32: =IF(BA32>=$B$3,VLOOKUP(BA32,Lookups!A:I,9)*(1-VLOOKUP(BA32,Lookups!U:W,3))^(BA32-$B$2 + ValYear - 2017),"") -> 0.01730033021 | AV32: 0.01910060034 | AW32: 0.8478412075 | AX32: 0.494859448 | AY32: 0.975707 | BA32: 75 | BB32: 4814.257792 | BN32: 1970.811782 | BO32: 2046.858267 | BP32: 2126.512605 | BQ32: 2210.124969 | BR32: 2297.791067 | BS32: 2389.831334 | BT32: 2486.601078 | BU32: 2588.539503 | BV32: 2696.154212 | BW32: 2810.087518 | BX32: 2931.018645 | BY32: 3059.288579 | BZ32: 3195.620998 | CA32: 3340.879392 | CB32: 3495.455801 | CC32: 3660.65261 | CK32: 35 | CL32: 0
A33: 2021 | B33: 65 | D33: =VLOOKUP(B33,Lookups!A:B,2) -> 3735.341364 | E33: =VLOOKUP(B33,Lookups!A:C,3) -> 2474.103984 | G33: =VLOOKUP(B33,Lookups!A:D,4) -> 5310.849324 | H33: =VLOOKUP(B33,Lookups!A:E,5) -> 3826.627221 | J33: =VLOOKUP(A33,Trends!$A$3:$Q$94,IF(ExFlg=0,2,10))+IF(B33>=$B$2,Sens,0) -> 1.056 | K33: 1.198289359 | L33: =VLOOKUP(A33,Trends!$A$3:$Q$94,IF(ExFlg=0,4,12))+IF(B33>=$B$2,Sens,0) -> 1.054 | M33: 1.203306647 | O33: =VLOOKUP(A33,Trends!$A$3:$Q$94,IF(ExFlg=0,6,14))+IF(B33>=$B$2,Sens,0) -> 1.055 | P33: 1.197721719 | Q33: =VLOOKUP(A33,Trends!$A$3:$Q$94,IF(ExFlg=0,8,16))+IF(B33>=$B$2,Sens,0) -> 1.0545 | R33: 1.204443744 | T33: 4494.76109 | U33: =IF(B33=$B$2, E33, IF(B33<$B$2, E33 * Trends!$S$3^(B33 - $B$2), IF(ExFlg=0,E33*VLOOKUP(A33,Trends!$A$4:$V$94,20),E33*VLOOKUP(A33,Trends!$A$4:$Z$94,24)))) -> 3056.661573 | V33: 1438.099516 | X33: =IF(B33<65,G33*P33,G33*R33) -> 6396.619244 | Y33: =IF(B33=$B$2, H33, IF(B33<$B$2, H33 * Trends!$U$3^(B33 - $B$2), IF(ExFlg=0,H33*VLOOKUP(A33,Trends!$A$4:$V$94,22),H33*VLOOKUP(A33,Trends!$A$4:$Z$94,26)))) -> 4688.348007 | Z33: 1708.271237 | AB33: 1618.214897 | AD33: =IF(B33<71,VLOOKUP(B33,Lookups!A:F,6),"") -> 0.4 | AE33: =IF(B33<71,VLOOKUP(Active!B33,Lookups!A:G,7),"") -> 0.4 | AF33: 0.4 | AG33: =IF(B33<55,VLOOKUP(B33-$B$3,Lookups!$O$3:$Q$53,2),"") ->  | AH33: =IF(B33<55,VLOOKUP(B33-$B$3,Lookups!$O$3:$Q$53,3),"") ->  | AJ33: =IF(B33<55,VLOOKUP(B33,Lookups!A:M,12),"") ->  | AK33: =IF(B33<55,VLOOKUP(B33,Lookups!A:M,13),"") ->  | AM33: =IF(B33<70,VLOOKUP(B33,Lookups!A:H,8)*(1-VLOOKUP(B33,Lookups!$U$3:$W$103,2))^(A33-2018),"") -> 0.008754133579 | AN33: =IF(B33<70,VLOOKUP(B33,Lookups!A:I,9)*(1-VLOOKUP(B33,Lookups!$U$3:$W$103,3))^(A33-2018),"") -> 0.006689288367 | AO33: 0.007721710973 | AP33: 0.407721711 | AQ33: 0.2661415932 | AR33: 0.8998544733 | AS33: 76 | AT33: =IF(BA33>=$B$3,VLOOKUP(BA33,Lookups!A:H,8)*(1-VLOOKUP(BA33,Lookups!U:W,2))^(BA33-$B$2 + ValYear - 2017),"") -> 0.0229764347 | AU33: =IF(BA33>=$B$3,VLOOKUP(BA33,Lookups!A:I,9)*(1-VLOOKUP(BA33,Lookups!U:W,3))^(BA33-$B$2 + ValYear - 2017),"") -> 0.01886991589 | AV33: 0.02092317529 | AW33: 0.8316469315 | AX33: 0.4777557907 | AY33: 0.9749 | BA33: 76 | BB33: 5248.245838 | BN33: 2032.914856 | BO33: 2111.357674 | BP33: 2193.522033 | BQ33: 2279.769142 | BR33: 2370.197722 | BS33: 2465.138308 | BT33: 2564.957405 | BU33: 2670.108054 | BV33: 2781.113855 | BW33: 2898.63736 | BX33: 3023.379199 | BY33: 3155.691101 | BZ33: 3296.319547 | CA33: 3446.155239 | CB33: 3605.60257 | CC33: 3776.004965 | CK33: 35 | CL33: 0
A34: 2022 | B34: 66 | D34: =VLOOKUP(B34,Lookups!A:B,2) -> 3820.221549 | E34: =VLOOKUP(B34,Lookups!A:C,3) -> 2474.103984 | G34: =VLOOKUP(B34,Lookups!A:D,4) -> 5431.530637 | H34: =VLOOKUP(B34,Lookups!A:E,5) -> 3826.627221 | J34: =VLOOKUP(A34,Trends!$A$3:$Q$94,IF(ExFlg=0,2,10))+IF(B34>=$B$2,Sens,0) -> 1.0565 | K34: 1.265393564 | L34: =VLOOKUP(A34,Trends!$A$3:$Q$94,IF(ExFlg=0,4,12))+IF(B34>=$B$2,Sens,0) -> 1.0545 | M34: 1.268285205 | O34: =VLOOKUP(A34,Trends!$A$3:$Q$94,IF(ExFlg=0,6,14))+IF(B34>=$B$2,Sens,0) -> 1.0555 | P34: 1.263596413 | Q34: =VLOOKUP(A34,Trends!$A$3:$Q$94,IF(ExFlg=0,8,16))+IF(B34>=$B$2,Sens,0) -> 1.055 | R34: 1.270085928 | T34: 4845.130472 | U34: =IF(B34=$B$2, E34, IF(B34<$B$2, E34 * Trends!$S$3^(B34 - $B$2), IF(ExFlg=0,E34*VLOOKUP(A34,Trends!$A$4:$V$94,20),E34*VLOOKUP(A34,Trends!$A$4:$Z$94,24)))) -> 3221.721298 | V34: 1623.409173 | X34: =IF(B34<65,G34*P34,G34*R34) -> 6898.51063 | Y34: =IF(B34=$B$2, H34, IF(B34<$B$2, H34 * Trends!$U$3^(B34 - $B$2), IF(ExFlg=0,H34*VLOOKUP(A34,Trends!$A$4:$V$94,22),H34*VLOOKUP(A34,Trends!$A$4:$Z$94,26)))) -> 4943.862974 | Z34: 1954.647656 | AB34: 1844.235933 | AD34: =IF(B34<71,VLOOKUP(B34,Lookups!A:F,6),"") -> 0.24 | AE34: =IF(B34<71,VLOOKUP(Active!B34,Lookups!A:G,7),"") -> 0.24 | AF34: 0.24 | AG34: =IF(B34<55,VLOOKUP(B34-$B$3,Lookups!$O$3:$Q$53,2),"") ->  | AH34: =IF(B34<55,VLOOKUP(B34-$B$3,Lookups!$O$3:$Q$53,3),"") ->  | AJ34: =IF(B34<55,VLOOKUP(B34,Lookups!A:M,12),"") ->  | AK34: =IF(B34<55,VLOOKUP(B34,Lookups!A:M,13),"") ->  | AM34: =IF(B34<70,VLOOKUP(B34,Lookups!A:H,8)*(1-VLOOKUP(B34,Lookups!$U$3:$W$103,2))^(A34-2018),"") -> 0.009550788741 | AN34: =IF(B34<70,VLOOKUP(B34,Lookups!A:I,9)*(1-VLOOKUP(B34,Lookups!$U$3:$W$103,3))^(A34-2018),"") -> 0.007441814019 | AO34: 0.00849630138 | AP34: 0.2484963014 | AQ34: 0.1576298875 | AR34: 0.8687531119 | AS34: 77 | AT34: =IF(BA34>=$B$3,VLOOKUP(BA34,Lookups!A:H,8)*(1-VLOOKUP(BA34,Lookups!U:W,2))^(BA34-$B$2 + ValYear - 2017),"") -> 0.02522451498 | AU34: =IF(BA34>=$B$3,VLOOKUP(BA34,Lookups!A:I,9)*(1-VLOOKUP(BA34,Lookups!U:W,3))^(BA34-$B$2 + ValYear - 2017),"") -> 0.02054112829 | AV34: 0.02288282163 | AW34: 0.8142462369 | AX34: 0.4612432812 | AY34: 0.974033 | BA34: 77 | BB34: 5622.463842 | BN34: 2056.772018 | BO34: 2136.135397 | BP34: 2219.263993 | BQ34: 2306.523249 | BR34: 2398.01305 | BS34: 2494.067806 | BT34: 2595.058324 | BU34: 2701.442963 | BV34: 2813.751466 | BW34: 2932.654163 | BX34: 3058.859903 | BY34: 3192.724544 | BZ34: 3335.003327 | CA34: 3486.597408 | CB34: 3647.915925 | CC34: 3820.318067 | CK34: 35 | CL34: 0
A35: 2023 | B35: 67 | D35: =VLOOKUP(B35,Lookups!A:B,2) -> 3907.060832 | E35: =VLOOKUP(B35,Lookups!A:C,3) -> 2474.103984 | G35: =VLOOKUP(B35,Lookups!A:D,4) -> 5554.997365 | H35: =VLOOKUP(B35,Lookups!A:E,5) -> 3826.627221 | J35: =VLOOKUP(A35,Trends!$A$3:$Q$94,IF(ExFlg=0,2,10))+IF(B35>=$B$2,Sens,0) -> 1.057 | K35: 1.3368883 | L35: =VLOOKUP(A35,Trends!$A$3:$Q$94,IF(ExFlg=0,4,12))+IF(B35>=$B$2,Sens,0) -> 1.055 | M35: 1.337406749 | O35: =VLOOKUP(A35,Trends!$A$3:$Q$94,IF(ExFlg=0,6,14))+IF(B35>=$B$2,Sens,0) -> 1.057 | P35: 1.333726014 | Q35: =VLOOKUP(A35,Trends!$A$3:$Q$94,IF(ExFlg=0,8,16))+IF(B35>=$B$2,Sens,0) -> 1.0555 | R35: 1.339940654 | T35: 5225.329526 | U35: =IF(B35=$B$2, E35, IF(B35<$B$2, E35 * Trends!$S$3^(B35 - $B$2), IF(ExFlg=0,E35*VLOOKUP(A35,Trends!$A$4:$V$94,20),E35*VLOOKUP(A35,Trends!$A$4:$Z$94,24)))) -> 3397.305109 | V35: 1828.024417 | X35: 7443.366803 | Y35: =IF(B35=$B$2, H35, IF(B35<$B$2, H35 * Trends!$U$3^(B35 - $B$2), IF(ExFlg=0,H35*VLOOKUP(A35,Trends!$A$4:$V$94,22),H35*VLOOKUP(A35,Trends!$A$4:$Z$94,26)))) -> 5215.775437 | Z35: 2227.591366 | AB35: =(1-PctUMP)*V35+PctUMP*Z35 -> 2094.403715 | AD35: =IF(B35<71,VLOOKUP(B35,Lookups!A:F,6),"") -> 0.24 | AE35: =IF(B35<71,VLOOKUP(Active!B35,Lookups!A:G,7),"") -> 0.24 | AF35: =IF(B35<71,PCTMALE*AD35+(1-PCTMALE)*AE35,"") -> 0.24 | AG35: =IF(B35<55,VLOOKUP(B35-$B$3,Lookups!$O$3:$Q$53,2),"") ->  | AH35: =IF(B35<55,VLOOKUP(B35-$B$3,Lookups!$O$3:$Q$53,3),"") ->  | AI35: =IF(B35<55,PCTMALE*AG35+(1-PCTMALE)*AH35,"") ->  | AJ35: =IF(B35<55,VLOOKUP(B35,Lookups!A:M,12),"") ->  | AK35: =IF(B35<55,VLOOKUP(B35,Lookups!A:M,13),"") ->  | AL35: =IF(B35<55,PCTMALE*AJ35+(1-PCTMALE)*AK35,"") ->  | AM35: =IF(B35<70,VLOOKUP(B35,Lookups!A:H,8)*(1-VLOOKUP(B35,Lookups!$U$3:$W$103,2))^(A35-2018),"") -> 0.01041807623 | AN35: =IF(B35<70,VLOOKUP(B35,Lookups!A:I,9)*(1-VLOOKUP(B35,Lookups!$U$3:$W$103,3))^(A35-2018),"") -> 0.008298642189 | AO35: =IF(AM35<>"",PCTMALE*AM35+(1-PCTMALE)*AN35,"") -> 0.009358359209 | AP35: 0.2493583592 | AQ35: 0.1184594435 | AR35: =IF(B35<71,IF(B35=$B$2,1,IF(B35<$B$2,AR36*(1+IntRt),AR34/(1+IntRt))),"") -> 0.8387266962 | AS35: 78 | AT35: =IF(BA35>=$B$3,VLOOKUP(BA35,Lookups!A:H,8)*(1-VLOOKUP(BA35,Lookups!U:W,2))^(BA35-$B$2 + ValYear - 2017),"") -> 0.02763742338 | AU35: =IF(BA35>=$B$3,VLOOKUP(BA35,Lookups!A:I,9)*(1-VLOOKUP(BA35,Lookups!U:W,3))^(BA35-$B$2 + ValYear - 2017),"") -> 0.02235195264 | AV35: =IFERROR(PCTMALE*AT35+(1-PCTMALE)*AU35,"") -> 0.02499468801 | AW35: 0.7956139855 | AX35: 0.445301488 | AY35: 0.973099 | BA35: 78 | BB35: 6022.742631 | BN35: 2076.385016 | BO35: 2156.50519 | BP35: 2240.426484 | BQ35: 2328.517828 | BR35: 2420.880059 | BS35: 2517.850775 | BT35: 2619.80432 | BU35: 2727.203423 | BV35: 2840.58288 | BW35: 2960.619411 | BX35: 3088.028625 | BY35: 3223.169775 | BZ35: 3366.805303 | CA35: 3519.844956 | CB35: 3682.701776 | CC35: 3856.747914 | CK35: 35 | CL35: 0
A36: 2024 | B36: 68 | D36: =VLOOKUP(B36,Lookups!A:B,2) -> 3995.905106 | E36: =VLOOKUP(B36,Lookups!A:C,3) -> 2474.103984 | G36: =VLOOKUP(B36,Lookups!A:D,4) -> 5681.314757 | H36: =VLOOKUP(B36,Lookups!A:E,5) -> 3826.627221 | J36: =VLOOKUP(A36,Trends!$A$3:$Q$94,IF(ExFlg=0,2,10))+IF(B36>=$B$2,Sens,0) -> 1.057 | K36: 1.413090933 | L36: =VLOOKUP(A36,Trends!$A$3:$Q$94,IF(ExFlg=0,4,12))+IF(B36>=$B$2,Sens,0) -> 1.0555 | M36: 1.41096412 | O36: =VLOOKUP(A36,Trends!$A$3:$Q$94,IF(ExFlg=0,6,14))+IF(B36>=$B$2,Sens,0) -> 1.0585 | P36: 1.409748397 | Q36: =VLOOKUP(A36,Trends!$A$3:$Q$94,IF(ExFlg=0,8,16))+IF(B36>=$B$2,Sens,0) -> 1.056 | R36: 1.41430736 | T36: 5638.078732 | U36: =IF(B36=$B$2, E36, IF(B36<$B$2, E36 * Trends!$S$3^(B36 - $B$2), IF(ExFlg=0,E36*VLOOKUP(A36,Trends!$A$4:$V$94,20),E36*VLOOKUP(A36,Trends!$A$4:$Z$94,24)))) -> 3584.15689 | V36: 2053.921842 | X36: 8035.125277 | Y36: =IF(B36=$B$2, H36, IF(B36<$B$2, H36 * Trends!$U$3^(B36 - $B$2), IF(ExFlg=0,H36*VLOOKUP(A36,Trends!$A$4:$V$94,22),H36*VLOOKUP(A36,Trends!$A$4:$Z$94,26)))) -> 5505.250974 | Z36: 2529.874303 | AB36: 2371.225069 | AD36: =IF(B36<71,VLOOKUP(B36,Lookups!A:F,6),"") -> 0.24 | AE36: =IF(B36<71,VLOOKUP(Active!B36,Lookups!A:G,7),"") -> 0.24 | AF36: 0.24 | AG36: =IF(B36<55,VLOOKUP(B36-$B$3,Lookups!$O$3:$Q$53,2),"") ->  | AH36: =IF(B36<55,VLOOKUP(B36-$B$3,Lookups!$O$3:$Q$53,3),"") ->  | AJ36: =IF(B36<55,VLOOKUP(B36,Lookups!A:M,12),"") ->  | AK36: =IF(B36<55,VLOOKUP(B36,Lookups!A:M,13),"") ->  | AM36: =IF(B36<70,VLOOKUP(B36,Lookups!A:H,8)*(1-VLOOKUP(B36,Lookups!$U$3:$W$103,2))^(A36-2018),"") -> 0.01118437289 | AN36: =IF(B36<70,VLOOKUP(B36,Lookups!A:I,9)*(1-VLOOKUP(B36,Lookups!$U$3:$W$103,3))^(A36-2018),"") -> 0.009103140711 | AO36: 0.0101437568 | AP36: 0.2501437568 | AQ36: 0.088920591 | AR36: 0.8097380732 | AS36: 79 | AT36: =IF(BA36>=$B$3,VLOOKUP(BA36,Lookups!A:H,8)*(1-VLOOKUP(BA36,Lookups!U:W,2))^(BA36-$B$2 + ValYear - 2017),"") -> 0.03025033317 | AU36: =IF(BA36>=$B$3,VLOOKUP(BA36,Lookups!A:I,9)*(1-VLOOKUP(BA36,Lookups!U:W,3))^(BA36-$B$2 + ValYear - 2017),"") -> 0.02434327999 | AV36: 0.02729680658 | AW36: 0.7757278622 | AX36: 0.4299106854 | AY36: 0.97208 | BA36: 79 | BB36: 6453.067684 | BN36: 2091.971956 | BO36: 2172.693573 | BP36: 2257.244845 | BQ36: 2345.997471 | BR36: 2439.053043 | BS36: 2536.751696 | BT36: 2639.470583 | BU36: 2747.675906 | BV36: 2861.906476 | BW36: 2982.844093 | BX36: 3111.209739 | BY36: 3247.365361 | BZ36: 3392.079128 | CA36: 3546.267615 | CB36: 3710.346963 | CC36: 3885.699625 | CK36: 35 | CL36: 0
A37: 2025 | B37: 69 | D37: =VLOOKUP(B37,Lookups!A:B,2) -> 4086.80135 | E37: =VLOOKUP(B37,Lookups!A:C,3) -> 2474.103984 | G37: =VLOOKUP(B37,Lookups!A:D,4) -> 5810.549608 | H37: =VLOOKUP(B37,Lookups!A:E,5) -> 3826.627221 | J37: =VLOOKUP(A37,Trends!$A$3:$Q$94,IF(ExFlg=0,2,10))+IF(B37>=$B$2,Sens,0) -> 1.0575 | K37: 1.493637116 | L37: =VLOOKUP(A37,Trends!$A$3:$Q$94,IF(ExFlg=0,4,12))+IF(B37>=$B$2,Sens,0) -> 1.056 | M37: 1.489272629 | O37: =VLOOKUP(A37,Trends!$A$3:$Q$94,IF(ExFlg=0,6,14))+IF(B37>=$B$2,Sens,0) -> 1.0595 | P37: 1.492218678 | Q37: =VLOOKUP(A37,Trends!$A$3:$Q$94,IF(ExFlg=0,8,16))+IF(B37>=$B$2,Sens,0) -> 1.0565 | R37: 1.493508573 | T37: 6086.36139 | U37: =IF(B37=$B$2, E37, IF(B37<$B$2, E37 * Trends!$S$3^(B37 - $B$2), IF(ExFlg=0,E37*VLOOKUP(A37,Trends!$A$4:$V$94,20),E37*VLOOKUP(A37,Trends!$A$4:$Z$94,24)))) -> 3783.077598 | V37: 2303.283793 | X37: 8678.105651 | Y37: =IF(B37=$B$2, H37, IF(B37<$B$2, H37 * Trends!$U$3^(B37 - $B$2), IF(ExFlg=0,H37*VLOOKUP(A37,Trends!$A$4:$V$94,22),H37*VLOOKUP(A37,Trends!$A$4:$Z$94,26)))) -> 5813.545029 | Z37: 2864.560622 | AB37: 2677.470216 | AD37: =IF(B37<71,VLOOKUP(B37,Lookups!A:F,6),"") -> 0.24 | AE37: =IF(B37<71,VLOOKUP(Active!B37,Lookups!A:G,7),"") -> 0.24 | AF37: 0.24 | AG37: =IF(B37<55,VLOOKUP(B37-$B$3,Lookups!$O$3:$Q$53,2),"") ->  | AH37: =IF(B37<55,VLOOKUP(B37-$B$3,Lookups!$O$3:$Q$53,3),"") ->  | AJ37: =IF(B37<55,VLOOKUP(B37,Lookups!A:M,12),"") ->  | AK37: =IF(B37<55,VLOOKUP(B37,Lookups!A:M,13),"") ->  | AM37: =IF(B37<70,VLOOKUP(B37,Lookups!A:H,8)*(1-VLOOKUP(B37,Lookups!$U$3:$W$103,2))^(A37-2018),"") -> 0.0122472719 | AN37: =IF(B37<70,VLOOKUP(B37,Lookups!A:I,9)*(1-VLOOKUP(B37,Lookups!$U$3:$W$103,3))^(A37-2018),"") -> 0.009942274119 | AO37: 0.01109477301 | AP37: 0.251094773 | AQ37: 0.06667766031 | AR37: 0.781751374 | AS37: 80 | AT37: =IF(BA37>=$B$3,VLOOKUP(BA37,Lookups!A:H,8)*(1-VLOOKUP(BA37,Lookups!U:W,2))^(BA37-$B$2 + ValYear - 2017),"") -> 0.033114813 | AU37: =IF(BA37>=$B$3,VLOOKUP(BA37,Lookups!A:I,9)*(1-VLOOKUP(BA37,Lookups!U:W,3))^(BA37-$B$2 + ValYear - 2017),"") -> 0.026553111 | AV37: 0.029833962 | AW37: 0.7545529688 | AX37: 0.4150518299 | AY37: 0.970957 | BA37: 80 | BB37: 6915.816659 | BN37: 2102.981894 | BO37: 2184.128345 | BP37: 2269.124606 | BQ37: 2358.344332 | BR37: 2451.889651 | BS37: 2550.102487 | BT37: 2653.361978 | BU37: 2762.13678 | BV37: 2876.968539 | BW37: 2998.542644 | BX37: 3127.583872 | BY37: 3264.456075 | BZ37: 3409.931462 | CA37: 3564.931435 | CB37: 3729.874324 | CC37: 3906.149858 | CK37: 35 | CL37: 0
A38: 2026 | B38: 70 | D38: =VLOOKUP(B38,Lookups!A:B,2) -> 4179.797661 | E38: =VLOOKUP(B38,Lookups!A:C,3) -> 2474.103984 | G38: =VLOOKUP(B38,Lookups!A:D,4) -> 5942.770302 | H38: =VLOOKUP(B38,Lookups!A:E,5) -> 3826.627221 | J38: =VLOOKUP(A38,Trends!$A$3:$Q$94,IF(ExFlg=0,2,10))+IF(B38>=$B$2,Sens,0) -> 1.058 | K38: 1.57952125 | L38: =VLOOKUP(A38,Trends!$A$3:$Q$94,IF(ExFlg=0,4,12))+IF(B38>=$B$2,Sens,0) -> 1.056 | M38: 1.572671896 | O38: =VLOOKUP(A38,Trends!$A$3:$Q$94,IF(ExFlg=0,6,14))+IF(B38>=$B$2,Sens,0) -> 1.06 | P38: 1.58100569 | Q38: =VLOOKUP(A38,Trends!$A$3:$Q$94,IF(ExFlg=0,8,16))+IF(B38>=$B$2,Sens,0) -> 1.057 | R38: 1.577891807 | T38: 6573.450313 | U38: =IF(B38=$B$2, E38, IF(B38<$B$2, E38 * Trends!$S$3^(B38 - $B$2), IF(ExFlg=0,E38*VLOOKUP(A38,Trends!$A$4:$V$94,20),E38*VLOOKUP(A38,Trends!$A$4:$Z$94,24)))) -> 3994.929943 | V38: 2578.52037 | X38: 9377.048569 | Y38: =IF(B38=$B$2, H38, IF(B38<$B$2, H38 * Trends!$U$3^(B38 - $B$2), IF(ExFlg=0,H38*VLOOKUP(A38,Trends!$A$4:$V$94,22),H38*VLOOKUP(A38,Trends!$A$4:$Z$94,26)))) -> 6142.010323 | Z38: 3235.038247 | AB38: 3016.201143 | AD38: =IF(B38<71,VLOOKUP(B38,Lookups!A:F,6),"") -> 1 | AE38: =IF(B38<71,VLOOKUP(Active!B38,Lookups!A:G,7),"") -> 1 | AF38: 1 | AG38: =IF(B38<55,VLOOKUP(B38-$B$3,Lookups!$O$3:$Q$53,2),"") ->  | AH38: =IF(B38<55,VLOOKUP(B38-$B$3,Lookups!$O$3:$Q$53,3),"") ->  | AJ38: =IF(B38<55,VLOOKUP(B38,Lookups!A:M,12),"") ->  | AK38: =IF(B38<55,VLOOKUP(B38,Lookups!A:M,13),"") ->  | AM38: =IF(B38<70,VLOOKUP(B38,Lookups!A:H,8)*(1-VLOOKUP(B38,Lookups!$U$3:$W$103,2))^(A38-2018),"") ->  | AN38: =IF(B38<70,VLOOKUP(B38,Lookups!A:I,9)*(1-VLOOKUP(B38,Lookups!$U$3:$W$103,3))^(A38-2018),"") ->  | AP38: 1 | AQ38: 0.04993524833 | AR38: 0.7547319695 | AS38: 81 | AT38: =IF(BA38>=$B$3,VLOOKUP(BA38,Lookups!A:H,8)*(1-VLOOKUP(BA38,Lookups!U:W,2))^(BA38-$B$2 + ValYear - 2017),"") -> 0.03624503328 | AU38: =IF(BA38>=$B$3,VLOOKUP(BA38,Lookups!A:I,9)*(1-VLOOKUP(BA38,Lookups!U:W,3))^(BA38-$B$2 + ValYear - 2017),"") -> 0.02899860172 | AV38: 0.0326218175 | AW38: 0.7320416642 | AX38: 0.4007065359 | AY38: 0.969724 | BA38: 81 | BB38: 7411.034997 | BN38: 2108.090418 | BO38: 2189.433989 | BP38: 2274.63672 | BQ38: 2364.073178 | BR38: 2457.845735 | BS38: 2556.297148 | BT38: 2659.807474 | BU38: 2768.84651 | BV38: 2883.957217 | BW38: 3005.826648 | BX38: 3135.18134 | BY38: 3272.38603 | BZ38: 3418.214803 | CA38: 3573.591299 | CB38: 3738.934865 | CC38: 3915.638603 | CK38: 35 | CL38: 0
A39: 2027 | B39: 71 | D39: =VLOOKUP(B39,Lookups!A:B,2) -> 4274.943279 | E39: =VLOOKUP(B39,Lookups!A:C,3) -> 2474.103984 | G39: =VLOOKUP(B39,Lookups!A:D,4) -> 6078.046846 | H39: =VLOOKUP(B39,Lookups!A:E,5) -> 3826.627221 | J39: =VLOOKUP(A39,Trends!$A$3:$Q$94,IF(ExFlg=0,2,10))+IF(B39>=$B$2,Sens,0) -> 1.06 | K39: 1.671133483 | L39: =VLOOKUP(A39,Trends!$A$3:$Q$94,IF(ExFlg=0,4,12))+IF(B39>=$B$2,Sens,0) -> 1.056 | M39: 1.660741522 | O39: =VLOOKUP(A39,Trends!$A$3:$Q$94,IF(ExFlg=0,6,14))+IF(B39>=$B$2,Sens,0) -> 1.06 | P39: 1.675866031 | Q39: =VLOOKUP(A39,Trends!$A$3:$Q$94,IF(ExFlg=0,8,16))+IF(B39>=$B$2,Sens,0) -> 1.057 | R39: 1.66783164 | T39: 7099.57581 | U39: =IF(B39=$B$2, E39, IF(B39<$B$2, E39 * Trends!$S$3^(B39 - $B$2), IF(ExFlg=0,E39*VLOOKUP(A39,Trends!$A$4:$V$94,20),E39*VLOOKUP(A39,Trends!$A$4:$Z$94,24)))) -> 4218.64602 | V39: 2880.92979 | X39: 10137.15884 | Y39: =IF(B39=$B$2, H39, IF(B39<$B$2, H39 * Trends!$U$3^(B39 - $B$2), IF(ExFlg=0,H39*VLOOKUP(A39,Trends!$A$4:$V$94,22),H39*VLOOKUP(A39,Trends!$A$4:$Z$94,26)))) -> 6492.104911 | Z39: 3645.053928 | AB39: 3390.348429 | AD39: =IF(B39<71,VLOOKUP(B39,Lookups!A:F,6),"") ->  | AE39: =IF(B39<71,VLOOKUP(Active!B39,Lookups!A:G,7),"") ->  | AG39: =IF(B39<55,VLOOKUP(B39-$B$3,Lookups!$O$3:$Q$53,2),"") ->  | AH39: =IF(B39<55,VLOOKUP(B39-$B$3,Lookups!$O$3:$Q$53,3),"") ->  | AJ39: =IF(B39<55,VLOOKUP(B39,Lookups!A:M,12),"") ->  | AK39: =IF(B39<55,VLOOKUP(B39,Lookups!A:M,13),"") ->  | AM39: =IF(B39<70,VLOOKUP(B39,Lookups!A:H,8)*(1-VLOOKUP(B39,Lookups!$U$3:$W$103,2))^(A39-2018),"") ->  | AN39: =IF(B39<70,VLOOKUP(B39,Lookups!A:I,9)*(1-VLOOKUP(B39,Lookups!$U$3:$W$103,3))^(A39-2018),"") ->  | AP39: =IF(B39<71,SUM(AF39,AI39,AL39,AO39),"") ->  | AS39: 82 | AT39: =IF(BA39>=$B$3,VLOOKUP(BA39,Lookups!A:H,8)*(1-VLOOKUP(BA39,Lookups!U:W,2))^(BA39-$B$2 + ValYear - 2017),"") -> 0.03995680645 | AU39: =IF(BA39>=$B$3,VLOOKUP(BA39,Lookups!A:I,9)*(1-VLOOKUP(BA39,Lookups!U:W,3))^(BA39-$B$2 + ValYear - 2017),"") -> 0.03171140292 | AV39: 0.03583410469 | AW39: 0.7081611346 | AX39: 0.3868570534 | AY39: 0.968302 | BA39: 82 | BB39: 7785.038619 | BN39: 2065.162393 | BO39: 2144.849526 | BP39: 2228.317235 | BQ39: 2315.932456 | BR39: 2407.795479 | BS39: 2504.24208 | BT39: 2605.644578 | BU39: 2712.463201 | BV39: 2825.229855 | BW39: 2944.617602 | BX39: 3071.338184 | BY39: 3205.748911 | BZ39: 3348.608106 | CA39: 3500.820597 | CB39: 3662.797195 | CC39: 3835.902633 | CK39: 35 | CL39: 0
A40: 2028 | B40: 72 | D40: =VLOOKUP(B40,Lookups!A:B,2) -> 4328.839124 | E40: =VLOOKUP(B40,Lookups!A:C,3) -> 2474.103984 | G40: =VLOOKUP(B40,Lookups!A:D,4) -> 6154.675111 | H40: =VLOOKUP(B40,Lookups!A:E,5) -> 3826.627221 | J40: =VLOOKUP(A40,Trends!$A$3:$Q$94,IF(ExFlg=0,2,10))+IF(B40>=$B$2,Sens,0) -> 1.062 | K40: 1.771401492 | L40: =VLOOKUP(A40,Trends!$A$3:$Q$94,IF(ExFlg=0,4,12))+IF(B40>=$B$2,Sens,0) -> 1.056 | M40: 1.753743048 | O40: =VLOOKUP(A40,Trends!$A$3:$Q$94,IF(ExFlg=0,6,14))+IF(B40>=$B$2,Sens,0) -> 1.06 | P40: 1.776417993 | Q40: =VLOOKUP(A40,Trends!$A$3:$Q$94,IF(ExFlg=0,8,16))+IF(B40>=$B$2,Sens,0) -> 1.057 | R40: 1.762898043 | T40: 7591.671518 | U40: =IF(B40=$B$2, E40, IF(B40<$B$2, E40 * Trends!$S$3^(B40 - $B$2), IF(ExFlg=0,E40*VLOOKUP(A40,Trends!$A$4:$V$94,20),E40*VLOOKUP(A40,Trends!$A$4:$Z$94,24)))) -> 4454.890197 | V40: 3136.781321 | X40: 10850.06471 | Y40: =IF(B40=$B$2, H40, IF(B40<$B$2, H40 * Trends!$U$3^(B40 - $B$2), IF(ExFlg=0,H40*VLOOKUP(A40,Trends!$A$4:$V$94,22),H40*VLOOKUP(A40,Trends!$A$4:$Z$94,26)))) -> 6862.154891 | Z40: 3987.90982 | AB40: 3704.203158 | AD40: =IF(B40<71,VLOOKUP(B40,Lookups!A:F,6),"") ->  | AE40: =IF(B40<71,VLOOKUP(Active!B40,Lookups!A:G,7),"") ->  | AG40: =IF(B40<55,VLOOKUP(B40-$B$3,Lookups!$O$3:$Q$53,2),"") ->  | AH40: =IF(B40<55,VLOOKUP(B40-$B$3,Lookups!$O$3:$Q$53,3),"") ->  | AJ40: =IF(B40<55,VLOOKUP(B40,Lookups!A:M,12),"") ->  | AK40: =IF(B40<55,VLOOKUP(B40,Lookups!A:M,13),"") ->  | AM40: =IF(B40<70,VLOOKUP(B40,Lookups!A:H,8)*(1-VLOOKUP(B40,Lookups!$U$3:$W$103,2))^(A40-2018),"") ->  | AN40: =IF(B40<70,VLOOKUP(B40,Lookups!A:I,9)*(1-VLOOKUP(B40,Lookups!$U$3:$W$103,3))^(A40-2018),"") ->  | AS40: 83 | AT40: =IF(BA40>=$B$3,VLOOKUP(BA40,Lookups!A:H,8)*(1-VLOOKUP(BA40,Lookups!U:W,2))^(BA40-$B$2 + ValYear - 2017),"") -> 0.04397146006 | AU40: =IF(BA40>=$B$3,VLOOKUP(BA40,Lookups!A:I,9)*(1-VLOOKUP(BA40,Lookups!U:W,3))^(BA40-$B$2 + ValYear - 2017),"") -> 0.03473292798 | AV40: 0.03935219402 | AW40: 0.6827848144 | AX40: 0.3734862458 | AY40: 0.966746 | BA40: 83 | BB40: 8178.859031 | BN40: 2016.339106 | BO40: 2094.142326 | BP40: 2175.636743 | BQ40: 2261.180619 | BR40: 2350.871874 | BS40: 2445.038344 | BT40: 2544.043547 | BU40: 2648.336831 | BV40: 2758.437525 | BW40: 2875.002781 | BX40: 2998.727514 | BY40: 3129.960586 | BZ40: 3269.442392 | CA40: 3418.056371 | CB40: 3576.203618 | CC40: 3745.216605 | CK40: 35 | CL40: 0
A41: 2029 | B41: 73 | D41: =VLOOKUP(B41,Lookups!A:B,2) -> 4383.422231 | E41: =VLOOKUP(B41,Lookups!A:C,3) -> 2474.103984 | G41: =VLOOKUP(B41,Lookups!A:D,4) -> 6232.280515 | H41: =VLOOKUP(B41,Lookups!A:E,5) -> 3826.627221 | J41: =VLOOKUP(A41,Trends!$A$3:$Q$94,IF(ExFlg=0,2,10))+IF(B41>=$B$2,Sens,0) -> 1.062 | K41: 1.881228384 | L41: =VLOOKUP(A41,Trends!$A$3:$Q$94,IF(ExFlg=0,4,12))+IF(B41>=$B$2,Sens,0) -> 1.0565 | M41: 1.851952658 | O41: =VLOOKUP(A41,Trends!$A$3:$Q$94,IF(ExFlg=0,6,14))+IF(B41>=$B$2,Sens,0) -> 1.0605 | P41: 1.883003072 | Q41: =VLOOKUP(A41,Trends!$A$3:$Q$94,IF(ExFlg=0,8,16))+IF(B41>=$B$2,Sens,0) -> 1.057 | R41: 1.863383232 | T41: 8117.890454 | U41: =IF(B41=$B$2, E41, IF(B41<$B$2, E41 * Trends!$S$3^(B41 - $B$2), IF(ExFlg=0,E41*VLOOKUP(A41,Trends!$A$4:$V$94,20),E41*VLOOKUP(A41,Trends!$A$4:$Z$94,24)))) -> 4704.364048 | V41: 3413.526406 | X41: 11613.12701 | Y41: =IF(B41=$B$2, H41, IF(B41<$B$2, H41 * Trends!$U$3^(B41 - $B$2), IF(ExFlg=0,H41*VLOOKUP(A41,Trends!$A$4:$V$94,22),H41*VLOOKUP(A41,Trends!$A$4:$Z$94,26)))) -> 7253.29772 | Z41: 4359.829288 | AB41: 4044.398148 | AD41: =IF(B41<71,VLOOKUP(B41,Lookups!A:F,6),"") ->  | AE41: =IF(B41<71,VLOOKUP(Active!B41,Lookups!A:G,7),"") ->  | AG41: =IF(B41<55,VLOOKUP(B41-$B$3,Lookups!$O$3:$Q$53,2),"") ->  | AH41: =IF(B41<55,VLOOKUP(B41-$B$3,Lookups!$O$3:$Q$53,3),"") ->  | AJ41: =IF(B41<55,VLOOKUP(B41,Lookups!A:M,12),"") ->  | AK41: =IF(B41<55,VLOOKUP(B41,Lookups!A:M,13),"") ->  | AM41: =IF(B41<70,VLOOKUP(B41,Lookups!A:H,8)*(1-VLOOKUP(B41,Lookups!$U$3:$W$103,2))^(A41-2018),"") ->  | AN41: =IF(B41<70,VLOOKUP(B41,Lookups!A:I,9)*(1-VLOOKUP(B41,Lookups!$U$3:$W$103,3))^(A41-2018),"") ->  | AS41: 84 | AT41: =IF(BA41>=$B$3,VLOOKUP(BA41,Lookups!A:H,8)*(1-VLOOKUP(BA41,Lookups!U:W,2))^(BA41-$B$2 + ValYear - 2017),"") -> 0.04827980044 | AU41: =IF(BA41>=$B$3,VLOOKUP(BA41,Lookups!A:I,9)*(1-VLOOKUP(BA41,Lookups!U:W,3))^(BA41-$B$2 + ValYear - 2017),"") -> 0.03810311154 | AV41: 0.04319145599 | AW41: 0.6559157339 | AX41: 0.3605775689 | AY41: 0.965047 | BA41: 84 | BB41: 8588.402826 | BN41: 1960.232684 | BO41: 2035.87096 | BP41: 2115.097723 | BQ41: 2198.261265 | BR41: 2285.456781 | BS41: 2377.002986 | BT41: 2473.253281 | BU41: 2574.644512 | BV41: 2681.681557 | BW41: 2795.003282 | BX41: 2915.285264 | BY41: 3042.86666 | BZ41: 3178.467261 | CA41: 3322.945924 | CB41: 3476.692585 | CC41: 3641.002635 | CK41: 35 | CL41: 0
A42: 2030 | B42: 74 | D42: =VLOOKUP(B42,Lookups!A:B,2) -> 4438.701461 | E42: =VLOOKUP(B42,Lookups!A:C,3) -> 2474.103984 | G42: =VLOOKUP(B42,Lookups!A:D,4) -> 6310.875655 | H42: =VLOOKUP(B42,Lookups!A:E,5) -> 3826.627221 | J42: =VLOOKUP(A42,Trends!$A$3:$Q$94,IF(ExFlg=0,2,10))+IF(B42>=$B$2,Sens,0) -> 1.062 | K42: 1.997864544 | L42: =VLOOKUP(A42,Trends!$A$3:$Q$94,IF(ExFlg=0,4,12))+IF(B42>=$B$2,Sens,0) -> 1.057 | M42: 1.956587984 | O42: =VLOOKUP(A42,Trends!$A$3:$Q$94,IF(ExFlg=0,6,14))+IF(B42>=$B$2,Sens,0) -> 1.062 | P42: 1.996924758 | Q42: =VLOOKUP(A42,Trends!$A$3:$Q$94,IF(ExFlg=0,8,16))+IF(B42>=$B$2,Sens,0) -> 1.057 | R42: 1.969596076 | T42: 8684.709941 | U42: =IF(B42=$B$2, E42, IF(B42<$B$2, E42 * Trends!$S$3^(B42 - $B$2), IF(ExFlg=0,E42*VLOOKUP(A42,Trends!$A$4:$V$94,20),E42*VLOOKUP(A42,Trends!$A$4:$Z$94,24)))) -> 4970.160617 | V42: 3714.549325 | X42: 12429.87593 | Y42: =IF(B42=$B$2, H42, IF(B42<$B$2, H42 * Trends!$U$3^(B42 - $B$2), IF(ExFlg=0,H42*VLOOKUP(A42,Trends!$A$4:$V$94,22),H42*VLOOKUP(A42,Trends!$A$4:$Z$94,26)))) -> 7666.73569 | Z42: 4763.140236 | AB42: 4413.613427 | AD42: =IF(B42<71,VLOOKUP(B42,Lookups!A:F,6),"") ->  | AE42: =IF(B42<71,VLOOKUP(Active!B42,Lookups!A:G,7),"") ->  | AG42: =IF(B42<55,VLOOKUP(B42-$B$3,Lookups!$O$3:$Q$53,2),"") ->  | AH42: =IF(B42<55,VLOOKUP(B42-$B$3,Lookups!$O$3:$Q$53,3),"") ->  | AJ42: =IF(B42<55,VLOOKUP(B42,Lookups!A:M,12),"") ->  | AK42: =IF(B42<55,VLOOKUP(B42,Lookups!A:M,13),"") ->  | AM42: =IF(B42<70,VLOOKUP(B42,Lookups!A:H,8)*(1-VLOOKUP(B42,Lookups!$U$3:$W$103,2))^(A42-2018),"") ->  | AN42: =IF(B42<70,VLOOKUP(B42,Lookups!A:I,9)*(1-VLOOKUP(B42,Lookups!$U$3:$W$103,3))^(A42-2018),"") ->  | AS42: 85 | AT42: =IF(BA42>=$B$3,VLOOKUP(BA42,Lookups!A:H,8)*(1-VLOOKUP(BA42,Lookups!U:W,2))^(BA42-$B$2 + ValYear - 2017),"") -> 0.05288872755 | AU42: =IF(BA42>=$B$3,VLOOKUP(BA42,Lookups!A:I,9)*(1-VLOOKUP(BA42,Lookups!U:W,3))^(BA42-$B$2 + ValYear - 2017),"") -> 0.04186791835 | AV42: 0.04737832295 | AW42: 0.6275857783 | AX42: 0.3481150501 | AY42: 0.963194 | BA42: 85 | BB42: 9012.858569 | BN42: 1896.584591 | BO42: 1969.766918 | BP42: 2046.421214 | BQ42: 2126.884465 | BR42: 2211.248772 | BS42: 2299.822502 | BT42: 2392.947583 | BU42: 2491.046675 | BV42: 2594.608263 | BW42: 2704.250469 | BX42: 2820.626936 | BY42: 2944.065807 | BZ42: 3075.263503 | CA42: 3215.050992 | CB42: 3363.805551 | CC42: 3522.78051 | CK42: 35 | CL42: 0
A43: 2031 | B43: 75 | D43: =VLOOKUP(B43,Lookups!A:B,2) -> 4494.685788 | E43: =VLOOKUP(B43,Lookups!A:C,3) -> 2474.103984 | G43: =VLOOKUP(B43,Lookups!A:D,4) -> 6390.473291 | H43: =VLOOKUP(B43,Lookups!A:E,5) -> 3826.627221 | J43: =VLOOKUP(A43,Trends!$A$3:$Q$94,IF(ExFlg=0,2,10))+IF(B43>=$B$2,Sens,0) -> 1.062 | K43: 2.121732146 | L43: =VLOOKUP(A43,Trends!$A$3:$Q$94,IF(ExFlg=0,4,12))+IF(B43>=$B$2,Sens,0) -> 1.057 | M43: 2.068113499 | O43: =VLOOKUP(A43,Trends!$A$3:$Q$94,IF(ExFlg=0,6,14))+IF(B43>=$B$2,Sens,0) -> 1.0655 | P43: 2.120734093 | Q43: =VLOOKUP(A43,Trends!$A$3:$Q$94,IF(ExFlg=0,8,16))+IF(B43>=$B$2,Sens,0) -> 1.057 | R43: 2.081863052 | T43: 9295.520351 | U43: =IF(B43=$B$2, E43, IF(B43<$B$2, E43 * Trends!$S$3^(B43 - $B$2), IF(ExFlg=0,E43*VLOOKUP(A43,Trends!$A$4:$V$94,20),E43*VLOOKUP(A43,Trends!$A$4:$Z$94,24)))) -> 5253.459772 | V43: 4042.060579 | X43: 13304.09023 | Y43: =IF(B43=$B$2, H43, IF(B43<$B$2, H43 * Trends!$U$3^(B43 - $B$2), IF(ExFlg=0,H43*VLOOKUP(A43,Trends!$A$4:$V$94,22),H43*VLOOKUP(A43,Trends!$A$4:$Z$94,26)))) -> 8103.739624 | Z43: 5200.350607 | AB43: 4814.257792 | AD43: =IF(B43<71,VLOOKUP(B43,Lookups!A:F,6),"") ->  | AE43: =IF(B43<71,VLOOKUP(Active!B43,Lookups!A:G,7),"") ->  | AG43: =IF(B43<55,VLOOKUP(B43-$B$3,Lookups!$O$3:$Q$53,2),"") ->  | AH43: =IF(B43<55,VLOOKUP(B43-$B$3,Lookups!$O$3:$Q$53,3),"") ->  | AJ43: =IF(B43<55,VLOOKUP(B43,Lookups!A:M,12),"") ->  | AK43: =IF(B43<55,VLOOKUP(B43,Lookups!A:M,13),"") ->  | AM43: =IF(B43<70,VLOOKUP(B43,Lookups!A:H,8)*(1-VLOOKUP(B43,Lookups!$U$3:$W$103,2))^(A43-2018),"") ->  | AN43: =IF(B43<70,VLOOKUP(B43,Lookups!A:I,9)*(1-VLOOKUP(B43,Lookups!$U$3:$W$103,3))^(A43-2018),"") ->  | AS43: 86 | AT43: =IF(BA43>=$B$3,VLOOKUP(BA43,Lookups!A:H,8)*(1-VLOOKUP(BA43,Lookups!U:W,2))^(BA43-$B$2 + ValYear - 2017),"") -> 0.05782689086 | AU43: =IF(BA43>=$B$3,VLOOKUP(BA43,Lookups!A:I,9)*(1-VLOOKUP(BA43,Lookups!U:W,3))^(BA43-$B$2 + ValYear - 2017),"") -> 0.04608409459 | AV43: 0.05195549273 | AW43: 0.5978518167 | AX43: 0.336083269 | AY43: 0.961169 | BA43: 86 | BB43: 9466.584908 | BN43: 1828.241387 | BO43: 1898.786597 | BP43: 1972.678665 | BQ43: 2050.242431 | BR43: 2131.56668 | BS43: 2216.948667 | BT43: 2306.717996 | BU43: 2401.282098 | BV43: 2501.111857 | BW43: 2606.803119 | BX43: 2718.985974 | BY43: 2837.97674 | BZ43: 2964.446741 | CA43: 3099.197005 | CB43: 3242.59121 | CC43: 3395.837525 | CK43: 35 | CL43: 0
A44: 2032 | B44: 76 | D44: =VLOOKUP(B44,Lookups!A:B,2) -> 4551.384305 | E44: =VLOOKUP(B44,Lookups!A:C,3) -> 2474.103984 | G44: =VLOOKUP(B44,Lookups!A:D,4) -> 6471.08635 | H44: =VLOOKUP(B44,Lookups!A:E,5) -> 3826.627221 | J44: =VLOOKUP(A44,Trends!$A$3:$Q$94,IF(ExFlg=0,2,10))+IF(B44>=$B$2,Sens,0) -> 1.062 | K44: 2.253279539 | L44: =VLOOKUP(A44,Trends!$A$3:$Q$94,IF(ExFlg=0,4,12))+IF(B44>=$B$2,Sens,0) -> 1.057 | M44: 2.185995968 | O44: =VLOOKUP(A44,Trends!$A$3:$Q$94,IF(ExFlg=0,6,14))+IF(B44>=$B$2,Sens,0) -> 1.068 | P44: 2.259642176 | Q44: =VLOOKUP(A44,Trends!$A$3:$Q$94,IF(ExFlg=0,8,16))+IF(B44>=$B$2,Sens,0) -> 1.057 | R44: 2.200529246 | T44: 9949.30774 | U44: =IF(B44=$B$2, E44, IF(B44<$B$2, E44 * Trends!$S$3^(B44 - $B$2), IF(ExFlg=0,E44*VLOOKUP(A44,Trends!$A$4:$V$94,20),E44*VLOOKUP(A44,Trends!$A$4:$Z$94,24)))) -> 5552.906979 | V44: 4396.400761 | X44: 14239.81477 | Y44: =IF(B44=$B$2, H44, IF(B44<$B$2, H44 * Trends!$U$3^(B44 - $B$2), IF(ExFlg=0,H44*VLOOKUP(A44,Trends!$A$4:$V$94,22),H44*VLOOKUP(A44,Trends!$A$4:$Z$94,26)))) -> 8565.652783 | Z44: 5674.161987 | AB44: 5248.245838 | AD44: =IF(B44<71,VLOOKUP(B44,Lookups!A:F,6),"") ->  | AE44: =IF(B44<71,VLOOKUP(Active!B44,Lookups!A:G,7),"") ->  | AG44: =IF(B44<55,VLOOKUP(B44-$B$3,Lookups!$O$3:$Q$53,2),"") ->  | AH44: =IF(B44<55,VLOOKUP(B44-$B$3,Lookups!$O$3:$Q$53,3),"") ->  | AJ44: =IF(B44<55,VLOOKUP(B44,Lookups!A:M,12),"") ->  | AK44: =IF(B44<55,VLOOKUP(B44,Lookups!A:M,13),"") ->  | AM44: =IF(B44<70,VLOOKUP(B44,Lookups!A:H,8)*(1-VLOOKUP(B44,Lookups!$U$3:$W$103,2))^(A44-2018),"") ->  | AN44: =IF(B44<70,VLOOKUP(B44,Lookups!A:I,9)*(1-VLOOKUP(B44,Lookups!$U$3:$W$103,3))^(A44-2018),"") ->  | AS44: 87 | AT44: =IF(BA44>=$B$3,VLOOKUP(BA44,Lookups!A:H,8)*(1-VLOOKUP(BA44,Lookups!U:W,2))^(BA44-$B$2 + ValYear - 2017),"") -> 0.06603500082 | AU44: =IF(BA44>=$B$3,VLOOKUP(BA44,Lookups!A:I,9)*(1-VLOOKUP(BA44,Lookups!U:W,3))^(BA44-$B$2 + ValYear - 2017),"") -> 0.05078045723 | AV44: 0.05840772902 | AW44: 0.5667901309 | AX44: =IF(AV43="",1,AX43/(1+IntRt)) -> 0.3244673383 | AY44: =IF(AV44="",1,ROUND((13/24)+(11/24)*(1/(1+IntRt))*(1-AV44),6)) -> 0.958314 | BA44: 87 | BB44: 9951.873126 | BN44: 1753.904447 | BO44: 1821.581264 | BP44: 1892.468855 | BQ44: 1966.878851 | BR44: 2044.896427 | BS44: 2126.806752 | BT44: 2212.926029 | BU44: 2303.645122 | BV44: 2399.415767 | BW44: 2500.809585 | BX44: 2608.431046 | BY44: 2722.583605 | BZ44: 2843.911292 | CA44: 2973.182562 | CB44: 3110.746308 | CC44: 3257.761574 | CK44: 35 | CL44: 0
A45: 2033 | B45: 77 | D45: =VLOOKUP(B45,Lookups!A:B,2) -> 4576.618281 | E45: =VLOOKUP(B45,Lookups!A:C,3) -> 2474.103984 | G45: =VLOOKUP(B45,Lookups!A:D,4) -> 6506.963622 | H45: =VLOOKUP(B45,Lookups!A:E,5) -> 3826.627221 | J45: =VLOOKUP(A45,Trends!$A$3:$Q$94,IF(ExFlg=0,2,10))+IF(B45>=$B$2,Sens,0) -> 1.062 | K45: 2.39298287 | L45: =VLOOKUP(A45,Trends!$A$3:$Q$94,IF(ExFlg=0,4,12))+IF(B45>=$B$2,Sens,0) -> 1.057 | M45: 2.310597738 | O45: =VLOOKUP(A45,Trends!$A$3:$Q$94,IF(ExFlg=0,6,14))+IF(B45>=$B$2,Sens,0) -> 1.068 | P45: 2.413297844 | Q45: =VLOOKUP(A45,Trends!$A$3:$Q$94,IF(ExFlg=0,8,16))+IF(B45>=$B$2,Sens,0) -> 1.057 | R45: 2.325959413 | T45: 10574.72385 | U45: =IF(B45=$B$2, E45, IF(B45<$B$2, E45 * Trends!$S$3^(B45 - $B$2), IF(ExFlg=0,E45*VLOOKUP(A45,Trends!$A$4:$V$94,20),E45*VLOOKUP(A45,Trends!$A$4:$Z$94,24)))) -> 5869.422677 | V45: 4705.301172 | X45: 15134.93329 | Y45: =IF(B45=$B$2, H45, IF(B45<$B$2, H45 * Trends!$U$3^(B45 - $B$2), IF(ExFlg=0,H45*VLOOKUP(A45,Trends!$A$4:$V$94,22),H45*VLOOKUP(A45,Trends!$A$4:$Z$94,26)))) -> 9053.894991 | Z45: 6081.038298 | AB45: 5622.463842 | AD45: =IF(B45<71,VLOOKUP(B45,Lookups!A:F,6),"") ->  | AE45: =IF(B45<71,VLOOKUP(Active!B45,Lookups!A:G,7),"") ->  | AG45: =IF(B45<55,VLOOKUP(B45-$B$3,Lookups!$O$3:$Q$53,2),"") ->  | AH45: =IF(B45<55,VLOOKUP(B45-$B$3,Lookups!$O$3:$Q$53,3),"") ->  | AJ45: =IF(B45<55,VLOOKUP(B45,Lookups!A:M,12),"") ->  | AK45: =IF(B45<55,VLOOKUP(B45,Lookups!A:M,13),"") ->  | AM45: =IF(B45<70,VLOOKUP(B45,Lookups!A:H,8)*(1-VLOOKUP(B45,Lookups!$U$3:$W$103,2))^(A45-2018),"") ->  | AN45: =IF(B45<70,VLOOKUP(B45,Lookups!A:I,9)*(1-VLOOKUP(B45,Lookups!$U$3:$W$103,3))^(A45-2018),"") ->  | AS45: 88 | AT45: =IF(BA45>=$B$3,VLOOKUP(BA45,Lookups!A:H,8)*(1-VLOOKUP(BA45,Lookups!U:W,2))^(BA45-$B$2 + ValYear - 2017),"") -> 0.07550006855 | AU45: =IF(BA45>=$B$3,VLOOKUP(BA45,Lookups!A:I,9)*(1-VLOOKUP(BA45,Lookups!U:W,3))^(BA45-$B$2 + ValYear - 2017),"") -> 0.05595731534 | AV45: 0.06572869195 | AW45: 0.5336852066 | AX45: 0.313252885 | AY45: 0.955074 | BA45: 88 | BB45: 10456.94817 | BN45: 1669.637621 | BO45: 1734.062886 | BP45: 1801.544663 | BQ45: 1872.37961 | BR45: 1946.64881 | BS45: 2024.623731 | BT45: 2106.605383 | BU45: 2192.965852 | BV45: 2284.13517 | BW45: 2380.657494 | BX45: 2483.108251 | BY45: 2591.776319 | BZ45: 2707.274783 | CA45: 2830.33518 | CB45: 2961.289638 | CC45: 3101.241514 | CK45: 35 | CL45: 0
A46: 2034 | B46: 78 | D46: =VLOOKUP(B46,Lookups!A:B,2) -> 4601.995838 | E46: =VLOOKUP(B46,Lookups!A:C,3) -> 2474.103984 | G46: =VLOOKUP(B46,Lookups!A:D,4) -> 6543.045035 | H46: =VLOOKUP(B46,Lookups!A:E,5) -> 3826.627221 | J46: =VLOOKUP(A46,Trends!$A$3:$Q$94,IF(ExFlg=0,2,10))+IF(B46>=$B$2,Sens,0) -> 1.0625 | K46: 2.541347808 | L46: =VLOOKUP(A46,Trends!$A$3:$Q$94,IF(ExFlg=0,4,12))+IF(B46>=$B$2,Sens,0) -> 1.057 | M46: 2.442301809 | O46: =VLOOKUP(A46,Trends!$A$3:$Q$94,IF(ExFlg=0,6,14))+IF(B46>=$B$2,Sens,0) -> 1.0675 | P46: 2.577402098 | Q46: =VLOOKUP(A46,Trends!$A$3:$Q$94,IF(ExFlg=0,8,16))+IF(B46>=$B$2,Sens,0) -> 1.0575 | R46: 2.4585391 | T46: 11239.46276 | U46: =IF(B46=$B$2, E46, IF(B46<$B$2, E46 * Trends!$S$3^(B46 - $B$2), IF(ExFlg=0,E46*VLOOKUP(A46,Trends!$A$4:$V$94,20),E46*VLOOKUP(A46,Trends!$A$4:$Z$94,24)))) -> 6203.979769 | V46: 5035.482993 | X46: 16086.33205 | Y46: =IF(B46=$B$2, H46, IF(B46<$B$2, H46 * Trends!$U$3^(B46 - $B$2), IF(ExFlg=0,H46*VLOOKUP(A46,Trends!$A$4:$V$94,22),H46*VLOOKUP(A46,Trends!$A$4:$Z$94,26)))) -> 9569.967006 | Z46: 6516.365045 | AB46: 6022.742631 | AD46: =IF(B46<71,VLOOKUP(B46,Lookups!A:F,6),"") ->  | AE46: =IF(B46<71,VLOOKUP(Active!B46,Lookups!A:G,7),"") ->  | AG46: =IF(B46<55,VLOOKUP(B46-$B$3,Lookups!$O$3:$Q$53,2),"") ->  | AH46: =IF(B46<55,VLOOKUP(B46-$B$3,Lookups!$O$3:$Q$53,3),"") ->  | AJ46: =IF(B46<55,VLOOKUP(B46,Lookups!A:M,12),"") ->  | AK46: =IF(B46<55,VLOOKUP(B46,Lookups!A:M,13),"") ->  | AM46: =IF(B46<70,VLOOKUP(B46,Lookups!A:H,8)*(1-VLOOKUP(B46,Lookups!$U$3:$W$103,2))^(A46-2018),"") ->  | AN46: =IF(B46<70,VLOOKUP(B46,Lookups!A:I,9)*(1-VLOOKUP(B46,Lookups!$U$3:$W$103,3))^(A46-2018),"") ->  | AS46: 89 | AT46: =IF(BA46>=$B$3,VLOOKUP(BA46,Lookups!A:H,8)*(1-VLOOKUP(BA46,Lookups!U:W,2))^(BA46-$B$2 + ValYear - 2017),"") -> 0.08642007619 | AU46: =IF(BA46>=$B$3,VLOOKUP(BA46,Lookups!A:I,9)*(1-VLOOKUP(BA46,Lookups!U:W,3))^(BA46-$B$2 + ValYear - 2017),"") -> 0.06157885967 | AV46: 0.07399946793 | AW46: 0.498606776 | AX46: 0.302426033 | AY46: 0.951415 | BA46: 89 | BB46: 11062.36173 | BN46: 1587.066771 | BO46: 1648.305927 | BP46: 1712.450436 | BQ46: 1779.782286 | BR46: 1850.378551 | BS46: 1924.497273 | BT46: 2002.424575 | BU46: 2084.514142 | BV46: 2171.174741 | BW46: 2262.923616 | BX46: 2360.307737 | BY46: 2463.601696 | BZ46: 2573.388258 | CA46: 2690.362782 | CB46: 2814.840972 | CC46: 2947.871619 | CK46: 35 | CL46: 0
A47: 2035 | B47: 79 | D47: =VLOOKUP(B47,Lookups!A:B,2) -> 4627.517813 | E47: =VLOOKUP(B47,Lookups!A:C,3) -> 2474.103984 | G47: =VLOOKUP(B47,Lookups!A:D,4) -> 6579.331778 | H47: =VLOOKUP(B47,Lookups!A:E,5) -> 3826.627221 | J47: =VLOOKUP(A47,Trends!$A$3:$Q$94,IF(ExFlg=0,2,10))+IF(B47>=$B$2,Sens,0) -> 1.0635 | K47: 2.700182046 | L47: =VLOOKUP(A47,Trends!$A$3:$Q$94,IF(ExFlg=0,4,12))+IF(B47>=$B$2,Sens,0) -> 1.057 | M47: 2.581513012 | O47: =VLOOKUP(A47,Trends!$A$3:$Q$94,IF(ExFlg=0,6,14))+IF(B47>=$B$2,Sens,0) -> 1.067 | P47: 2.751376739 | Q47: =VLOOKUP(A47,Trends!$A$3:$Q$94,IF(ExFlg=0,8,16))+IF(B47>=$B$2,Sens,0) -> 1.058 | R47: 2.599905098 | T47: 11945.99745 | U47: =IF(B47=$B$2, E47, IF(B47<$B$2, E47 * Trends!$S$3^(B47 - $B$2), IF(ExFlg=0,E47*VLOOKUP(A47,Trends!$A$4:$V$94,20),E47*VLOOKUP(A47,Trends!$A$4:$Z$94,24)))) -> 6557.606616 | V47: 5388.390833 | X47: 17105.63823 | Y47: =IF(B47=$B$2, H47, IF(B47<$B$2, H47 * Trends!$U$3^(B47 - $B$2), IF(ExFlg=0,H47*VLOOKUP(A47,Trends!$A$4:$V$94,22),H47*VLOOKUP(A47,Trends!$A$4:$Z$94,26)))) -> 10120.24011 | Z47: 6985.398124 | AB47: 6453.067684 | AD47: =IF(B47<71,VLOOKUP(B47,Lookups!A:F,6),"") ->  | AE47: =IF(B47<71,VLOOKUP(Active!B47,Lookups!A:G,7),"") ->  | AG47: =IF(B47<55,VLOOKUP(B47-$B$3,Lookups!$O$3:$Q$53,2),"") ->  | AH47: =IF(B47<55,VLOOKUP(B47-$B$3,Lookups!$O$3:$Q$53,3),"") ->  | AJ47: =IF(B47<55,VLOOKUP(B47,Lookups!A:M,12),"") ->  | AK47: =IF(B47<55,VLOOKUP(B47,Lookups!A:M,13),"") ->  | AM47: =IF(B47<70,VLOOKUP(B47,Lookups!A:H,8)*(1-VLOOKUP(B47,Lookups!$U$3:$W$103,2))^(A47-2018),"") ->  | AN47: =IF(B47<70,VLOOKUP(B47,Lookups!A:I,9)*(1-VLOOKUP(B47,Lookups!$U$3:$W$103,3))^(A47-2018),"") ->  | AS47: 90 | AT47: =IF(BA47>=$B$3,VLOOKUP(BA47,Lookups!A:H,8)*(1-VLOOKUP(BA47,Lookups!U:W,2))^(BA47-$B$2 + ValYear - 2017),"") -> 0.09895332788 | AU47: =IF(BA47>=$B$3,VLOOKUP(BA47,Lookups!A:I,9)*(1-VLOOKUP(BA47,Lookups!U:W,3))^(BA47-$B$2 + ValYear - 2017),"") -> 0.07084897485 | AV47: 0.08490115137 | AW47: 0.4617101399 | AX47: 0.2919733858 | AY47: 0.946591 | BA47: 90 | BB47: 11702.85965 | BN47: 1493.368705 | BO47: 1550.992392 | BP47: 1611.349904 | BQ47: 1674.706583 | BR47: 1741.134949 | BS47: 1810.877811 | BT47: 1884.204401 | BU47: 1961.447522 | BV47: 2042.991808 | BW47: 2129.323965 | BX47: 2220.958673 | BY47: 2318.154309 | BZ47: 2421.459236 | CA47: 2531.527758 | CB47: 2648.65694 | CC47: 2773.833655 | CK47: 35 | CL47: 0
A48: 2036 | B48: 80 | D48: =VLOOKUP(B48,Lookups!A:B,2) -> 4653.185047 | E48: =VLOOKUP(B48,Lookups!A:C,3) -> 2474.103984 | G48: =VLOOKUP(B48,Lookups!A:D,4) -> 6615.825048 | H48: =VLOOKUP(B48,Lookups!A:E,5) -> 3826.627221 | J48: =VLOOKUP(A48,Trends!$A$3:$Q$94,IF(ExFlg=0,2,10))+IF(B48>=$B$2,Sens,0) -> 1.064 | K48: 2.871643606 | L48: =VLOOKUP(A48,Trends!$A$3:$Q$94,IF(ExFlg=0,4,12))+IF(B48>=$B$2,Sens,0) -> 1.057 | M48: 2.728659254 | O48: =VLOOKUP(A48,Trends!$A$3:$Q$94,IF(ExFlg=0,6,14))+IF(B48>=$B$2,Sens,0) -> 1.067 | P48: 2.935718981 | Q48: =VLOOKUP(A48,Trends!$A$3:$Q$94,IF(ExFlg=0,8,16))+IF(B48>=$B$2,Sens,0) -> 1.058 | R48: 2.750699594 | T48: 12696.95644 | U48: =IF(B48=$B$2, E48, IF(B48<$B$2, E48 * Trends!$S$3^(B48 - $B$2), IF(ExFlg=0,E48*VLOOKUP(A48,Trends!$A$4:$V$94,20),E48*VLOOKUP(A48,Trends!$A$4:$Z$94,24)))) -> 6931.390193 | V48: 5765.566246 | X48: 18198.14727 | Y48: =IF(B48=$B$2, H48, IF(B48<$B$2, H48 * Trends!$U$3^(B48 - $B$2), IF(ExFlg=0,H48*VLOOKUP(A48,Trends!$A$4:$V$94,22),H48*VLOOKUP(A48,Trends!$A$4:$Z$94,26)))) -> 10707.21404 | Z48: 7490.933239 | AB48: 6915.816659 | AD48: =IF(B48<71,VLOOKUP(B48,Lookups!A:F,6),"") ->  | AE48: =IF(B48<71,VLOOKUP(Active!B48,Lookups!A:G,7),"") ->  | AG48: =IF(B48<55,VLOOKUP(B48-$B$3,Lookups!$O$3:$Q$53,2),"") ->  | AH48: =IF(B48<55,VLOOKUP(B48-$B$3,Lookups!$O$3:$Q$53,3),"") ->  | AJ48: =IF(B48<55,VLOOKUP(B48,Lookups!A:M,12),"") ->  | AK48: =IF(B48<55,VLOOKUP(B48,Lookups!A:M,13),"") ->  | AM48: =IF(B48<70,VLOOKUP(B48,Lookups!A:H,8)*(1-VLOOKUP(B48,Lookups!$U$3:$W$103,2))^(A48-2018),"") ->  | AN48: =IF(B48<70,VLOOKUP(B48,Lookups!A:I,9)*(1-VLOOKUP(B48,Lookups!$U$3:$W$103,3))^(A48-2018),"") ->  | AS48: 91 | AT48: =IF(BA48>=$B$3,VLOOKUP(BA48,Lookups!A:H,8)*(1-VLOOKUP(BA48,Lookups!U:W,2))^(BA48-$B$2 + ValYear - 2017),"") -> 0.1132155803 | AU48: =IF(BA48>=$B$3,VLOOKUP(BA48,Lookups!A:I,9)*(1-VLOOKUP(BA48,Lookups!U:W,3))^(BA48-$B$2 + ValYear - 2017),"") -> 0.08128567403 | AV48: 0.09725062719 | AW48: 0.4225104174 | AX48: 0.2818820099 | AY48: 0.941126 | BA48: 91 | BB48: 12376.23195 | BN48: 1387.206109 | BO48: 1440.733366 | BP48: 1496.800103 | BQ48: 1555.652797 | BR48: 1617.358814 | BS48: 1682.143702 | BT48: 1750.257553 | BU48: 1822.009512 | BV48: 1897.756868 | BW48: 1977.951729 | BX48: 2063.072186 | BY48: 2153.358249 | BZ48: 2249.319297 | CA48: 2351.56312 | CB48: 2460.365666 | CC48: 2576.643651 | CK48: 35 | CL48: 0
A49: 2037 | B49: 81 | D49: =VLOOKUP(B49,Lookups!A:B,2) -> 4678.998386 | E49: =VLOOKUP(B49,Lookups!A:C,3) -> 2474.103984 | G49: =VLOOKUP(B49,Lookups!A:D,4) -> 6652.526049 | H49: =VLOOKUP(B49,Lookups!A:E,5) -> 3826.627221 | J49: =VLOOKUP(A49,Trends!$A$3:$Q$94,IF(ExFlg=0,2,10))+IF(B49>=$B$2,Sens,0) -> 1.064 | K49: 3.055428797 | L49: =VLOOKUP(A49,Trends!$A$3:$Q$94,IF(ExFlg=0,4,12))+IF(B49>=$B$2,Sens,0) -> 1.0575 | M49: 2.884192832 | O49: =VLOOKUP(A49,Trends!$A$3:$Q$94,IF(ExFlg=0,6,14))+IF(B49>=$B$2,Sens,0) -> 1.067 | P49: 3.132412153 | Q49: =VLOOKUP(A49,Trends!$A$3:$Q$94,IF(ExFlg=0,8,16))+IF(B49>=$B$2,Sens,0) -> 1.058 | R49: 2.91024017 | T49: 13495.1336 | U49: =IF(B49=$B$2, E49, IF(B49<$B$2, E49 * Trends!$S$3^(B49 - $B$2), IF(ExFlg=0,E49*VLOOKUP(A49,Trends!$A$4:$V$94,20),E49*VLOOKUP(A49,Trends!$A$4:$Z$94,24)))) -> 7326.479434 | V49: 6168.654169 | X49: 19360.44854 | Y49: =IF(B49=$B$2, H49, IF(B49<$B$2, H49 * Trends!$U$3^(B49 - $B$2), IF(ExFlg=0,H49*VLOOKUP(A49,Trends!$A$4:$V$94,22),H49*VLOOKUP(A49,Trends!$A$4:$Z$94,26)))) -> 11328.23245 | Z49: 8032.216093 | AB49: 7411.034997 | AD49: =IF(B49<71,VLOOKUP(B49,Lookups!A:F,6),"") ->  | AE49: =IF(B49<71,VLOOKUP(Active!B49,Lookups!A:G,7),"") ->  | AG49: =IF(B49<55,VLOOKUP(B49-$B$3,Lookups!$O$3:$Q$53,2),"") ->  | AH49: =IF(B49<55,VLOOKUP(B49-$B$3,Lookups!$O$3:$Q$53,3),"") ->  | AJ49: =IF(B49<55,VLOOKUP(B49,Lookups!A:M,12),"") ->  | AK49: =IF(B49<55,VLOOKUP(B49,Lookups!A:M,13),"") ->  | AM49: =IF(B49<70,VLOOKUP(B49,Lookups!A:H,8)*(1-VLOOKUP(B49,Lookups!$U$3:$W$103,2))^(A49-2018),"") ->  | AN49: =IF(B49<70,VLOOKUP(B49,Lookups!A:I,9)*(1-VLOOKUP(B49,Lookups!$U$3:$W$103,3))^(A49-2018),"") ->  | AS49: 92 | AT49: =IF(BA49>=$B$3,VLOOKUP(BA49,Lookups!A:H,8)*(1-VLOOKUP(BA49,Lookups!U:W,2))^(BA49-$B$2 + ValYear - 2017),"") -> 0.1282733873 | AU49: =IF(BA49>=$B$3,VLOOKUP(BA49,Lookups!A:I,9)*(1-VLOOKUP(BA49,Lookups!U:W,3))^(BA49-$B$2 + ValYear - 2017),"") -> 0.09285156564 | AV49: 0.1105624765 | AW49: 0.3814210143 | AX49: 0.2721394187 | AY49: 0.935236 | BA49: 92 | BB49: 13082.18995 | BN49: 1269.982499 | BO49: 1318.986521 | BP49: 1370.315429 | BQ49: 1424.194871 | BR49: 1480.686521 | BS49: 1539.996867 | BT49: 1602.354867 | BU49: 1668.043543 | BV49: 1737.389991 | BW49: 1810.808115 | BX49: 1888.735605 | BY49: 1971.39219 | BZ49: 2059.244205 | CA49: 2152.848079 | CB49: 2252.456441 | CC49: 2358.908543 | CK49: 35 | CL49: 0 | CM49: 3.800159223 | CR49: Implement breakout formula for next update.
A50: 2038 | B50: 82 | D50: =VLOOKUP(B50,Lookups!A:B,2) -> 4665.070548 | E50: =VLOOKUP(B50,Lookups!A:C,3) -> 2474.103984 | G50: =VLOOKUP(B50,Lookups!A:D,4) -> 6632.723676 | H50: =VLOOKUP(B50,Lookups!A:E,5) -> 3826.627221 | J50: =VLOOKUP(A50,Trends!$A$3:$Q$94,IF(ExFlg=0,2,10))+IF(B50>=$B$2,Sens,0) -> 1.0635 | K50: 3.25097624 | L50: =VLOOKUP(A50,Trends!$A$3:$Q$94,IF(ExFlg=0,4,12))+IF(B50>=$B$2,Sens,0) -> 1.058 | M50: 3.050033919 | O50: =VLOOKUP(A50,Trends!$A$3:$Q$94,IF(ExFlg=0,6,14))+IF(B50>=$B$2,Sens,0) -> 1.067 | P50: 3.342283767 | Q50: =VLOOKUP(A50,Trends!$A$3:$Q$94,IF(ExFlg=0,8,16))+IF(B50>=$B$2,Sens,0) -> 1.058 | R50: 3.0790341 | T50: 14228.62341 | U50: =IF(B50=$B$2, E50, IF(B50<$B$2, E50 * Trends!$S$3^(B50 - $B$2), IF(ExFlg=0,E50*VLOOKUP(A50,Trends!$A$4:$V$94,20),E50*VLOOKUP(A50,Trends!$A$4:$Z$94,24)))) -> 7747.752002 | V50: 6480.871406 | X50: 20422.38238 | Y50: =IF(B50=$B$2, H50, IF(B50<$B$2, H50 * Trends!$U$3^(B50 - $B$2), IF(ExFlg=0,H50*VLOOKUP(A50,Trends!$A$4:$V$94,22),H50*VLOOKUP(A50,Trends!$A$4:$Z$94,26)))) -> 11985.26993 | Z50: 8437.112444 | AB50: 7785.038619 | AD50: =IF(B50<71,VLOOKUP(B50,Lookups!A:F,6),"") ->  | AE50: =IF(B50<71,VLOOKUP(Active!B50,Lookups!A:G,7),"") ->  | AG50: =IF(B50<55,VLOOKUP(B50-$B$3,Lookups!$O$3:$Q$53,2),"") ->  | AH50: =IF(B50<55,VLOOKUP(B50-$B$3,Lookups!$O$3:$Q$53,3),"") ->  | AJ50: =IF(B50<55,VLOOKUP(B50,Lookups!A:M,12),"") ->  | AK50: =IF(B50<55,VLOOKUP(B50,Lookups!A:M,13),"") ->  | AM50: =IF(B50<70,VLOOKUP(B50,Lookups!A:H,8)*(1-VLOOKUP(B50,Lookups!$U$3:$W$103,2))^(A50-2018),"") ->  | AN50: =IF(B50<70,VLOOKUP(B50,Lookups!A:I,9)*(1-VLOOKUP(B50,Lookups!$U$3:$W$103,3))^(A50-2018),"") ->  | AS50: 93 | AT50: =IF(BA50>=$B$3,VLOOKUP(BA50,Lookups!A:H,8)*(1-VLOOKUP(BA50,Lookups!U:W,2))^(BA50-$B$2 + ValYear - 2017),"") -> 0.144961276 | AU50: =IF(BA50>=$B$3,VLOOKUP(BA50,Lookups!A:I,9)*(1-VLOOKUP(BA50,Lookups!U:W,3))^(BA50-$B$2 + ValYear - 2017),"") -> 0.1054843131 | AV50: 0.1252227945 | AW50: 0.3392501624 | AX50: 0.2627335573 | AY50: 0.928749 | BA50: 93 | BB50: 13826.65981 | BN50: 1144.593426 | BO50: 1188.759139 | BP50: 1235.020194 | BQ50: 1283.579962 | BR50: 1334.494027 | BS50: 1387.948489 | BT50: 1444.149702 | BU50: 1503.352743 | BV50: 1565.852414 | BW50: 1632.021753 | BX50: 1702.255235 | BY50: 1776.750895 | BZ50: 1855.929024 | CA50: 1940.291115 | CB50: 2030.064854 | CC50: 2126.006629 | CK50: 36 | CL50: =IF(CL51=0,0,CL51-1) -> 1 | CM50: 2.973003402 | CR50: Salary | CS50: Surv | CT50: Int | CU50: PvSal
A51: 2039 | B51: 83 | D51: =VLOOKUP(B51,Lookups!A:B,2) -> 4651.208849 | E51: =VLOOKUP(B51,Lookups!A:C,3) -> 2474.103984 | G51: =VLOOKUP(B51,Lookups!A:D,4) -> 6613.015338 | H51: =VLOOKUP(B51,Lookups!A:E,5) -> 3826.627221 | J51: =VLOOKUP(A51,Trends!$A$3:$Q$94,IF(ExFlg=0,2,10))+IF(B51>=$B$2,Sens,0) -> 1.0625 | K51: 3.457413231 | L51: =VLOOKUP(A51,Trends!$A$3:$Q$94,IF(ExFlg=0,4,12))+IF(B51>=$B$2,Sens,0) -> 1.0575 | M51: 3.226935887 | O51: =VLOOKUP(A51,Trends!$A$3:$Q$94,IF(ExFlg=0,6,14))+IF(B51>=$B$2,Sens,0) -> 1.0665 | P51: 3.566216779 | Q51: =VLOOKUP(A51,Trends!$A$3:$Q$94,IF(ExFlg=0,8,16))+IF(B51>=$B$2,Sens,0) -> 1.0575 | R51: 3.257618078 | T51: 15009.15275 | U51: =IF(B51=$B$2, E51, IF(B51<$B$2, E51 * Trends!$S$3^(B51 - $B$2), IF(ExFlg=0,E51*VLOOKUP(A51,Trends!$A$4:$V$94,20),E51*VLOOKUP(A51,Trends!$A$4:$Z$94,24)))) -> 8197.121618 | V51: 6812.031134 | X51: 21542.67832 | Y51: =IF(B51=$B$2, H51, IF(B51<$B$2, H51 * Trends!$U$3^(B51 - $B$2), IF(ExFlg=0,H51*VLOOKUP(A51,Trends!$A$4:$V$94,22),H51*VLOOKUP(A51,Trends!$A$4:$Z$94,26)))) -> 12680.41559 | Z51: 8862.262729 | AB51: 8178.859031 | AD51: =IF(B51<71,VLOOKUP(B51,Lookups!A:F,6),"") ->  | AE51: =IF(B51<71,VLOOKUP(Active!B51,Lookups!A:G,7),"") ->  | AG51: =IF(B51<55,VLOOKUP(B51-$B$3,Lookups!$O$3:$Q$53,2),"") ->  | AH51: =IF(B51<55,VLOOKUP(B51-$B$3,Lookups!$O$3:$Q$53,3),"") ->  | AJ51: =IF(B51<55,VLOOKUP(B51,Lookups!A:M,12),"") ->  | AK51: =IF(B51<55,VLOOKUP(B51,Lookups!A:M,13),"") ->  | AM51: =IF(B51<70,VLOOKUP(B51,Lookups!A:H,8)*(1-VLOOKUP(B51,Lookups!$U$3:$W$103,2))^(A51-2018),"") ->  | AN51: =IF(B51<70,VLOOKUP(B51,Lookups!A:I,9)*(1-VLOOKUP(B51,Lookups!$U$3:$W$103,3))^(A51-2018),"") ->  | AS51: 94 | AT51: =IF(BA51>=$B$3,VLOOKUP(BA51,Lookups!A:H,8)*(1-VLOOKUP(BA51,Lookups!U:W,2))^(BA51-$B$2 + ValYear - 2017),"") -> 0.163305394 | AU51: =IF(BA51>=$B$3,VLOOKUP(BA51,Lookups!A:I,9)*(1-VLOOKUP(BA51,Lookups!U:W,3))^(BA51-$B$2 + ValYear - 2017),"") -> 0.1191149349 | AV51: 0.1412101644 | AW51: 0.296768309 | AX51: 0.2536527875 | AY51: 0.921674 | BA51: 94 | BB51: 14608.5072 | BN51: 1013.538702 | BO51: 1052.647488 | BP51: 1093.611701 | BQ51: 1136.611428 | BR51: 1181.695887 | BS51: 1229.02987 | BT51: 1278.796105 | BU51: 1331.220461 | BV51: 1386.563986 | BW51: 1445.157007 | BX51: 1507.34883 | BY51: 1573.314816 | BZ51: 1643.427134 | CA51: 1718.129856 | CB51: 1797.624597 | CC51: 1882.581142 | CK51: 37 | CL51: 2 | CM51: 2.645271032
A52: 2040 | B52: 84 | D52: =VLOOKUP(B52,Lookups!A:B,2) -> 4637.41294 | E52: =VLOOKUP(B52,Lookups!A:C,3) -> 2474.103984 | G52: =VLOOKUP(B52,Lookups!A:D,4) -> 6593.400539 | H52: =VLOOKUP(B52,Lookups!A:E,5) -> 3826.627221 | J52: =VLOOKUP(A52,Trends!$A$3:$Q$94,IF(ExFlg=0,2,10))+IF(B52>=$B$2,Sens,0) -> 1.0615 | K52: 3.673501558 | L52: =VLOOKUP(A52,Trends!$A$3:$Q$94,IF(ExFlg=0,4,12))+IF(B52>=$B$2,Sens,0) -> 1.0565 | M52: 3.4124847 | O52: =VLOOKUP(A52,Trends!$A$3:$Q$94,IF(ExFlg=0,6,14))+IF(B52>=$B$2,Sens,0) -> 1.065 | P52: 3.803370195 | Q52: =VLOOKUP(A52,Trends!$A$3:$Q$94,IF(ExFlg=0,8,16))+IF(B52>=$B$2,Sens,0) -> 1.057 | R52: 3.444931118 | T52: 15825.10071 | U52: =IF(B52=$B$2, E52, IF(B52<$B$2, E52 * Trends!$S$3^(B52 - $B$2), IF(ExFlg=0,E52*VLOOKUP(A52,Trends!$A$4:$V$94,20),E52*VLOOKUP(A52,Trends!$A$4:$Z$94,24)))) -> 8668.456111 | V52: 7156.644596 | X52: 22713.81069 | Y52: =IF(B52=$B$2, H52, IF(B52<$B$2, H52 * Trends!$U$3^(B52 - $B$2), IF(ExFlg=0,H52*VLOOKUP(A52,Trends!$A$4:$V$94,22),H52*VLOOKUP(A52,Trends!$A$4:$Z$94,26)))) -> 13409.53948 | Z52: 9304.271203 | AB52: 8588.402826 | AD52: =IF(B52<71,VLOOKUP(B52,Lookups!A:F,6),"") ->  | AE52: =IF(B52<71,VLOOKUP(Active!B52,Lookups!A:G,7),"") ->  | AG52: =IF(B52<55,VLOOKUP(B52-$B$3,Lookups!$O$3:$Q$53,2),"") ->  | AH52: =IF(B52<55,VLOOKUP(B52-$B$3,Lookups!$O$3:$Q$53,3),"") ->  | AJ52: =IF(B52<55,VLOOKUP(B52,Lookups!A:M,12),"") ->  | AK52: =IF(B52<55,VLOOKUP(B52,Lookups!A:M,13),"") ->  | AM52: =IF(B52<70,VLOOKUP(B52,Lookups!A:H,8)*(1-VLOOKUP(B52,Lookups!$U$3:$W$103,2))^(A52-2018),"") ->  | AN52: =IF(B52<70,VLOOKUP(B52,Lookups!A:I,9)*(1-VLOOKUP(B52,Lookups!$U$3:$W$103,3))^(A52-2018),"") ->  | AS52: 95 | AT52: =IF(BA52>=$B$3,VLOOKUP(BA52,Lookups!A:H,8)*(1-VLOOKUP(BA52,Lookups!U:W,2))^(BA52-$B$2 + ValYear - 2017),"") -> 0.1833304695 | AU52: =IF(BA52>=$B$3,VLOOKUP(BA52,Lookups!A:I,9)*(1-VLOOKUP(BA52,Lookups!U:W,3))^(BA52-$B$2 + ValYear - 2017),"") -> 0.1336797577 | AV52: 0.1585051136 | AW52: 0.2548616073 | AX52: 0.2448858733 | AY52: 0.914022 | BA52: 95 | BB52: 15429.27991 | BN52: 880.1778947 | BO52: 914.1407702 | BP52: 949.7149375 | BQ52: 987.0567858 | BR52: 1026.209059 | BS52: 1067.314866 | BT52: 1110.532889 | BU52: 1156.05928 | BV52: 1204.120738 | BW52: 1255.004125 | BX52: 1309.012786 | BY52: 1366.299007 | BZ52: 1427.185989 | CA52: 1492.059372 | CB52: 1561.094244 | CC52: 1634.872258 | CK52: 38 | CL52: 3 | CM52: 2.469672083
A53: 2041 | B53: 85 | D53: =VLOOKUP(B53,Lookups!A:B,2) -> 4623.682472 | E53: =VLOOKUP(B53,Lookups!A:C,3) -> 2474.103984 | G53: =VLOOKUP(B53,Lookups!A:D,4) -> 6573.878783 | H53: =VLOOKUP(B53,Lookups!A:E,5) -> 3826.627221 | J53: =VLOOKUP(A53,Trends!$A$3:$Q$94,IF(ExFlg=0,2,10))+IF(B53>=$B$2,Sens,0) -> 1.0615 | K53: 3.899421904 | L53: =VLOOKUP(A53,Trends!$A$3:$Q$94,IF(ExFlg=0,4,12))+IF(B53>=$B$2,Sens,0) -> 1.056 | M53: 3.605290086 | O53: =VLOOKUP(A53,Trends!$A$3:$Q$94,IF(ExFlg=0,6,14))+IF(B53>=$B$2,Sens,0) -> 1.064 | P53: 4.050589258 | Q53: =VLOOKUP(A53,Trends!$A$3:$Q$94,IF(ExFlg=0,8,16))+IF(B53>=$B$2,Sens,0) -> 1.0585 | R53: 3.641292191 | T53: 16669.71658 | U53: =IF(B53=$B$2, E53, IF(B53<$B$2, E53 * Trends!$S$3^(B53 - $B$2), IF(ExFlg=0,E53*VLOOKUP(A53,Trends!$A$4:$V$94,20),E53*VLOOKUP(A53,Trends!$A$4:$Z$94,24)))) -> 9158.223881 | V53: 7511.492696 | X53: 23937.41348 | Y53: =IF(B53=$B$2, H53, IF(B53<$B$2, H53 * Trends!$U$3^(B53 - $B$2), IF(ExFlg=0,H53*VLOOKUP(A53,Trends!$A$4:$V$94,22),H53*VLOOKUP(A53,Trends!$A$4:$Z$94,26)))) -> 14173.88323 | Z53: 9763.530245 | AB53: 9012.858569 | AD53: =IF(B53<71,VLOOKUP(B53,Lookups!A:F,6),"") ->  | AE53: =IF(B53<71,VLOOKUP(Active!B53,Lookups!A:G,7),"") ->  | AG53: =IF(B53<55,VLOOKUP(B53-$B$3,Lookups!$O$3:$Q$53,2),"") ->  | AH53: =IF(B53<55,VLOOKUP(B53-$B$3,Lookups!$O$3:$Q$53,3),"") ->  | AJ53: =IF(B53<55,VLOOKUP(B53,Lookups!A:M,12),"") ->  | AK53: =IF(B53<55,VLOOKUP(B53,Lookups!A:M,13),"") ->  | AM53: =IF(B53<70,VLOOKUP(B53,Lookups!A:H,8)*(1-VLOOKUP(B53,Lookups!$U$3:$W$103,2))^(A53-2018),"") ->  | AN53: =IF(B53<70,VLOOKUP(B53,Lookups!A:I,9)*(1-VLOOKUP(B53,Lookups!$U$3:$W$103,3))^(A53-2018),"") ->  | AS53: 96 | AT53: =IF(BA53>=$B$3,VLOOKUP(BA53,Lookups!A:H,8)*(1-VLOOKUP(BA53,Lookups!U:W,2))^(BA53-$B$2 + ValYear - 2017),"") -> 0.2050841645 | AU53: =IF(BA53>=$B$3,VLOOKUP(BA53,Lookups!A:I,9)*(1-VLOOKUP(BA53,Lookups!U:W,3))^(BA53-$B$2 + ValYear - 2017),"") -> 0.1491295405 | AV53: 0.1771068525 | AW53: 0.2144647393 | AX53: 0.2364219669 | AY53: 0.90579 | BA53: 96 | BB53: 16313.05958 | BN53: 749.2153542 | BO53: 778.1248598 | BP53: 808.4059115 | BQ53: 840.1916293 | BR53: 873.518397 | BS53: 908.5080301 | BT53: 945.295601 | BU53: 984.0480755 | BV53: 1024.958422 | BW53: 1068.270818 | BX53: 1114.243477 | BY53: 1163.006025 | BZ53: 1214.833573 | CA53: 1270.054381 | CB53: 1328.817486 | CC53: 1391.617996 | CK53: 39 | CL53: 4 | CM53: 2.344837865
A54: 2042 | B54: 86 | D54: =VLOOKUP(B54,Lookups!A:B,2) -> 4610.0171 | E54: =VLOOKUP(B54,Lookups!A:C,3) -> 2474.103984 | G54: =VLOOKUP(B54,Lookups!A:D,4) -> 6554.449579 | H54: =VLOOKUP(B54,Lookups!A:E,5) -> 3826.627221 | J54: =VLOOKUP(A54,Trends!$A$3:$Q$94,IF(ExFlg=0,2,10))+IF(B54>=$B$2,Sens,0) -> 1.0625 | K54: 4.139236351 | L54: =VLOOKUP(A54,Trends!$A$3:$Q$94,IF(ExFlg=0,4,12))+IF(B54>=$B$2,Sens,0) -> 1.0555 | M54: 3.807186331 | O54: =VLOOKUP(A54,Trends!$A$3:$Q$94,IF(ExFlg=0,6,14))+IF(B54>=$B$2,Sens,0) -> 1.0635 | P54: 4.30982697 | Q54: =VLOOKUP(A54,Trends!$A$3:$Q$94,IF(ExFlg=0,8,16))+IF(B54>=$B$2,Sens,0) -> 1.06 | R54: 3.854307785 | T54: 17551.19409 | U54: =IF(B54=$B$2, E54, IF(B54<$B$2, E54 * Trends!$S$3^(B54 - $B$2), IF(ExFlg=0,E54*VLOOKUP(A54,Trends!$A$4:$V$94,20),E54*VLOOKUP(A54,Trends!$A$4:$Z$94,24)))) -> 9671.084418 | V54: 7880.109667 | X54: 25262.86603 | Y54: =IF(B54=$B$2, H54, IF(B54<$B$2, H54 * Trends!$U$3^(B54 - $B$2), IF(ExFlg=0,H54*VLOOKUP(A54,Trends!$A$4:$V$94,22),H54*VLOOKUP(A54,Trends!$A$4:$Z$94,26)))) -> 15003.0554 | Z54: 10259.81063 | AB54: 9466.584908 | AD54: =IF(B54<71,VLOOKUP(B54,Lookups!A:F,6),"") ->  | AE54: =IF(B54<71,VLOOKUP(Active!B54,Lookups!A:G,7),"") ->  | AG54: =IF(B54<55,VLOOKUP(B54-$B$3,Lookups!$O$3:$Q$53,2),"") ->  | AH54: =IF(B54<55,VLOOKUP(B54-$B$3,Lookups!$O$3:$Q$53,3),"") ->  | AJ54: =IF(B54<55,VLOOKUP(B54,Lookups!A:M,12),"") ->  | AK54: =IF(B54<55,VLOOKUP(B54,Lookups!A:M,13),"") ->  | AM54: =IF(B54<70,VLOOKUP(B54,Lookups!A:H,8)*(1-VLOOKUP(B54,Lookups!$U$3:$W$103,2))^(A54-2018),"") ->  | AN54: =IF(B54<70,VLOOKUP(B54,Lookups!A:I,9)*(1-VLOOKUP(B54,Lookups!$U$3:$W$103,3))^(A54-2018),"") ->  | AS54: 97 | AT54: =IF(BA54>=$B$3,VLOOKUP(BA54,Lookups!A:H,8)*(1-VLOOKUP(BA54,Lookups!U:W,2))^(BA54-$B$2 + ValYear - 2017),"") -> 0.2286530156 | AU54: =IF(BA54>=$B$3,VLOOKUP(BA54,Lookups!A:I,9)*(1-VLOOKUP(BA54,Lookups!U:W,3))^(BA54-$B$2 + ValYear - 2017),"") -> 0.1654095222 | AV54: 0.1970312689 | AW54: 0.1764815643 | AX54: 0.2282505955 | AY54: 0.896974 | BA54: 97 | BB54: 17283.2291 | BN54: 624.4763643 | BO54: 648.5726443 | BP54: 673.8121178 | BQ54: 700.3057413 | BR54: 728.0838409 | BS54: 757.2479506 | BT54: 787.9106545 | BU54: 820.2111195 | BV54: 854.310186 | BW54: 890.4113791 | BX54: 928.7299194 | BY54: 969.3738526 | BZ54: 1012.572485 | CA54: 1058.599424 | CB54: 1107.578892 | CC54: 1159.923568 | CK54: 40 | CL54: 5 | CM54: 2.24623765
A55: 2043 | B55: 87 | D55: =VLOOKUP(B55,Lookups!A:B,2) -> 4596.416478 | E55: =VLOOKUP(B55,Lookups!A:C,3) -> 2474.103984 | G55: =VLOOKUP(B55,Lookups!A:D,4) -> 6535.112436 | H55: =VLOOKUP(B55,Lookups!A:E,5) -> 3826.627221 | J55: =VLOOKUP(A55,Trends!$A$3:$Q$94,IF(ExFlg=0,2,10))+IF(B55>=$B$2,Sens,0) -> 1.063 | K55: 4.397938623 | L55: =VLOOKUP(A55,Trends!$A$3:$Q$94,IF(ExFlg=0,4,12))+IF(B55>=$B$2,Sens,0) -> 1.055 | M55: 4.018485172 | O55: =VLOOKUP(A55,Trends!$A$3:$Q$94,IF(ExFlg=0,6,14))+IF(B55>=$B$2,Sens,0) -> 1.0625 | P55: 4.583500983 | Q55: =VLOOKUP(A55,Trends!$A$3:$Q$94,IF(ExFlg=0,8,16))+IF(B55>=$B$2,Sens,0) -> 1.0595 | R55: 4.085566252 | T55: 18470.63146 | U55: =IF(B55=$B$2, E55, IF(B55<$B$2, E55 * Trends!$S$3^(B55 - $B$2), IF(ExFlg=0,E55*VLOOKUP(A55,Trends!$A$4:$V$94,20),E55*VLOOKUP(A55,Trends!$A$4:$Z$94,24)))) -> 10207.8296 | V55: 8262.801858 | X55: 26699.63482 | Y55: =IF(B55=$B$2, H55, IF(B55<$B$2, H55 * Trends!$U$3^(B55 - $B$2), IF(ExFlg=0,H55*VLOOKUP(A55,Trends!$A$4:$V$94,22),H55*VLOOKUP(A55,Trends!$A$4:$Z$94,26)))) -> 15903.23873 | Z55: 10796.39609 | AB55: 9951.873126 | AD55: =IF(B55<71,VLOOKUP(B55,Lookups!A:F,6),"") ->  | AE55: =IF(B55<71,VLOOKUP(Active!B55,Lookups!A:G,7),"") ->  | AG55: =IF(B55<55,VLOOKUP(B55-$B$3,Lookups!$O$3:$Q$53,2),"") ->  | AH55: =IF(B55<55,VLOOKUP(B55-$B$3,Lookups!$O$3:$Q$53,3),"") ->  | AJ55: =IF(B55<55,VLOOKUP(B55,Lookups!A:M,12),"") ->  | AK55: =IF(B55<55,VLOOKUP(B55,Lookups!A:M,13),"") ->  | AM55: =IF(B55<70,VLOOKUP(B55,Lookups!A:H,8)*(1-VLOOKUP(B55,Lookups!$U$3:$W$103,2))^(A55-2018),"") ->  | AN55: =IF(B55<70,VLOOKUP(B55,Lookups!A:I,9)*(1-VLOOKUP(B55,Lookups!$U$3:$W$103,3))^(A55-2018),"") ->  | AS55: 98 | AT55: =IF(BA55>=$B$3,VLOOKUP(BA55,Lookups!A:H,8)*(1-VLOOKUP(BA55,Lookups!U:W,2))^(BA55-$B$2 + ValYear - 2017),"") -> 0.2405304968 | AU55: =IF(BA55>=$B$3,VLOOKUP(BA55,Lookups!A:I,9)*(1-VLOOKUP(BA55,Lookups!U:W,3))^(BA55-$B$2 + ValYear - 2017),"") -> 0.1726583415 | AV55: 0.2065944192 | AW55: 0.1417091778 | AX55: 0.2203616485 | AY55: 0.892742 | BA55: 98 | BB55: 18333.21011 | BN55: 511.0912828 | BO55: 530.8124434 | BP55: 551.4692298 | BQ55: 573.1524524 | BR55: 595.886931 | BS55: 619.7557644 | BT55: 644.8510947 | BU55: 671.2868208 | BV55: 699.1945794 | BW55: 728.7409419 | BX55: 760.1020519 | BY55: 793.3663372 | BZ55: 828.7214691 | CA55: 866.3913773 | CB55: 906.4777296 | CC55: 949.3182736 | CK55: 41 | CL55: 6 | CM55: 2.157794231
A56: 2044 | B56: 88 | D56: =VLOOKUP(B56,Lookups!A:B,2) -> 4582.880265 | E56: =VLOOKUP(B56,Lookups!A:C,3) -> 2474.103984 | G56: =VLOOKUP(B56,Lookups!A:D,4) -> 6515.866869 | H56: =VLOOKUP(B56,Lookups!A:E,5) -> 3826.627221 | J56: =VLOOKUP(A56,Trends!$A$3:$Q$94,IF(ExFlg=0,2,10))+IF(B56>=$B$2,Sens,0) -> 1.0625 | K56: 4.675008756 | L56: =VLOOKUP(A56,Trends!$A$3:$Q$94,IF(ExFlg=0,4,12))+IF(B56>=$B$2,Sens,0) -> 1.055 | M56: 4.239501856 | O56: =VLOOKUP(A56,Trends!$A$3:$Q$94,IF(ExFlg=0,6,14))+IF(B56>=$B$2,Sens,0) -> 1.062 | P56: 4.869969794 | Q56: =VLOOKUP(A56,Trends!$A$3:$Q$94,IF(ExFlg=0,8,16))+IF(B56>=$B$2,Sens,0) -> 1.059 | R56: 4.328657444 | T56: 19429.12939 | U56: =IF(B56=$B$2, E56, IF(B56<$B$2, E56 * Trends!$S$3^(B56 - $B$2), IF(ExFlg=0,E56*VLOOKUP(A56,Trends!$A$4:$V$94,20),E56*VLOOKUP(A56,Trends!$A$4:$Z$94,24)))) -> 10769.26023 | V56: 8659.86916 | X56: 28204.95562 | Y56: =IF(B56=$B$2, H56, IF(B56<$B$2, H56 * Trends!$U$3^(B56 - $B$2), IF(ExFlg=0,H56*VLOOKUP(A56,Trends!$A$4:$V$94,22),H56*VLOOKUP(A56,Trends!$A$4:$Z$94,26)))) -> 16849.48143 | Z56: 11355.47419 | AB56: 10456.94817 | AD56: =IF(B56<71,VLOOKUP(B56,Lookups!A:F,6),"") ->  | AE56: =IF(B56<71,VLOOKUP(Active!B56,Lookups!A:G,7),"") ->  | AG56: =IF(B56<55,VLOOKUP(B56-$B$3,Lookups!$O$3:$Q$53,2),"") ->  | AH56: =IF(B56<55,VLOOKUP(B56-$B$3,Lookups!$O$3:$Q$53,3),"") ->  | AJ56: =IF(B56<55,VLOOKUP(B56,Lookups!A:M,12),"") ->  | AK56: =IF(B56<55,VLOOKUP(B56,Lookups!A:M,13),"") ->  | AM56: =IF(B56<70,VLOOKUP(B56,Lookups!A:H,8)*(1-VLOOKUP(B56,Lookups!$U$3:$W$103,2))^(A56-2018),"") ->  | AN56: =IF(B56<70,VLOOKUP(B56,Lookups!A:I,9)*(1-VLOOKUP(B56,Lookups!$U$3:$W$103,3))^(A56-2018),"") ->  | AS56: 99 | AT56: =IF(BA56>=$B$3,VLOOKUP(BA56,Lookups!A:H,8)*(1-VLOOKUP(BA56,Lookups!U:W,2))^(BA56-$B$2 + ValYear - 2017),"") -> 0.2664691132 | AU56: =IF(BA56>=$B$3,VLOOKUP(BA56,Lookups!A:I,9)*(1-VLOOKUP(BA56,Lookups!U:W,3))^(BA56-$B$2 + ValYear - 2017),"") -> 0.1892663389 | AV56: 0.2278677261 | AW56: 0.1124328525 | AX56: 0.2127453645 | AY56: 0.883329 | BA56: 99 | BB56: 19450.23026 | BN56: 410.9609634 | BO56: 426.8184578 | BP56: 443.4282752 | BQ56: 460.8634347 | BR56: 479.1438937 | BS56: 498.3364706 | BT56: 518.5152556 | BU56: 539.7718331 | BV56: 562.2120503 | BW56: 585.9698447 | BX56: 611.1868508 | BY56: 637.934172 | BZ56: 666.3627122 | CA56: 696.6525299 | CB56: 728.8853746 | CC56: 763.3328242 | CK56: 42 | CL56: 7 | CM56: 2.078511019
A57: =1+A56 -> 2045 | B57: =1+B56 -> 89 | D57: =VLOOKUP(B57,Lookups!A:B,2) -> 4582.880265 | E57: =VLOOKUP(B57,Lookups!A:C,3) -> 2474.103984 | G57: =VLOOKUP(B57,Lookups!A:D,4) -> 6515.866869 | H57: =VLOOKUP(B57,Lookups!A:E,5) -> 3826.627221 | J57: =VLOOKUP(A57,Trends!$A$3:$Q$94,IF(ExFlg=0,2,10))+IF(B57>=$B$2,Sens,0) -> 1.062 | K57: 4.967196804 | L57: =VLOOKUP(A57,Trends!$A$3:$Q$94,IF(ExFlg=0,4,12))+IF(B57>=$B$2,Sens,0) -> 1.055 | M57: 4.472674458 | O57: =VLOOKUP(A57,Trends!$A$3:$Q$94,IF(ExFlg=0,6,14))+IF(B57>=$B$2,Sens,0) -> 1.0615 | P57: 5.171907922 | Q57: =VLOOKUP(A57,Trends!$A$3:$Q$94,IF(ExFlg=0,8,16))+IF(B57>=$B$2,Sens,0) -> 1.059 | R57: 4.584048233 | T57: 20497.73151 | U57: =IF(B57=$B$2, E57, IF(B57<$B$2, E57 * Trends!$S$3^(B57 - $B$2), IF(ExFlg=0,E57*VLOOKUP(A57,Trends!$A$4:$V$94,20),E57*VLOOKUP(A57,Trends!$A$4:$Z$94,24)))) -> 11361.56954 | V57: 9136.161964 | X57: 29869.048 | Y57: =IF(B57=$B$2, H57, IF(B57<$B$2, H57 * Trends!$U$3^(B57 - $B$2), IF(ExFlg=0,H57*VLOOKUP(A57,Trends!$A$4:$V$94,22),H57*VLOOKUP(A57,Trends!$A$4:$Z$94,26)))) -> 17843.60084 | Z57: 12025.44717 | AB57: 11062.36173 | AD57: =IF(B57<71,VLOOKUP(B57,Lookups!A:F,6),"") ->  | AE57: =IF(B57<71,VLOOKUP(Active!B57,Lookups!A:G,7),"") ->  | AG57: =IF(B57<55,VLOOKUP(B57-$B$3,Lookups!$O$3:$Q$53,2),"") ->  | AH57: =IF(B57<55,VLOOKUP(B57-$B$3,Lookups!$O$3:$Q$53,3),"") ->  | AJ57: =IF(B57<55,VLOOKUP(B57,Lookups!A:M,12),"") ->  | AK57: =IF(B57<55,VLOOKUP(B57,Lookups!A:M,13),"") ->  | AM57: =IF(B57<70,VLOOKUP(B57,Lookups!A:H,8)*(1-VLOOKUP(B57,Lookups!$U$3:$W$103,2))^(A57-2018),"") ->  | AN57: =IF(B57<70,VLOOKUP(B57,Lookups!A:I,9)*(1-VLOOKUP(B57,Lookups!$U$3:$W$103,3))^(A57-2018),"") ->  | AS57: 100 | AT57: =IF(BA57>=$B$3,VLOOKUP(BA57,Lookups!A:H,8)*(1-VLOOKUP(BA57,Lookups!U:W,2))^(BA57-$B$2 + ValYear - 2017),"") -> 0.2782337767 | AU57: =IF(BA57>=$B$3,VLOOKUP(BA57,Lookups!A:I,9)*(1-VLOOKUP(BA57,Lookups!U:W,3))^(BA57-$B$2 + ValYear - 2017),"") -> 0.1949681233 | AV57: 0.23660095 | AW57: 0.08681303407 | AX57: 0.2053923194 | AY57: 0.879465 | BA57: 100 | BB57: 20635.3666 | BN57: 323.5935701 | BO57: 336.0798734 | BP57: 349.1585611 | BQ57: 362.887129 | BR57: 377.2812918 | BS57: 392.3936626 | BT57: 408.2825808 | BU57: 425.0201603 | BV57: 442.689746 | BW57: 461.3968014 | BX57: 481.2528504 | BY57: 502.3138804 | BZ57: 524.6987141 | CA57: 548.5491308 | CB57: 573.9295008 | CC57: 601.0536663 | CK57: 43 | CL57: 8 | CM57: 2.004123833
A58: 2046 | B58: 90 | D58: =VLOOKUP(B58,Lookups!A:B,2) -> 4582.880265 | E58: =VLOOKUP(B58,Lookups!A:C,3) -> 2474.103984 | G58: =VLOOKUP(B58,Lookups!A:D,4) -> 6515.866869 | H58: =VLOOKUP(B58,Lookups!A:E,5) -> 3826.627221 | J58: =VLOOKUP(A58,Trends!$A$3:$Q$94,IF(ExFlg=0,2,10))+IF(B58>=$B$2,Sens,0) -> 1.0615 | K58: 5.275163005 | L58: =VLOOKUP(A58,Trends!$A$3:$Q$94,IF(ExFlg=0,4,12))+IF(B58>=$B$2,Sens,0) -> 1.055 | M58: 4.718671554 | O58: =VLOOKUP(A58,Trends!$A$3:$Q$94,IF(ExFlg=0,6,14))+IF(B58>=$B$2,Sens,0) -> 1.061 | P58: 5.489980259 | Q58: =VLOOKUP(A58,Trends!$A$3:$Q$94,IF(ExFlg=0,8,16))+IF(B58>=$B$2,Sens,0) -> 1.0585 | R58: 4.854507078 | T58: 21625.10674 | U58: =IF(B58=$B$2, E58, IF(B58<$B$2, E58 * Trends!$S$3^(B58 - $B$2), IF(ExFlg=0,E58*VLOOKUP(A58,Trends!$A$4:$V$94,20),E58*VLOOKUP(A58,Trends!$A$4:$Z$94,24)))) -> 11986.45587 | V58: 9638.650872 | X58: 31631.32184 | Y58: =IF(B58=$B$2, H58, IF(B58<$B$2, H58 * Trends!$U$3^(B58 - $B$2), IF(ExFlg=0,H58*VLOOKUP(A58,Trends!$A$4:$V$94,22),H58*VLOOKUP(A58,Trends!$A$4:$Z$94,26)))) -> 18896.37329 | Z58: 12734.94855 | AB58: 11702.85965 | AD58: =IF(B58<71,VLOOKUP(B58,Lookups!A:F,6),"") ->  | AE58: =IF(B58<71,VLOOKUP(Active!B58,Lookups!A:G,7),"") ->  | AG58: =IF(B58<55,VLOOKUP(B58-$B$3,Lookups!$O$3:$Q$53,2),"") ->  | AH58: =IF(B58<55,VLOOKUP(B58-$B$3,Lookups!$O$3:$Q$53,3),"") ->  | AJ58: =IF(B58<55,VLOOKUP(B58,Lookups!A:M,12),"") ->  | AK58: =IF(B58<55,VLOOKUP(B58,Lookups!A:M,13),"") ->  | AM58: =IF(B58<70,VLOOKUP(B58,Lookups!A:H,8)*(1-VLOOKUP(B58,Lookups!$U$3:$W$103,2))^(A58-2018),"") ->  | AN58: =IF(B58<70,VLOOKUP(B58,Lookups!A:I,9)*(1-VLOOKUP(B58,Lookups!$U$3:$W$103,3))^(A58-2018),"") ->  | AS58: 101 | AT58: =IF(BA58>=$B$3,VLOOKUP(BA58,Lookups!A:H,8)*(1-VLOOKUP(BA58,Lookups!U:W,2))^(BA58-$B$2 + ValYear - 2017),"") -> 0.3067832956 | AU58: =IF(BA58>=$B$3,VLOOKUP(BA58,Lookups!A:I,9)*(1-VLOOKUP(BA58,Lookups!U:W,3))^(BA58-$B$2 + ValYear - 2017),"") -> 0.2114339386 | AV58: 0.2591086171 | AW58: 0.06627298774 | AX58: 0.1982934152 | AY58: 0.869505 | BA58: 101 | BB58: 21882.45859 | BN58: 250.0420447 | BO58: 259.6902612 | BP58: 269.7962154 | BQ58: 280.4043347 | BR58: 291.5267618 | BS58: 303.2041511 | BT58: 315.4815817 | BU58: 328.4147762 | BV58: 342.0681357 | BW58: 356.5231522 | BX58: 371.8660006 | BY58: 388.1399426 | BZ58: 405.4367931 | CA58: 423.8661054 | CB58: 443.4776187 | CC58: 464.4365698 | CK58: =IF(OR(CK59<=($CK$76-MS), CK59 = 20), CK59, CK59-1) -> 44 | CL58: 9 | CM58: =IF(CK58<CK59,CM59*1/(1-VLOOKUP(CK58,$B$3:$AR$93,41,FALSE)) * (1+IntRt) * 1/(1+$CQ$60) * 1/VLOOKUP(MIN(CL58,30),$CO$63:$CQ$93,3,FALSE), "") -> 1.933561481
A59: 2047 | B59: 91 | D59: =VLOOKUP(B59,Lookups!A:B,2) -> 4582.880265 | E59: =VLOOKUP(B59,Lookups!A:C,3) -> 2474.103984 | G59: =VLOOKUP(B59,Lookups!A:D,4) -> 6515.866869 | H59: =VLOOKUP(B59,Lookups!A:E,5) -> 3826.627221 | J59: =VLOOKUP(A59,Trends!$A$3:$Q$94,IF(ExFlg=0,2,10))+IF(B59>=$B$2,Sens,0) -> 1.061 | K59: 5.59958553 | L59: =VLOOKUP(A59,Trends!$A$3:$Q$94,IF(ExFlg=0,4,12))+IF(B59>=$B$2,Sens,0) -> 1.0545 | M59: 4.978198489 | O59: =VLOOKUP(A59,Trends!$A$3:$Q$94,IF(ExFlg=0,6,14))+IF(B59>=$B$2,Sens,0) -> 1.061 | P59: 5.824869055 | Q59: =VLOOKUP(A59,Trends!$A$3:$Q$94,IF(ExFlg=0,8,16))+IF(B59>=$B$2,Sens,0) -> 1.058 | R59: 5.138495743 | T59: 22814.48761 | U59: =IF(B59=$B$2, E59, IF(B59<$B$2, E59 * Trends!$S$3^(B59 - $B$2), IF(ExFlg=0,E59*VLOOKUP(A59,Trends!$A$4:$V$94,20),E59*VLOOKUP(A59,Trends!$A$4:$Z$94,24)))) -> 12645.71094 | V59: 10168.77667 | X59: 33481.75416 | Y59: =IF(B59=$B$2, H59, IF(B59<$B$2, H59 * Trends!$U$3^(B59 - $B$2), IF(ExFlg=0,H59*VLOOKUP(A59,Trends!$A$4:$V$94,22),H59*VLOOKUP(A59,Trends!$A$4:$Z$94,26)))) -> 20001.81112 | Z59: 13479.94304 | AB59: 12376.23195 | AD59: =IF(B59<71,VLOOKUP(B59,Lookups!A:F,6),"") ->  | AE59: =IF(B59<71,VLOOKUP(Active!B59,Lookups!A:G,7),"") ->  | AG59: =IF(B59<55,VLOOKUP(B59-$B$3,Lookups!$O$3:$Q$53,2),"") ->  | AH59: =IF(B59<55,VLOOKUP(B59-$B$3,Lookups!$O$3:$Q$53,3),"") ->  | AJ59: =IF(B59<55,VLOOKUP(B59,Lookups!A:M,12),"") ->  | AK59: =IF(B59<55,VLOOKUP(B59,Lookups!A:M,13),"") ->  | AM59: =IF(B59<70,VLOOKUP(B59,Lookups!A:H,8)*(1-VLOOKUP(B59,Lookups!$U$3:$W$103,2))^(A59-2018),"") ->  | AN59: =IF(B59<70,VLOOKUP(B59,Lookups!A:I,9)*(1-VLOOKUP(B59,Lookups!$U$3:$W$103,3))^(A59-2018),"") ->  | AS59: 102 | AT59: =IF(BA59>=$B$3,VLOOKUP(BA59,Lookups!A:H,8)*(1-VLOOKUP(BA59,Lookups!U:W,2))^(BA59-$B$2 + ValYear - 2017),"") -> 0.3186740478 | AU59: =IF(BA59>=$B$3,VLOOKUP(BA59,Lookups!A:I,9)*(1-VLOOKUP(BA59,Lookups!U:W,3))^(BA59-$B$2 + ValYear - 2017),"") -> 0.2175570917 | AV59: 0.2681155697 | AW59: 0.04910108553 | AX59: 0.1914398679 | AY59: 0.86552 | BA59: 102 | BB59: 23194.04149 | BN59: 188.7022233 | BO59: 195.9835583 | BP59: 203.6103398 | BQ59: 211.6160962 | BR59: 220.0099914 | BS59: 228.8227066 | BT59: 238.0882621 | BU59: 247.8487108 | BV59: 258.1526551 | BW59: 269.0615955 | BX59: 280.6405665 | BY59: 292.9222172 | BZ59: 305.9758384 | CA59: 319.8841081 | CB59: 334.6845637 | CC59: 350.5019062 | CK59: 45 | CL59: 10 | CM59: 1.867889546
A60: 2048 | B60: 92 | D60: =VLOOKUP(B60,Lookups!A:B,2) -> 4582.880265 | E60: =VLOOKUP(B60,Lookups!A:C,3) -> 2474.103984 | G60: =VLOOKUP(B60,Lookups!A:D,4) -> 6515.866869 | H60: =VLOOKUP(B60,Lookups!A:E,5) -> 3826.627221 | J60: =VLOOKUP(A60,Trends!$A$3:$Q$94,IF(ExFlg=0,2,10))+IF(B60>=$B$2,Sens,0) -> 1.0605 | K60: 5.941160248 | L60: =VLOOKUP(A60,Trends!$A$3:$Q$94,IF(ExFlg=0,4,12))+IF(B60>=$B$2,Sens,0) -> 1.054 | M60: 5.249510307 | O60: =VLOOKUP(A60,Trends!$A$3:$Q$94,IF(ExFlg=0,6,14))+IF(B60>=$B$2,Sens,0) -> 1.0605 | P60: 6.180186067 | Q60: =VLOOKUP(A60,Trends!$A$3:$Q$94,IF(ExFlg=0,8,16))+IF(B60>=$B$2,Sens,0) -> 1.058 | R60: 5.436528496 | T60: 24057.87719 | U60: =IF(B60=$B$2, E60, IF(B60<$B$2, E60 * Trends!$S$3^(B60 - $B$2), IF(ExFlg=0,E60*VLOOKUP(A60,Trends!$A$4:$V$94,20),E60*VLOOKUP(A60,Trends!$A$4:$Z$94,24)))) -> 13334.90219 | V60: 10722.975 | X60: 35423.69591 | Y60: =IF(B60=$B$2, H60, IF(B60<$B$2, H60 * Trends!$U$3^(B60 - $B$2), IF(ExFlg=0,H60*VLOOKUP(A60,Trends!$A$4:$V$94,22),H60*VLOOKUP(A60,Trends!$A$4:$Z$94,26)))) -> 21161.91617 | Z60: 14261.77974 | AB60: 13082.18995 | AD60: =IF(B60<71,VLOOKUP(B60,Lookups!A:F,6),"") ->  | AE60: =IF(B60<71,VLOOKUP(Active!B60,Lookups!A:G,7),"") ->  | AG60: =IF(B60<55,VLOOKUP(B60-$B$3,Lookups!$O$3:$Q$53,2),"") ->  | AH60: =IF(B60<55,VLOOKUP(B60-$B$3,Lookups!$O$3:$Q$53,3),"") ->  | AJ60: =IF(B60<55,VLOOKUP(B60,Lookups!A:M,12),"") ->  | AK60: =IF(B60<55,VLOOKUP(B60,Lookups!A:M,13),"") ->  | AM60: =IF(B60<70,VLOOKUP(B60,Lookups!A:H,8)*(1-VLOOKUP(B60,Lookups!$U$3:$W$103,2))^(A60-2018),"") ->  | AN60: =IF(B60<70,VLOOKUP(B60,Lookups!A:I,9)*(1-VLOOKUP(B60,Lookups!$U$3:$W$103,3))^(A60-2018),"") ->  | AS60: 103 | AT60: =IF(BA60>=$B$3,VLOOKUP(BA60,Lookups!A:H,8)*(1-VLOOKUP(BA60,Lookups!U:W,2))^(BA60-$B$2 + ValYear - 2017),"") -> 0.3500290167 | AU60: =IF(BA60>=$B$3,VLOOKUP(BA60,Lookups!A:I,9)*(1-VLOOKUP(BA60,Lookups!U:W,3))^(BA60-$B$2 + ValYear - 2017),"") -> 0.2396702184 | AV60: 0.2948496175 | AW60: 0.03593632001 | AX60: 0.1848231974 | AY60: 0.85369 | BA60: 103 | BB60: 24584.30586 | BN60: 139.3953305 | BO60: 144.7740912 | BP60: 150.408035 | BQ60: 156.3219296 | BR60: 162.5225444 | BS60: 169.0325437 | BT60: 175.8770585 | BU60: 183.0871537 | BV60: 190.6987318 | BW60: 198.7572237 | BX60: 207.3106709 | BY60: 216.3831912 | BZ60: 226.0259703 | CA60: 236.3000827 | CB60: 247.2332575 | CC60: 258.9176121 | CK60: 46 | CL60: 11 | CM60: 1.80627238 | CP60: GSG = | CQ60: 0.0375
A61: 2049 | B61: 93 | D61: =VLOOKUP(B61,Lookups!A:B,2) -> 4582.880265 | E61: =VLOOKUP(B61,Lookups!A:C,3) -> 2474.103984 | G61: =VLOOKUP(B61,Lookups!A:D,4) -> 6515.866869 | H61: =VLOOKUP(B61,Lookups!A:E,5) -> 3826.627221 | J61: =VLOOKUP(A61,Trends!$A$3:$Q$94,IF(ExFlg=0,2,10))+IF(B61>=$B$2,Sens,0) -> 1.06 | K61: 6.300600443 | L61: =VLOOKUP(A61,Trends!$A$3:$Q$94,IF(ExFlg=0,4,12))+IF(B61>=$B$2,Sens,0) -> 1.054 | M61: 5.532983863 | O61: =VLOOKUP(A61,Trends!$A$3:$Q$94,IF(ExFlg=0,6,14))+IF(B61>=$B$2,Sens,0) -> 1.06 | P61: 6.554087324 | Q61: =VLOOKUP(A61,Trends!$A$3:$Q$94,IF(ExFlg=0,8,16))+IF(B61>=$B$2,Sens,0) -> 1.0575 | R61: 5.751847148 | T61: 25357.00256 | U61: =IF(B61=$B$2, E61, IF(B61<$B$2, E61 * Trends!$S$3^(B61 - $B$2), IF(ExFlg=0,E61*VLOOKUP(A61,Trends!$A$4:$V$94,20),E61*VLOOKUP(A61,Trends!$A$4:$Z$94,24)))) -> 14054.98691 | V61: 11302.01565 | X61: 37478.27027 | Y61: =IF(B61=$B$2, H61, IF(B61<$B$2, H61 * Trends!$U$3^(B61 - $B$2), IF(ExFlg=0,H61*VLOOKUP(A61,Trends!$A$4:$V$94,22),H61*VLOOKUP(A61,Trends!$A$4:$Z$94,26)))) -> 22389.30731 | Z61: 15088.96296 | AB61: 13826.65981 | AD61: =IF(B61<71,VLOOKUP(B61,Lookups!A:F,6),"") ->  | AE61: =IF(B61<71,VLOOKUP(Active!B61,Lookups!A:G,7),"") ->  | AG61: =IF(B61<55,VLOOKUP(B61-$B$3,Lookups!$O$3:$Q$53,2),"") ->  | AH61: =IF(B61<55,VLOOKUP(B61-$B$3,Lookups!$O$3:$Q$53,3),"") ->  | AJ61: =IF(B61<55,VLOOKUP(B61,Lookups!A:M,12),"") ->  | AK61: =IF(B61<55,VLOOKUP(B61,Lookups!A:M,13),"") ->  | AM61: =IF(B61<70,VLOOKUP(B61,Lookups!A:H,8)*(1-VLOOKUP(B61,Lookups!$U$3:$W$103,2))^(A61-2018),"") ->  | AN61: =IF(B61<70,VLOOKUP(B61,Lookups!A:I,9)*(1-VLOOKUP(B61,Lookups!$U$3:$W$103,3))^(A61-2018),"") ->  | AS61: 104 | AT61: =IF(BA61>=$B$3,VLOOKUP(BA61,Lookups!A:H,8)*(1-VLOOKUP(BA61,Lookups!U:W,2))^(BA61-$B$2 + ValYear - 2017),"") -> 0.3603623435 | AU61: =IF(BA61>=$B$3,VLOOKUP(BA61,Lookups!A:I,9)*(1-VLOOKUP(BA61,Lookups!U:W,3))^(BA61-$B$2 + ValYear - 2017),"") -> 0.2502930296 | AV61: 0.3053276866 | AW61: 0.0253405098 | AX61: 0.1784352167 | AY61: 0.849054 | BA61: 104 | BB61: 26057.97574 | BN61: 100.0395911 | BO61: 103.8997565 | BP61: 107.9430586 | BQ61: 112.1872725 | BR61: 116.6372563 | BS61: 121.3092756 | BT61: 126.221366 | BU61: 131.3958218 | BV61: 136.8584091 | BW61: 142.6417322 | BX61: 148.7802689 | BY61: 155.2913279 | BZ61: 162.2116435 | CA61: 169.5850469 | CB61: 177.4314384 | CC61: 185.8169277 | CK61: 47 | CL61: 12 | CM61: 1.749746764 | CO61: PERS Salary Merit Table
A62: 2050 | B62: 94 | D62: =VLOOKUP(B62,Lookups!A:B,2) -> 4582.880265 | E62: =VLOOKUP(B62,Lookups!A:C,3) -> 2474.103984 | G62: =VLOOKUP(B62,Lookups!A:D,4) -> 6515.866869 | H62: =VLOOKUP(B62,Lookups!A:E,5) -> 3826.627221 | J62: =VLOOKUP(A62,Trends!$A$3:$Q$94,IF(ExFlg=0,2,10))+IF(B62>=$B$2,Sens,0) -> 1.06 | K62: 6.678636469 | L62: =VLOOKUP(A62,Trends!$A$3:$Q$94,IF(ExFlg=0,4,12))+IF(B62>=$B$2,Sens,0) -> 1.054 | M62: 5.831764992 | O62: =VLOOKUP(A62,Trends!$A$3:$Q$94,IF(ExFlg=0,6,14))+IF(B62>=$B$2,Sens,0) -> 1.06 | P62: 6.947332563 | Q62: =VLOOKUP(A62,Trends!$A$3:$Q$94,IF(ExFlg=0,8,16))+IF(B62>=$B$2,Sens,0) -> 1.057 | R62: 6.082578359 | T62: 26726.28069 | U62: =IF(B62=$B$2, E62, IF(B62<$B$2, E62 * Trends!$S$3^(B62 - $B$2), IF(ExFlg=0,E62*VLOOKUP(A62,Trends!$A$4:$V$94,20),E62*VLOOKUP(A62,Trends!$A$4:$Z$94,24)))) -> 14813.9562 | V62: 11912.32449 | X62: 39633.27081 | Y62: =IF(B62=$B$2, H62, IF(B62<$B$2, H62 * Trends!$U$3^(B62 - $B$2), IF(ExFlg=0,H62*VLOOKUP(A62,Trends!$A$4:$V$94,22),H62*VLOOKUP(A62,Trends!$A$4:$Z$94,26)))) -> 23676.69248 | Z62: 15956.57833 | AB62: 14608.5072 | AD62: =IF(B62<71,VLOOKUP(B62,Lookups!A:F,6),"") ->  | AE62: =IF(B62<71,VLOOKUP(Active!B62,Lookups!A:G,7),"") ->  | AG62: =IF(B62<55,VLOOKUP(B62-$B$3,Lookups!$O$3:$Q$53,2),"") ->  | AH62: =IF(B62<55,VLOOKUP(B62-$B$3,Lookups!$O$3:$Q$53,3),"") ->  | AJ62: =IF(B62<55,VLOOKUP(B62,Lookups!A:M,12),"") ->  | AK62: =IF(B62<55,VLOOKUP(B62,Lookups!A:M,13),"") ->  | AM62: =IF(B62<70,VLOOKUP(B62,Lookups!A:H,8)*(1-VLOOKUP(B62,Lookups!$U$3:$W$103,2))^(A62-2018),"") ->  | AN62: =IF(B62<70,VLOOKUP(B62,Lookups!A:I,9)*(1-VLOOKUP(B62,Lookups!$U$3:$W$103,3))^(A62-2018),"") ->  | AS62: 105 | AT62: =IF(BA62>=$B$3,VLOOKUP(BA62,Lookups!A:H,8)*(1-VLOOKUP(BA62,Lookups!U:W,2))^(BA62-$B$2 + ValYear - 2017),"") -> 0.392003 | AU62: =IF(BA62>=$B$3,VLOOKUP(BA62,Lookups!A:I,9)*(1-VLOOKUP(BA62,Lookups!U:W,3))^(BA62-$B$2 + ValYear - 2017),"") -> 0.279055 | AV62: 0.335529 | AW62: 0.01760335057 | AX62: 0.1722680215 | AY62: 0.83569 | BA62: 105 | BB62: 27610.4617 | BN62: 69.97112848 | BO62: 72.67106078 | BP62: 75.49908526 | BQ62: 78.46763433 | BR62: 81.58010597 | BS62: 84.84787684 | BT62: 88.2835617 | BU62: 91.90275391 | BV62: 95.72347523 | BW62: 99.7685302 | BX62: 104.0620338 | BY62: 108.6160922 | BZ62: 113.4563988 | CA62: 118.6136106 | CB62: 124.1016465 | CC62: 129.9667459 | CK62: 48 | CL62: 13 | CM62: 1.697576821 | CO62: Service | CP62: Salary Increase | CQ62: 1+ Sal Inc
A63: 2051 | B63: 95 | D63: =VLOOKUP(B63,Lookups!A:B,2) -> 4582.880265 | E63: =VLOOKUP(B63,Lookups!A:C,3) -> 2474.103984 | G63: =VLOOKUP(B63,Lookups!A:D,4) -> 6515.866869 | H63: =VLOOKUP(B63,Lookups!A:E,5) -> 3826.627221 | J63: =VLOOKUP(A63,Trends!$A$3:$Q$94,IF(ExFlg=0,2,10))+IF(B63>=$B$2,Sens,0) -> 1.06 | K63: 7.079354657 | L63: =VLOOKUP(A63,Trends!$A$3:$Q$94,IF(ExFlg=0,4,12))+IF(B63>=$B$2,Sens,0) -> 1.054 | M63: 6.146680302 | O63: =VLOOKUP(A63,Trends!$A$3:$Q$94,IF(ExFlg=0,6,14))+IF(B63>=$B$2,Sens,0) -> 1.0595 | P63: 7.364172517 | Q63: =VLOOKUP(A63,Trends!$A$3:$Q$94,IF(ExFlg=0,8,16))+IF(B63>=$B$2,Sens,0) -> 1.0585 | R63: 6.429285326 | T63: 28169.49985 | U63: =IF(B63=$B$2, E63, IF(B63<$B$2, E63 * Trends!$S$3^(B63 - $B$2), IF(ExFlg=0,E63*VLOOKUP(A63,Trends!$A$4:$V$94,20),E63*VLOOKUP(A63,Trends!$A$4:$Z$94,24)))) -> 15613.90983 | V63: 12555.59002 | X63: 41892.36724 | Y63: =IF(B63=$B$2, H63, IF(B63<$B$2, H63 * Trends!$U$3^(B63 - $B$2), IF(ExFlg=0,H63*VLOOKUP(A63,Trends!$A$4:$V$94,22),H63*VLOOKUP(A63,Trends!$A$4:$Z$94,26)))) -> 25026.26395 | Z63: 16866.1033 | AB63: 15429.27991 | AD63: =IF(B63<71,VLOOKUP(B63,Lookups!A:F,6),"") ->  | AE63: =IF(B63<71,VLOOKUP(Active!B63,Lookups!A:G,7),"") ->  | AG63: =IF(B63<55,VLOOKUP(B63-$B$3,Lookups!$O$3:$Q$53,2),"") ->  | AH63: =IF(B63<55,VLOOKUP(B63-$B$3,Lookups!$O$3:$Q$53,3),"") ->  | AJ63: =IF(B63<55,VLOOKUP(B63,Lookups!A:M,12),"") ->  | AK63: =IF(B63<55,VLOOKUP(B63,Lookups!A:M,13),"") ->  | AM63: =IF(B63<70,VLOOKUP(B63,Lookups!A:H,8)*(1-VLOOKUP(B63,Lookups!$U$3:$W$103,2))^(A63-2018),"") ->  | AN63: =IF(B63<70,VLOOKUP(B63,Lookups!A:I,9)*(1-VLOOKUP(B63,Lookups!$U$3:$W$103,3))^(A63-2018),"") ->  | AS63: 106 | AT63: =IF(BA63>=$B$3,VLOOKUP(BA63,Lookups!A:H,8)*(1-VLOOKUP(BA63,Lookups!U:W,2))^(BA63-$B$2 + ValYear - 2017),"") -> 0.397886 | AU63: =IF(BA63>=$B$3,VLOOKUP(BA63,Lookups!A:I,9)*(1-VLOOKUP(BA63,Lookups!U:W,3))^(BA63-$B$2 + ValYear - 2017),"") -> 0.293116 | AV63: 0.345501 | AW63: 0.01169691595 | AX63: 0.166313981 | AY63: 0.831277 | BA63: 106 | BB63: 29245.32586 | BN63: 47.29359826 | BO63: 49.11848685 | BP63: 51.02995314 | BQ63: 53.03640023 | BR63: 55.14012482 | BS63: 57.3488164 | BT63: 59.67100133 | BU63: 62.11721916 | BV63: 64.69965084 | BW63: 67.43371 | BX63: 70.33569598 | BY63: 73.41379141 | BZ63: 76.68536239 | CA63: 80.17113013 | CB63: 83.88050241 | CC63: 87.84473257 | CK63: 49 | CL63: 14 | CM63: 1.650671289 | CO63: 0 | CP63: 0.06 | CQ63: =CP63+1 -> 1.06
A64: 2052 | B64: 96 | D64: =VLOOKUP(B64,Lookups!A:B,2) -> 4582.880265 | E64: =VLOOKUP(B64,Lookups!A:C,3) -> 2474.103984 | G64: =VLOOKUP(B64,Lookups!A:D,4) -> 6515.866869 | H64: =VLOOKUP(B64,Lookups!A:E,5) -> 3826.627221 | J64: =VLOOKUP(A64,Trends!$A$3:$Q$94,IF(ExFlg=0,2,10))+IF(B64>=$B$2,Sens,0) -> 1.0595 | K64: 7.504115937 | L64: =VLOOKUP(A64,Trends!$A$3:$Q$94,IF(ExFlg=0,4,12))+IF(B64>=$B$2,Sens,0) -> 1.054 | M64: 6.478601038 | O64: =VLOOKUP(A64,Trends!$A$3:$Q$94,IF(ExFlg=0,6,14))+IF(B64>=$B$2,Sens,0) -> 1.059 | P64: 7.802340782 | Q64: =VLOOKUP(A64,Trends!$A$3:$Q$94,IF(ExFlg=0,8,16))+IF(B64>=$B$2,Sens,0) -> 1.0615 | R64: 6.805398517 | T64: 29690.65284 | U64: =IF(B64=$B$2, E64, IF(B64<$B$2, E64 * Trends!$S$3^(B64 - $B$2), IF(ExFlg=0,E64*VLOOKUP(A64,Trends!$A$4:$V$94,20),E64*VLOOKUP(A64,Trends!$A$4:$Z$94,24)))) -> 16457.06097 | V64: 13233.59188 | X64: 44343.07073 | Y64: =IF(B64=$B$2, H64, IF(B64<$B$2, H64 * Trends!$U$3^(B64 - $B$2), IF(ExFlg=0,H64*VLOOKUP(A64,Trends!$A$4:$V$94,22),H64*VLOOKUP(A64,Trends!$A$4:$Z$94,26)))) -> 26490.30039 | Z64: 17852.77034 | AB64: 16313.05958 | AD64: =IF(B64<71,VLOOKUP(B64,Lookups!A:F,6),"") ->  | AE64: =IF(B64<71,VLOOKUP(Active!B64,Lookups!A:G,7),"") ->  | AG64: =IF(B64<55,VLOOKUP(B64-$B$3,Lookups!$O$3:$Q$53,2),"") ->  | AH64: =IF(B64<55,VLOOKUP(B64-$B$3,Lookups!$O$3:$Q$53,3),"") ->  | AJ64: =IF(B64<55,VLOOKUP(B64,Lookups!A:M,12),"") ->  | AK64: =IF(B64<55,VLOOKUP(B64,Lookups!A:M,13),"") ->  | AM64: =IF(B64<70,VLOOKUP(B64,Lookups!A:H,8)*(1-VLOOKUP(B64,Lookups!$U$3:$W$103,2))^(A64-2018),"") ->  | AN64: =IF(B64<70,VLOOKUP(B64,Lookups!A:I,9)*(1-VLOOKUP(B64,Lookups!$U$3:$W$103,3))^(A64-2018),"") ->  | AS64: 107 | AT64: =IF(BA64>=$B$3,VLOOKUP(BA64,Lookups!A:H,8)*(1-VLOOKUP(BA64,Lookups!U:W,2))^(BA64-$B$2 + ValYear - 2017),"") -> 0.4 | AU64: =IF(BA64>=$B$3,VLOOKUP(BA64,Lookups!A:I,9)*(1-VLOOKUP(BA64,Lookups!U:W,3))^(BA64-$B$2 + ValYear - 2017),"") -> 0.307811 | AV64: 0.3539055 | AW64: 0.007655619795 | AX64: 0.1605657279 | AY64: 0.827558 | BA64: 107 | BB64: 30962.41869 | BN64: 31.49680703 | BO64: 32.71215468 | BP64: 33.98516175 | BQ64: 35.32142457 | BR64: 36.7224727 | BS64: 38.19342723 | BT64: 39.73996657 | BU64: 41.36910992 | BV64: 43.0889696 | BW64: 44.90981083 | BX64: 46.84248873 | BY64: 48.89245282 | BZ64: 51.07126863 | CA64: 53.39273618 | CB64: 55.86312091 | CC64: 58.50323706 | CK64: 50 | CL64: 15 | CM64: 1.606756876 | CO64: =CO63+1 -> 1 | CP64: 0.06 | CQ64: =CP64+1 -> 1.06
A65: 2053 | B65: 97 | D65: =VLOOKUP(B65,Lookups!A:B,2) -> 4582.880265 | E65: =VLOOKUP(B65,Lookups!A:C,3) -> 2474.103984 | G65: =VLOOKUP(B65,Lookups!A:D,4) -> 6515.866869 | H65: =VLOOKUP(B65,Lookups!A:E,5) -> 3826.627221 | J65: =VLOOKUP(A65,Trends!$A$3:$Q$94,IF(ExFlg=0,2,10))+IF(B65>=$B$2,Sens,0) -> 1.059 | K65: 7.950610835 | L65: =VLOOKUP(A65,Trends!$A$3:$Q$94,IF(ExFlg=0,4,12))+IF(B65>=$B$2,Sens,0) -> 1.056 | M65: 6.828445494 | O65: =VLOOKUP(A65,Trends!$A$3:$Q$94,IF(ExFlg=0,6,14))+IF(B65>=$B$2,Sens,0) -> 1.059 | P65: 8.262678888 | Q65: =VLOOKUP(A65,Trends!$A$3:$Q$94,IF(ExFlg=0,8,16))+IF(B65>=$B$2,Sens,0) -> 1.0625 | R65: 7.223930526 | T65: 31293.9481 | U65: =IF(B65=$B$2, E65, IF(B65<$B$2, E65 * Trends!$S$3^(B65 - $B$2), IF(ExFlg=0,E65*VLOOKUP(A65,Trends!$A$4:$V$94,20),E65*VLOOKUP(A65,Trends!$A$4:$Z$94,24)))) -> 17345.74226 | V65: 13948.20584 | X65: 47070.16958 | Y65: =IF(B65=$B$2, H65, IF(B65<$B$2, H65 * Trends!$U$3^(B65 - $B$2), IF(ExFlg=0,H65*VLOOKUP(A65,Trends!$A$4:$V$94,22),H65*VLOOKUP(A65,Trends!$A$4:$Z$94,26)))) -> 28119.45386 | Z65: 18950.71572 | AB65: 17283.2291 | AD65: =IF(B65<71,VLOOKUP(B65,Lookups!A:F,6),"") ->  | AE65: =IF(B65<71,VLOOKUP(Active!B65,Lookups!A:G,7),"") ->  | AG65: =IF(B65<55,VLOOKUP(B65-$B$3,Lookups!$O$3:$Q$53,2),"") ->  | AH65: =IF(B65<55,VLOOKUP(B65-$B$3,Lookups!$O$3:$Q$53,3),"") ->  | AJ65: =IF(B65<55,VLOOKUP(B65,Lookups!A:M,12),"") ->  | AK65: =IF(B65<55,VLOOKUP(B65,Lookups!A:M,13),"") ->  | AM65: =IF(B65<70,VLOOKUP(B65,Lookups!A:H,8)*(1-VLOOKUP(B65,Lookups!$U$3:$W$103,2))^(A65-2018),"") ->  | AN65: =IF(B65<70,VLOOKUP(B65,Lookups!A:I,9)*(1-VLOOKUP(B65,Lookups!$U$3:$W$103,3))^(A65-2018),"") ->  | AS65: 108 | AT65: =IF(BA65>=$B$3,VLOOKUP(BA65,Lookups!A:H,8)*(1-VLOOKUP(BA65,Lookups!U:W,2))^(BA65-$B$2 + ValYear - 2017),"") -> 0.4 | AU65: =IF(BA65>=$B$3,VLOOKUP(BA65,Lookups!A:I,9)*(1-VLOOKUP(BA65,Lookups!U:W,3))^(BA65-$B$2 + ValYear - 2017),"") -> 0.322725 | AV65: 0.3613625 | AW65: 0.004946253844 | AX65: 0.1550161498 | AY65: 0.824259 | BA65: 108 | BB65: 32764.8976 | BN65: 20.70741367 | BO65: 21.50643773 | BP65: 22.34336967 | BQ65: 23.22188878 | BR65: 24.14300067 | BS65: 25.11007215 | BT65: 26.12683648 | BU65: 27.19790839 | BV65: 28.32862128 | BW65: 29.52572398 | BX65: 30.79635312 | BY65: 32.14409146 | BZ65: 33.5765427 | CA65: 35.10277959 | CB65: 36.72692132 | CC65: 38.46265209 | CK65: 51 | CL65: 16 | CM65: 1.5669401 | CO65: =CO64+1 -> 2 | CP65: 0.047 | CQ65: 1.047
A66: 2054 | B66: 98 | D66: =VLOOKUP(B66,Lookups!A:B,2) -> 4582.880265 | E66: =VLOOKUP(B66,Lookups!A:C,3) -> 2474.103984 | G66: =VLOOKUP(B66,Lookups!A:D,4) -> 6515.866869 | H66: =VLOOKUP(B66,Lookups!A:E,5) -> 3826.627221 | J66: =VLOOKUP(A66,Trends!$A$3:$Q$94,IF(ExFlg=0,2,10))+IF(B66>=$B$2,Sens,0) -> 1.059 | K66: 8.419696874 | L66: =VLOOKUP(A66,Trends!$A$3:$Q$94,IF(ExFlg=0,4,12))+IF(B66>=$B$2,Sens,0) -> 1.058 | M66: 7.210838441 | O66: =VLOOKUP(A66,Trends!$A$3:$Q$94,IF(ExFlg=0,6,14))+IF(B66>=$B$2,Sens,0) -> 1.059 | P66: 8.750176943 | Q66: =VLOOKUP(A66,Trends!$A$3:$Q$94,IF(ExFlg=0,8,16))+IF(B66>=$B$2,Sens,0) -> 1.062 | R66: 7.675426184 | T66: 33046.40919 | U66: =IF(B66=$B$2, E66, IF(B66<$B$2, E66 * Trends!$S$3^(B66 - $B$2), IF(ExFlg=0,E66*VLOOKUP(A66,Trends!$A$4:$V$94,20),E66*VLOOKUP(A66,Trends!$A$4:$Z$94,24)))) -> 18317.10382 | V66: 14729.30537 | X66: 50012.05518 | Y66: =IF(B66=$B$2, H66, IF(B66<$B$2, H66 * Trends!$U$3^(B66 - $B$2), IF(ExFlg=0,H66*VLOOKUP(A66,Trends!$A$4:$V$94,22),H66*VLOOKUP(A66,Trends!$A$4:$Z$94,26)))) -> 29876.91973 | Z66: 20135.13545 | AB66: 18333.21011 | AD66: =IF(B66<71,VLOOKUP(B66,Lookups!A:F,6),"") ->  | AE66: =IF(B66<71,VLOOKUP(Active!B66,Lookups!A:G,7),"") ->  | AG66: =IF(B66<55,VLOOKUP(B66-$B$3,Lookups!$O$3:$Q$53,2),"") ->  | AH66: =IF(B66<55,VLOOKUP(B66-$B$3,Lookups!$O$3:$Q$53,3),"") ->  | AJ66: =IF(B66<55,VLOOKUP(B66,Lookups!A:M,12),"") ->  | AK66: =IF(B66<55,VLOOKUP(B66,Lookups!A:M,13),"") ->  | AM66: =IF(B66<70,VLOOKUP(B66,Lookups!A:H,8)*(1-VLOOKUP(B66,Lookups!$U$3:$W$103,2))^(A66-2018),"") ->  | AN66: =IF(B66<70,VLOOKUP(B66,Lookups!A:I,9)*(1-VLOOKUP(B66,Lookups!$U$3:$W$103,3))^(A66-2018),"") ->  | AS66: 109 | AT66: =IF(BA66>=$B$3,VLOOKUP(BA66,Lookups!A:H,8)*(1-VLOOKUP(BA66,Lookups!U:W,2))^(BA66-$B$2 + ValYear - 2017),"") -> 0.4 | AU66: =IF(BA66>=$B$3,VLOOKUP(BA66,Lookups!A:I,9)*(1-VLOOKUP(BA66,Lookups!U:W,3))^(BA66-$B$2 + ValYear - 2017),"") -> 0.337441 | AV66: 0.3687205 | AW66: 0.003158863189 | AX66: 0.1496583798 | AY66: 0.821003 | BA66: 109 | BB66: 34655.9793 | BN66: 13.45100629 | BO66: 13.97003188 | BP66: 14.51368147 | BQ66: 15.08434501 | BR66: 15.68267573 | BS66: 16.31086063 | BT66: 16.97132474 | BU66: 17.66706565 | BV66: 18.40154783 | BW66: 19.17915512 | BX66: 20.00452331 | BY66: 20.87997966 | BZ66: 21.81046335 | CA66: 22.8018678 | CB66: 23.85686873 | CC66: 24.98435504 | CK66: 52 | CL66: 17 | CM66: 1.53071187 | CO66: 3 | CP66: 0.036 | CQ66: 1.036
A67: 2055 | B67: 99 | D67: =VLOOKUP(B67,Lookups!A:B,2) -> 4582.880265 | E67: =VLOOKUP(B67,Lookups!A:C,3) -> 2474.103984 | G67: =VLOOKUP(B67,Lookups!A:D,4) -> 6515.866869 | H67: =VLOOKUP(B67,Lookups!A:E,5) -> 3826.627221 | J67: =VLOOKUP(A67,Trends!$A$3:$Q$94,IF(ExFlg=0,2,10))+IF(B67>=$B$2,Sens,0) -> 1.059 | K67: 8.91645899 | L67: =VLOOKUP(A67,Trends!$A$3:$Q$94,IF(ExFlg=0,4,12))+IF(B67>=$B$2,Sens,0) -> 1.058 | M67: 7.629067071 | O67: =VLOOKUP(A67,Trends!$A$3:$Q$94,IF(ExFlg=0,6,14))+IF(B67>=$B$2,Sens,0) -> 1.059 | P67: 9.266437382 | Q67: =VLOOKUP(A67,Trends!$A$3:$Q$94,IF(ExFlg=0,8,16))+IF(B67>=$B$2,Sens,0) -> 1.062 | R67: 8.151302608 | T67: 34963.10092 | U67: =IF(B67=$B$2, E67, IF(B67<$B$2, E67 * Trends!$S$3^(B67 - $B$2), IF(ExFlg=0,E67*VLOOKUP(A67,Trends!$A$4:$V$94,20),E67*VLOOKUP(A67,Trends!$A$4:$Z$94,24)))) -> 19379.49585 | V67: =T67-U67 -> 15583.60508 | X67: 53112.8026 | Y67: =IF(B67=$B$2, H67, IF(B67<$B$2, H67 * Trends!$U$3^(B67 - $B$2), IF(ExFlg=0,H67*VLOOKUP(A67,Trends!$A$4:$V$94,22),H67*VLOOKUP(A67,Trends!$A$4:$Z$94,26)))) -> 31729.28875 | Z67: 21383.51385 | AB67: =(1-PctUMP)*V67+PctUMP*Z67 -> 19450.23026 | AD67: =IF(B67<71,VLOOKUP(B67,Lookups!A:F,6),"") ->  | AE67: =IF(B67<71,VLOOKUP(Active!B67,Lookups!A:G,7),"") ->  | AF67: =IF(B67<71,PCTMALE*AD67+(1-PCTMALE)*AE67,"") ->  | AG67: =IF(B67<55,VLOOKUP(B67-$B$3,Lookups!$O$3:$Q$53,2),"") ->  | AH67: =IF(B67<55,VLOOKUP(B67-$B$3,Lookups!$O$3:$Q$53,3),"") ->  | AI67: =IF(B67<55,PCTMALE*AG67+(1-PCTMALE)*AH67,"") ->  | AJ67: =IF(B67<55,VLOOKUP(B67,Lookups!A:M,12),"") ->  | AK67: =IF(B67<55,VLOOKUP(B67,Lookups!A:M,13),"") ->  | AL67: =IF(B67<55,PCTMALE*AJ67+(1-PCTMALE)*AK67,"") ->  | AM67: =IF(B67<70,VLOOKUP(B67,Lookups!A:H,8)*(1-VLOOKUP(B67,Lookups!$U$3:$W$103,2))^(A67-2018),"") ->  | AN67: =IF(B67<70,VLOOKUP(B67,Lookups!A:I,9)*(1-VLOOKUP(B67,Lookups!$U$3:$W$103,3))^(A67-2018),"") ->  | AO67: =IF(AM67<>"",PCTMALE*AM67+(1-PCTMALE)*AN67,"") ->  | AR67: =IF(B67<71,IF(B67=$B$2,1,IF(B67<$B$2,AR68*(1+IntRt),AR66/(1+IntRt))),"") ->  | AS67: 110 | AT67: =IF(BA67>=$B$3,VLOOKUP(BA67,Lookups!A:H,8)*(1-VLOOKUP(BA67,Lookups!U:W,2))^(BA67-$B$2 + ValYear - 2017),"") -> 0.4 | AU67: =IF(BA67>=$B$3,VLOOKUP(BA67,Lookups!A:I,9)*(1-VLOOKUP(BA67,Lookups!U:W,3))^(BA67-$B$2 + ValYear - 2017),"") -> 0.351544 | AV67: =IFERROR(PCTMALE*AT67+(1-PCTMALE)*AU67,"") -> 0.375772 | AW67: 0.001994125575 | AX67: 0.1444857885 | AY67: 0.817883 | BA67: 110 | BB67: 36621.60891 | BM67: PV Benefits from Entry Age | BN67: 8.629909423 | BO67: 8.962906356 | BP67: 9.311701575 | BQ67: 9.677828435 | BR67: 10.06170603 | BS67: 10.4647375 | BT67: 10.88847869 | BU67: 11.3348528 | BV67: 11.80608258 | BW67: 12.3049806 | BX67: 12.83452112 | BY67: 13.39619724 | BZ67: 13.99317785 | CA67: 14.62924406 | CB67: 15.30611256 | CC67: 16.0294863 | CD67: PV Benefits from Entry Age | CK67: 53 | CL67: 18 | CM67: 1.49598917 | CO67: 4 | CP67: 0.029 | CQ67: 1.029
A68: =1+A67 -> 2056 | B68: =1+B67 -> 100 | D68: =VLOOKUP(B68,Lookups!A:B,2) -> 4582.880265 | E68: =VLOOKUP(B68,Lookups!A:C,3) -> 2474.103984 | G68: =VLOOKUP(B68,Lookups!A:D,4) -> 6515.866869 | H68: =VLOOKUP(B68,Lookups!A:E,5) -> 3826.627221 | J68: =VLOOKUP(A68,Trends!$A$3:$Q$94,IF(ExFlg=0,2,10))+IF(B68>=$B$2,Sens,0) -> 1.059 | K68: 9.44253007 | L68: =VLOOKUP(A68,Trends!$A$3:$Q$94,IF(ExFlg=0,4,12))+IF(B68>=$B$2,Sens,0) -> 1.0575 | M68: 8.071552961 | O68: =VLOOKUP(A68,Trends!$A$3:$Q$94,IF(ExFlg=0,6,14))+IF(B68>=$B$2,Sens,0) -> 1.0585 | P68: 9.813157188 | Q68: =VLOOKUP(A68,Trends!$A$3:$Q$94,IF(ExFlg=0,8,16))+IF(B68>=$B$2,Sens,0) -> 1.0615 | R68: 8.656683369 | T68: =IF(B68<65,D68*K68,D68*M68) -> 36990.96078 | U68: =IF(B68=$B$2, E68, IF(B68<$B$2, E68 * Trends!$S$3^(B68 - $B$2), IF(ExFlg=0,E68*VLOOKUP(A68,Trends!$A$4:$V$94,20),E68*VLOOKUP(A68,Trends!$A$4:$Z$94,24)))) -> 20503.50661 | V68: 16487.45417 | X68: 56405.79636 | Y68: =IF(B68=$B$2, H68, IF(B68<$B$2, H68 * Trends!$U$3^(B68 - $B$2), IF(ExFlg=0,H68*VLOOKUP(A68,Trends!$A$4:$V$94,22),H68*VLOOKUP(A68,Trends!$A$4:$Z$94,26)))) -> 33696.50465 | Z68: =X68-Y68 -> 22709.2917 | AB68: 20635.3666 | AD68: =IF(B68<71,VLOOKUP(B68,Lookups!A:F,6),"") ->  | AE68: =IF(B68<71,VLOOKUP(Active!B68,Lookups!A:G,7),"") ->  | AG68: =IF(B68<55,VLOOKUP(B68-$B$3,Lookups!$O$3:$Q$53,2),"") ->  | AH68: =IF(B68<55,VLOOKUP(B68-$B$3,Lookups!$O$3:$Q$53,3),"") ->  | AJ68: =IF(B68<55,VLOOKUP(B68,Lookups!A:M,12),"") ->  | AK68: =IF(B68<55,VLOOKUP(B68,Lookups!A:M,13),"") ->  | AM68: =IF(B68<70,VLOOKUP(B68,Lookups!A:H,8)*(1-VLOOKUP(B68,Lookups!$U$3:$W$103,2))^(A68-2018),"") ->  | AN68: =IF(B68<70,VLOOKUP(B68,Lookups!A:I,9)*(1-VLOOKUP(B68,Lookups!$U$3:$W$103,3))^(A68-2018),"") ->  | AP68: =IF(B68<71,SUM(AF68,AI68,AL68,AO68),"") ->  | AQ68: =IF(B68<71,IF(B68=$B$2,1, IF(B68<$B$2, AQ69/(1-AP68), AQ67*(1-AP67))),"") ->  | AS68: 111 | AT68: =IF(BA68>=$B$3,VLOOKUP(BA68,Lookups!A:H,8)*(1-VLOOKUP(BA68,Lookups!U:W,2))^(BA68-$B$2 + ValYear - 2017),"") -> 0.4 | AU68: =IF(BA68>=$B$3,VLOOKUP(BA68,Lookups!A:I,9)*(1-VLOOKUP(BA68,Lookups!U:W,3))^(BA68-$B$2 + ValYear - 2017),"") -> 0.364617 | AV68: 0.3823085 | AW68: =IF(AV67="",1,AW67*(1-AV67)) -> 0.001244789019 | AX68: 0.1394919758 | AY68: 0.81499 | BA68: 111 | BC68: =IF($BB$12<>"",SUM(BC12:BC67)*BC70*BC71*BC72*Part,"") -> 198.7617692 | BD68: =IF($BB$13<>"",SUM(BD12:BD67)*BD70*BD71*BD72*Part,"") -> 255.4140353 | BE68: =IF($BB$14<>"",SUM(BE12:BE67)*BE70*BE71*BE72*Part,"") -> 307.7730041 | BF68: =IF($BB$15<>"",SUM(BF12:BF67)*BF70*BF71*BF72*Part,"") -> 348.1930685 | BG68: =IF($BB$16<>"",SUM(BG12:BG67)*BG70*BG71*BG72*Part,"") -> 464.9746423 | BH68: =IF($BB$17<>"",SUM(BH12:BH67)*BH70*BH71*BH72*Part,"") -> 536.237661 | BI68: =IF($BB$18<>"",SUM(BI12:BI67)*BI70*BI71*BI72*Part,"") -> 721.5839435 | BJ68: =IF($BB$19<>"",SUM(BJ12:BJ67)*BJ70*BJ71*BJ72*Part,"") -> 1126.305372 | BK68: =IF($BB$20<>"",SUM(BK12:BK67)*BK70*BK71*BK72*Part,"") -> 580.8137457 | BL68: =IF($BB$21<>"",SUM(BL12:BL67)*BL70*BL71*BL72*Part,"") -> 723.763643 | BM68: =SUM(BC68:BL68) -> 5263.820884 | BN68: =IF($BB12<>"",SUM(BN12:BN67)*BN70*BN71*BN72*Part,"") -> 1324.256776 | BO68: =IF($BB13<>"",SUM(BO12:BO67)*BO70*BO71*BO72*Part,"") -> 1622.108273 | BP68: =IF($BB14<>"",SUM(BP12:BP67)*BP70*BP71*BP72*Part,"") -> 1897.695272 | BQ68: =IF($BB15<>"",SUM(BQ12:BQ67)*BQ70*BQ71*BQ72*Part,"") -> 2147.293187 | BR68: =IF($BB16<>"",SUM(BR12:BR67)*BR70*BR71*BR72*Part,"") -> 2959.724388 | BS68: =IF($BB17<>"",SUM(BS12:BS67)*BS70*BS71*BS72*Part,"") -> 3654.353742 | BT68: =IF($BB18<>"",SUM(BT12:BT67)*BT70*BT71*BT72*Part,"") -> 5517.51905 | BU68: =IF($BB19<>"",SUM(BU12:BU67)*BU70*BU71*BU72*Part,"") -> 10340.03262 | BV68: =IF($BB20<>"",SUM(BV12:BV67)*BV70*BV71*BV72*Part,"") -> 7319.953338 | BW68: =IF($BB21<>"",SUM(BW12:BW67)*BW70*BW71*BW72*Part,"") -> 16369.73813 | BX68: =IF($BB22<>"",SUM(BX12:BX67)*BX70*BX71*BX72*Part,"") -> 5098.096311 | BY68: =IF($BB23<>"",SUM(BY12:BY67)*BY70*BY71*BY72*Part,"") -> 1790.233643 | BZ68: =IF($BB24<>"",SUM(BZ12:BZ67)*BZ70*BZ71*BZ72*Part,"") -> 1327.475235 | CA68: =IF($BB25<>"",SUM(CA12:CA67)*CA70*CA71*CA72*Part,"") -> 981.6425562 | CB68: =IF($BB26<>"",SUM(CB12:CB67)*CB70*CB71*CB72*Part,"") -> 723.7650125 | CC68: =IF($BB27<>"",SUM(CC12:CC67)*CC70*CC71*CC72*Part,"") -> 2216.183513 | CD68: =SUM(BN68:CC68) -> 65290.07104 | CK68: 54 | CL68: 19 | CM68: 1.46201302 | CO68: 5 | CP68: 0.022 | CQ68: 1.022
A69: 2057 | B69: 101 | D69: =VLOOKUP(B69,Lookups!A:B,2) -> 4582.880265 | E69: =VLOOKUP(B69,Lookups!A:C,3) -> 2474.103984 | G69: =VLOOKUP(B69,Lookups!A:D,4) -> 6515.866869 | H69: =VLOOKUP(B69,Lookups!A:E,5) -> 3826.627221 | J69: =VLOOKUP(A69,Trends!$A$3:$Q$94,IF(ExFlg=0,2,10))+IF(B69>=$B$2,Sens,0) -> 1.059 | K69: 9.999639344 | L69: =VLOOKUP(A69,Trends!$A$3:$Q$94,IF(ExFlg=0,4,12))+IF(B69>=$B$2,Sens,0) -> 1.057 | M69: 8.535667256 | O69: =VLOOKUP(A69,Trends!$A$3:$Q$94,IF(ExFlg=0,6,14))+IF(B69>=$B$2,Sens,0) -> 1.058 | P69: 10.38722688 | Q69: =VLOOKUP(A69,Trends!$A$3:$Q$94,IF(ExFlg=0,8,16))+IF(B69>=$B$2,Sens,0) -> 1.061 | R69: 9.189069396 | T69: 39117.94102 | U69: =IF(B69=$B$2, E69, IF(B69<$B$2, E69 * Trends!$S$3^(B69 - $B$2), IF(ExFlg=0,E69*VLOOKUP(A69,Trends!$A$4:$V$94,20),E69*VLOOKUP(A69,Trends!$A$4:$Z$94,24)))) -> 21682.45823 | V69: =T69-U69 -> 17435.48279 | X69: 59874.75283 | Y69: =IF(B69=$B$2, H69, IF(B69<$B$2, H69 * Trends!$U$3^(B69 - $B$2), IF(ExFlg=0,H69*VLOOKUP(A69,Trends!$A$4:$V$94,22),H69*VLOOKUP(A69,Trends!$A$4:$Z$94,26)))) -> 35768.83969 | Z69: 24105.91314 | AB69: 21882.45859 | AD69: =IF(B69<71,VLOOKUP(B69,Lookups!A:F,6),"") ->  | AE69: =IF(B69<71,VLOOKUP(Active!B69,Lookups!A:G,7),"") ->  | AG69: =IF(B69<55,VLOOKUP(B69-$B$3,Lookups!$O$3:$Q$53,2),"") ->  | AH69: =IF(B69<55,VLOOKUP(B69-$B$3,Lookups!$O$3:$Q$53,3),"") ->  | AJ69: =IF(B69<55,VLOOKUP(B69,Lookups!A:M,12),"") ->  | AK69: =IF(B69<55,VLOOKUP(B69,Lookups!A:M,13),"") ->  | AM69: =IF(B69<70,VLOOKUP(B69,Lookups!A:H,8)*(1-VLOOKUP(B69,Lookups!$U$3:$W$103,2))^(A69-2018),"") ->  | AN69: =IF(B69<70,VLOOKUP(B69,Lookups!A:I,9)*(1-VLOOKUP(B69,Lookups!$U$3:$W$103,3))^(A69-2018),"") ->  | AS69: 112 | AT69: =IF(BA69>=$B$3,VLOOKUP(BA69,Lookups!A:H,8)*(1-VLOOKUP(BA69,Lookups!U:W,2))^(BA69-$B$2 + ValYear - 2017),"") -> 0.4 | AU69: =IF(BA69>=$B$3,VLOOKUP(BA69,Lookups!A:I,9)*(1-VLOOKUP(BA69,Lookups!U:W,3))^(BA69-$B$2 + ValYear - 2017),"") -> 0.376246 | AV69: 0.388123 | AW69: 0.0007688955964 | AX69: 0.1346707625 | AY69: 0.812417 | BA69: 112 | CK69: 55 | CL69: 20 | CM69: 1.429999513 | CO69: 6 | CP69: 0.015 | CQ69: 1.015
A70: 2058 | B70: 102 | D70: =VLOOKUP(B70,Lookups!A:B,2) -> 4582.880265 | E70: =VLOOKUP(B70,Lookups!A:C,3) -> 2474.103984 | G70: =VLOOKUP(B70,Lookups!A:D,4) -> 6515.866869 | H70: =VLOOKUP(B70,Lookups!A:E,5) -> 3826.627221 | J70: =VLOOKUP(A70,Trends!$A$3:$Q$94,IF(ExFlg=0,2,10))+IF(B70>=$B$2,Sens,0) -> 1.0585 | K70: 10.58961807 | L70: =VLOOKUP(A70,Trends!$A$3:$Q$94,IF(ExFlg=0,4,12))+IF(B70>=$B$2,Sens,0) -> 1.057 | M70: 9.02220029 | O70: =VLOOKUP(A70,Trends!$A$3:$Q$94,IF(ExFlg=0,6,14))+IF(B70>=$B$2,Sens,0) -> 1.058 | P70: 10.98968604 | Q70: =VLOOKUP(A70,Trends!$A$3:$Q$94,IF(ExFlg=0,8,16))+IF(B70>=$B$2,Sens,0) -> 1.061 | R70: 9.74960263 | T70: =IF(B70<65,D70*K70,D70*M70) -> 41347.66366 | U70: =IF(B70=$B$2, E70, IF(B70<$B$2, E70 * Trends!$S$3^(B70 - $B$2), IF(ExFlg=0,E70*VLOOKUP(A70,Trends!$A$4:$V$94,20),E70*VLOOKUP(A70,Trends!$A$4:$Z$94,24)))) -> 22918.35835 | V70: 18429.3053 | X70: 63527.11276 | Y70: =IF(B70=$B$2, H70, IF(B70<$B$2, H70 * Trends!$U$3^(B70 - $B$2), IF(ExFlg=0,H70*VLOOKUP(A70,Trends!$A$4:$V$94,22),H70*VLOOKUP(A70,Trends!$A$4:$Z$94,26)))) -> 37950.73891 | Z70: =X70-Y70 -> 25576.37385 | AB70: 23194.04149 | AD70: =IF(B70<71,VLOOKUP(B70,Lookups!A:F,6),"") ->  | AE70: =IF(B70<71,VLOOKUP(Active!B70,Lookups!A:G,7),"") ->  | AG70: =IF(B70<55,VLOOKUP(B70-$B$3,Lookups!$O$3:$Q$53,2),"") ->  | AH70: =IF(B70<55,VLOOKUP(B70-$B$3,Lookups!$O$3:$Q$53,3),"") ->  | AJ70: =IF(B70<55,VLOOKUP(B70,Lookups!A:M,12),"") ->  | AK70: =IF(B70<55,VLOOKUP(B70,Lookups!A:M,13),"") ->  | AM70: =IF(B70<70,VLOOKUP(B70,Lookups!A:H,8)*(1-VLOOKUP(B70,Lookups!$U$3:$W$103,2))^(A70-2018),"") ->  | AN70: =IF(B70<70,VLOOKUP(B70,Lookups!A:I,9)*(1-VLOOKUP(B70,Lookups!$U$3:$W$103,3))^(A70-2018),"") ->  | AS70: 113 | AT70: =IF(BA70>=$B$3,VLOOKUP(BA70,Lookups!A:H,8)*(1-VLOOKUP(BA70,Lookups!U:W,2))^(BA70-$B$2 + ValYear - 2017),"") -> 0.4 | AU70: =IF(BA70>=$B$3,VLOOKUP(BA70,Lookups!A:I,9)*(1-VLOOKUP(BA70,Lookups!U:W,3))^(BA70-$B$2 + ValYear - 2017),"") -> 0.386015 | AV70: 0.3930075 | AW70: 0.0004704695309 | AX70: 0.1300161832 | AY70: 0.810256 | BA70: 113 | BB70: Survive | BC70: =IF(55<$B$3,"",VLOOKUP(55,$B$3:$AR$93,42)) -> 1.446509468 | BD70: =IF(56<$B$3,"",VLOOKUP(56,$B$3:$AR$93,42)) -> 1.413683498 | BE70: =IF(57<$B$3,"",VLOOKUP(57,$B$3:$AR$93,42)) -> 1.37408404 | BF70: =IF(58<$B$3,"",VLOOKUP(58,$B$3:$AR$93,42)) -> 1.328184517 | BG70: =IF(59<$B$3,"",VLOOKUP(59,$B$3:$AR$93,42)) -> 1.276728576 | BH70: =IF(60<$B$3,"",VLOOKUP(60,$B$3:$AR$93,42)) -> 1.207629554 | BI70: =IF(61<$B$3,"",VLOOKUP(61,$B$3:$AR$93,42)) -> 1.123642318 | BJ70: =IF(62<$B$3,"",VLOOKUP(62,$B$3:$AR$93,42)) -> 1 | BK70: =IF(63<$B$3,"",VLOOKUP(63,$B$3:$AR$93,42)) -> 0.7743995 | BL70: =IF(64<$B$3,"",VLOOKUP(64,$B$3:$AR$93,42)) -> 0.6146689025 | BN70: =BC70 -> 1.446509468 | BO70: =BD70 -> 1.413683498 | BP70: 1.37408404 | BQ70: 1.328184517 | BR70: 1.276728576 | BS70: 1.207629554 | BT70: 1.123642318 | BU70: 1 | BV70: 0.7743995 | BW70: 0.6146689025 | BX70: =VLOOKUP(65,$B$3:$AR$93,42) -> 0.2661415932 | BY70: =VLOOKUP(66,$B$3:$AR$93,42) -> 0.1576298875 | BZ70: =VLOOKUP(67,$B$3:$AR$93,42) -> 0.1184594435 | CA70: =VLOOKUP(68,$B$3:$AR$93,42) -> 0.088920591 | CB70: =VLOOKUP(69,$B$3:$AR$93,42) -> 0.06667766031 | CC70: =VLOOKUP(70,$B$3:$AR$93,42) -> 0.04993524833 | CD70: Totals - Scaled for Headcount | CK70: 56 | CL70: 21 | CM70: 1.399841924 | CO70: 7 | CP70: 0.012 | CQ70: 1.012
A71: 2059 | B71: 103 | D71: =VLOOKUP(B71,Lookups!A:B,2) -> 4582.880265 | E71: =VLOOKUP(B71,Lookups!A:C,3) -> 2474.103984 | G71: =VLOOKUP(B71,Lookups!A:D,4) -> 6515.866869 | H71: =VLOOKUP(B71,Lookups!A:E,5) -> 3826.627221 | J71: =VLOOKUP(A71,Trends!$A$3:$Q$94,IF(ExFlg=0,2,10))+IF(B71>=$B$2,Sens,0) -> 1.058 | K71: 11.20911072 | L71: =VLOOKUP(A71,Trends!$A$3:$Q$94,IF(ExFlg=0,4,12))+IF(B71>=$B$2,Sens,0) -> 1.057 | M71: 9.536465707 | O71: =VLOOKUP(A71,Trends!$A$3:$Q$94,IF(ExFlg=0,6,14))+IF(B71>=$B$2,Sens,0) -> 1.058 | P71: 11.62708783 | Q71: =VLOOKUP(A71,Trends!$A$3:$Q$94,IF(ExFlg=0,8,16))+IF(B71>=$B$2,Sens,0) -> 1.061 | R71: 10.34432839 | T71: 43704.48049 | U71: =IF(B71=$B$2, E71, IF(B71<$B$2, E71 * Trends!$S$3^(B71 - $B$2), IF(ExFlg=0,E71*VLOOKUP(A71,Trends!$A$4:$V$94,20),E71*VLOOKUP(A71,Trends!$A$4:$Z$94,24)))) -> 24224.70478 | V71: 19479.77571 | X71: 67402.26664 | Y71: =IF(B71=$B$2, H71, IF(B71<$B$2, H71 * Trends!$U$3^(B71 - $B$2), IF(ExFlg=0,H71*VLOOKUP(A71,Trends!$A$4:$V$94,22),H71*VLOOKUP(A71,Trends!$A$4:$Z$94,26)))) -> 40265.73398 | Z71: 27136.53265 | AB71: 24584.30586 | AD71: =IF(B71<71,VLOOKUP(B71,Lookups!A:F,6),"") ->  | AE71: =IF(B71<71,VLOOKUP(Active!B71,Lookups!A:G,7),"") ->  | AG71: =IF(B71<55,VLOOKUP(B71-$B$3,Lookups!$O$3:$Q$53,2),"") ->  | AH71: =IF(B71<55,VLOOKUP(B71-$B$3,Lookups!$O$3:$Q$53,3),"") ->  | AJ71: =IF(B71<55,VLOOKUP(B71,Lookups!A:M,12),"") ->  | AK71: =IF(B71<55,VLOOKUP(B71,Lookups!A:M,13),"") ->  | AM71: =IF(B71<70,VLOOKUP(B71,Lookups!A:H,8)*(1-VLOOKUP(B71,Lookups!$U$3:$W$103,2))^(A71-2018),"") ->  | AN71: =IF(B71<70,VLOOKUP(B71,Lookups!A:I,9)*(1-VLOOKUP(B71,Lookups!$U$3:$W$103,3))^(A71-2018),"") ->  | AS71: 114 | AT71: =IF(BA71>=$B$3,VLOOKUP(BA71,Lookups!A:H,8)*(1-VLOOKUP(BA71,Lookups!U:W,2))^(BA71-$B$2 + ValYear - 2017),"") -> 0.4 | AU71: =IF(BA71>=$B$3,VLOOKUP(BA71,Lookups!A:I,9)*(1-VLOOKUP(BA71,Lookups!U:W,3))^(BA71-$B$2 + ValYear - 2017),"") -> 0.393507 | AV71: 0.3967535 | AW71: 0.0002855714767 | AX71: 0.1255224784 | AY71: 0.808598 | BA71: 114 | BB71: Interest | BC71: =IF(55<$B$3,"",VLOOKUP(55,$B$3:$AR$93,43)) -> 1.279179076 | BD71: =IF(56<$B$3,"",VLOOKUP(56,$B$3:$AR$93,43)) -> 1.234967248 | BE71: =IF(57<$B$3,"",VLOOKUP(57,$B$3:$AR$93,43)) -> 1.192283499 | BF71: =IF(58<$B$3,"",VLOOKUP(58,$B$3:$AR$93,43)) -> 1.151075013 | BG71: =IF(59<$B$3,"",VLOOKUP(59,$B$3:$AR$93,43)) -> 1.111290803 | BH71: =IF(60<$B$3,"",VLOOKUP(60,$B$3:$AR$93,43)) -> 1.07288164 | BI71: =IF(61<$B$3,"",VLOOKUP(61,$B$3:$AR$93,43)) -> 1.0358 | BJ71: =IF(62<$B$3,"",VLOOKUP(62,$B$3:$AR$93,43)) -> 1 | BK71: =IF(63<$B$3,"",VLOOKUP(63,$B$3:$AR$93,43)) -> 0.9654373431 | BL71: =IF(64<$B$3,"",VLOOKUP(64,$B$3:$AR$93,43)) -> 0.9320692635 | BN71: =BC71 -> 1.279179076 | BO71: 1.234967248 | BP71: 1.192283499 | BQ71: 1.151075013 | BR71: 1.111290803 | BS71: 1.07288164 | BT71: 1.0358 | BU71: 1 | BV71: 0.9654373431 | BW71: 0.9320692635 | BX71: =VLOOKUP(65,$B$3:$AR$93,43) -> 0.8998544733 | BY71: =VLOOKUP(66,$B$3:$AR$93,43) -> 0.8687531119 | BZ71: =VLOOKUP(67,$B$3:$AR$93,43) -> 0.8387266962 | CA71: =VLOOKUP(68,$B$3:$AR$93,43) -> 0.8097380732 | CB71: =VLOOKUP(69,$B$3:$AR$93,43) -> 0.781751374 | CC71: =VLOOKUP(70,$B$3:$AR$93,43) -> 0.7547319695 | CD71: =BM73 -> 30040 | CE71: Count in Cohort | CK71: 57 | CL71: 22 | CM71: 1.362863315 | CO71: 8 | CP71: 0.009 | CQ71: 1.009
A72: 2060 | B72: 104 | D72: =VLOOKUP(B72,Lookups!A:B,2) -> 4582.880265 | E72: =VLOOKUP(B72,Lookups!A:C,3) -> 2474.103984 | G72: =VLOOKUP(B72,Lookups!A:D,4) -> 6515.866869 | H72: =VLOOKUP(B72,Lookups!A:E,5) -> 3826.627221 | J72: =VLOOKUP(A72,Trends!$A$3:$Q$94,IF(ExFlg=0,2,10))+IF(B72>=$B$2,Sens,0) -> 1.058 | K72: 11.85923914 | L72: =VLOOKUP(A72,Trends!$A$3:$Q$94,IF(ExFlg=0,4,12))+IF(B72>=$B$2,Sens,0) -> 1.057 | M72: 10.08004425 | O72: =VLOOKUP(A72,Trends!$A$3:$Q$94,IF(ExFlg=0,6,14))+IF(B72>=$B$2,Sens,0) -> 1.058 | P72: 12.30145893 | Q72: =VLOOKUP(A72,Trends!$A$3:$Q$94,IF(ExFlg=0,8,16))+IF(B72>=$B$2,Sens,0) -> 1.0605 | R72: 10.97533242 | T72: 46195.63587 | U72: =IF(B72=$B$2, E72, IF(B72<$B$2, E72 * Trends!$S$3^(B72 - $B$2), IF(ExFlg=0,E72*VLOOKUP(A72,Trends!$A$4:$V$94,20),E72*VLOOKUP(A72,Trends!$A$4:$Z$94,24)))) -> 25605.51295 | V72: 20590.12292 | X72: 71513.8049 | Y72: =IF(B72=$B$2, H72, IF(B72<$B$2, H72 * Trends!$U$3^(B72 - $B$2), IF(ExFlg=0,H72*VLOOKUP(A72,Trends!$A$4:$V$94,22),H72*VLOOKUP(A72,Trends!$A$4:$Z$94,26)))) -> 42721.94376 | Z72: 28791.86114 | AB72: 26057.97574 | AD72: =IF(B72<71,VLOOKUP(B72,Lookups!A:F,6),"") ->  | AE72: =IF(B72<71,VLOOKUP(Active!B72,Lookups!A:G,7),"") ->  | AG72: =IF(B72<55,VLOOKUP(B72-$B$3,Lookups!$O$3:$Q$53,2),"") ->  | AH72: =IF(B72<55,VLOOKUP(B72-$B$3,Lookups!$O$3:$Q$53,3),"") ->  | AJ72: =IF(B72<55,VLOOKUP(B72,Lookups!A:M,12),"") ->  | AK72: =IF(B72<55,VLOOKUP(B72,Lookups!A:M,13),"") ->  | AM72: =IF(B72<70,VLOOKUP(B72,Lookups!A:H,8)*(1-VLOOKUP(B72,Lookups!$U$3:$W$103,2))^(A72-2018),"") ->  | AN72: =IF(B72<70,VLOOKUP(B72,Lookups!A:I,9)*(1-VLOOKUP(B72,Lookups!$U$3:$W$103,3))^(A72-2018),"") ->  | AS72: 115 | AT72: =IF(BA72>=$B$3,VLOOKUP(BA72,Lookups!A:H,8)*(1-VLOOKUP(BA72,Lookups!U:W,2))^(BA72-$B$2 + ValYear - 2017),"") -> 0.4 | AU72: =IF(BA72>=$B$3,VLOOKUP(BA72,Lookups!A:I,9)*(1-VLOOKUP(BA72,Lookups!U:W,3))^(BA72-$B$2 + ValYear - 2017),"") -> 0.398308 | AV72: 0.399154 | AW72: 0.0001722699938 | AX72: 0.1211840881 | AY72: 0.807536 | BA72: 115 | BB72: Retire | BC72: =IF(55<$B$3,"",VLOOKUP(55,$B$3:$AR$93,31)) -> 0.02 | BD72: =IF(56<$B$3,"",VLOOKUP(56,$B$3:$AR$93,31)) -> 0.025 | BE72: =IF(57<$B$3,"",VLOOKUP(57,$B$3:$AR$93,31)) -> 0.03 | BF72: =IF(58<$B$3,"",VLOOKUP(58,$B$3:$AR$93,31)) -> 0.035 | BG72: =IF(59<$B$3,"",VLOOKUP(59,$B$3:$AR$93,31)) -> 0.05 | BH72: =IF(60<$B$3,"",VLOOKUP(60,$B$3:$AR$93,31)) -> 0.065 | BI72: =IF(61<$B$3,"",VLOOKUP(61,$B$3:$AR$93,31)) -> 0.105 | BJ72: =IF(62<$B$3,"",VLOOKUP(62,$B$3:$AR$93,31)) -> 0.22 | BK72: =IF(63<$B$3,"",VLOOKUP(63,$B$3:$AR$93,31)) -> 0.2 | BL72: =IF(64<$B$3,"",VLOOKUP(64,$B$3:$AR$93,31)) -> 0.56 | BM72: Totals - Scaled for Headcount | BN72: =BC72 -> 0.02 | BO72: 0.025 | BP72: 0.03 | BQ72: 0.035 | BR72: 0.05 | BS72: 0.065 | BT72: 0.105 | BU72: 0.22 | BV72: 0.2 | BW72: 0.56 | BX72: =VLOOKUP(65,$B$3:$AR$93,31) -> 0.4 | BY72: =VLOOKUP(66,$B$3:$AR$93,31) -> 0.24 | BZ72: =VLOOKUP(67,$B$3:$AR$93,31) -> 0.24 | CA72: =VLOOKUP(68,$B$3:$AR$93,31) -> 0.24 | CB72: =VLOOKUP(69,$B$3:$AR$93,31) -> 0.24 | CC72: =VLOOKUP(70,$B$3:$AR$93,31) -> 1 | CD72: =CD68*CD71 -> 1961313734 | CG72: PVSalary @ Entry Age | CH72: =SUM(CM26:CM138) -> 53.34164125 | CK72: 58 | CL72: 23 | CM72: 1.31950068 | CO72: 9 | CP72: 0.007 | CQ72: 1.007
A73: 2061 | B73: 105 | D73: =VLOOKUP(B73,Lookups!A:B,2) -> 4582.880265 | E73: =VLOOKUP(B73,Lookups!A:C,3) -> 2474.103984 | G73: =VLOOKUP(B73,Lookups!A:D,4) -> 6515.866869 | H73: =VLOOKUP(B73,Lookups!A:E,5) -> 3826.627221 | J73: =VLOOKUP(A73,Trends!$A$3:$Q$94,IF(ExFlg=0,2,10))+IF(B73>=$B$2,Sens,0) -> 1.058 | K73: =IF(B73=$B$2,1,IF(B73<$B$2,K74/J73,K72*J72)) -> 12.54707501 | L73: =VLOOKUP(A73,Trends!$A$3:$Q$94,IF(ExFlg=0,4,12))+IF(B73>=$B$2,Sens,0) -> 1.057 | M73: =IF(B73=$B$2,1,IF(B73<$B$2,M74/L73,M72*L72)) -> 10.65460677 | O73: =VLOOKUP(A73,Trends!$A$3:$Q$94,IF(ExFlg=0,6,14))+IF(B73>=$B$2,Sens,0) -> 1.0575 | P73: =IF(B73=$B$2,1,IF(B73<$B$2,P74/O73,P72*O72)) -> 13.01494354 | Q73: =VLOOKUP(A73,Trends!$A$3:$Q$94,IF(ExFlg=0,8,16))+IF(B73>=$B$2,Sens,0) -> 1.06 | R73: =IF(B73=$B$2,1,IF(B73<$B$2,R74/Q73,R72*Q72)) -> 11.63934003 | T73: 48828.78712 | U73: =IF(B73=$B$2, E73, IF(B73<$B$2, E73 * Trends!$S$3^(B73 - $B$2), IF(ExFlg=0,E73*VLOOKUP(A73,Trends!$A$4:$V$94,20),E73*VLOOKUP(A73,Trends!$A$4:$Z$94,24)))) -> 27065.02719 | V73: 21763.75993 | X73: 75840.3901 | Y73: =IF(B73=$B$2, H73, IF(B73<$B$2, H73 * Trends!$U$3^(B73 - $B$2), IF(ExFlg=0,H73*VLOOKUP(A73,Trends!$A$4:$V$94,22),H73*VLOOKUP(A73,Trends!$A$4:$Z$94,26)))) -> 45306.62135 | Z73: 30533.76874 | AB73: 27610.4617 | AD73: =IF(B73<71,VLOOKUP(B73,Lookups!A:F,6),"") ->  | AE73: =IF(B73<71,VLOOKUP(Active!B73,Lookups!A:G,7),"") ->  | AG73: =IF(B73<55,VLOOKUP(B73-$B$3,Lookups!$O$3:$Q$53,2),"") ->  | AH73: =IF(B73<55,VLOOKUP(B73-$B$3,Lookups!$O$3:$Q$53,3),"") ->  | AJ73: =IF(B73<55,VLOOKUP(B73,Lookups!A:M,12),"") ->  | AK73: =IF(B73<55,VLOOKUP(B73,Lookups!A:M,13),"") ->  | AM73: =IF(B73<70,VLOOKUP(B73,Lookups!A:H,8)*(1-VLOOKUP(B73,Lookups!$U$3:$W$103,2))^(A73-2018),"") ->  | AN73: =IF(B73<70,VLOOKUP(B73,Lookups!A:I,9)*(1-VLOOKUP(B73,Lookups!$U$3:$W$103,3))^(A73-2018),"") ->  | AS73: 116 | AT73: =IF(BA73>=$B$3,VLOOKUP(BA73,Lookups!A:H,8)*(1-VLOOKUP(BA73,Lookups!U:W,2))^(BA73-$B$2 + ValYear - 2017),"") -> 0.4 | AU73: =IF(BA73>=$B$3,VLOOKUP(BA73,Lookups!A:I,9)*(1-VLOOKUP(BA73,Lookups!U:W,3))^(BA73-$B$2 + ValYear - 2017),"") -> 0.4 | AV73: 0.4 | AW73: 0.0001035077367 | AX73: 0.116995644 | AY73: 0.807162 | BA73: 116 | BM73: =B1 -> 30040 | BN73: Count in Cohort | CD73: =CD72*(1+PctMarried) -> 2843904915 | CE73: with spouses | CG73: PVSalary @ Attained Age | CH73: =SUM(CM76:CM138) -> 3.145756841 | CK73: 59 | CL73: 24 | CM73: 1.270462887 | CO73: 10 | CP73: 0.005 | CQ73: 1.005
A74: 2062 | B74: 106 | D74: =VLOOKUP(B74,Lookups!A:B,2) -> 4582.880265 | E74: =VLOOKUP(B74,Lookups!A:C,3) -> 2474.103984 | G74: =VLOOKUP(B74,Lookups!A:D,4) -> 6515.866869 | H74: =VLOOKUP(B74,Lookups!A:E,5) -> 3826.627221 | J74: =VLOOKUP(A74,Trends!$A$3:$Q$94,IF(ExFlg=0,2,10))+IF(B74>=$B$2,Sens,0) -> 1.0575 | K74: 13.27480537 | L74: =VLOOKUP(A74,Trends!$A$3:$Q$94,IF(ExFlg=0,4,12))+IF(B74>=$B$2,Sens,0) -> 1.0565 | M74: 11.26191936 | O74: =VLOOKUP(A74,Trends!$A$3:$Q$94,IF(ExFlg=0,6,14))+IF(B74>=$B$2,Sens,0) -> 1.057 | P74: 13.7633028 | Q74: =VLOOKUP(A74,Trends!$A$3:$Q$94,IF(ExFlg=0,8,16))+IF(B74>=$B$2,Sens,0) -> 1.0595 | R74: 12.33770044 | T74: 51612.02799 | U74: =IF(B74=$B$2, E74, IF(B74<$B$2, E74 * Trends!$S$3^(B74 - $B$2), IF(ExFlg=0,E74*VLOOKUP(A74,Trends!$A$4:$V$94,20),E74*VLOOKUP(A74,Trends!$A$4:$Z$94,24)))) -> 28607.73374 | V74: 23004.29424 | X74: 80390.8135 | Y74: =IF(B74=$B$2, H74, IF(B74<$B$2, H74 * Trends!$U$3^(B74 - $B$2), IF(ExFlg=0,H74*VLOOKUP(A74,Trends!$A$4:$V$94,22),H74*VLOOKUP(A74,Trends!$A$4:$Z$94,26)))) -> 48025.01864 | Z74: 32365.79487 | AB74: 29245.32586 | AD74: =IF(B74<71,VLOOKUP(B74,Lookups!A:F,6),"") ->  | AE74: =IF(B74<71,VLOOKUP(Active!B74,Lookups!A:G,7),"") ->  | AG74: =IF(B74<55,VLOOKUP(B74-$B$3,Lookups!$O$3:$Q$53,2),"") ->  | AH74: =IF(B74<55,VLOOKUP(B74-$B$3,Lookups!$O$3:$Q$53,3),"") ->  | AJ74: =IF(B74<55,VLOOKUP(B74,Lookups!A:M,12),"") ->  | AK74: =IF(B74<55,VLOOKUP(B74,Lookups!A:M,13),"") ->  | AM74: =IF(B74<70,VLOOKUP(B74,Lookups!A:H,8)*(1-VLOOKUP(B74,Lookups!$U$3:$W$103,2))^(A74-2018),"") ->  | AN74: =IF(B74<70,VLOOKUP(B74,Lookups!A:I,9)*(1-VLOOKUP(B74,Lookups!$U$3:$W$103,3))^(A74-2018),"") ->  | AS74: 117 | AT74: =IF(BA74>=$B$3,VLOOKUP(BA74,Lookups!A:H,8)*(1-VLOOKUP(BA74,Lookups!U:W,2))^(BA74-$B$2 + ValYear - 2017),"") -> 0.4 | AU74: =IF(BA74>=$B$3,VLOOKUP(BA74,Lookups!A:I,9)*(1-VLOOKUP(BA74,Lookups!U:W,3))^(BA74-$B$2 + ValYear - 2017),"") -> 0.4 | AV74: 0.4 | AW74: 6.210464203e-05 | AX74: 0.1129519637 | AY74: 0.807162 | BA74: 117 | BM74: =BM68*BM73 -> 158125179.4 | CK74: 60 | CL74: 25 | CM74: 1.203675264 | CO74: 11 | CP74: 0.004 | CQ74: 1.004
A75: 2063 | B75: 107 | D75: =VLOOKUP(B75,Lookups!A:B,2) -> 4582.880265 | E75: =VLOOKUP(B75,Lookups!A:C,3) -> 2474.103984 | G75: =VLOOKUP(B75,Lookups!A:D,4) -> 6515.866869 | H75: =VLOOKUP(B75,Lookups!A:E,5) -> 3826.627221 | J75: =VLOOKUP(A75,Trends!$A$3:$Q$94,IF(ExFlg=0,2,10))+IF(B75>=$B$2,Sens,0) -> 1.057 | K75: 14.03810667 | L75: =VLOOKUP(A75,Trends!$A$3:$Q$94,IF(ExFlg=0,4,12))+IF(B75>=$B$2,Sens,0) -> 1.056 | M75: 11.8982178 | O75: =VLOOKUP(A75,Trends!$A$3:$Q$94,IF(ExFlg=0,6,14))+IF(B75>=$B$2,Sens,0) -> 1.057 | P75: 14.54781106 | Q75: =VLOOKUP(A75,Trends!$A$3:$Q$94,IF(ExFlg=0,8,16))+IF(B75>=$B$2,Sens,0) -> 1.059 | R75: 13.07179361 | T75: 54528.10757 | U75: =IF(B75=$B$2, E75, IF(B75<$B$2, E75 * Trends!$S$3^(B75 - $B$2), IF(ExFlg=0,E75*VLOOKUP(A75,Trends!$A$4:$V$94,20),E75*VLOOKUP(A75,Trends!$A$4:$Z$94,24)))) -> 30224.0707 | V75: 24304.03687 | X75: 85174.06691 | Y75: =IF(B75=$B$2, H75, IF(B75<$B$2, H75 * Trends!$U$3^(B75 - $B$2), IF(ExFlg=0,H75*VLOOKUP(A75,Trends!$A$4:$V$94,22),H75*VLOOKUP(A75,Trends!$A$4:$Z$94,26)))) -> 50882.50724 | Z75: 34291.55966 | AB75: 30962.41869 | AD75: =IF(B75<71,VLOOKUP(B75,Lookups!A:F,6),"") ->  | AE75: =IF(B75<71,VLOOKUP(Active!B75,Lookups!A:G,7),"") ->  | AG75: =IF(B75<55,VLOOKUP(B75-$B$3,Lookups!$O$3:$Q$53,2),"") ->  | AH75: =IF(B75<55,VLOOKUP(B75-$B$3,Lookups!$O$3:$Q$53,3),"") ->  | AJ75: =IF(B75<55,VLOOKUP(B75,Lookups!A:M,12),"") ->  | AK75: =IF(B75<55,VLOOKUP(B75,Lookups!A:M,13),"") ->  | AM75: =IF(B75<70,VLOOKUP(B75,Lookups!A:H,8)*(1-VLOOKUP(B75,Lookups!$U$3:$W$103,2))^(A75-2018),"") ->  | AN75: =IF(B75<70,VLOOKUP(B75,Lookups!A:I,9)*(1-VLOOKUP(B75,Lookups!$U$3:$W$103,3))^(A75-2018),"") ->  | AS75: 118 | AT75: =IF(BA75>=$B$3,VLOOKUP(BA75,Lookups!A:H,8)*(1-VLOOKUP(BA75,Lookups!U:W,2))^(BA75-$B$2 + ValYear - 2017),"") -> 0.4 | AU75: =IF(BA75>=$B$3,VLOOKUP(BA75,Lookups!A:I,9)*(1-VLOOKUP(BA75,Lookups!U:W,3))^(BA75-$B$2 + ValYear - 2017),"") -> 0.4 | AV75: 0.4 | AW75: 3.726278522e-05 | AX75: 0.1090480438 | AY75: 0.807162 | BA75: 118 | BM75: =BM74*(1+PctMarried) -> 229281510.1 | BN75: with spouses | CG75: PV Benefits from Entry Age | CH75: =Explicit+Implicit -> 3073186425 | CK75: 61 | CL75: =IF(CL76=0,0,CL76-1) -> 26 | CM75: 1.121801169 | CO75: 12 | CP75: 0.003 | CQ75: 1.003
A76: 2064 | B76: 108 | D76: =VLOOKUP(B76,Lookups!A:B,2) -> 4582.880265 | E76: =VLOOKUP(B76,Lookups!A:C,3) -> 2474.103984 | G76: =VLOOKUP(B76,Lookups!A:D,4) -> 6515.866869 | H76: =VLOOKUP(B76,Lookups!A:E,5) -> 3826.627221 | J76: =VLOOKUP(A76,Trends!$A$3:$Q$94,IF(ExFlg=0,2,10))+IF(B76>=$B$2,Sens,0) -> 1.0565 | K76: 14.83827875 | L76: =VLOOKUP(A76,Trends!$A$3:$Q$94,IF(ExFlg=0,4,12))+IF(B76>=$B$2,Sens,0) -> 1.0555 | M76: 12.564518 | O76: =VLOOKUP(A76,Trends!$A$3:$Q$94,IF(ExFlg=0,6,14))+IF(B76>=$B$2,Sens,0) -> 1.0565 | P76: 15.37703629 | Q76: =VLOOKUP(A76,Trends!$A$3:$Q$94,IF(ExFlg=0,8,16))+IF(B76>=$B$2,Sens,0) -> 1.0585 | R76: 13.84302943 | T76: 57581.68159 | U76: =IF(B76=$B$2, E76, IF(B76<$B$2, E76 * Trends!$S$3^(B76 - $B$2), IF(ExFlg=0,E76*VLOOKUP(A76,Trends!$A$4:$V$94,20),E76*VLOOKUP(A76,Trends!$A$4:$Z$94,24)))) -> 31916.61866 | V76: 25665.06293 | X76: 90199.33685 | Y76: =IF(B76=$B$2, H76, IF(B76<$B$2, H76 * Trends!$U$3^(B76 - $B$2), IF(ExFlg=0,H76*VLOOKUP(A76,Trends!$A$4:$V$94,22),H76*VLOOKUP(A76,Trends!$A$4:$Z$94,26)))) -> 53884.57517 | Z76: 36314.76168 | AB76: 32764.8976 | AD76: =IF(B76<71,VLOOKUP(B76,Lookups!A:F,6),"") ->  | AE76: =IF(B76<71,VLOOKUP(Active!B76,Lookups!A:G,7),"") ->  | AG76: =IF(B76<55,VLOOKUP(B76-$B$3,Lookups!$O$3:$Q$53,2),"") ->  | AH76: =IF(B76<55,VLOOKUP(B76-$B$3,Lookups!$O$3:$Q$53,3),"") ->  | AJ76: =IF(B76<55,VLOOKUP(B76,Lookups!A:M,12),"") ->  | AK76: =IF(B76<55,VLOOKUP(B76,Lookups!A:M,13),"") ->  | AM76: =IF(B76<70,VLOOKUP(B76,Lookups!A:H,8)*(1-VLOOKUP(B76,Lookups!$U$3:$W$103,2))^(A76-2018),"") ->  | AN76: =IF(B76<70,VLOOKUP(B76,Lookups!A:I,9)*(1-VLOOKUP(B76,Lookups!$U$3:$W$103,3))^(A76-2018),"") ->  | AS76: 119 | AT76: =IF(BA76>=$B$3,VLOOKUP(BA76,Lookups!A:H,8)*(1-VLOOKUP(BA76,Lookups!U:W,2))^(BA76-$B$2 + ValYear - 2017),"") -> 0.4 | AU76: =IF(BA76>=$B$3,VLOOKUP(BA76,Lookups!A:I,9)*(1-VLOOKUP(BA76,Lookups!U:W,3))^(BA76-$B$2 + ValYear - 2017),"") -> 0.4 | AV76: 0.4 | AW76: 2.235767113e-05 | AX76: 0.1052790536 | AY76: 0.807162 | BA76: 119 | BM76: PV Benefits Attained Age | CD76: PVFB | CG76: PVFB | CH76: =CD82+BM82 -> 2116831820 | CJ76: Current Age | CK76: =B2 -> 62 | CL76: =MS -> 27 | CM76: 1 | CO76: 13 | CP76: 0.003 | CQ76: 1.003
A77: 2065 | B77: 109 | D77: =VLOOKUP(B77,Lookups!A:B,2) -> 4582.880265 | E77: =VLOOKUP(B77,Lookups!A:C,3) -> 2474.103984 | G77: =VLOOKUP(B77,Lookups!A:D,4) -> 6515.866869 | H77: =VLOOKUP(B77,Lookups!A:E,5) -> 3826.627221 | J77: =VLOOKUP(A77,Trends!$A$3:$Q$94,IF(ExFlg=0,2,10))+IF(B77>=$B$2,Sens,0) -> 1.0555 | K77: 15.6766415 | L77: =VLOOKUP(A77,Trends!$A$3:$Q$94,IF(ExFlg=0,4,12))+IF(B77>=$B$2,Sens,0) -> 1.0545 | M77: 13.26184875 | O77: =VLOOKUP(A77,Trends!$A$3:$Q$94,IF(ExFlg=0,6,14))+IF(B77>=$B$2,Sens,0) -> 1.0555 | P77: 16.24583884 | Q77: =VLOOKUP(A77,Trends!$A$3:$Q$94,IF(ExFlg=0,8,16))+IF(B77>=$B$2,Sens,0) -> 1.0575 | R77: 14.65284666 | T77: 60777.46492 | U77: =IF(B77=$B$2, E77, IF(B77<$B$2, E77 * Trends!$S$3^(B77 - $B$2), IF(ExFlg=0,E77*VLOOKUP(A77,Trends!$A$4:$V$94,20),E77*VLOOKUP(A77,Trends!$A$4:$Z$94,24)))) -> 33687.99099 | V77: 27089.47393 | X77: 95475.99806 | Y77: =IF(B77=$B$2, H77, IF(B77<$B$2, H77 * Trends!$U$3^(B77 - $B$2), IF(ExFlg=0,H77*VLOOKUP(A77,Trends!$A$4:$V$94,22),H77*VLOOKUP(A77,Trends!$A$4:$Z$94,26)))) -> 57036.82282 | Z77: 38439.17524 | AB77: 34655.9793 | AD77: =IF(B77<71,VLOOKUP(B77,Lookups!A:F,6),"") ->  | AE77: =IF(B77<71,VLOOKUP(Active!B77,Lookups!A:G,7),"") ->  | AG77: =IF(B77<55,VLOOKUP(B77-$B$3,Lookups!$O$3:$Q$53,2),"") ->  | AH77: =IF(B77<55,VLOOKUP(B77-$B$3,Lookups!$O$3:$Q$53,3),"") ->  | AJ77: =IF(B77<55,VLOOKUP(B77,Lookups!A:M,12),"") ->  | AK77: =IF(B77<55,VLOOKUP(B77,Lookups!A:M,13),"") ->  | AM77: =IF(B77<70,VLOOKUP(B77,Lookups!A:H,8)*(1-VLOOKUP(B77,Lookups!$U$3:$W$103,2))^(A77-2018),"") ->  | AN77: =IF(B77<70,VLOOKUP(B77,Lookups!A:I,9)*(1-VLOOKUP(B77,Lookups!$U$3:$W$103,3))^(A77-2018),"") ->  | AS77: 120 | AT77: =IF(BA77>=$B$3,VLOOKUP(BA77,Lookups!A:H,8)*(1-VLOOKUP(BA77,Lookups!U:W,2))^(BA77-$B$2 + ValYear - 2017),"") -> 1 | AU77: =IF(BA77>=$B$3,VLOOKUP(BA77,Lookups!A:I,9)*(1-VLOOKUP(BA77,Lookups!U:W,3))^(BA77-$B$2 + ValYear - 2017),"") -> 1 | AV77: 1 | AW77: 1.341460268e-05 | AX77: 0.1016403298 | AY77: 0.541667 | BA77: 120 | BC77: =IF(BC70<=1,SUM(BC12:BC67)*BC70*BC71*BC72*Part,"") ->  | BJ77: 1126.305372 | BK77: 580.8137457 | BL77: 723.763643 | BM77: =SUM(BC77:BL77) -> 2430.88276 | BN77: =IF(BN70<=1,SUM(BN12:BN67)*BN70*BN71*BN72*Part,"") ->  | BU77: 10340.03262 | BV77: 7319.953338 | BW77: 16369.73813 | BX77: 5098.096311 | BY77: 1790.233643 | BZ77: 1327.475235 | CA77: 981.6425562 | CB77: 723.7650125 | CC77: 2216.183513 | CD77: =SUM(BN77:CC77) -> 46167.12036 | CK77: =IF(CK76<70,CK76+1, "") -> 63 | CL77: =IF(CK77<71,CL76+1,"") -> 28 | CM77: =IF(CK77<71,CM76*(1-VLOOKUP(CK76,$B$3:$AR$93,41,FALSE))* 1/(1+IntRt)*(1+$CQ$60)*VLOOKUP(MIN(CL76,30),$CO$63:$CQ$93,3,FALSE),"") -> 0.7756704781 | CO77: 14 | CP77: 0.002 | CQ77: 1.002
A78: 2066 | B78: 110 | D78: =VLOOKUP(B78,Lookups!A:B,2) -> 4582.880265 | E78: =VLOOKUP(B78,Lookups!A:C,3) -> 2474.103984 | G78: =VLOOKUP(B78,Lookups!A:D,4) -> 6515.866869 | H78: =VLOOKUP(B78,Lookups!A:E,5) -> 3826.627221 | J78: =VLOOKUP(A78,Trends!$A$3:$Q$94,IF(ExFlg=0,2,10))+IF(B78>=$B$2,Sens,0) -> 1.0545 | K78: 16.54669511 | L78: =VLOOKUP(A78,Trends!$A$3:$Q$94,IF(ExFlg=0,4,12))+IF(B78>=$B$2,Sens,0) -> 1.0555 | M78: 13.98461951 | O78: =VLOOKUP(A78,Trends!$A$3:$Q$94,IF(ExFlg=0,6,14))+IF(B78>=$B$2,Sens,0) -> 1.0545 | P78: 17.14748289 | Q78: =VLOOKUP(A78,Trends!$A$3:$Q$94,IF(ExFlg=0,8,16))+IF(B78>=$B$2,Sens,0) -> 1.0565 | R78: 15.49538534 | T78: 64089.83676 | U78: =IF(B78=$B$2, E78, IF(B78<$B$2, E78 * Trends!$S$3^(B78 - $B$2), IF(ExFlg=0,E78*VLOOKUP(A78,Trends!$A$4:$V$94,20),E78*VLOOKUP(A78,Trends!$A$4:$Z$94,24)))) -> 35523.9865 | V78: 28565.85026 | X78: 100965.8679 | Y78: =IF(B78=$B$2, H78, IF(B78<$B$2, H78 * Trends!$U$3^(B78 - $B$2), IF(ExFlg=0,H78*VLOOKUP(A78,Trends!$A$4:$V$94,22),H78*VLOOKUP(A78,Trends!$A$4:$Z$94,26)))) -> 60316.44013 | Z78: 40649.42782 | AB78: 36621.60891 | AD78: =IF(B78<71,VLOOKUP(B78,Lookups!A:F,6),"") ->  | AE78: =IF(B78<71,VLOOKUP(Active!B78,Lookups!A:G,7),"") ->  | AG78: =IF(B78<55,VLOOKUP(B78-$B$3,Lookups!$O$3:$Q$53,2),"") ->  | AH78: =IF(B78<55,VLOOKUP(B78-$B$3,Lookups!$O$3:$Q$53,3),"") ->  | AJ78: =IF(B78<55,VLOOKUP(B78,Lookups!A:M,12),"") ->  | AK78: =IF(B78<55,VLOOKUP(B78,Lookups!A:M,13),"") ->  | AM78: =IF(B78<70,VLOOKUP(B78,Lookups!A:H,8)*(1-VLOOKUP(B78,Lookups!$U$3:$W$103,2))^(A78-2018),"") ->  | AN78: =IF(B78<70,VLOOKUP(B78,Lookups!A:I,9)*(1-VLOOKUP(B78,Lookups!$U$3:$W$103,3))^(A78-2018),"") ->  | CG78: EANC Rate | CH78: =CH75/CH72 -> 57613270.84 | CK78: =IF(CK77<70,CK77+1, "") -> 64 | CL78: 29 | CM78: 0.6166882009 | CO78: 15 | CP78: 0.002 | CQ78: 1.002
A79: 2067 | B79: 111 | D79: =VLOOKUP(B79,Lookups!A:B,2) -> 4582.880265 | E79: =VLOOKUP(B79,Lookups!A:C,3) -> 2474.103984 | G79: =VLOOKUP(B79,Lookups!A:D,4) -> 6515.866869 | H79: =VLOOKUP(B79,Lookups!A:E,5) -> 3826.627221 | J79: =VLOOKUP(A79,Trends!$A$3:$Q$94,IF(ExFlg=0,2,10))+IF(B79>=$B$2,Sens,0) -> 1.0535 | K79: 17.44848999 | L79: =VLOOKUP(A79,Trends!$A$3:$Q$94,IF(ExFlg=0,4,12))+IF(B79>=$B$2,Sens,0) -> 1.057 | M79: 14.76076589 | O79: =VLOOKUP(A79,Trends!$A$3:$Q$94,IF(ExFlg=0,6,14))+IF(B79>=$B$2,Sens,0) -> 1.0535 | P79: 18.08202071 | Q79: =VLOOKUP(A79,Trends!$A$3:$Q$94,IF(ExFlg=0,8,16))+IF(B79>=$B$2,Sens,0) -> 1.0555 | R79: 16.37087461 | T79: 67646.8227 | U79: =IF(B79=$B$2, E79, IF(B79<$B$2, E79 * Trends!$S$3^(B79 - $B$2), IF(ExFlg=0,E79*VLOOKUP(A79,Trends!$A$4:$V$94,20),E79*VLOOKUP(A79,Trends!$A$4:$Z$94,24)))) -> 37495.56775 | V79: 30151.25494 | X79: 106670.4395 | Y79: =IF(B79=$B$2, H79, IF(B79<$B$2, H79 * Trends!$U$3^(B79 - $B$2), IF(ExFlg=0,H79*VLOOKUP(A79,Trends!$A$4:$V$94,22),H79*VLOOKUP(A79,Trends!$A$4:$Z$94,26)))) -> 63724.319 | Z79: 42946.12049 | AB79: 38681.20796 | AD79: =IF(B79<71,VLOOKUP(B79,Lookups!A:F,6),"") ->  | AE79: =IF(B79<71,VLOOKUP(Active!B79,Lookups!A:G,7),"") ->  | AG79: =IF(B79<55,VLOOKUP(B79-$B$3,Lookups!$O$3:$Q$53,2),"") ->  | AH79: =IF(B79<55,VLOOKUP(B79-$B$3,Lookups!$O$3:$Q$53,3),"") ->  | AJ79: =IF(B79<55,VLOOKUP(B79,Lookups!A:M,12),"") ->  | AK79: =IF(B79<55,VLOOKUP(B79,Lookups!A:M,13),"") ->  | AM79: =IF(B79<70,VLOOKUP(B79,Lookups!A:H,8)*(1-VLOOKUP(B79,Lookups!$U$3:$W$103,2))^(A79-2018),"") ->  | AN79: =IF(B79<70,VLOOKUP(B79,Lookups!A:I,9)*(1-VLOOKUP(B79,Lookups!$U$3:$W$103,3))^(A79-2018),"") ->  | BM79: Totals - Scaled for Headcount | CD79: Totals - Scaled for Headcount | CK79: 65 | CL79: 30 | CM79: 0.2674541546 | CO79: 16 | CP79: 0.002 | CQ79: 1.002
A80: 2068 | B80: 112 | D80: =VLOOKUP(B80,Lookups!A:B,2) -> 4582.880265 | E80: =VLOOKUP(B80,Lookups!A:C,3) -> 2474.103984 | G80: =VLOOKUP(B80,Lookups!A:D,4) -> 6515.866869 | H80: =VLOOKUP(B80,Lookups!A:E,5) -> 3826.627221 | J80: =VLOOKUP(A80,Trends!$A$3:$Q$94,IF(ExFlg=0,2,10))+IF(B80>=$B$2,Sens,0) -> 1.0525 | K80: 18.38198421 | L80: =VLOOKUP(A80,Trends!$A$3:$Q$94,IF(ExFlg=0,4,12))+IF(B80>=$B$2,Sens,0) -> 1.0565 | M80: 15.60212955 | O80: =VLOOKUP(A80,Trends!$A$3:$Q$94,IF(ExFlg=0,6,14))+IF(B80>=$B$2,Sens,0) -> 1.0525 | P80: 19.04940882 | Q80: =VLOOKUP(A80,Trends!$A$3:$Q$94,IF(ExFlg=0,8,16))+IF(B80>=$B$2,Sens,0) -> 1.0545 | R80: 17.27945815 | T80: 71502.69159 | U80: =IF(B80=$B$2, E80, IF(B80<$B$2, E80 * Trends!$S$3^(B80 - $B$2), IF(ExFlg=0,E80*VLOOKUP(A80,Trends!$A$4:$V$94,20),E80*VLOOKUP(A80,Trends!$A$4:$Z$94,24)))) -> 39632.81511 | V80: 31869.87648 | X80: 112590.6489 | Y80: =IF(B80=$B$2, H80, IF(B80<$B$2, H80 * Trends!$U$3^(B80 - $B$2), IF(ExFlg=0,H80*VLOOKUP(A80,Trends!$A$4:$V$94,22),H80*VLOOKUP(A80,Trends!$A$4:$Z$94,26)))) -> 67261.0187 | Z80: 45329.63017 | AB80: 40843.09047 | AD80: =IF(B80<71,VLOOKUP(B80,Lookups!A:F,6),"") ->  | AE80: =IF(B80<71,VLOOKUP(Active!B80,Lookups!A:G,7),"") ->  | AG80: =IF(B80<55,VLOOKUP(B80-$B$3,Lookups!$O$3:$Q$53,2),"") ->  | AH80: =IF(B80<55,VLOOKUP(B80-$B$3,Lookups!$O$3:$Q$53,3),"") ->  | AJ80: =IF(B80<55,VLOOKUP(B80,Lookups!A:M,12),"") ->  | AK80: =IF(B80<55,VLOOKUP(B80,Lookups!A:M,13),"") ->  | AM80: =IF(B80<70,VLOOKUP(B80,Lookups!A:H,8)*(1-VLOOKUP(B80,Lookups!$U$3:$W$103,2))^(A80-2018),"") ->  | AN80: =IF(B80<70,VLOOKUP(B80,Lookups!A:I,9)*(1-VLOOKUP(B80,Lookups!$U$3:$W$103,3))^(A80-2018),"") ->  | BM80: =BM73 -> 30040 | BN80: Count in Cohort | CD80: =CD71 -> 30040 | CE80: Count in Cohort | CG80: PV Future Normal Cost | CH80: =CH78*CH73 -> 181237340.9 | CK80: 66 | CL80: 31 | CM80: 0.158667274 | CO80: 17 | CP80: 0.001 | CQ80: 1.001
A81: 2069 | B81: 113 | D81: =VLOOKUP(B81,Lookups!A:B,2) -> 4582.880265 | E81: =VLOOKUP(B81,Lookups!A:C,3) -> 2474.103984 | G81: =VLOOKUP(B81,Lookups!A:D,4) -> 6515.866869 | H81: =VLOOKUP(B81,Lookups!A:E,5) -> 3826.627221 | J81: =VLOOKUP(A81,Trends!$A$3:$Q$94,IF(ExFlg=0,2,10))+IF(B81>=$B$2,Sens,0) -> 1.052 | K81: 19.34703838 | L81: =VLOOKUP(A81,Trends!$A$3:$Q$94,IF(ExFlg=0,4,12))+IF(B81>=$B$2,Sens,0) -> 1.0555 | M81: 16.48364986 | O81: =VLOOKUP(A81,Trends!$A$3:$Q$94,IF(ExFlg=0,6,14))+IF(B81>=$B$2,Sens,0) -> 1.0515 | P81: 20.04950278 | Q81: =VLOOKUP(A81,Trends!$A$3:$Q$94,IF(ExFlg=0,8,16))+IF(B81>=$B$2,Sens,0) -> 1.0535 | R81: 18.22118862 | T81: 75542.59367 | U81: =IF(B81=$B$2, E81, IF(B81<$B$2, E81 * Trends!$S$3^(B81 - $B$2), IF(ExFlg=0,E81*VLOOKUP(A81,Trends!$A$4:$V$94,20),E81*VLOOKUP(A81,Trends!$A$4:$Z$94,24)))) -> 41872.06917 | V81: 33670.5245 | X81: 118726.8392 | Y81: =IF(B81=$B$2, H81, IF(B81<$B$2, H81 * Trends!$U$3^(B81 - $B$2), IF(ExFlg=0,H81*VLOOKUP(A81,Trends!$A$4:$V$94,22),H81*VLOOKUP(A81,Trends!$A$4:$Z$94,26)))) -> 70926.74422 | Z81: 47800.09502 | AB81: 43090.28528 | AD81: =IF(B81<71,VLOOKUP(B81,Lookups!A:F,6),"") ->  | AE81: =IF(B81<71,VLOOKUP(Active!B81,Lookups!A:G,7),"") ->  | AG81: =IF(B81<55,VLOOKUP(B81-$B$3,Lookups!$O$3:$Q$53,2),"") ->  | AH81: =IF(B81<55,VLOOKUP(B81-$B$3,Lookups!$O$3:$Q$53,3),"") ->  | AJ81: =IF(B81<55,VLOOKUP(B81,Lookups!A:M,12),"") ->  | AK81: =IF(B81<55,VLOOKUP(B81,Lookups!A:M,13),"") ->  | AM81: =IF(B81<70,VLOOKUP(B81,Lookups!A:H,8)*(1-VLOOKUP(B81,Lookups!$U$3:$W$103,2))^(A81-2018),"") ->  | AN81: =IF(B81<70,VLOOKUP(B81,Lookups!A:I,9)*(1-VLOOKUP(B81,Lookups!$U$3:$W$103,3))^(A81-2018),"") ->  | BM81: =BM77*BM80 -> 73023718.12 | CD81: =CD77*CD80 -> 1386860295 | CG81: EAN Accrued Liability (TOL) | CH81: =CH76-CH80 -> 1935594479 | CK81: 67 | CL81: 32 | CM81: 0.1194347436 | CO81: 18 | CP81: 0 | CQ81: 1
A82: 2070 | B82: 114 | D82: =VLOOKUP(B82,Lookups!A:B,2) -> 4582.880265 | E82: =VLOOKUP(B82,Lookups!A:C,3) -> 2474.103984 | G82: =VLOOKUP(B82,Lookups!A:D,4) -> 6515.866869 | H82: =VLOOKUP(B82,Lookups!A:E,5) -> 3826.627221 | J82: =VLOOKUP(A82,Trends!$A$3:$Q$94,IF(ExFlg=0,2,10))+IF(B82>=$B$2,Sens,0) -> 1.0515 | K82: 20.35308437 | L82: =VLOOKUP(A82,Trends!$A$3:$Q$94,IF(ExFlg=0,4,12))+IF(B82>=$B$2,Sens,0) -> 1.0545 | M82: 17.39849243 | O82: =VLOOKUP(A82,Trends!$A$3:$Q$94,IF(ExFlg=0,6,14))+IF(B82>=$B$2,Sens,0) -> 1.051 | P82: 21.08205218 | Q82: =VLOOKUP(A82,Trends!$A$3:$Q$94,IF(ExFlg=0,8,16))+IF(B82>=$B$2,Sens,0) -> 1.0525 | R82: 19.19602221 | T82: 79735.20761 | U82: =IF(B82=$B$2, E82, IF(B82<$B$2, E82 * Trends!$S$3^(B82 - $B$2), IF(ExFlg=0,E82*VLOOKUP(A82,Trends!$A$4:$V$94,20),E82*VLOOKUP(A82,Trends!$A$4:$Z$94,24)))) -> 44195.96901 | V82: 35539.23861 | X82: 125078.7251 | Y82: =IF(B82=$B$2, H82, IF(B82<$B$2, H82 * Trends!$U$3^(B82 - $B$2), IF(ExFlg=0,H82*VLOOKUP(A82,Trends!$A$4:$V$94,22),H82*VLOOKUP(A82,Trends!$A$4:$Z$94,26)))) -> 74721.32504 | Z82: 50357.4001 | AB82: 45418.06233 | AD82: =IF(B82<71,VLOOKUP(B82,Lookups!A:F,6),"") ->  | AE82: =IF(B82<71,VLOOKUP(Active!B82,Lookups!A:G,7),"") ->  | AG82: =IF(B82<55,VLOOKUP(B82-$B$3,Lookups!$O$3:$Q$53,2),"") ->  | AH82: =IF(B82<55,VLOOKUP(B82-$B$3,Lookups!$O$3:$Q$53,3),"") ->  | AJ82: =IF(B82<55,VLOOKUP(B82,Lookups!A:M,12),"") ->  | AK82: =IF(B82<55,VLOOKUP(B82,Lookups!A:M,13),"") ->  | AM82: =IF(B82<70,VLOOKUP(B82,Lookups!A:H,8)*(1-VLOOKUP(B82,Lookups!$U$3:$W$103,2))^(A82-2018),"") ->  | AN82: =IF(B82<70,VLOOKUP(B82,Lookups!A:I,9)*(1-VLOOKUP(B82,Lookups!$U$3:$W$103,3))^(A82-2018),"") ->  | BM82: =BM81*(1+PctMarried) -> 105884391.3 | BN82: with spouses | CD82: =CD81*(1+PctMarried) -> 2010947428 | CE82: with spouses | CK82: 68 | CL82: 33 | CM82: 0.08979983377 | CO82: 19 | CP82: 0 | CQ82: 1
A83: 2071 | B83: 115 | D83: =VLOOKUP(B83,Lookups!A:B,2) -> 4582.880265 | E83: =VLOOKUP(B83,Lookups!A:C,3) -> 2474.103984 | G83: =VLOOKUP(B83,Lookups!A:D,4) -> 6515.866869 | H83: =VLOOKUP(B83,Lookups!A:E,5) -> 3826.627221 | J83: =VLOOKUP(A83,Trends!$A$3:$Q$94,IF(ExFlg=0,2,10))+IF(B83>=$B$2,Sens,0) -> 1.0505 | K83: 21.40126822 | L83: =VLOOKUP(A83,Trends!$A$3:$Q$94,IF(ExFlg=0,4,12))+IF(B83>=$B$2,Sens,0) -> 1.0535 | M83: 18.34671027 | O83: =VLOOKUP(A83,Trends!$A$3:$Q$94,IF(ExFlg=0,6,14))+IF(B83>=$B$2,Sens,0) -> 1.0505 | P83: 22.15723684 | Q83: =VLOOKUP(A83,Trends!$A$3:$Q$94,IF(ExFlg=0,8,16))+IF(B83>=$B$2,Sens,0) -> 1.0515 | R83: 20.20381338 | T83: 84080.77643 | U83: =IF(B83=$B$2, E83, IF(B83<$B$2, E83 * Trends!$S$3^(B83 - $B$2), IF(ExFlg=0,E83*VLOOKUP(A83,Trends!$A$4:$V$94,20),E83*VLOOKUP(A83,Trends!$A$4:$Z$94,24)))) -> 46604.64932 | V83: 37476.12711 | X83: 131645.3582 | Y83: =IF(B83=$B$2, H83, IF(B83<$B$2, H83 * Trends!$U$3^(B83 - $B$2), IF(ExFlg=0,H83*VLOOKUP(A83,Trends!$A$4:$V$94,22),H83*VLOOKUP(A83,Trends!$A$4:$Z$94,26)))) -> 78644.1946 | Z83: 53001.16361 | AB83: 47826.20319 | AD83: =IF(B83<71,VLOOKUP(B83,Lookups!A:F,6),"") ->  | AE83: =IF(B83<71,VLOOKUP(Active!B83,Lookups!A:G,7),"") ->  | AG83: =IF(B83<55,VLOOKUP(B83-$B$3,Lookups!$O$3:$Q$53,2),"") ->  | AH83: =IF(B83<55,VLOOKUP(B83-$B$3,Lookups!$O$3:$Q$53,3),"") ->  | AJ83: =IF(B83<55,VLOOKUP(B83,Lookups!A:M,12),"") ->  | AK83: =IF(B83<55,VLOOKUP(B83,Lookups!A:M,13),"") ->  | AM83: =IF(B83<70,VLOOKUP(B83,Lookups!A:H,8)*(1-VLOOKUP(B83,Lookups!$U$3:$W$103,2))^(A83-2018),"") ->  | AN83: =IF(B83<70,VLOOKUP(B83,Lookups!A:I,9)*(1-VLOOKUP(B83,Lookups!$U$3:$W$103,3))^(A83-2018),"") ->  | CG83: Expected Benefit Payments | CH83: =IFERROR(VLOOKUP(B2,BA12:BB67,2,FALSE)*VLOOKUP(B2,AS12:AY67,7,FALSE)*VLOOKUP(B2,B3:AF93,31,FALSE)*CD80*Part*(1+PctMarried)*0.5, 0) -> 6661291.505 | CK83: 69 | CL83: 34 | CM83: 0.06744748235 | CO83: 20 | CP83: 0 | CQ83: 1
A84: 2072 | B84: 116 | D84: =VLOOKUP(B84,Lookups!A:B,2) -> 4582.880265 | E84: =VLOOKUP(B84,Lookups!A:C,3) -> 2474.103984 | G84: =VLOOKUP(B84,Lookups!A:D,4) -> 6515.866869 | H84: =VLOOKUP(B84,Lookups!A:E,5) -> 3826.627221 | J84: =VLOOKUP(A84,Trends!$A$3:$Q$94,IF(ExFlg=0,2,10))+IF(B84>=$B$2,Sens,0) -> 1.0495 | K84: 22.48203226 | L84: =VLOOKUP(A84,Trends!$A$3:$Q$94,IF(ExFlg=0,4,12))+IF(B84>=$B$2,Sens,0) -> 1.0525 | M84: 19.32825927 | O84: =VLOOKUP(A84,Trends!$A$3:$Q$94,IF(ExFlg=0,6,14))+IF(B84>=$B$2,Sens,0) -> 1.0495 | P84: 23.2761773 | Q84: =VLOOKUP(A84,Trends!$A$3:$Q$94,IF(ExFlg=0,8,16))+IF(B84>=$B$2,Sens,0) -> 1.0505 | R84: 21.24430977 | T84: 88579.09797 | U84: =IF(B84=$B$2, E84, IF(B84<$B$2, E84 * Trends!$S$3^(B84 - $B$2), IF(ExFlg=0,E84*VLOOKUP(A84,Trends!$A$4:$V$94,20),E84*VLOOKUP(A84,Trends!$A$4:$Z$94,24)))) -> 49097.99806 | V84: 39481.09991 | X84: 138425.0942 | Y84: =IF(B84=$B$2, H84, IF(B84<$B$2, H84 * Trends!$U$3^(B84 - $B$2), IF(ExFlg=0,H84*VLOOKUP(A84,Trends!$A$4:$V$94,22),H84*VLOOKUP(A84,Trends!$A$4:$Z$94,26)))) -> 82694.37063 | Z84: 55730.72353 | AB84: 50314.23649 | AD84: =IF(B84<71,VLOOKUP(B84,Lookups!A:F,6),"") ->  | AE84: =IF(B84<71,VLOOKUP(Active!B84,Lookups!A:G,7),"") ->  | AG84: =IF(B84<55,VLOOKUP(B84-$B$3,Lookups!$O$3:$Q$53,2),"") ->  | AH84: =IF(B84<55,VLOOKUP(B84-$B$3,Lookups!$O$3:$Q$53,3),"") ->  | AJ84: =IF(B84<55,VLOOKUP(B84,Lookups!A:M,12),"") ->  | AK84: =IF(B84<55,VLOOKUP(B84,Lookups!A:M,13),"") ->  | AM84: =IF(B84<70,VLOOKUP(B84,Lookups!A:H,8)*(1-VLOOKUP(B84,Lookups!$U$3:$W$103,2))^(A84-2018),"") ->  | AN84: =IF(B84<70,VLOOKUP(B84,Lookups!A:I,9)*(1-VLOOKUP(B84,Lookups!$U$3:$W$103,3))^(A84-2018),"") ->  | CK84: 70 | CL84: 35 | CM84: 0.0505946742 | CO84: 21 | CP84: 0 | CQ84: 1
A85: 2073 | B85: 117 | D85: =VLOOKUP(B85,Lookups!A:B,2) -> 4582.880265 | E85: =VLOOKUP(B85,Lookups!A:C,3) -> 2474.103984 | G85: =VLOOKUP(B85,Lookups!A:D,4) -> 6515.866869 | H85: =VLOOKUP(B85,Lookups!A:E,5) -> 3826.627221 | J85: =VLOOKUP(A85,Trends!$A$3:$Q$94,IF(ExFlg=0,2,10))+IF(B85>=$B$2,Sens,0) -> 1.0485 | K85: 23.59489286 | L85: =VLOOKUP(A85,Trends!$A$3:$Q$94,IF(ExFlg=0,4,12))+IF(B85>=$B$2,Sens,0) -> 1.0515 | M85: 20.34299288 | O85: =VLOOKUP(A85,Trends!$A$3:$Q$94,IF(ExFlg=0,6,14))+IF(B85>=$B$2,Sens,0) -> 1.0485 | P85: 24.42834807 | Q85: =VLOOKUP(A85,Trends!$A$3:$Q$94,IF(ExFlg=0,8,16))+IF(B85>=$B$2,Sens,0) -> 1.0495 | R85: 22.31714741 | T85: 93229.50061 | U85: =IF(B85=$B$2, E85, IF(B85<$B$2, E85 * Trends!$S$3^(B85 - $B$2), IF(ExFlg=0,E85*VLOOKUP(A85,Trends!$A$4:$V$94,20),E85*VLOOKUP(A85,Trends!$A$4:$Z$94,24)))) -> 51675.64295 | V85: 41553.85766 | X85: 145415.5614 | Y85: =IF(B85=$B$2, H85, IF(B85<$B$2, H85 * Trends!$U$3^(B85 - $B$2), IF(ExFlg=0,H85*VLOOKUP(A85,Trends!$A$4:$V$94,22),H85*VLOOKUP(A85,Trends!$A$4:$Z$94,26)))) -> 86870.43634 | Z85: 58545.12507 | AB85: 52881.4259 | AD85: =IF(B85<71,VLOOKUP(B85,Lookups!A:F,6),"") ->  | AE85: =IF(B85<71,VLOOKUP(Active!B85,Lookups!A:G,7),"") ->  | AG85: =IF(B85<55,VLOOKUP(B85-$B$3,Lookups!$O$3:$Q$53,2),"") ->  | AH85: =IF(B85<55,VLOOKUP(B85-$B$3,Lookups!$O$3:$Q$53,3),"") ->  | AJ85: =IF(B85<55,VLOOKUP(B85,Lookups!A:M,12),"") ->  | AK85: =IF(B85<55,VLOOKUP(B85,Lookups!A:M,13),"") ->  | AM85: =IF(B85<70,VLOOKUP(B85,Lookups!A:H,8)*(1-VLOOKUP(B85,Lookups!$U$3:$W$103,2))^(A85-2018),"") ->  | AN85: =IF(B85<70,VLOOKUP(B85,Lookups!A:I,9)*(1-VLOOKUP(B85,Lookups!$U$3:$W$103,3))^(A85-2018),"") ->  | CO85: 22 | CP85: 0 | CQ85: 1
A86: 2074 | B86: 118 | D86: =VLOOKUP(B86,Lookups!A:B,2) -> 4582.880265 | E86: =VLOOKUP(B86,Lookups!A:C,3) -> 2474.103984 | G86: =VLOOKUP(B86,Lookups!A:D,4) -> 6515.866869 | H86: =VLOOKUP(B86,Lookups!A:E,5) -> 3826.627221 | J86: =VLOOKUP(A86,Trends!$A$3:$Q$94,IF(ExFlg=0,2,10))+IF(B86>=$B$2,Sens,0) -> 1.048 | K86: 24.73924516 | L86: =VLOOKUP(A86,Trends!$A$3:$Q$94,IF(ExFlg=0,4,12))+IF(B86>=$B$2,Sens,0) -> 1.051 | M86: 21.39065701 | O86: =VLOOKUP(A86,Trends!$A$3:$Q$94,IF(ExFlg=0,6,14))+IF(B86>=$B$2,Sens,0) -> 1.048 | P86: 25.61312296 | Q86: =VLOOKUP(A86,Trends!$A$3:$Q$94,IF(ExFlg=0,8,16))+IF(B86>=$B$2,Sens,0) -> 1.049 | R86: 23.42184621 | T86: 98030.81989 | U86: =IF(B86=$B$2, E86, IF(B86<$B$2, E86 * Trends!$S$3^(B86 - $B$2), IF(ExFlg=0,E86*VLOOKUP(A86,Trends!$A$4:$V$94,20),E86*VLOOKUP(A86,Trends!$A$4:$Z$94,24)))) -> 54336.93857 | V86: 43693.88133 | X86: 152613.6317 | Y86: =IF(B86=$B$2, H86, IF(B86<$B$2, H86 * Trends!$U$3^(B86 - $B$2), IF(ExFlg=0,H86*VLOOKUP(A86,Trends!$A$4:$V$94,22),H86*VLOOKUP(A86,Trends!$A$4:$Z$94,26)))) -> 91170.52294 | Z86: 61443.10876 | AB86: 55526.75878 | AD86: =IF(B86<71,VLOOKUP(B86,Lookups!A:F,6),"") ->  | AE86: =IF(B86<71,VLOOKUP(Active!B86,Lookups!A:G,7),"") ->  | AG86: =IF(B86<55,VLOOKUP(B86-$B$3,Lookups!$O$3:$Q$53,2),"") ->  | AH86: =IF(B86<55,VLOOKUP(B86-$B$3,Lookups!$O$3:$Q$53,3),"") ->  | AJ86: =IF(B86<55,VLOOKUP(B86,Lookups!A:M,12),"") ->  | AK86: =IF(B86<55,VLOOKUP(B86,Lookups!A:M,13),"") ->  | AM86: =IF(B86<70,VLOOKUP(B86,Lookups!A:H,8)*(1-VLOOKUP(B86,Lookups!$U$3:$W$103,2))^(A86-2018),"") ->  | AN86: =IF(B86<70,VLOOKUP(B86,Lookups!A:I,9)*(1-VLOOKUP(B86,Lookups!$U$3:$W$103,3))^(A86-2018),"") ->  | CO86: 23 | CP86: 0 | CQ86: 1
A87: 2075 | B87: 119 | D87: =VLOOKUP(B87,Lookups!A:B,2) -> 4582.880265 | E87: =VLOOKUP(B87,Lookups!A:C,3) -> 2474.103984 | G87: =VLOOKUP(B87,Lookups!A:D,4) -> 6515.866869 | H87: =VLOOKUP(B87,Lookups!A:E,5) -> 3826.627221 | J87: =VLOOKUP(A87,Trends!$A$3:$Q$94,IF(ExFlg=0,2,10))+IF(B87>=$B$2,Sens,0) -> 1.048 | K87: 25.92672893 | L87: =VLOOKUP(A87,Trends!$A$3:$Q$94,IF(ExFlg=0,4,12))+IF(B87>=$B$2,Sens,0) -> 1.051 | M87: 22.48158052 | O87: =VLOOKUP(A87,Trends!$A$3:$Q$94,IF(ExFlg=0,6,14))+IF(B87>=$B$2,Sens,0) -> 1.048 | P87: 26.84255286 | Q87: =VLOOKUP(A87,Trends!$A$3:$Q$94,IF(ExFlg=0,8,16))+IF(B87>=$B$2,Sens,0) -> 1.049 | R87: 24.56951667 | T87: 103030.3917 | U87: =IF(B87=$B$2, E87, IF(B87<$B$2, E87 * Trends!$S$3^(B87 - $B$2), IF(ExFlg=0,E87*VLOOKUP(A87,Trends!$A$4:$V$94,20),E87*VLOOKUP(A87,Trends!$A$4:$Z$94,24)))) -> 57108.12243 | V87: 45922.26927 | X87: 160091.6997 | Y87: =IF(B87=$B$2, H87, IF(B87<$B$2, H87 * Trends!$U$3^(B87 - $B$2), IF(ExFlg=0,H87*VLOOKUP(A87,Trends!$A$4:$V$94,22),H87*VLOOKUP(A87,Trends!$A$4:$Z$94,26)))) -> 95637.87857 | Z87: 64453.82109 | AB87: 58276.69892 | AD87: =IF(B87<71,VLOOKUP(B87,Lookups!A:F,6),"") ->  | AE87: =IF(B87<71,VLOOKUP(Active!B87,Lookups!A:G,7),"") ->  | AG87: =IF(B87<55,VLOOKUP(B87-$B$3,Lookups!$O$3:$Q$53,2),"") ->  | AH87: =IF(B87<55,VLOOKUP(B87-$B$3,Lookups!$O$3:$Q$53,3),"") ->  | AJ87: =IF(B87<55,VLOOKUP(B87,Lookups!A:M,12),"") ->  | AK87: =IF(B87<55,VLOOKUP(B87,Lookups!A:M,13),"") ->  | AM87: =IF(B87<70,VLOOKUP(B87,Lookups!A:H,8)*(1-VLOOKUP(B87,Lookups!$U$3:$W$103,2))^(A87-2018),"") ->  | AN87: =IF(B87<70,VLOOKUP(B87,Lookups!A:I,9)*(1-VLOOKUP(B87,Lookups!$U$3:$W$103,3))^(A87-2018),"") ->  | CO87: 24 | CP87: 0 | CQ87: 1
A88: 2076 | B88: 120 | D88: =VLOOKUP(B88,Lookups!A:B,2) -> 4582.880265 | E88: =VLOOKUP(B88,Lookups!A:C,3) -> 2474.103984 | G88: =VLOOKUP(B88,Lookups!A:D,4) -> 6515.866869 | H88: =VLOOKUP(B88,Lookups!A:E,5) -> 3826.627221 | J88: =VLOOKUP(A88,Trends!$A$3:$Q$94,IF(ExFlg=0,2,10))+IF(B88>=$B$2,Sens,0) -> 1.048 | K88: 27.17121192 | L88: =VLOOKUP(A88,Trends!$A$3:$Q$94,IF(ExFlg=0,4,12))+IF(B88>=$B$2,Sens,0) -> 1.051 | M88: 23.62814113 | O88: =VLOOKUP(A88,Trends!$A$3:$Q$94,IF(ExFlg=0,6,14))+IF(B88>=$B$2,Sens,0) -> 1.048 | P88: 28.1309954 | Q88: =VLOOKUP(A88,Trends!$A$3:$Q$94,IF(ExFlg=0,8,16))+IF(B88>=$B$2,Sens,0) -> 1.049 | R88: 25.77342299 | T88: 108284.9417 | U88: =IF(B88=$B$2, E88, IF(B88<$B$2, E88 * Trends!$S$3^(B88 - $B$2), IF(ExFlg=0,E88*VLOOKUP(A88,Trends!$A$4:$V$94,20),E88*VLOOKUP(A88,Trends!$A$4:$Z$94,24)))) -> 60020.63668 | V88: 48264.30501 | X88: 167936.1929 | Y88: =IF(B88=$B$2, H88, IF(B88<$B$2, H88 * Trends!$U$3^(B88 - $B$2), IF(ExFlg=0,H88*VLOOKUP(A88,Trends!$A$4:$V$94,22),H88*VLOOKUP(A88,Trends!$A$4:$Z$94,26)))) -> 100324.1346 | Z88: 67612.05833 | AB88: 61162.87171 | AD88: =IF(B88<71,VLOOKUP(B88,Lookups!A:F,6),"") ->  | AE88: =IF(B88<71,VLOOKUP(Active!B88,Lookups!A:G,7),"") ->  | AG88: =IF(B88<55,VLOOKUP(B88-$B$3,Lookups!$O$3:$Q$53,2),"") ->  | AH88: =IF(B88<55,VLOOKUP(B88-$B$3,Lookups!$O$3:$Q$53,3),"") ->  | AJ88: =IF(B88<55,VLOOKUP(B88,Lookups!A:M,12),"") ->  | AK88: =IF(B88<55,VLOOKUP(B88,Lookups!A:M,13),"") ->  | AM88: =IF(B88<70,VLOOKUP(B88,Lookups!A:H,8)*(1-VLOOKUP(B88,Lookups!$U$3:$W$103,2))^(A88-2018),"") ->  | AN88: =IF(B88<70,VLOOKUP(B88,Lookups!A:I,9)*(1-VLOOKUP(B88,Lookups!$U$3:$W$103,3))^(A88-2018),"") ->  | CO88: 25 | CP88: 0 | CQ88: 1
A89: 2077 | B89: 121 | D89: =VLOOKUP(B89,Lookups!A:B,2) -> 4582.880265 | E89: =VLOOKUP(B89,Lookups!A:C,3) -> 2474.103984 | G89: =VLOOKUP(B89,Lookups!A:D,4) -> 6515.866869 | H89: =VLOOKUP(B89,Lookups!A:E,5) -> 3826.627221 | J89: =VLOOKUP(A89,Trends!$A$3:$Q$94,IF(ExFlg=0,2,10))+IF(B89>=$B$2,Sens,0) -> 1.048 | K89: 28.47543009 | L89: =VLOOKUP(A89,Trends!$A$3:$Q$94,IF(ExFlg=0,4,12))+IF(B89>=$B$2,Sens,0) -> 1.051 | M89: 24.83317633 | O89: =VLOOKUP(A89,Trends!$A$3:$Q$94,IF(ExFlg=0,6,14))+IF(B89>=$B$2,Sens,0) -> 1.048 | P89: 29.48128317 | Q89: =VLOOKUP(A89,Trends!$A$3:$Q$94,IF(ExFlg=0,8,16))+IF(B89>=$B$2,Sens,0) -> 1.049 | R89: 27.03632071 | T89: 113807.4737 | U89: =IF(B89=$B$2, E89, IF(B89<$B$2, E89 * Trends!$S$3^(B89 - $B$2), IF(ExFlg=0,E89*VLOOKUP(A89,Trends!$A$4:$V$94,20),E89*VLOOKUP(A89,Trends!$A$4:$Z$94,24)))) -> 63081.68915 | V89: 50725.78456 | X89: 176165.0664 | Y89: =IF(B89=$B$2, H89, IF(B89<$B$2, H89 * Trends!$U$3^(B89 - $B$2), IF(ExFlg=0,H89*VLOOKUP(A89,Trends!$A$4:$V$94,22),H89*VLOOKUP(A89,Trends!$A$4:$Z$94,26)))) -> 105240.0172 | Z89: 70925.04918 | AB89: 64192.02831 | AD89: =IF(B89<71,VLOOKUP(B89,Lookups!A:F,6),"") ->  | AE89: =IF(B89<71,VLOOKUP(Active!B89,Lookups!A:G,7),"") ->  | AG89: =IF(B89<55,VLOOKUP(B89-$B$3,Lookups!$O$3:$Q$53,2),"") ->  | AH89: =IF(B89<55,VLOOKUP(B89-$B$3,Lookups!$O$3:$Q$53,3),"") ->  | AJ89: =IF(B89<55,VLOOKUP(B89,Lookups!A:M,12),"") ->  | AK89: =IF(B89<55,VLOOKUP(B89,Lookups!A:M,13),"") ->  | AM89: =IF(B89<70,VLOOKUP(B89,Lookups!A:H,8)*(1-VLOOKUP(B89,Lookups!$U$3:$W$103,2))^(A89-2018),"") ->  | AN89: =IF(B89<70,VLOOKUP(B89,Lookups!A:I,9)*(1-VLOOKUP(B89,Lookups!$U$3:$W$103,3))^(A89-2018),"") ->  | CO89: 26 | CP89: 0 | CQ89: 1
A90: 2078 | B90: 122 | D90: =VLOOKUP(B90,Lookups!A:B,2) -> 4582.880265 | E90: =VLOOKUP(B90,Lookups!A:C,3) -> 2474.103984 | G90: =VLOOKUP(B90,Lookups!A:D,4) -> 6515.866869 | H90: =VLOOKUP(B90,Lookups!A:E,5) -> 3826.627221 | J90: =VLOOKUP(A90,Trends!$A$3:$Q$94,IF(ExFlg=0,2,10))+IF(B90>=$B$2,Sens,0) -> 1.048 | K90: 29.84225074 | L90: =VLOOKUP(A90,Trends!$A$3:$Q$94,IF(ExFlg=0,4,12))+IF(B90>=$B$2,Sens,0) -> 1.0505 | M90: 26.09966832 | O90: =VLOOKUP(A90,Trends!$A$3:$Q$94,IF(ExFlg=0,6,14))+IF(B90>=$B$2,Sens,0) -> 1.048 | P90: 30.89638477 | Q90: =VLOOKUP(A90,Trends!$A$3:$Q$94,IF(ExFlg=0,8,16))+IF(B90>=$B$2,Sens,0) -> 1.049 | R90: 28.36110043 | T90: 119611.6549 | U90: =IF(B90=$B$2, E90, IF(B90<$B$2, E90 * Trends!$S$3^(B90 - $B$2), IF(ExFlg=0,E90*VLOOKUP(A90,Trends!$A$4:$V$94,20),E90*VLOOKUP(A90,Trends!$A$4:$Z$94,24)))) -> 66298.85529 | V90: 53312.79958 | X90: 184797.1546 | Y90: =IF(B90=$B$2, H90, IF(B90<$B$2, H90 * Trends!$U$3^(B90 - $B$2), IF(ExFlg=0,H90*VLOOKUP(A90,Trends!$A$4:$V$94,22),H90*VLOOKUP(A90,Trends!$A$4:$Z$94,26)))) -> 110396.7781 | Z90: 74400.37659 | AB90: 67371.25455 | AD90: =IF(B90<71,VLOOKUP(B90,Lookups!A:F,6),"") ->  | AE90: =IF(B90<71,VLOOKUP(Active!B90,Lookups!A:G,7),"") ->  | AG90: =IF(B90<55,VLOOKUP(B90-$B$3,Lookups!$O$3:$Q$53,2),"") ->  | AH90: =IF(B90<55,VLOOKUP(B90-$B$3,Lookups!$O$3:$Q$53,3),"") ->  | AJ90: =IF(B90<55,VLOOKUP(B90,Lookups!A:M,12),"") ->  | AK90: =IF(B90<55,VLOOKUP(B90,Lookups!A:M,13),"") ->  | AM90: =IF(B90<70,VLOOKUP(B90,Lookups!A:H,8)*(1-VLOOKUP(B90,Lookups!$U$3:$W$103,2))^(A90-2018),"") ->  | AN90: =IF(B90<70,VLOOKUP(B90,Lookups!A:I,9)*(1-VLOOKUP(B90,Lookups!$U$3:$W$103,3))^(A90-2018),"") ->  | CO90: 27 | CP90: 0 | CQ90: 1
A91: 2079 | B91: 123 | D91: =VLOOKUP(B91,Lookups!A:B,2) -> 4582.880265 | E91: =VLOOKUP(B91,Lookups!A:C,3) -> 2474.103984 | G91: =VLOOKUP(B91,Lookups!A:D,4) -> 6515.866869 | H91: =VLOOKUP(B91,Lookups!A:E,5) -> 3826.627221 | J91: =VLOOKUP(A91,Trends!$A$3:$Q$94,IF(ExFlg=0,2,10))+IF(B91>=$B$2,Sens,0) -> 1.048 | K91: 31.27467877 | L91: =VLOOKUP(A91,Trends!$A$3:$Q$94,IF(ExFlg=0,4,12))+IF(B91>=$B$2,Sens,0) -> 1.05 | M91: 27.41770157 | O91: =VLOOKUP(A91,Trends!$A$3:$Q$94,IF(ExFlg=0,6,14))+IF(B91>=$B$2,Sens,0) -> 1.048 | P91: 32.37941124 | Q91: =VLOOKUP(A91,Trends!$A$3:$Q$94,IF(ExFlg=0,8,16))+IF(B91>=$B$2,Sens,0) -> 1.049 | R91: 29.75079435 | T91: 125652.0434 | U91: =IF(B91=$B$2, E91, IF(B91<$B$2, E91 * Trends!$S$3^(B91 - $B$2), IF(ExFlg=0,E91*VLOOKUP(A91,Trends!$A$4:$V$94,20),E91*VLOOKUP(A91,Trends!$A$4:$Z$94,24)))) -> 69646.94749 | V91: 56005.09595 | X91: 193852.2152 | Y91: =IF(B91=$B$2, H91, IF(B91<$B$2, H91 * Trends!$U$3^(B91 - $B$2), IF(ExFlg=0,H91*VLOOKUP(A91,Trends!$A$4:$V$94,22),H91*VLOOKUP(A91,Trends!$A$4:$Z$94,26)))) -> 115806.2202 | Z91: 78045.99505 | AB91: 70699.10215 | AD91: =IF(B91<71,VLOOKUP(B91,Lookups!A:F,6),"") ->  | AE91: =IF(B91<71,VLOOKUP(Active!B91,Lookups!A:G,7),"") ->  | AG91: =IF(B91<55,VLOOKUP(B91-$B$3,Lookups!$O$3:$Q$53,2),"") ->  | AH91: =IF(B91<55,VLOOKUP(B91-$B$3,Lookups!$O$3:$Q$53,3),"") ->  | AJ91: =IF(B91<55,VLOOKUP(B91,Lookups!A:M,12),"") ->  | AK91: =IF(B91<55,VLOOKUP(B91,Lookups!A:M,13),"") ->  | AM91: =IF(B91<70,VLOOKUP(B91,Lookups!A:H,8)*(1-VLOOKUP(B91,Lookups!$U$3:$W$103,2))^(A91-2018),"") ->  | AN91: =IF(B91<70,VLOOKUP(B91,Lookups!A:I,9)*(1-VLOOKUP(B91,Lookups!$U$3:$W$103,3))^(A91-2018),"") ->  | CO91: 28 | CP91: 0 | CQ91: 1
A92: 2080 | B92: 124 | D92: =VLOOKUP(B92,Lookups!A:B,2) -> 4582.880265 | E92: =VLOOKUP(B92,Lookups!A:C,3) -> 2474.103984 | G92: =VLOOKUP(B92,Lookups!A:D,4) -> 6515.866869 | H92: =VLOOKUP(B92,Lookups!A:E,5) -> 3826.627221 | J92: =VLOOKUP(A92,Trends!$A$3:$Q$94,IF(ExFlg=0,2,10))+IF(B92>=$B$2,Sens,0) -> 1.048 | K92: 32.77586335 | L92: =VLOOKUP(A92,Trends!$A$3:$Q$94,IF(ExFlg=0,4,12))+IF(B92>=$B$2,Sens,0) -> 1.05 | M92: 28.78858665 | O92: =VLOOKUP(A92,Trends!$A$3:$Q$94,IF(ExFlg=0,6,14))+IF(B92>=$B$2,Sens,0) -> 1.048 | P92: 33.93362297 | Q92: =VLOOKUP(A92,Trends!$A$3:$Q$94,IF(ExFlg=0,8,16))+IF(B92>=$B$2,Sens,0) -> 1.049 | R92: 31.20858327 | T92: 131934.6456 | U92: =IF(B92=$B$2, E92, IF(B92<$B$2, E92 * Trends!$S$3^(B92 - $B$2), IF(ExFlg=0,E92*VLOOKUP(A92,Trends!$A$4:$V$94,20),E92*VLOOKUP(A92,Trends!$A$4:$Z$94,24)))) -> 73129.29486 | V92: 58805.35075 | X92: 203350.9738 | Y92: =IF(B92=$B$2, H92, IF(B92<$B$2, H92 * Trends!$U$3^(B92 - $B$2), IF(ExFlg=0,H92*VLOOKUP(A92,Trends!$A$4:$V$94,22),H92*VLOOKUP(A92,Trends!$A$4:$Z$94,26)))) -> 121480.725 | Z92: 81870.2488 | AB92: 74182.02634 | AD92: =IF(B92<71,VLOOKUP(B92,Lookups!A:F,6),"") ->  | AE92: =IF(B92<71,VLOOKUP(Active!B92,Lookups!A:G,7),"") ->  | AG92: =IF(B92<55,VLOOKUP(B92-$B$3,Lookups!$O$3:$Q$53,2),"") ->  | AH92: =IF(B92<55,VLOOKUP(B92-$B$3,Lookups!$O$3:$Q$53,3),"") ->  | AJ92: =IF(B92<55,VLOOKUP(B92,Lookups!A:M,12),"") ->  | AK92: =IF(B92<55,VLOOKUP(B92,Lookups!A:M,13),"") ->  | AM92: =IF(B92<70,VLOOKUP(B92,Lookups!A:H,8)*(1-VLOOKUP(B92,Lookups!$U$3:$W$103,2))^(A92-2018),"") ->  | AN92: =IF(B92<70,VLOOKUP(B92,Lookups!A:I,9)*(1-VLOOKUP(B92,Lookups!$U$3:$W$103,3))^(A92-2018),"") ->  | CO92: 29 | CP92: 0 | CQ92: 1
A93: 2081 | B93: 125 | D93: =VLOOKUP(B93,Lookups!A:B,2) -> 4582.880265 | E93: =VLOOKUP(B93,Lookups!A:C,3) -> 2474.103984 | G93: =VLOOKUP(B93,Lookups!A:D,4) -> 6515.866869 | H93: =VLOOKUP(B93,Lookups!A:E,5) -> 3826.627221 | K93: 34.34910479 | M93: 30.22801598 | P93: 35.56243688 | R93: 32.73780385 | T93: 138531.3779 | U93: =IF(B93=$B$2, E93, IF(B93<$B$2, E93 * Trends!$S$3^(B93 - $B$2), IF(ExFlg=0,E93*VLOOKUP(A93,Trends!$A$4:$V$94,20),E93*VLOOKUP(A93,Trends!$A$4:$Z$94,24)))) -> 76785.7596 | V93: 61745.61829 | X93: 213315.1715 | Y93: =IF(B93=$B$2, H93, IF(B93<$B$2, H93 * Trends!$U$3^(B93 - $B$2), IF(ExFlg=0,H93*VLOOKUP(A93,Trends!$A$4:$V$94,22),H93*VLOOKUP(A93,Trends!$A$4:$Z$94,26)))) -> 127433.2805 | Z93: 85881.891 | AB93: 77836.54721 | AD93: =IF(B93<71,VLOOKUP(B93,Lookups!A:F,6),"") ->  | AE93: =IF(B93<71,VLOOKUP(Active!B93,Lookups!A:G,7),"") ->  | AG93: =IF(B93<55,VLOOKUP(B93-$B$3,Lookups!$O$3:$Q$53,2),"") ->  | AH93: =IF(B93<55,VLOOKUP(B93-$B$3,Lookups!$O$3:$Q$53,3),"") ->  | AJ93: =IF(B93<55,VLOOKUP(B93,Lookups!A:M,12),"") ->  | AK93: =IF(B93<55,VLOOKUP(B93,Lookups!A:M,13),"") ->  | AM93: =IF(B93<70,VLOOKUP(B93,Lookups!A:H,8)*(1-VLOOKUP(B93,Lookups!$U$3:$W$103,2))^(A93-2018),"") ->  | AN93: =IF(B93<70,VLOOKUP(B93,Lookups!A:I,9)*(1-VLOOKUP(B93,Lookups!$U$3:$W$103,3))^(A93-2018),"") ->  | CO93: 30 | CP93: 0 | CQ93: 1
CL102: =IF(CK102<71,CL101+1,"") -> 
CM109: =IF(CK109<71,CM108*(1-VLOOKUP(CK108,$B$3:$AR$93,41,FALSE))* 1/(1+IntRt)*(1+$CQ$60)*VLOOKUP(MIN(CL108,30),$CO$63:$CQ$93,3,FALSE),"") -> 

Sheet Inactive (hidden)
A1: Inactives | B1: 9642 | D1: Insured | G1: UMP | J1: Implicit | K1: Insured | L1: Explicit | M1: Insured | O1: Implicit | P1: UMP | Q1: Explicit | R1: UMP | U1: Insured | Y1: UMP | AB1: Average | AF1: 0.5 | AK1: Implicit | AL1: Explicit
A2: Year | D2: Cost | E2: Prem | G2: Cost | H2: Prem | J2: Trend | K2: Rel Trend | L2: Trend | M2: Rel Trend | O2: Trend | P2: Rel Trend | Q2: Trend | R2: Rel Trend | T2: Cost | U2: Prem | V2: Net | X2: Cost | Y2: Prem | Z2: Net | AB2: Net | AD2: Mort - M | AE2: Mort - F | AF2: Mortality | AG2: Survive | AH2: Interest | AI2: Pay Timing | AK2: Subsidy | AL2: Subsidy
A3: =ValYear -> 2018 | B3: 84 | D3: =VLOOKUP(B3,Lookups!A:B,2) -> 4637.41294 | E3: =VLOOKUP(B3,Lookups!A:C,3) -> 2474.103984 | G3: =VLOOKUP(B3,Lookups!A:D,4) -> 6593.400539 | H3: =VLOOKUP(B3,Lookups!A:E,5) -> 3826.627221 | J3: =VLOOKUP(A3,Trends!$A$3:$Q$94,IF(ExFlg=0,2,10))+Sens -> 1.0685 | K3: 1 | L3: =VLOOKUP(A3,Trends!$A$3:$Q$94,IF(ExFlg=0,4,12))+Sens -> 1.074 | M3: 1 | O3: =VLOOKUP(A3,Trends!$A$3:$Q$94,IF(ExFlg=0,6,14))+Sens -> 1.0685 | P3: 1 | Q3: =VLOOKUP(A3,Trends!$A$3:$Q$94,IF(ExFlg=0,8,16))+Sens -> 1.074 | R3: 1 | T3: =IF(B3<65,D3*K3,D3*M3) -> 4637.41294 | U3: =IF(ExFlg=0,E3*VLOOKUP(A3,Trends!$A$3:$Z$94,20),E3*VLOOKUP(A3,Trends!$A$3:$Z$94,24)) -> 2474.103984 | V3: =T3-U3 -> 2163.308956 | X3: =IF(B3<65,G3*P3,G3*R3) -> 6593.400539 | Y3: =IF(ExFlg=0,H3*VLOOKUP(A3,Trends!$A$3:$Z$94,22),H3*VLOOKUP(A3,Trends!$A$3:$Z$94,26)) -> 3826.627221 | Z3: =X3-Y3 -> 2766.773317 | AB3: =(1-PctUMP)*V3+PctUMP*Z3 -> 2565.620542 | AD3: =IF($B3<121,VLOOKUP($B3,Lookups!A:H,8)*(1-VLOOKUP($B3,Lookups!$U$3:$W$103,2))^($A3-2018),"") -> 0.068349 | AE3: =IF($B3<121,VLOOKUP($B3,Lookups!A:I,9)*(1-VLOOKUP($B3,Lookups!$U$3:$W$103,3))^($A3-2018),"") -> 0.050298 | AF3: =IF(B3<121,(PCTMALE*AD3+(1-PCTMALE)*AE3),"") -> 0.0593235 | AG3: 1 | AH3: 1 | AI3: =IF(AF3="","",ROUND((13/24)+(11/24)*(1/(1+IntRt))*(1-AF3),6)) -> 0.957909 | AK3: =IF(B3<65,AB3*AG3*AH3*AI3,"") ->  | AL3: =IF(AND(B3>=65,B3<121),AB3*AG3*AH3*AI3,"") -> 2457.631008
A4: =1+A3 -> 2019 | B4: =1+B3 -> 85 | D4: =VLOOKUP(B4,Lookups!A:B,2) -> 4623.682472 | E4: =VLOOKUP(B4,Lookups!A:C,3) -> 2474.103984 | G4: =VLOOKUP(B4,Lookups!A:D,4) -> 6573.878783 | H4: =VLOOKUP(B4,Lookups!A:E,5) -> 3826.627221 | J4: =VLOOKUP(A4,Trends!$A$3:$Q$94,IF(ExFlg=0,2,10))+Sens -> 1.0625 | K4: =K3*J3 -> 1.0685 | L4: =VLOOKUP(A4,Trends!$A$3:$Q$94,IF(ExFlg=0,4,12))+Sens -> 1.0635 | M4: =M3*L3 -> 1.074 | O4: =VLOOKUP(A4,Trends!$A$3:$Q$94,IF(ExFlg=0,6,14))+Sens -> 1.0625 | P4: =P3*O3 -> 1.0685 | Q4: =VLOOKUP(A4,Trends!$A$3:$Q$94,IF(ExFlg=0,8,16))+Sens -> 1.064 | R4: =R3*Q3 -> 1.074 | T4: =IF(B4<65,D4*K4,D4*M4) -> 4965.834975 | U4: =IF(ExFlg=0,E4*VLOOKUP(A4,Trends!$A$3:$Z$94,20),E4*VLOOKUP(A4,Trends!$A$3:$Z$94,24)) -> 2728.194463 | V4: 2237.640513 | X4: =IF(B4<65,G4*P4,G4*R4) -> 7060.345813 | Y4: =IF(ExFlg=0,H4*VLOOKUP(A4,Trends!$A$3:$Z$94,22),H4*VLOOKUP(A4,Trends!$A$3:$Z$94,26)) -> 4180.590239 | Z4: 2879.755574 | AB4: =(1-PctUMP)*V4+PctUMP*Z4 -> 2665.71936 | AD4: =IF($B4<121,VLOOKUP($B4,Lookups!A:H,8)*(1-VLOOKUP($B4,Lookups!$U$3:$W$103,2))^($A4-2018),"") -> 0.07487379 | AE4: =IF($B4<121,VLOOKUP($B4,Lookups!A:I,9)*(1-VLOOKUP($B4,Lookups!$U$3:$W$103,3))^($A4-2018),"") -> 0.055267732 | AF4: 0.065070761 | AG4: =IF(B4<121,AG3*(1-AF3),"") -> 0.9406765 | AH4: =IF(B4<121,AH3/(1+IntRt),"") -> 0.9654373431 | AI4: 0.955365 | AK4: =IF(B4<65,AB4*AG4*AH4*AI4,"") ->  | AL4: 2312.853586
A5: 2020 | B5: 86 | D5: =VLOOKUP(B5,Lookups!A:B,2) -> 4610.0171 | E5: =VLOOKUP(B5,Lookups!A:C,3) -> 2474.103984 | G5: =VLOOKUP(B5,Lookups!A:D,4) -> 6554.449579 | H5: =VLOOKUP(B5,Lookups!A:E,5) -> 3826.627221 | J5: =VLOOKUP(A5,Trends!$A$3:$Q$94,IF(ExFlg=0,2,10))+Sens -> 1.0555 | K5: =K4*J4 -> 1.13528125 | L5: =VLOOKUP(A5,Trends!$A$3:$Q$94,IF(ExFlg=0,4,12))+Sens -> 1.0535 | M5: =M4*L4 -> 1.142199 | O5: =VLOOKUP(A5,Trends!$A$3:$Q$94,IF(ExFlg=0,6,14))+Sens -> 1.055 | P5: =P4*O4 -> 1.13528125 | Q5: =VLOOKUP(A5,Trends!$A$3:$Q$94,IF(ExFlg=0,8,16))+Sens -> 1.054 | R5: =R4*Q4 -> 1.142736 | T5: 5265.556921 | U5: =IF(ExFlg=0,E5*VLOOKUP(A5,Trends!$A$3:$Z$94,20),E5*VLOOKUP(A5,Trends!$A$3:$Z$94,24)) -> 2901.434811 | V5: 2364.12211 | X5: 7490.005494 | Y5: =IF(ExFlg=0,H5*VLOOKUP(A5,Trends!$A$3:$Z$94,22),H5*VLOOKUP(A5,Trends!$A$3:$Z$94,26)) -> 4448.148015 | Z5: 3041.857479 | AB5: 2815.947949 | AD5: =IF($B5<121,VLOOKUP($B5,Lookups!A:H,8)*(1-VLOOKUP($B5,Lookups!$U$3:$W$103,2))^($A5-2018),"") -> 0.08186467482 | AE5: =IF($B5<121,VLOOKUP($B5,Lookups!A:I,9)*(1-VLOOKUP($B5,Lookups!$U$3:$W$103,3))^($A5-2018),"") -> 0.06083329408 | AF5: 0.07134898445 | AG5: =IF(B5<121,AG4*(1-AF4),"") -> 0.8794659643 | AH5: 0.9320692635 | AI5: 0.952587 | AL5: 2198.85452
A6: 2021 | B6: 87 | D6: =VLOOKUP(B6,Lookups!A:B,2) -> 4596.416478 | E6: =VLOOKUP(B6,Lookups!A:C,3) -> 2474.103984 | G6: =VLOOKUP(B6,Lookups!A:D,4) -> 6535.112436 | H6: =VLOOKUP(B6,Lookups!A:E,5) -> 3826.627221 | J6: =VLOOKUP(A6,Trends!$A$3:$Q$94,IF(ExFlg=0,2,10))+Sens -> 1.056 | K6: 1.198289359 | L6: =VLOOKUP(A6,Trends!$A$3:$Q$94,IF(ExFlg=0,4,12))+Sens -> 1.054 | M6: 1.203306647 | O6: =VLOOKUP(A6,Trends!$A$3:$Q$94,IF(ExFlg=0,6,14))+Sens -> 1.055 | P6: 1.197721719 | Q6: =VLOOKUP(A6,Trends!$A$3:$Q$94,IF(ExFlg=0,8,16))+Sens -> 1.0545 | R6: 1.204443744 | T6: 5530.898498 | U6: =IF(ExFlg=0,E6*VLOOKUP(A6,Trends!$A$3:$Z$94,20),E6*VLOOKUP(A6,Trends!$A$3:$Z$94,24)) -> 3056.661573 | V6: 2474.236925 | X6: 7871.17529 | Y6: =IF(ExFlg=0,H6*VLOOKUP(A6,Trends!$A$3:$Z$94,22),H6*VLOOKUP(A6,Trends!$A$3:$Z$94,26)) -> 4688.348007 | Z6: 3182.827283 | AB6: 2946.632859 | AD6: =IF($B6<121,VLOOKUP($B6,Lookups!A:H,8)*(1-VLOOKUP($B6,Lookups!$U$3:$W$103,2))^($A6-2018),"") -> 0.09132825168 | AE6: =IF($B6<121,VLOOKUP($B6,Lookups!A:I,9)*(1-VLOOKUP($B6,Lookups!$U$3:$W$103,3))^($A6-2018),"") -> 0.06703272606 | AF6: 0.07918048887 | AG6: 0.8167169609 | AH6: 0.8998544733 | AI6: 0.949122 | AL6: 2055.379035
A7: 2022 | B7: 88 | D7: =VLOOKUP(B7,Lookups!A:B,2) -> 4582.880265 | E7: =VLOOKUP(B7,Lookups!A:C,3) -> 2474.103984 | G7: =VLOOKUP(B7,Lookups!A:D,4) -> 6515.866869 | H7: =VLOOKUP(B7,Lookups!A:E,5) -> 3826.627221 | J7: =VLOOKUP(A7,Trends!$A$3:$Q$94,IF(ExFlg=0,2,10))+Sens -> 1.0565 | K7: 1.265393564 | L7: =VLOOKUP(A7,Trends!$A$3:$Q$94,IF(ExFlg=0,4,12))+Sens -> 1.0545 | M7: =M6*L6 -> 1.268285205 | O7: =VLOOKUP(A7,Trends!$A$3:$Q$94,IF(ExFlg=0,6,14))+Sens -> 1.0555 | P7: 1.263596413 | Q7: =VLOOKUP(A7,Trends!$A$3:$Q$94,IF(ExFlg=0,8,16))+Sens -> 1.055 | R7: 1.270085928 | T7: 5812.399239 | U7: =IF(ExFlg=0,E7*VLOOKUP(A7,Trends!$A$3:$Z$94,20),E7*VLOOKUP(A7,Trends!$A$3:$Z$94,24)) -> 3221.721298 | V7: 2590.67794 | X7: 8275.710819 | Y7: =IF(ExFlg=0,H7*VLOOKUP(A7,Trends!$A$3:$Z$94,22),H7*VLOOKUP(A7,Trends!$A$3:$Z$94,26)) -> 4943.862974 | Z7: 3331.847845 | AB7: 3084.793681 | AD7: =IF($B7<121,VLOOKUP($B7,Lookups!A:H,8)*(1-VLOOKUP($B7,Lookups!$U$3:$W$103,2))^($A7-2018),"") -> 0.1020123693 | AE7: =IF($B7<121,VLOOKUP($B7,Lookups!A:I,9)*(1-VLOOKUP($B7,Lookups!$U$3:$W$103,3))^($A7-2018),"") -> 0.07386643593 | AF7: 0.08793940263 | AG7: 0.7520489126 | AH7: 0.8687531119 | AI7: 0.945246 | AL7: 1905.080939
A8: 2023 | B8: 89 | D8: =VLOOKUP(B8,Lookups!A:B,2) -> 4582.880265 | E8: =VLOOKUP(B8,Lookups!A:C,3) -> 2474.103984 | G8: =VLOOKUP(B8,Lookups!A:D,4) -> 6515.866869 | H8: =VLOOKUP(B8,Lookups!A:E,5) -> 3826.627221 | J8: =VLOOKUP(A8,Trends!$A$3:$Q$94,IF(ExFlg=0,2,10))+Sens -> 1.057 | K8: 1.3368883 | L8: =VLOOKUP(A8,Trends!$A$3:$Q$94,IF(ExFlg=0,4,12))+Sens -> 1.055 | M8: 1.337406749 | O8: =VLOOKUP(A8,Trends!$A$3:$Q$94,IF(ExFlg=0,6,14))+Sens -> 1.057 | P8: 1.333726014 | Q8: =VLOOKUP(A8,Trends!$A$3:$Q$94,IF(ExFlg=0,8,16))+Sens -> 1.0555 | R8: 1.339940654 | T8: 6129.174997 | U8: =IF(ExFlg=0,E8*VLOOKUP(A8,Trends!$A$3:$Z$94,20),E8*VLOOKUP(A8,Trends!$A$3:$Z$94,24)) -> 3397.305109 | V8: 2731.869888 | X8: 8730.874914 | Y8: =IF(ExFlg=0,H8*VLOOKUP(A8,Trends!$A$3:$Z$94,22),H8*VLOOKUP(A8,Trends!$A$3:$Z$94,26)) -> 5215.775437 | Z8: 3515.099477 | AB8: 3254.025558 | AD8: =IF($B8<121,VLOOKUP($B8,Lookups!A:H,8)*(1-VLOOKUP($B8,Lookups!$U$3:$W$103,2))^($A8-2018),"") -> 0.1140787935 | AE8: =IF($B8<121,VLOOKUP($B8,Lookups!A:I,9)*(1-VLOOKUP($B8,Lookups!$U$3:$W$103,3))^($A8-2018),"") -> 0.08128715369 | AF8: 0.09768297358 | AG8: 0.6859141805 | AH8: 0.8387266962 | AI8: 0.940935 | AL8: 1761.452073
A9: 2024 | B9: 90 | D9: =VLOOKUP(B9,Lookups!A:B,2) -> 4582.880265 | E9: =VLOOKUP(B9,Lookups!A:C,3) -> 2474.103984 | G9: =VLOOKUP(B9,Lookups!A:D,4) -> 6515.866869 | H9: =VLOOKUP(B9,Lookups!A:E,5) -> 3826.627221 | J9: =VLOOKUP(A9,Trends!$A$3:$Q$94,IF(ExFlg=0,2,10))+Sens -> 1.057 | K9: 1.413090933 | L9: =VLOOKUP(A9,Trends!$A$3:$Q$94,IF(ExFlg=0,4,12))+Sens -> 1.0555 | M9: 1.41096412 | O9: =VLOOKUP(A9,Trends!$A$3:$Q$94,IF(ExFlg=0,6,14))+Sens -> 1.0585 | P9: 1.409748397 | Q9: =VLOOKUP(A9,Trends!$A$3:$Q$94,IF(ExFlg=0,8,16))+Sens -> 1.056 | R9: 1.41430736 | T9: 6466.279622 | U9: =IF(ExFlg=0,E9*VLOOKUP(A9,Trends!$A$3:$Z$94,20),E9*VLOOKUP(A9,Trends!$A$3:$Z$94,24)) -> 3584.15689 | V9: 2882.122732 | X9: 9215.438472 | Y9: =IF(ExFlg=0,H9*VLOOKUP(A9,Trends!$A$3:$Z$94,22),H9*VLOOKUP(A9,Trends!$A$3:$Z$94,26)) -> 5505.250974 | Z9: 3710.187498 | AB9: 3434.168669 | AD9: =IF($B9<121,VLOOKUP($B9,Lookups!A:H,8)*(1-VLOOKUP($B9,Lookups!$U$3:$W$103,2))^($A9-2018),"") -> 0.1276191059 | AE9: =IF($B9<121,VLOOKUP($B9,Lookups!A:I,9)*(1-VLOOKUP($B9,Lookups!$U$3:$W$103,3))^($A9-2018),"") -> 0.09137320614 | AF9: 0.109496156 | AG9: 0.6189120437 | AH9: 0.8097380732 | AI9: 0.935708 | AL9: 1610.40629
A10: 2025 | B10: 91 | D10: =VLOOKUP(B10,Lookups!A:B,2) -> 4582.880265 | E10: =VLOOKUP(B10,Lookups!A:C,3) -> 2474.103984 | G10: =VLOOKUP(B10,Lookups!A:D,4) -> 6515.866869 | H10: =VLOOKUP(B10,Lookups!A:E,5) -> 3826.627221 | J10: =VLOOKUP(A10,Trends!$A$3:$Q$94,IF(ExFlg=0,2,10))+Sens -> 1.0575 | K10: 1.493637116 | L10: =VLOOKUP(A10,Trends!$A$3:$Q$94,IF(ExFlg=0,4,12))+Sens -> 1.056 | M10: 1.489272629 | O10: =VLOOKUP(A10,Trends!$A$3:$Q$94,IF(ExFlg=0,6,14))+Sens -> 1.0595 | P10: 1.492218678 | Q10: =VLOOKUP(A10,Trends!$A$3:$Q$94,IF(ExFlg=0,8,16))+Sens -> 1.0565 | R10: 1.493508573 | T10: 6825.158141 | U10: =IF(ExFlg=0,E10*VLOOKUP(A10,Trends!$A$3:$Z$94,20),E10*VLOOKUP(A10,Trends!$A$3:$Z$94,24)) -> 3783.077598 | V10: 3042.080543 | X10: 9731.503026 | Y10: =IF(ExFlg=0,H10*VLOOKUP(A10,Trends!$A$3:$Z$94,22),H10*VLOOKUP(A10,Trends!$A$3:$Z$94,26)) -> 5813.545029 | Z10: 3917.957998 | AB10: 3626.001766 | AD10: =IF($B10<121,VLOOKUP($B10,Lookups!A:H,8)*(1-VLOOKUP($B10,Lookups!$U$3:$W$103,2))^($A10-2018),"") -> 0.1426581939 | AE10: =IF($B10<121,VLOOKUP($B10,Lookups!A:I,9)*(1-VLOOKUP($B10,Lookups!$U$3:$W$103,3))^($A10-2018),"") -> 0.1024246611 | AF10: 0.1225414275 | AG10: 0.551143554 | AH10: 0.781751374 | AI10: 0.929935 | AL10: 1452.827295
A11: 2026 | B11: 92 | D11: =VLOOKUP(B11,Lookups!A:B,2) -> 4582.880265 | E11: =VLOOKUP(B11,Lookups!A:C,3) -> 2474.103984 | G11: =VLOOKUP(B11,Lookups!A:D,4) -> 6515.866869 | H11: =VLOOKUP(B11,Lookups!A:E,5) -> 3826.627221 | J11: =VLOOKUP(A11,Trends!$A$3:$Q$94,IF(ExFlg=0,2,10))+Sens -> 1.058 | K11: 1.57952125 | L11: =VLOOKUP(A11,Trends!$A$3:$Q$94,IF(ExFlg=0,4,12))+Sens -> 1.056 | M11: 1.572671896 | O11: =VLOOKUP(A11,Trends!$A$3:$Q$94,IF(ExFlg=0,6,14))+Sens -> 1.06 | P11: 1.58100569 | Q11: =VLOOKUP(A11,Trends!$A$3:$Q$94,IF(ExFlg=0,8,16))+Sens -> 1.057 | R11: 1.577891807 | T11: 7207.366997 | U11: =IF(ExFlg=0,E11*VLOOKUP(A11,Trends!$A$3:$Z$94,20),E11*VLOOKUP(A11,Trends!$A$3:$Z$94,24)) -> 3994.929943 | V11: 3212.437054 | X11: 10281.33295 | Y11: =IF(ExFlg=0,H11*VLOOKUP(A11,Trends!$A$3:$Z$94,22),H11*VLOOKUP(A11,Trends!$A$3:$Z$94,26)) -> 6142.010323 | Z11: 4139.322624 | AB11: 3830.363857 | AD11: =IF($B11<121,VLOOKUP($B11,Lookups!A:H,8)*(1-VLOOKUP($B11,Lookups!$U$3:$W$103,2))^($A11-2018),"") -> 0.1579219544 | AE11: =IF($B11<121,VLOOKUP($B11,Lookups!A:I,9)*(1-VLOOKUP($B11,Lookups!$U$3:$W$103,3))^($A11-2018),"") -> 0.114312883 | AF11: 0.1361174187 | AG11: 0.4836056362 | AH11: 0.7547319695 | AI11: 0.923928 | AL11: =IF(AND(B11>=65,B11<121),AB11*AG11*AH11*AI11,"") -> 1291.701785
A12: 2027 | B12: 93 | D12: =VLOOKUP(B12,Lookups!A:B,2) -> 4582.880265 | E12: =VLOOKUP(B12,Lookups!A:C,3) -> 2474.103984 | G12: =VLOOKUP(B12,Lookups!A:D,4) -> 6515.866869 | H12: =VLOOKUP(B12,Lookups!A:E,5) -> 3826.627221 | J12: =VLOOKUP(A12,Trends!$A$3:$Q$94,IF(ExFlg=0,2,10))+Sens -> 1.06 | K12: 1.671133483 | L12: =VLOOKUP(A12,Trends!$A$3:$Q$94,IF(ExFlg=0,4,12))+Sens -> 1.056 | M12: 1.660741522 | O12: =VLOOKUP(A12,Trends!$A$3:$Q$94,IF(ExFlg=0,6,14))+Sens -> 1.06 | P12: 1.675866031 | Q12: =VLOOKUP(A12,Trends!$A$3:$Q$94,IF(ExFlg=0,8,16))+Sens -> 1.057 | R12: 1.66783164 | T12: 7610.979549 | U12: =IF(ExFlg=0,E12*VLOOKUP(A12,Trends!$A$3:$Z$94,20),E12*VLOOKUP(A12,Trends!$A$3:$Z$94,24)) -> 4218.64602 | V12: 3392.333529 | X12: 10867.36893 | Y12: =IF(ExFlg=0,H12*VLOOKUP(A12,Trends!$A$3:$Z$94,22),H12*VLOOKUP(A12,Trends!$A$3:$Z$94,26)) -> 6492.104911 | Z12: 4375.264014 | AB12: 4047.623795 | AD12: =IF($B12<121,VLOOKUP($B12,Lookups!A:H,8)*(1-VLOOKUP($B12,Lookups!$U$3:$W$103,2))^($A12-2018),"") -> 0.1743747281 | AE12: =IF($B12<121,VLOOKUP($B12,Lookups!A:I,9)*(1-VLOOKUP($B12,Lookups!$U$3:$W$103,3))^($A12-2018),"") -> 0.1268876691 | AF12: 0.1506311986 | AG12: 0.4177784853 | AH12: 0.7286464274 | AI12: 0.917506 | AL12: =IF(AND(B12>=65,B12<121),AB12*AG12*AH12*AI12,"") -> 1130.503638
A13: 2028 | B13: 94 | D13: =VLOOKUP(B13,Lookups!A:B,2) -> 4582.880265 | E13: =VLOOKUP(B13,Lookups!A:C,3) -> 2474.103984 | G13: =VLOOKUP(B13,Lookups!A:D,4) -> 6515.866869 | H13: =VLOOKUP(B13,Lookups!A:E,5) -> 3826.627221 | J13: =VLOOKUP(A13,Trends!$A$3:$Q$94,IF(ExFlg=0,2,10))+Sens -> 1.062 | K13: 1.771401492 | L13: =VLOOKUP(A13,Trends!$A$3:$Q$94,IF(ExFlg=0,4,12))+Sens -> 1.056 | M13: 1.753743048 | O13: =VLOOKUP(A13,Trends!$A$3:$Q$94,IF(ExFlg=0,6,14))+Sens -> 1.06 | P13: 1.776417993 | Q13: =VLOOKUP(A13,Trends!$A$3:$Q$94,IF(ExFlg=0,8,16))+Sens -> 1.057 | R13: 1.762898043 | T13: 8037.194403 | U13: =IF(ExFlg=0,E13*VLOOKUP(A13,Trends!$A$3:$Z$94,20),E13*VLOOKUP(A13,Trends!$A$3:$Z$94,24)) -> 4454.890197 | V13: 3582.304206 | X13: 11486.80895 | Y13: =IF(ExFlg=0,H13*VLOOKUP(A13,Trends!$A$3:$Z$94,22),H13*VLOOKUP(A13,Trends!$A$3:$Z$94,26)) -> 6862.154891 | Z13: 4624.654063 | AB13: 4277.207585 | AD13: =IF($B13<121,VLOOKUP($B13,Lookups!A:H,8)*(1-VLOOKUP($B13,Lookups!$U$3:$W$103,2))^($A13-2018),"") -> 0.1919410271 | AE13: =IF($B13<121,VLOOKUP($B13,Lookups!A:I,9)*(1-VLOOKUP($B13,Lookups!$U$3:$W$103,3))^($A13-2018),"") -> 0.1400017622 | AF13: 0.1659713947 | AG13: 0.3548480113 | AH13: 0.7034624709 | AI13: 0.910718 | AL13: 972.3610579
A14: 2029 | B14: 95 | D14: =VLOOKUP(B14,Lookups!A:B,2) -> 4582.880265 | E14: =VLOOKUP(B14,Lookups!A:C,3) -> 2474.103984 | G14: =VLOOKUP(B14,Lookups!A:D,4) -> 6515.866869 | H14: =VLOOKUP(B14,Lookups!A:E,5) -> 3826.627221 | J14: =VLOOKUP(A14,Trends!$A$3:$Q$94,IF(ExFlg=0,2,10))+Sens -> 1.062 | K14: 1.881228384 | L14: =VLOOKUP(A14,Trends!$A$3:$Q$94,IF(ExFlg=0,4,12))+Sens -> 1.0565 | M14: 1.851952658 | O14: =VLOOKUP(A14,Trends!$A$3:$Q$94,IF(ExFlg=0,6,14))+Sens -> 1.0605 | P14: 1.883003072 | Q14: =VLOOKUP(A14,Trends!$A$3:$Q$94,IF(ExFlg=0,8,16))+Sens -> 1.057 | R14: 1.863383232 | T14: 8487.27729 | U14: =IF(ExFlg=0,E14*VLOOKUP(A14,Trends!$A$3:$Z$94,20),E14*VLOOKUP(A14,Trends!$A$3:$Z$94,24)) -> 4704.364048 | V14: 3782.913242 | X14: 12141.55706 | Y14: =IF(ExFlg=0,H14*VLOOKUP(A14,Trends!$A$3:$Z$94,22),H14*VLOOKUP(A14,Trends!$A$3:$Z$94,26)) -> 7253.29772 | Z14: 4888.259344 | AB14: 4519.814328 | AD14: =IF($B14<121,VLOOKUP($B14,Lookups!A:H,8)*(1-VLOOKUP($B14,Lookups!$U$3:$W$103,2))^($A14-2018),"") -> 0.2105463949 | AE14: =IF($B14<121,VLOOKUP($B14,Lookups!A:I,9)*(1-VLOOKUP($B14,Lookups!$U$3:$W$103,3))^($A14-2018),"") -> 0.1535248948 | AF14: 0.1820356448 | AG14: 0.295953392 | AH14: 0.6791489389 | AI14: 0.903609 | AL14: 820.8985542
A15: 2030 | B15: 96 | D15: =VLOOKUP(B15,Lookups!A:B,2) -> 4582.880265 | E15: =VLOOKUP(B15,Lookups!A:C,3) -> 2474.103984 | G15: =VLOOKUP(B15,Lookups!A:D,4) -> 6515.866869 | H15: =VLOOKUP(B15,Lookups!A:E,5) -> 3826.627221 | J15: =VLOOKUP(A15,Trends!$A$3:$Q$94,IF(ExFlg=0,2,10))+Sens -> 1.062 | K15: 1.997864544 | L15: =VLOOKUP(A15,Trends!$A$3:$Q$94,IF(ExFlg=0,4,12))+Sens -> 1.057 | M15: 1.956587984 | O15: =VLOOKUP(A15,Trends!$A$3:$Q$94,IF(ExFlg=0,6,14))+Sens -> 1.062 | P15: 1.996924758 | Q15: =VLOOKUP(A15,Trends!$A$3:$Q$94,IF(ExFlg=0,8,16))+Sens -> 1.057 | R15: 1.969596076 | T15: 8966.808457 | U15: =IF(ExFlg=0,E15*VLOOKUP(A15,Trends!$A$3:$Z$94,20),E15*VLOOKUP(A15,Trends!$A$3:$Z$94,24)) -> 4970.160617 | V15: 3996.64784 | X15: 12833.62582 | Y15: =IF(ExFlg=0,H15*VLOOKUP(A15,Trends!$A$3:$Z$94,22),H15*VLOOKUP(A15,Trends!$A$3:$Z$94,26)) -> 7666.73569 | Z15: 5166.890127 | AB15: 4776.813265 | AD15: =IF($B15<121,VLOOKUP($B15,Lookups!A:H,8)*(1-VLOOKUP($B15,Lookups!$U$3:$W$103,2))^($A15-2018),"") -> 0.2301448551 | AE15: =IF($B15<121,VLOOKUP($B15,Lookups!A:I,9)*(1-VLOOKUP($B15,Lookups!$U$3:$W$103,3))^($A15-2018),"") -> 0.1673527382 | AF15: 0.1987487967 | AG15: 0.2420793254 | AH15: 0.6556757472 | AI15: 0.896214 | AL15: 679.5114958
A16: 2031 | B16: 97 | D16: =VLOOKUP(B16,Lookups!A:B,2) -> 4582.880265 | E16: =VLOOKUP(B16,Lookups!A:C,3) -> 2474.103984 | G16: =VLOOKUP(B16,Lookups!A:D,4) -> 6515.866869 | H16: =VLOOKUP(B16,Lookups!A:E,5) -> 3826.627221 | J16: =VLOOKUP(A16,Trends!$A$3:$Q$94,IF(ExFlg=0,2,10))+Sens -> 1.062 | K16: 2.121732146 | L16: =VLOOKUP(A16,Trends!$A$3:$Q$94,IF(ExFlg=0,4,12))+Sens -> 1.057 | M16: 2.068113499 | O16: =VLOOKUP(A16,Trends!$A$3:$Q$94,IF(ExFlg=0,6,14))+Sens -> 1.0655 | P16: 2.120734093 | Q16: =VLOOKUP(A16,Trends!$A$3:$Q$94,IF(ExFlg=0,8,16))+Sens -> 1.057 | R16: 2.081863052 | T16: 9477.916539 | U16: =IF(ExFlg=0,E16*VLOOKUP(A16,Trends!$A$3:$Z$94,20),E16*VLOOKUP(A16,Trends!$A$3:$Z$94,24)) -> 5253.459772 | V16: 4224.456767 | X16: 13565.14249 | Y16: =IF(ExFlg=0,H16*VLOOKUP(A16,Trends!$A$3:$Z$94,22),H16*VLOOKUP(A16,Trends!$A$3:$Z$94,26)) -> 8103.739624 | Z16: 5461.402864 | AB16: 5049.091622 | AD16: =IF($B16<121,VLOOKUP($B16,Lookups!A:H,8)*(1-VLOOKUP($B16,Lookups!$U$3:$W$103,2))^($A16-2018),"") -> 0.2507333768 | AE16: =IF($B16<121,VLOOKUP($B16,Lookups!A:I,9)*(1-VLOOKUP($B16,Lookups!$U$3:$W$103,3))^($A16-2018),"") -> 0.181382642 | AF16: 0.2160580094 | AG16: 0.1939663508 | AH16: 0.6330138513 | AI16: 0.888555 | AL16: 550.8548467
A17: 2032 | B17: 98 | D17: =VLOOKUP(B17,Lookups!A:B,2) -> 4582.880265 | E17: =VLOOKUP(B17,Lookups!A:C,3) -> 2474.103984 | G17: =VLOOKUP(B17,Lookups!A:D,4) -> 6515.866869 | H17: =VLOOKUP(B17,Lookups!A:E,5) -> 3826.627221 | J17: =VLOOKUP(A17,Trends!$A$3:$Q$94,IF(ExFlg=0,2,10))+Sens -> 1.062 | K17: 2.253279539 | L17: =VLOOKUP(A17,Trends!$A$3:$Q$94,IF(ExFlg=0,4,12))+Sens -> 1.057 | M17: 2.185995968 | O17: =VLOOKUP(A17,Trends!$A$3:$Q$94,IF(ExFlg=0,6,14))+Sens -> 1.068 | P17: 2.259642176 | Q17: =VLOOKUP(A17,Trends!$A$3:$Q$94,IF(ExFlg=0,8,16))+Sens -> 1.057 | R17: 2.200529246 | T17: 10018.15778 | U17: =IF(ExFlg=0,E17*VLOOKUP(A17,Trends!$A$3:$Z$94,20),E17*VLOOKUP(A17,Trends!$A$3:$Z$94,24)) -> 5552.906979 | V17: 4465.250803 | X17: 14338.35561 | Y17: =IF(ExFlg=0,H17*VLOOKUP(A17,Trends!$A$3:$Z$94,22),H17*VLOOKUP(A17,Trends!$A$3:$Z$94,26)) -> 8565.652783 | Z17: 5772.702827 | AB17: 5336.889844 | AD17: =IF($B17<121,VLOOKUP($B17,Lookups!A:H,8)*(1-VLOOKUP($B17,Lookups!$U$3:$W$103,2))^($A17-2018),"") -> 0.2637578321 | AE17: =IF($B17<121,VLOOKUP($B17,Lookups!A:I,9)*(1-VLOOKUP($B17,Lookups!$U$3:$W$103,3))^($A17-2018),"") -> 0.1893314588 | AF17: 0.2265446454 | AG17: 0.1520583672 | AH17: 0.6111352107 | AI17: 0.883915 | AL17: 438.3755985
A18: 2033 | B18: 99 | D18: =VLOOKUP(B18,Lookups!A:B,2) -> 4582.880265 | E18: =VLOOKUP(B18,Lookups!A:C,3) -> 2474.103984 | G18: =VLOOKUP(B18,Lookups!A:D,4) -> 6515.866869 | H18: =VLOOKUP(B18,Lookups!A:E,5) -> 3826.627221 | J18: =VLOOKUP(A18,Trends!$A$3:$Q$94,IF(ExFlg=0,2,10))+Sens -> 1.062 | K18: 2.39298287 | L18: =VLOOKUP(A18,Trends!$A$3:$Q$94,IF(ExFlg=0,4,12))+Sens -> 1.057 | M18: 2.310597738 | O18: =VLOOKUP(A18,Trends!$A$3:$Q$94,IF(ExFlg=0,6,14))+Sens -> 1.068 | P18: 2.413297844 | Q18: =VLOOKUP(A18,Trends!$A$3:$Q$94,IF(ExFlg=0,8,16))+Sens -> 1.057 | R18: 2.325959413 | T18: 10589.19278 | U18: =IF(ExFlg=0,E18*VLOOKUP(A18,Trends!$A$3:$Z$94,20),E18*VLOOKUP(A18,Trends!$A$3:$Z$94,24)) -> 5869.422677 | V18: 4719.770099 | X18: 15155.64188 | Y18: =IF(ExFlg=0,H18*VLOOKUP(A18,Trends!$A$3:$Z$94,22),H18*VLOOKUP(A18,Trends!$A$3:$Z$94,26)) -> 9053.894991 | Z18: 6101.746889 | AB18: 5641.092565 | AD18: =IF($B18<121,VLOOKUP($B18,Lookups!A:H,8)*(1-VLOOKUP($B18,Lookups!$U$3:$W$103,2))^($A18-2018),"") -> 0.285534267 | AE18: =IF($B18<121,VLOOKUP($B18,Lookups!A:I,9)*(1-VLOOKUP($B18,Lookups!$U$3:$W$103,3))^($A18-2018),"") -> 0.2028078403 | AF18: 0.2441710537 | AG18: 0.1176103583 | AH18: 0.5900127541 | AI18: 0.876115 | AL18: 342.9504009
A19: 2034 | B19: 100 | D19: =VLOOKUP(B19,Lookups!A:B,2) -> 4582.880265 | E19: =VLOOKUP(B19,Lookups!A:C,3) -> 2474.103984 | G19: =VLOOKUP(B19,Lookups!A:D,4) -> 6515.866869 | H19: =VLOOKUP(B19,Lookups!A:E,5) -> 3826.627221 | J19: =VLOOKUP(A19,Trends!$A$3:$Q$94,IF(ExFlg=0,2,10))+Sens -> 1.0625 | K19: 2.541347808 | L19: =VLOOKUP(A19,Trends!$A$3:$Q$94,IF(ExFlg=0,4,12))+Sens -> 1.057 | M19: 2.442301809 | O19: =VLOOKUP(A19,Trends!$A$3:$Q$94,IF(ExFlg=0,6,14))+Sens -> 1.0675 | P19: 2.577402098 | Q19: =VLOOKUP(A19,Trends!$A$3:$Q$94,IF(ExFlg=0,8,16))+Sens -> 1.0575 | R19: 2.4585391 | T19: 11192.77676 | U19: =IF(ExFlg=0,E19*VLOOKUP(A19,Trends!$A$3:$Z$94,20),E19*VLOOKUP(A19,Trends!$A$3:$Z$94,24)) -> 6203.979769 | V19: 4988.796994 | X19: 16019.51347 | Y19: =IF(ExFlg=0,H19*VLOOKUP(A19,Trends!$A$3:$Z$94,22),H19*VLOOKUP(A19,Trends!$A$3:$Z$94,26)) -> 9569.967006 | Z19: 6449.546461 | AB19: 5962.634841 | AD19: =IF($B19<121,VLOOKUP($B19,Lookups!A:H,8)*(1-VLOOKUP($B19,Lookups!$U$3:$W$103,2))^($A19-2018),"") -> 0.2981406607 | AE19: =IF($B19<121,VLOOKUP($B19,Lookups!A:I,9)*(1-VLOOKUP($B19,Lookups!$U$3:$W$103,3))^($A19-2018),"") -> 0.2089175722 | AF19: 0.2535291165 | AG19: 0.08889331318 | AH19: 0.5696203458 | AI19: 0.871974 | AL19: 263.266946
A20: 2035 | B20: 101 | D20: =VLOOKUP(B20,Lookups!A:B,2) -> 4582.880265 | E20: =VLOOKUP(B20,Lookups!A:C,3) -> 2474.103984 | G20: =VLOOKUP(B20,Lookups!A:D,4) -> 6515.866869 | H20: =VLOOKUP(B20,Lookups!A:E,5) -> 3826.627221 | J20: =VLOOKUP(A20,Trends!$A$3:$Q$94,IF(ExFlg=0,2,10))+Sens -> 1.0635 | K20: 2.700182046 | L20: =VLOOKUP(A20,Trends!$A$3:$Q$94,IF(ExFlg=0,4,12))+Sens -> 1.057 | M20: 2.581513012 | O20: =VLOOKUP(A20,Trends!$A$3:$Q$94,IF(ExFlg=0,6,14))+Sens -> 1.067 | P20: 2.751376739 | Q20: =VLOOKUP(A20,Trends!$A$3:$Q$94,IF(ExFlg=0,8,16))+Sens -> 1.058 | R20: 2.599905098 | T20: 11830.76504 | U20: =IF(ExFlg=0,E20*VLOOKUP(A20,Trends!$A$3:$Z$94,20),E20*VLOOKUP(A20,Trends!$A$3:$Z$94,24)) -> 6557.606616 | V20: 5273.158423 | X20: 16940.63549 | Y20: =IF(ExFlg=0,H20*VLOOKUP(A20,Trends!$A$3:$Z$94,22),H20*VLOOKUP(A20,Trends!$A$3:$Z$94,26)) -> 10120.24011 | Z20: 6820.395383 | AB20: 6304.654887 | AD20: =IF($B20<121,VLOOKUP($B20,Lookups!A:H,8)*(1-VLOOKUP($B20,Lookups!$U$3:$W$103,2))^($A20-2018),"") -> 0.3212397349 | AE20: =IF($B20<121,VLOOKUP($B20,Lookups!A:I,9)*(1-VLOOKUP($B20,Lookups!$U$3:$W$103,3))^($A20-2018),"") -> 0.2213972643 | AF20: 0.2713184996 | AG20: 0.06635627003 | AH20: 0.5499327532 | AI20: 0.864102 | AL20: 198.8006871
A21: 2036 | B21: 102 | D21: =VLOOKUP(B21,Lookups!A:B,2) -> 4582.880265 | E21: =VLOOKUP(B21,Lookups!A:C,3) -> 2474.103984 | G21: =VLOOKUP(B21,Lookups!A:D,4) -> 6515.866869 | H21: =VLOOKUP(B21,Lookups!A:E,5) -> 3826.627221 | J21: =VLOOKUP(A21,Trends!$A$3:$Q$94,IF(ExFlg=0,2,10))+Sens -> 1.064 | K21: 2.871643606 | L21: =VLOOKUP(A21,Trends!$A$3:$Q$94,IF(ExFlg=0,4,12))+Sens -> 1.057 | M21: 2.728659254 | O21: =VLOOKUP(A21,Trends!$A$3:$Q$94,IF(ExFlg=0,6,14))+Sens -> 1.067 | P21: 2.935718981 | Q21: =VLOOKUP(A21,Trends!$A$3:$Q$94,IF(ExFlg=0,8,16))+Sens -> 1.058 | R21: 2.750699594 | T21: 12505.11865 | U21: =IF(ExFlg=0,E21*VLOOKUP(A21,Trends!$A$3:$Z$94,20),E21*VLOOKUP(A21,Trends!$A$3:$Z$94,24)) -> 6931.390193 | V21: 5573.728453 | X21: 17923.19235 | Y21: =IF(ExFlg=0,H21*VLOOKUP(A21,Trends!$A$3:$Z$94,22),H21*VLOOKUP(A21,Trends!$A$3:$Z$94,26)) -> 10707.21404 | Z21: 7215.978315 | AB21: 6668.567168 | AD21: =IF($B21<121,VLOOKUP($B21,Lookups!A:H,8)*(1-VLOOKUP($B21,Lookups!$U$3:$W$103,2))^($A21-2018),"") -> 0.3336908108 | AE21: =IF($B21<121,VLOOKUP($B21,Lookups!A:I,9)*(1-VLOOKUP($B21,Lookups!$U$3:$W$103,3))^($A21-2018),"") -> 0.2278089566 | AF21: 0.2807498837 | AG21: 0.04835258641 | AH21: 0.5309256161 | AI21: 0.859929 | AL21: 147.2137971
A22: 2037 | B22: 103 | D22: =VLOOKUP(B22,Lookups!A:B,2) -> 4582.880265 | E22: =VLOOKUP(B22,Lookups!A:C,3) -> 2474.103984 | G22: =VLOOKUP(B22,Lookups!A:D,4) -> 6515.866869 | H22: =VLOOKUP(B22,Lookups!A:E,5) -> 3826.627221 | J22: =VLOOKUP(A22,Trends!$A$3:$Q$94,IF(ExFlg=0,2,10))+Sens -> 1.064 | K22: 3.055428797 | L22: =VLOOKUP(A22,Trends!$A$3:$Q$94,IF(ExFlg=0,4,12))+Sens -> 1.0575 | M22: 2.884192832 | O22: =VLOOKUP(A22,Trends!$A$3:$Q$94,IF(ExFlg=0,6,14))+Sens -> 1.067 | P22: 3.132412153 | Q22: =VLOOKUP(A22,Trends!$A$3:$Q$94,IF(ExFlg=0,8,16))+Sens -> 1.058 | R22: 2.91024017 | T22: 13217.91041 | U22: =IF(ExFlg=0,E22*VLOOKUP(A22,Trends!$A$3:$Z$94,20),E22*VLOOKUP(A22,Trends!$A$3:$Z$94,24)) -> 7326.479434 | V22: 5891.430975 | X22: 18962.73751 | Y22: =IF(ExFlg=0,H22*VLOOKUP(A22,Trends!$A$3:$Z$94,22),H22*VLOOKUP(A22,Trends!$A$3:$Z$94,26)) -> 11328.23245 | Z22: 7634.505057 | AB22: 7053.486173 | AD22: =IF($B22<121,VLOOKUP($B22,Lookups!A:H,8)*(1-VLOOKUP($B22,Lookups!$U$3:$W$103,2))^($A22-2018),"") -> 0.3581771024 | AE22: =IF($B22<121,VLOOKUP($B22,Lookups!A:I,9)*(1-VLOOKUP($B22,Lookups!$U$3:$W$103,3))^($A22-2018),"") -> 0.2452493372 | AF22: 0.3017132198 | AG22: 0.0347776034 | AH22: 0.5125754162 | AI22: 0.850653 | AL22: 106.9581003
A23: 2038 | B23: 104 | D23: =VLOOKUP(B23,Lookups!A:B,2) -> 4582.880265 | E23: =VLOOKUP(B23,Lookups!A:C,3) -> 2474.103984 | G23: =VLOOKUP(B23,Lookups!A:D,4) -> 6515.866869 | H23: =VLOOKUP(B23,Lookups!A:E,5) -> 3826.627221 | J23: =VLOOKUP(A23,Trends!$A$3:$Q$94,IF(ExFlg=0,2,10))+Sens -> 1.0635 | K23: 3.25097624 | L23: =VLOOKUP(A23,Trends!$A$3:$Q$94,IF(ExFlg=0,4,12))+Sens -> 1.058 | M23: 3.050033919 | O23: =VLOOKUP(A23,Trends!$A$3:$Q$94,IF(ExFlg=0,6,14))+Sens -> 1.067 | P23: 3.342283767 | Q23: =VLOOKUP(A23,Trends!$A$3:$Q$94,IF(ExFlg=0,8,16))+Sens -> 1.058 | R23: 3.0790341 | T23: 13977.94026 | U23: =IF(ExFlg=0,E23*VLOOKUP(A23,Trends!$A$3:$Z$94,20),E23*VLOOKUP(A23,Trends!$A$3:$Z$94,24)) -> 7747.752002 | V23: 6230.188256 | X23: 20062.57628 | Y23: =IF(ExFlg=0,H23*VLOOKUP(A23,Trends!$A$3:$Z$94,22),H23*VLOOKUP(A23,Trends!$A$3:$Z$94,26)) -> 11985.26993 | Z23: 8077.306351 | AB23: 7461.606476 | AD23: =IF($B23<121,VLOOKUP($B23,Lookups!A:H,8)*(1-VLOOKUP($B23,Lookups!$U$3:$W$103,2))^($A23-2018),"") -> 0.3687509717 | AE23: =IF($B23<121,VLOOKUP($B23,Lookups!A:I,9)*(1-VLOOKUP($B23,Lookups!$U$3:$W$103,3))^($A23-2018),"") -> 0.2561194296 | AF23: 0.3124352007 | AG23: 0.0242847407 | AH23: 0.494859448 | AI23: 0.845909 | AL23: 75.85274874
A24: 2039 | B24: 105 | D24: =VLOOKUP(B24,Lookups!A:B,2) -> 4582.880265 | E24: =VLOOKUP(B24,Lookups!A:C,3) -> 2474.103984 | G24: =VLOOKUP(B24,Lookups!A:D,4) -> 6515.866869 | H24: =VLOOKUP(B24,Lookups!A:E,5) -> 3826.627221 | J24: =VLOOKUP(A24,Trends!$A$3:$Q$94,IF(ExFlg=0,2,10))+Sens -> 1.0625 | K24: 3.457413231 | L24: =VLOOKUP(A24,Trends!$A$3:$Q$94,IF(ExFlg=0,4,12))+Sens -> 1.0575 | M24: 3.226935887 | O24: =VLOOKUP(A24,Trends!$A$3:$Q$94,IF(ExFlg=0,6,14))+Sens -> 1.0665 | P24: 3.566216779 | Q24: =VLOOKUP(A24,Trends!$A$3:$Q$94,IF(ExFlg=0,8,16))+Sens -> 1.0575 | R24: 3.257618078 | T24: 14788.66079 | U24: =IF(ExFlg=0,E24*VLOOKUP(A24,Trends!$A$3:$Z$94,20),E24*VLOOKUP(A24,Trends!$A$3:$Z$94,24)) -> 8197.121618 | V24: 6591.539175 | X24: 21226.20571 | Y24: =IF(ExFlg=0,H24*VLOOKUP(A24,Trends!$A$3:$Z$94,22),H24*VLOOKUP(A24,Trends!$A$3:$Z$94,26)) -> 12680.41559 | Z24: 8545.790119 | AB24: 7894.379652 | AD24: =IF($B24<121,VLOOKUP($B24,Lookups!A:H,8)*(1-VLOOKUP($B24,Lookups!$U$3:$W$103,2))^($A24-2018),"") -> 0.392003 | AE24: =IF($B24<121,VLOOKUP($B24,Lookups!A:I,9)*(1-VLOOKUP($B24,Lookups!$U$3:$W$103,3))^($A24-2018),"") -> 0.279055 | AF24: 0.335529 | AG24: 0.01669733286 | AH24: 0.4777557907 | AI24: 0.83569 | AL24: 52.62792879
A25: 2040 | B25: 106 | D25: =VLOOKUP(B25,Lookups!A:B,2) -> 4582.880265 | E25: =VLOOKUP(B25,Lookups!A:C,3) -> 2474.103984 | G25: =VLOOKUP(B25,Lookups!A:D,4) -> 6515.866869 | H25: =VLOOKUP(B25,Lookups!A:E,5) -> 3826.627221 | J25: =VLOOKUP(A25,Trends!$A$3:$Q$94,IF(ExFlg=0,2,10))+Sens -> 1.0615 | K25: 3.673501558 | L25: =VLOOKUP(A25,Trends!$A$3:$Q$94,IF(ExFlg=0,4,12))+Sens -> 1.0565 | M25: 3.4124847 | O25: =VLOOKUP(A25,Trends!$A$3:$Q$94,IF(ExFlg=0,6,14))+Sens -> 1.065 | P25: 3.803370195 | Q25: =VLOOKUP(A25,Trends!$A$3:$Q$94,IF(ExFlg=0,8,16))+Sens -> 1.057 | R25: 3.444931118 | T25: 15639.00879 | U25: =IF(ExFlg=0,E25*VLOOKUP(A25,Trends!$A$3:$Z$94,20),E25*VLOOKUP(A25,Trends!$A$3:$Z$94,24)) -> 8668.456111 | V25: 6970.552677 | X25: 22446.71253 | Y25: =IF(ExFlg=0,H25*VLOOKUP(A25,Trends!$A$3:$Z$94,22),H25*VLOOKUP(A25,Trends!$A$3:$Z$94,26)) -> 13409.53948 | Z25: 9037.173051 | AB25: 8348.306482 | AD25: =IF($B25<121,VLOOKUP($B25,Lookups!A:H,8)*(1-VLOOKUP($B25,Lookups!$U$3:$W$103,2))^($A25-2018),"") -> 0.397886 | AE25: =IF($B25<121,VLOOKUP($B25,Lookups!A:I,9)*(1-VLOOKUP($B25,Lookups!$U$3:$W$103,3))^($A25-2018),"") -> 0.293116 | AF25: 0.345501 | AG25: 0.01109489347 | AH25: 0.4612432812 | AI25: 0.831277 | AL25: 35.51381585
A26: 2041 | B26: 107 | D26: =VLOOKUP(B26,Lookups!A:B,2) -> 4582.880265 | E26: =VLOOKUP(B26,Lookups!A:C,3) -> 2474.103984 | G26: =VLOOKUP(B26,Lookups!A:D,4) -> 6515.866869 | H26: =VLOOKUP(B26,Lookups!A:E,5) -> 3826.627221 | J26: =VLOOKUP(A26,Trends!$A$3:$Q$94,IF(ExFlg=0,2,10))+Sens -> 1.0615 | K26: 3.899421904 | L26: =VLOOKUP(A26,Trends!$A$3:$Q$94,IF(ExFlg=0,4,12))+Sens -> 1.056 | M26: 3.605290086 | O26: =VLOOKUP(A26,Trends!$A$3:$Q$94,IF(ExFlg=0,6,14))+Sens -> 1.064 | P26: 4.050589258 | Q26: =VLOOKUP(A26,Trends!$A$3:$Q$94,IF(ExFlg=0,8,16))+Sens -> 1.0585 | R26: 3.641292191 | T26: 16522.61278 | U26: =IF(ExFlg=0,E26*VLOOKUP(A26,Trends!$A$3:$Z$94,20),E26*VLOOKUP(A26,Trends!$A$3:$Z$94,24)) -> 9158.223881 | V26: 7364.388903 | X26: 23726.17515 | Y26: =IF(ExFlg=0,H26*VLOOKUP(A26,Trends!$A$3:$Z$94,22),H26*VLOOKUP(A26,Trends!$A$3:$Z$94,26)) -> 14173.88323 | Z26: 9552.291915 | AB26: 8822.998204 | AD26: =IF($B26<121,VLOOKUP($B26,Lookups!A:H,8)*(1-VLOOKUP($B26,Lookups!$U$3:$W$103,2))^($A26-2018),"") -> 0.4 | AE26: =IF($B26<121,VLOOKUP($B26,Lookups!A:I,9)*(1-VLOOKUP($B26,Lookups!$U$3:$W$103,3))^($A26-2018),"") -> 0.307811 | AF26: 0.3539055 | AG26: 0.007261596678 | AH26: 0.445301488 | AI26: 0.827558 | AL26: 23.61026721
A27: 2042 | B27: 108 | D27: =VLOOKUP(B27,Lookups!A:B,2) -> 4582.880265 | E27: =VLOOKUP(B27,Lookups!A:C,3) -> 2474.103984 | G27: =VLOOKUP(B27,Lookups!A:D,4) -> 6515.866869 | H27: =VLOOKUP(B27,Lookups!A:E,5) -> 3826.627221 | J27: =VLOOKUP(A27,Trends!$A$3:$Q$94,IF(ExFlg=0,2,10))+Sens -> 1.0625 | K27: 4.139236351 | L27: =VLOOKUP(A27,Trends!$A$3:$Q$94,IF(ExFlg=0,4,12))+Sens -> 1.0555 | M27: 3.807186331 | O27: =VLOOKUP(A27,Trends!$A$3:$Q$94,IF(ExFlg=0,6,14))+Sens -> 1.0635 | P27: 4.30982697 | Q27: =VLOOKUP(A27,Trends!$A$3:$Q$94,IF(ExFlg=0,8,16))+Sens -> 1.06 | R27: 3.854307785 | T27: 17447.8791 | U27: =IF(ExFlg=0,E27*VLOOKUP(A27,Trends!$A$3:$Z$94,20),E27*VLOOKUP(A27,Trends!$A$3:$Z$94,24)) -> 9671.084418 | V27: 7776.794682 | X27: 25114.15639 | Y27: =IF(ExFlg=0,H27*VLOOKUP(A27,Trends!$A$3:$Z$94,22),H27*VLOOKUP(A27,Trends!$A$3:$Z$94,26)) -> 15003.0554 | Z27: 10111.10099 | AB27: 9333.006669 | AD27: =IF($B27<121,VLOOKUP($B27,Lookups!A:H,8)*(1-VLOOKUP($B27,Lookups!$U$3:$W$103,2))^($A27-2018),"") -> 0.4 | AE27: =IF($B27<121,VLOOKUP($B27,Lookups!A:I,9)*(1-VLOOKUP($B27,Lookups!$U$3:$W$103,3))^($A27-2018),"") -> 0.322725 | AF27: 0.3613625 | AG27: 0.004691677675 | AH27: 0.4299106854 | AI27: 0.824259 | AL27: 15.51642553
A28: 2043 | B28: 109 | D28: =VLOOKUP(B28,Lookups!A:B,2) -> 4582.880265 | E28: =VLOOKUP(B28,Lookups!A:C,3) -> 2474.103984 | G28: =VLOOKUP(B28,Lookups!A:D,4) -> 6515.866869 | H28: =VLOOKUP(B28,Lookups!A:E,5) -> 3826.627221 | J28: =VLOOKUP(A28,Trends!$A$3:$Q$94,IF(ExFlg=0,2,10))+Sens -> 1.063 | K28: 4.397938623 | L28: =VLOOKUP(A28,Trends!$A$3:$Q$94,IF(ExFlg=0,4,12))+Sens -> 1.055 | M28: 4.018485172 | O28: =VLOOKUP(A28,Trends!$A$3:$Q$94,IF(ExFlg=0,6,14))+Sens -> 1.0625 | P28: 4.583500983 | Q28: =VLOOKUP(A28,Trends!$A$3:$Q$94,IF(ExFlg=0,8,16))+Sens -> 1.0595 | R28: 4.085566252 | T28: 18416.23639 | U28: =IF(ExFlg=0,E28*VLOOKUP(A28,Trends!$A$3:$Z$94,20),E28*VLOOKUP(A28,Trends!$A$3:$Z$94,24)) -> 10207.8296 | V28: 8208.406787 | X28: 26621.00578 | Y28: =IF(ExFlg=0,H28*VLOOKUP(A28,Trends!$A$3:$Z$94,22),H28*VLOOKUP(A28,Trends!$A$3:$Z$94,26)) -> 15903.23873 | Z28: 10717.76705 | AB28: 9881.321994 | AD28: =IF($B28<121,VLOOKUP($B28,Lookups!A:H,8)*(1-VLOOKUP($B28,Lookups!$U$3:$W$103,2))^($A28-2018),"") -> 0.4 | AE28: =IF($B28<121,VLOOKUP($B28,Lookups!A:I,9)*(1-VLOOKUP($B28,Lookups!$U$3:$W$103,3))^($A28-2018),"") -> 0.337441 | AF28: 0.3687205 | AG28: 0.002996281301 | AH28: 0.4150518299 | AI28: 0.821003 | AL28: 10.0889208
A29: 2044 | B29: 110 | D29: =VLOOKUP(B29,Lookups!A:B,2) -> 4582.880265 | E29: =VLOOKUP(B29,Lookups!A:C,3) -> 2474.103984 | G29: =VLOOKUP(B29,Lookups!A:D,4) -> 6515.866869 | H29: =VLOOKUP(B29,Lookups!A:E,5) -> 3826.627221 | J29: =VLOOKUP(A29,Trends!$A$3:$Q$94,IF(ExFlg=0,2,10))+Sens -> 1.0625 | K29: 4.675008756 | L29: =VLOOKUP(A29,Trends!$A$3:$Q$94,IF(ExFlg=0,4,12))+Sens -> 1.055 | M29: 4.239501856 | O29: =VLOOKUP(A29,Trends!$A$3:$Q$94,IF(ExFlg=0,6,14))+Sens -> 1.062 | P29: 4.869969794 | Q29: =VLOOKUP(A29,Trends!$A$3:$Q$94,IF(ExFlg=0,8,16))+Sens -> 1.059 | R29: 4.328657444 | T29: 19429.12939 | U29: =IF(ExFlg=0,E29*VLOOKUP(A29,Trends!$A$3:$Z$94,20),E29*VLOOKUP(A29,Trends!$A$3:$Z$94,24)) -> 10769.26023 | V29: 8659.86916 | X29: 28204.95562 | Y29: =IF(ExFlg=0,H29*VLOOKUP(A29,Trends!$A$3:$Z$94,22),H29*VLOOKUP(A29,Trends!$A$3:$Z$94,26)) -> 16849.48143 | Z29: 11355.47419 | AB29: 10456.94817 | AD29: =IF($B29<121,VLOOKUP($B29,Lookups!A:H,8)*(1-VLOOKUP($B29,Lookups!$U$3:$W$103,2))^($A29-2018),"") -> 0.4 | AE29: =IF($B29<121,VLOOKUP($B29,Lookups!A:I,9)*(1-VLOOKUP($B29,Lookups!$U$3:$W$103,3))^($A29-2018),"") -> 0.351544 | AF29: 0.375772 | AG29: 0.001891490962 | AH29: 0.4007065359 | AI29: 0.817883 | AL29: 6.482265775
A30: 2045 | B30: 111 | D30: =VLOOKUP(B30,Lookups!A:B,2) -> 4582.880265 | E30: =VLOOKUP(B30,Lookups!A:C,3) -> 2474.103984 | G30: =VLOOKUP(B30,Lookups!A:D,4) -> 6515.866869 | H30: =VLOOKUP(B30,Lookups!A:E,5) -> 3826.627221 | J30: =VLOOKUP(A30,Trends!$A$3:$Q$94,IF(ExFlg=0,2,10))+Sens -> 1.062 | K30: 4.967196804 | L30: =VLOOKUP(A30,Trends!$A$3:$Q$94,IF(ExFlg=0,4,12))+Sens -> 1.055 | M30: 4.472674458 | O30: =VLOOKUP(A30,Trends!$A$3:$Q$94,IF(ExFlg=0,6,14))+Sens -> 1.0615 | P30: 5.171907922 | Q30: =VLOOKUP(A30,Trends!$A$3:$Q$94,IF(ExFlg=0,8,16))+Sens -> 1.059 | R30: 4.584048233 | T30: 20497.73151 | U30: =IF(ExFlg=0,E30*VLOOKUP(A30,Trends!$A$3:$Z$94,20),E30*VLOOKUP(A30,Trends!$A$3:$Z$94,24)) -> 11361.56954 | V30: 9136.161964 | X30: 29869.048 | Y30: =IF(ExFlg=0,H30*VLOOKUP(A30,Trends!$A$3:$Z$94,22),H30*VLOOKUP(A30,Trends!$A$3:$Z$94,26)) -> 17843.60084 | Z30: 12025.44717 | AB30: 11062.36173 | AD30: =IF($B30<121,VLOOKUP($B30,Lookups!A:H,8)*(1-VLOOKUP($B30,Lookups!$U$3:$W$103,2))^($A30-2018),"") -> 0.4 | AE30: =IF($B30<121,VLOOKUP($B30,Lookups!A:I,9)*(1-VLOOKUP($B30,Lookups!$U$3:$W$103,3))^($A30-2018),"") -> 0.364617 | AF30: 0.3823085 | AG30: 0.00118072162 | AH30: 0.3868570534 | AI30: 0.81499 | AL30: 4.118112158
A31: 2046 | B31: 112 | D31: =VLOOKUP(B31,Lookups!A:B,2) -> 4582.880265 | E31: =VLOOKUP(B31,Lookups!A:C,3) -> 2474.103984 | G31: =VLOOKUP(B31,Lookups!A:D,4) -> 6515.866869 | H31: =VLOOKUP(B31,Lookups!A:E,5) -> 3826.627221 | J31: =VLOOKUP(A31,Trends!$A$3:$Q$94,IF(ExFlg=0,2,10))+Sens -> 1.0615 | K31: 5.275163005 | L31: =VLOOKUP(A31,Trends!$A$3:$Q$94,IF(ExFlg=0,4,12))+Sens -> 1.055 | M31: 4.718671554 | O31: =VLOOKUP(A31,Trends!$A$3:$Q$94,IF(ExFlg=0,6,14))+Sens -> 1.061 | P31: 5.489980259 | Q31: =VLOOKUP(A31,Trends!$A$3:$Q$94,IF(ExFlg=0,8,16))+Sens -> 1.0585 | R31: 4.854507078 | T31: 21625.10674 | U31: =IF(ExFlg=0,E31*VLOOKUP(A31,Trends!$A$3:$Z$94,20),E31*VLOOKUP(A31,Trends!$A$3:$Z$94,24)) -> 11986.45587 | V31: 9638.650872 | X31: 31631.32184 | Y31: =IF(ExFlg=0,H31*VLOOKUP(A31,Trends!$A$3:$Z$94,22),H31*VLOOKUP(A31,Trends!$A$3:$Z$94,26)) -> 18896.37329 | Z31: 12734.94855 | AB31: 11702.85965 | AD31: =IF($B31<121,VLOOKUP($B31,Lookups!A:H,8)*(1-VLOOKUP($B31,Lookups!$U$3:$W$103,2))^($A31-2018),"") -> 0.4 | AE31: =IF($B31<121,VLOOKUP($B31,Lookups!A:I,9)*(1-VLOOKUP($B31,Lookups!$U$3:$W$103,3))^($A31-2018),"") -> 0.376246 | AF31: 0.388123 | AG31: 0.0007293217086 | AH31: 0.3734862458 | AI31: 0.812417 | AL31: 2.589791211
A32: 2047 | B32: 113 | D32: =VLOOKUP(B32,Lookups!A:B,2) -> 4582.880265 | E32: =VLOOKUP(B32,Lookups!A:C,3) -> 2474.103984 | G32: =VLOOKUP(B32,Lookups!A:D,4) -> 6515.866869 | H32: =VLOOKUP(B32,Lookups!A:E,5) -> 3826.627221 | J32: =VLOOKUP(A32,Trends!$A$3:$Q$94,IF(ExFlg=0,2,10))+Sens -> 1.061 | K32: 5.59958553 | L32: =VLOOKUP(A32,Trends!$A$3:$Q$94,IF(ExFlg=0,4,12))+Sens -> 1.0545 | M32: 4.978198489 | O32: =VLOOKUP(A32,Trends!$A$3:$Q$94,IF(ExFlg=0,6,14))+Sens -> 1.061 | P32: 5.824869055 | Q32: =VLOOKUP(A32,Trends!$A$3:$Q$94,IF(ExFlg=0,8,16))+Sens -> 1.058 | R32: 5.138495743 | T32: 22814.48761 | U32: =IF(ExFlg=0,E32*VLOOKUP(A32,Trends!$A$3:$Z$94,20),E32*VLOOKUP(A32,Trends!$A$3:$Z$94,24)) -> 12645.71094 | V32: 10168.77667 | X32: 33481.75416 | Y32: =IF(ExFlg=0,H32*VLOOKUP(A32,Trends!$A$3:$Z$94,22),H32*VLOOKUP(A32,Trends!$A$3:$Z$94,26)) -> 20001.81112 | Z32: 13479.94304 | AB32: 12376.23195 | AD32: =IF($B32<121,VLOOKUP($B32,Lookups!A:H,8)*(1-VLOOKUP($B32,Lookups!$U$3:$W$103,2))^($A32-2018),"") -> 0.4 | AE32: =IF($B32<121,VLOOKUP($B32,Lookups!A:I,9)*(1-VLOOKUP($B32,Lookups!$U$3:$W$103,3))^($A32-2018),"") -> 0.386015 | AF32: 0.3930075 | AG32: 0.0004462551791 | AH32: 0.3605775689 | AI32: 0.810256 | AL32: 1.61358806
A33: 2048 | B33: 114 | D33: =VLOOKUP(B33,Lookups!A:B,2) -> 4582.880265 | E33: =VLOOKUP(B33,Lookups!A:C,3) -> 2474.103984 | G33: =VLOOKUP(B33,Lookups!A:D,4) -> 6515.866869 | H33: =VLOOKUP(B33,Lookups!A:E,5) -> 3826.627221 | J33: =VLOOKUP(A33,Trends!$A$3:$Q$94,IF(ExFlg=0,2,10))+Sens -> 1.0605 | K33: 5.941160248 | L33: =VLOOKUP(A33,Trends!$A$3:$Q$94,IF(ExFlg=0,4,12))+Sens -> 1.054 | M33: 5.249510307 | O33: =VLOOKUP(A33,Trends!$A$3:$Q$94,IF(ExFlg=0,6,14))+Sens -> 1.0605 | P33: 6.180186067 | Q33: =VLOOKUP(A33,Trends!$A$3:$Q$94,IF(ExFlg=0,8,16))+Sens -> 1.058 | R33: 5.436528496 | T33: 24057.87719 | U33: =IF(ExFlg=0,E33*VLOOKUP(A33,Trends!$A$3:$Z$94,20),E33*VLOOKUP(A33,Trends!$A$3:$Z$94,24)) -> 13334.90219 | V33: 10722.975 | X33: 35423.69591 | Y33: =IF(ExFlg=0,H33*VLOOKUP(A33,Trends!$A$3:$Z$94,22),H33*VLOOKUP(A33,Trends!$A$3:$Z$94,26)) -> 21161.91617 | Z33: 14261.77974 | AB33: 13082.18995 | AD33: =IF($B33<121,VLOOKUP($B33,Lookups!A:H,8)*(1-VLOOKUP($B33,Lookups!$U$3:$W$103,2))^($A33-2018),"") -> 0.4 | AE33: =IF($B33<121,VLOOKUP($B33,Lookups!A:I,9)*(1-VLOOKUP($B33,Lookups!$U$3:$W$103,3))^($A33-2018),"") -> 0.393507 | AF33: 0.3967535 | AG33: 0.0002708735468 | AH33: 0.3481150501 | AI33: 0.808598 | AL33: 0.9974761206
A34: 2049 | B34: 115 | D34: =VLOOKUP(B34,Lookups!A:B,2) -> 4582.880265 | E34: =VLOOKUP(B34,Lookups!A:C,3) -> 2474.103984 | G34: =VLOOKUP(B34,Lookups!A:D,4) -> 6515.866869 | H34: =VLOOKUP(B34,Lookups!A:E,5) -> 3826.627221 | J34: =VLOOKUP(A34,Trends!$A$3:$Q$94,IF(ExFlg=0,2,10))+Sens -> 1.06 | K34: 6.300600443 | L34: =VLOOKUP(A34,Trends!$A$3:$Q$94,IF(ExFlg=0,4,12))+Sens -> 1.054 | M34: 5.532983863 | O34: =VLOOKUP(A34,Trends!$A$3:$Q$94,IF(ExFlg=0,6,14))+Sens -> 1.06 | P34: 6.554087324 | Q34: =VLOOKUP(A34,Trends!$A$3:$Q$94,IF(ExFlg=0,8,16))+Sens -> 1.0575 | R34: 5.751847148 | T34: 25357.00256 | U34: =IF(ExFlg=0,E34*VLOOKUP(A34,Trends!$A$3:$Z$94,20),E34*VLOOKUP(A34,Trends!$A$3:$Z$94,24)) -> 14054.98691 | V34: 11302.01565 | X34: 37478.27027 | Y34: =IF(ExFlg=0,H34*VLOOKUP(A34,Trends!$A$3:$Z$94,22),H34*VLOOKUP(A34,Trends!$A$3:$Z$94,26)) -> 22389.30731 | Z34: 15088.96296 | AB34: 13826.65981 | AD34: =IF($B34<121,VLOOKUP($B34,Lookups!A:H,8)*(1-VLOOKUP($B34,Lookups!$U$3:$W$103,2))^($A34-2018),"") -> 0.4 | AE34: =IF($B34<121,VLOOKUP($B34,Lookups!A:I,9)*(1-VLOOKUP($B34,Lookups!$U$3:$W$103,3))^($A34-2018),"") -> 0.398308 | AF34: 0.399154 | AG34: 0.000163403519 | AH34: 0.336083269 | AI34: 0.807536 | AL34: 0.6131792758
A35: 2050 | B35: 116 | D35: =VLOOKUP(B35,Lookups!A:B,2) -> 4582.880265 | E35: =VLOOKUP(B35,Lookups!A:C,3) -> 2474.103984 | G35: =VLOOKUP(B35,Lookups!A:D,4) -> 6515.866869 | H35: =VLOOKUP(B35,Lookups!A:E,5) -> 3826.627221 | J35: =VLOOKUP(A35,Trends!$A$3:$Q$94,IF(ExFlg=0,2,10))+Sens -> 1.06 | K35: 6.678636469 | L35: =VLOOKUP(A35,Trends!$A$3:$Q$94,IF(ExFlg=0,4,12))+Sens -> 1.054 | M35: 5.831764992 | O35: =VLOOKUP(A35,Trends!$A$3:$Q$94,IF(ExFlg=0,6,14))+Sens -> 1.06 | P35: 6.947332563 | Q35: =VLOOKUP(A35,Trends!$A$3:$Q$94,IF(ExFlg=0,8,16))+Sens -> 1.057 | R35: 6.082578359 | T35: =IF(B35<65,D35*K35,D35*M35) -> 26726.28069 | U35: =IF(ExFlg=0,E35*VLOOKUP(A35,Trends!$A$3:$Z$94,20),E35*VLOOKUP(A35,Trends!$A$3:$Z$94,24)) -> 14813.9562 | V35: =T35-U35 -> 11912.32449 | X35: =IF(B35<65,G35*P35,G35*R35) -> 39633.27081 | Y35: =IF(ExFlg=0,H35*VLOOKUP(A35,Trends!$A$3:$Z$94,22),H35*VLOOKUP(A35,Trends!$A$3:$Z$94,26)) -> 23676.69248 | Z35: =X35-Y35 -> 15956.57833 | AB35: =(1-PctUMP)*V35+PctUMP*Z35 -> 14608.5072 | AD35: =IF($B35<121,VLOOKUP($B35,Lookups!A:H,8)*(1-VLOOKUP($B35,Lookups!$U$3:$W$103,2))^($A35-2018),"") -> 0.4 | AE35: =IF($B35<121,VLOOKUP($B35,Lookups!A:I,9)*(1-VLOOKUP($B35,Lookups!$U$3:$W$103,3))^($A35-2018),"") -> 0.4 | AF35: =IF(B35<121,(PCTMALE*AD35+(1-PCTMALE)*AE35),"") -> 0.4 | AG35: 9.81803508e-05 | AH35: 0.3244673383 | AI35: =IF(AF35="","",ROUND((13/24)+(11/24)*(1/(1+IntRt))*(1-AF35),6)) -> 0.807162 | AK35: =IF(B35<65,AB35*AG35*AH35*AI35,"") ->  | AL35: 0.3756315933
A36: =1+A35 -> 2051 | B36: =1+B35 -> 117 | D36: =VLOOKUP(B36,Lookups!A:B,2) -> 4582.880265 | E36: =VLOOKUP(B36,Lookups!A:C,3) -> 2474.103984 | G36: =VLOOKUP(B36,Lookups!A:D,4) -> 6515.866869 | H36: =VLOOKUP(B36,Lookups!A:E,5) -> 3826.627221 | J36: =VLOOKUP(A36,Trends!$A$3:$Q$94,IF(ExFlg=0,2,10))+Sens -> 1.06 | K36: 7.079354657 | L36: =VLOOKUP(A36,Trends!$A$3:$Q$94,IF(ExFlg=0,4,12))+Sens -> 1.054 | M36: 6.146680302 | O36: =VLOOKUP(A36,Trends!$A$3:$Q$94,IF(ExFlg=0,6,14))+Sens -> 1.0595 | P36: 7.364172517 | Q36: =VLOOKUP(A36,Trends!$A$3:$Q$94,IF(ExFlg=0,8,16))+Sens -> 1.0585 | R36: 6.429285326 | T36: 28169.49985 | U36: =IF(ExFlg=0,E36*VLOOKUP(A36,Trends!$A$3:$Z$94,20),E36*VLOOKUP(A36,Trends!$A$3:$Z$94,24)) -> 15613.90983 | V36: 12555.59002 | X36: 41892.36724 | Y36: =IF(ExFlg=0,H36*VLOOKUP(A36,Trends!$A$3:$Z$94,22),H36*VLOOKUP(A36,Trends!$A$3:$Z$94,26)) -> 25026.26395 | Z36: 16866.1033 | AB36: 15429.27991 | AD36: =IF($B36<121,VLOOKUP($B36,Lookups!A:H,8)*(1-VLOOKUP($B36,Lookups!$U$3:$W$103,2))^($A36-2018),"") -> 0.4 | AE36: =IF($B36<121,VLOOKUP($B36,Lookups!A:I,9)*(1-VLOOKUP($B36,Lookups!$U$3:$W$103,3))^($A36-2018),"") -> 0.4 | AF36: 0.4 | AG36: 5.890821048e-05 | AH36: =IF(B36<121,AH35/(1+IntRt),"") -> 0.313252885 | AI36: 0.807162 | AL36: 0.2298144196
A37: 2052 | B37: 118 | D37: =VLOOKUP(B37,Lookups!A:B,2) -> 4582.880265 | E37: =VLOOKUP(B37,Lookups!A:C,3) -> 2474.103984 | G37: =VLOOKUP(B37,Lookups!A:D,4) -> 6515.866869 | H37: =VLOOKUP(B37,Lookups!A:E,5) -> 3826.627221 | J37: =VLOOKUP(A37,Trends!$A$3:$Q$94,IF(ExFlg=0,2,10))+Sens -> 1.0595 | K37: 7.504115937 | L37: =VLOOKUP(A37,Trends!$A$3:$Q$94,IF(ExFlg=0,4,12))+Sens -> 1.054 | M37: 6.478601038 | O37: =VLOOKUP(A37,Trends!$A$3:$Q$94,IF(ExFlg=0,6,14))+Sens -> 1.059 | P37: 7.802340782 | Q37: =VLOOKUP(A37,Trends!$A$3:$Q$94,IF(ExFlg=0,8,16))+Sens -> 1.0615 | R37: 6.805398517 | T37: 29690.65284 | U37: =IF(ExFlg=0,E37*VLOOKUP(A37,Trends!$A$3:$Z$94,20),E37*VLOOKUP(A37,Trends!$A$3:$Z$94,24)) -> 16457.06097 | V37: 13233.59188 | X37: 44343.07073 | Y37: =IF(ExFlg=0,H37*VLOOKUP(A37,Trends!$A$3:$Z$94,22),H37*VLOOKUP(A37,Trends!$A$3:$Z$94,26)) -> 26490.30039 | Z37: 17852.77034 | AB37: 16313.05958 | AD37: =IF($B37<121,VLOOKUP($B37,Lookups!A:H,8)*(1-VLOOKUP($B37,Lookups!$U$3:$W$103,2))^($A37-2018),"") -> 0.4 | AE37: =IF($B37<121,VLOOKUP($B37,Lookups!A:I,9)*(1-VLOOKUP($B37,Lookups!$U$3:$W$103,3))^($A37-2018),"") -> 0.4 | AF37: 0.4 | AG37: 3.534492629e-05 | AH37: 0.302426033 | AI37: 0.807162 | AL37: 0.1407480489
A38: 2053 | B38: 119 | D38: =VLOOKUP(B38,Lookups!A:B,2) -> 4582.880265 | E38: =VLOOKUP(B38,Lookups!A:C,3) -> 2474.103984 | G38: =VLOOKUP(B38,Lookups!A:D,4) -> 6515.866869 | H38: =VLOOKUP(B38,Lookups!A:E,5) -> 3826.627221 | J38: =VLOOKUP(A38,Trends!$A$3:$Q$94,IF(ExFlg=0,2,10))+Sens -> 1.059 | K38: 7.950610835 | L38: =VLOOKUP(A38,Trends!$A$3:$Q$94,IF(ExFlg=0,4,12))+Sens -> 1.056 | M38: 6.828445494 | O38: =VLOOKUP(A38,Trends!$A$3:$Q$94,IF(ExFlg=0,6,14))+Sens -> 1.059 | P38: 8.262678888 | Q38: =VLOOKUP(A38,Trends!$A$3:$Q$94,IF(ExFlg=0,8,16))+Sens -> 1.0625 | R38: 7.223930526 | T38: 31293.9481 | U38: =IF(ExFlg=0,E38*VLOOKUP(A38,Trends!$A$3:$Z$94,20),E38*VLOOKUP(A38,Trends!$A$3:$Z$94,24)) -> 17345.74226 | V38: 13948.20584 | X38: 47070.16958 | Y38: =IF(ExFlg=0,H38*VLOOKUP(A38,Trends!$A$3:$Z$94,22),H38*VLOOKUP(A38,Trends!$A$3:$Z$94,26)) -> 28119.45386 | Z38: 18950.71572 | AB38: 17283.2291 | AD38: =IF($B38<121,VLOOKUP($B38,Lookups!A:H,8)*(1-VLOOKUP($B38,Lookups!$U$3:$W$103,2))^($A38-2018),"") -> 0.4 | AE38: =IF($B38<121,VLOOKUP($B38,Lookups!A:I,9)*(1-VLOOKUP($B38,Lookups!$U$3:$W$103,3))^($A38-2018),"") -> 0.4 | AF38: 0.4 | AG38: 2.120695577e-05 | AH38: 0.2919733858 | AI38: 0.807162 | AL38: 0.08637880496
A39: 2054 | B39: 120 | D39: =VLOOKUP(B39,Lookups!A:B,2) -> 4582.880265 | E39: =VLOOKUP(B39,Lookups!A:C,3) -> 2474.103984 | G39: =VLOOKUP(B39,Lookups!A:D,4) -> 6515.866869 | H39: =VLOOKUP(B39,Lookups!A:E,5) -> 3826.627221 | J39: =VLOOKUP(A39,Trends!$A$3:$Q$94,IF(ExFlg=0,2,10))+Sens -> 1.059 | K39: 8.419696874 | L39: =VLOOKUP(A39,Trends!$A$3:$Q$94,IF(ExFlg=0,4,12))+Sens -> 1.058 | M39: 7.210838441 | O39: =VLOOKUP(A39,Trends!$A$3:$Q$94,IF(ExFlg=0,6,14))+Sens -> 1.059 | P39: 8.750176943 | Q39: =VLOOKUP(A39,Trends!$A$3:$Q$94,IF(ExFlg=0,8,16))+Sens -> 1.062 | R39: 7.675426184 | T39: 33046.40919 | U39: =IF(ExFlg=0,E39*VLOOKUP(A39,Trends!$A$3:$Z$94,20),E39*VLOOKUP(A39,Trends!$A$3:$Z$94,24)) -> 18317.10382 | V39: 14729.30537 | X39: 50012.05518 | Y39: =IF(ExFlg=0,H39*VLOOKUP(A39,Trends!$A$3:$Z$94,22),H39*VLOOKUP(A39,Trends!$A$3:$Z$94,26)) -> 29876.91973 | Z39: 20135.13545 | AB39: 18333.21011 | AD39: =IF($B39<121,VLOOKUP($B39,Lookups!A:H,8)*(1-VLOOKUP($B39,Lookups!$U$3:$W$103,2))^($A39-2018),"") -> 1 | AE39: =IF($B39<121,VLOOKUP($B39,Lookups!A:I,9)*(1-VLOOKUP($B39,Lookups!$U$3:$W$103,3))^($A39-2018),"") -> 1 | AF39: 1 | AG39: 1.272417346e-05 | AH39: 0.2818820099 | AI39: 0.541667 | AL39: 0.03561786094
A40: 2055 | B40: 121 | D40: =VLOOKUP(B40,Lookups!A:B,2) -> 4582.880265 | E40: =VLOOKUP(B40,Lookups!A:C,3) -> 2474.103984 | G40: =VLOOKUP(B40,Lookups!A:D,4) -> 6515.866869 | H40: =VLOOKUP(B40,Lookups!A:E,5) -> 3826.627221 | J40: =VLOOKUP(A40,Trends!$A$3:$Q$94,IF(ExFlg=0,2,10))+Sens -> 1.059 | K40: 8.91645899 | L40: =VLOOKUP(A40,Trends!$A$3:$Q$94,IF(ExFlg=0,4,12))+Sens -> 1.058 | M40: 7.629067071 | O40: =VLOOKUP(A40,Trends!$A$3:$Q$94,IF(ExFlg=0,6,14))+Sens -> 1.059 | P40: 9.266437382 | Q40: =VLOOKUP(A40,Trends!$A$3:$Q$94,IF(ExFlg=0,8,16))+Sens -> 1.062 | R40: 8.151302608 | T40: 34963.10092 | U40: =IF(ExFlg=0,E40*VLOOKUP(A40,Trends!$A$3:$Z$94,20),E40*VLOOKUP(A40,Trends!$A$3:$Z$94,24)) -> 19379.49585 | V40: 15583.60508 | X40: 53112.8026 | Y40: =IF(ExFlg=0,H40*VLOOKUP(A40,Trends!$A$3:$Z$94,22),H40*VLOOKUP(A40,Trends!$A$3:$Z$94,26)) -> 31729.28875 | Z40: 21383.51385 | AB40: 19450.23026 | AD40: =IF($B40<121,VLOOKUP($B40,Lookups!A:H,8)*(1-VLOOKUP($B40,Lookups!$U$3:$W$103,2))^($A40-2018),"") ->  | AE40: =IF($B40<121,VLOOKUP($B40,Lookups!A:I,9)*(1-VLOOKUP($B40,Lookups!$U$3:$W$103,3))^($A40-2018),"") -> 
A41: 2056 | B41: 122 | D41: =VLOOKUP(B41,Lookups!A:B,2) -> 4582.880265 | E41: =VLOOKUP(B41,Lookups!A:C,3) -> 2474.103984 | G41: =VLOOKUP(B41,Lookups!A:D,4) -> 6515.866869 | H41: =VLOOKUP(B41,Lookups!A:E,5) -> 3826.627221 | J41: =VLOOKUP(A41,Trends!$A$3:$Q$94,IF(ExFlg=0,2,10))+Sens -> 1.059 | K41: 9.44253007 | L41: =VLOOKUP(A41,Trends!$A$3:$Q$94,IF(ExFlg=0,4,12))+Sens -> 1.0575 | M41: 8.071552961 | O41: =VLOOKUP(A41,Trends!$A$3:$Q$94,IF(ExFlg=0,6,14))+Sens -> 1.0585 | P41: 9.813157188 | Q41: =VLOOKUP(A41,Trends!$A$3:$Q$94,IF(ExFlg=0,8,16))+Sens -> 1.0615 | R41: 8.656683369 | T41: 36990.96078 | U41: =IF(ExFlg=0,E41*VLOOKUP(A41,Trends!$A$3:$Z$94,20),E41*VLOOKUP(A41,Trends!$A$3:$Z$94,24)) -> 20503.50661 | V41: 16487.45417 | X41: 56405.79636 | Y41: =IF(ExFlg=0,H41*VLOOKUP(A41,Trends!$A$3:$Z$94,22),H41*VLOOKUP(A41,Trends!$A$3:$Z$94,26)) -> 33696.50465 | Z41: 22709.2917 | AB41: 20635.3666 | AD41: =IF($B41<121,VLOOKUP($B41,Lookups!A:H,8)*(1-VLOOKUP($B41,Lookups!$U$3:$W$103,2))^($A41-2018),"") ->  | AE41: =IF($B41<121,VLOOKUP($B41,Lookups!A:I,9)*(1-VLOOKUP($B41,Lookups!$U$3:$W$103,3))^($A41-2018),"") -> 
A42: 2057 | B42: 123 | D42: =VLOOKUP(B42,Lookups!A:B,2) -> 4582.880265 | E42: =VLOOKUP(B42,Lookups!A:C,3) -> 2474.103984 | G42: =VLOOKUP(B42,Lookups!A:D,4) -> 6515.866869 | H42: =VLOOKUP(B42,Lookups!A:E,5) -> 3826.627221 | J42: =VLOOKUP(A42,Trends!$A$3:$Q$94,IF(ExFlg=0,2,10))+Sens -> 1.059 | K42: 9.999639344 | L42: =VLOOKUP(A42,Trends!$A$3:$Q$94,IF(ExFlg=0,4,12))+Sens -> 1.057 | M42: 8.535667256 | O42: =VLOOKUP(A42,Trends!$A$3:$Q$94,IF(ExFlg=0,6,14))+Sens -> 1.058 | P42: 10.38722688 | Q42: =VLOOKUP(A42,Trends!$A$3:$Q$94,IF(ExFlg=0,8,16))+Sens -> 1.061 | R42: 9.189069396 | T42: 39117.94102 | U42: =IF(ExFlg=0,E42*VLOOKUP(A42,Trends!$A$3:$Z$94,20),E42*VLOOKUP(A42,Trends!$A$3:$Z$94,24)) -> 21682.45823 | V42: 17435.48279 | X42: 59874.75283 | Y42: =IF(ExFlg=0,H42*VLOOKUP(A42,Trends!$A$3:$Z$94,22),H42*VLOOKUP(A42,Trends!$A$3:$Z$94,26)) -> 35768.83969 | Z42: 24105.91314 | AB42: 21882.45859 | AD42: =IF($B42<121,VLOOKUP($B42,Lookups!A:H,8)*(1-VLOOKUP($B42,Lookups!$U$3:$W$103,2))^($A42-2018),"") ->  | AE42: =IF($B42<121,VLOOKUP($B42,Lookups!A:I,9)*(1-VLOOKUP($B42,Lookups!$U$3:$W$103,3))^($A42-2018),"") -> 
A43: 2058 | B43: 124 | D43: =VLOOKUP(B43,Lookups!A:B,2) -> 4582.880265 | E43: =VLOOKUP(B43,Lookups!A:C,3) -> 2474.103984 | G43: =VLOOKUP(B43,Lookups!A:D,4) -> 6515.866869 | H43: =VLOOKUP(B43,Lookups!A:E,5) -> 3826.627221 | J43: =VLOOKUP(A43,Trends!$A$3:$Q$94,IF(ExFlg=0,2,10))+Sens -> 1.0585 | K43: 10.58961807 | L43: =VLOOKUP(A43,Trends!$A$3:$Q$94,IF(ExFlg=0,4,12))+Sens -> 1.057 | M43: 9.02220029 | O43: =VLOOKUP(A43,Trends!$A$3:$Q$94,IF(ExFlg=0,6,14))+Sens -> 1.058 | P43: 10.98968604 | Q43: =VLOOKUP(A43,Trends!$A$3:$Q$94,IF(ExFlg=0,8,16))+Sens -> 1.061 | R43: 9.74960263 | T43: 41347.66366 | U43: =IF(ExFlg=0,E43*VLOOKUP(A43,Trends!$A$3:$Z$94,20),E43*VLOOKUP(A43,Trends!$A$3:$Z$94,24)) -> 22918.35835 | V43: 18429.3053 | X43: 63527.11276 | Y43: =IF(ExFlg=0,H43*VLOOKUP(A43,Trends!$A$3:$Z$94,22),H43*VLOOKUP(A43,Trends!$A$3:$Z$94,26)) -> 37950.73891 | Z43: 25576.37385 | AB43: 23194.04149 | AD43: =IF($B43<121,VLOOKUP($B43,Lookups!A:H,8)*(1-VLOOKUP($B43,Lookups!$U$3:$W$103,2))^($A43-2018),"") ->  | AE43: =IF($B43<121,VLOOKUP($B43,Lookups!A:I,9)*(1-VLOOKUP($B43,Lookups!$U$3:$W$103,3))^($A43-2018),"") -> 
A44: 2059 | B44: 125 | D44: =VLOOKUP(B44,Lookups!A:B,2) -> 4582.880265 | E44: =VLOOKUP(B44,Lookups!A:C,3) -> 2474.103984 | G44: =VLOOKUP(B44,Lookups!A:D,4) -> 6515.866869 | H44: =VLOOKUP(B44,Lookups!A:E,5) -> 3826.627221 | J44: =VLOOKUP(A44,Trends!$A$3:$Q$94,IF(ExFlg=0,2,10))+Sens -> 1.058 | K44: 11.20911072 | L44: =VLOOKUP(A44,Trends!$A$3:$Q$94,IF(ExFlg=0,4,12))+Sens -> 1.057 | M44: 9.536465707 | O44: =VLOOKUP(A44,Trends!$A$3:$Q$94,IF(ExFlg=0,6,14))+Sens -> 1.058 | P44: 11.62708783 | Q44: =VLOOKUP(A44,Trends!$A$3:$Q$94,IF(ExFlg=0,8,16))+Sens -> 1.061 | R44: 10.34432839 | T44: 43704.48049 | U44: =IF(ExFlg=0,E44*VLOOKUP(A44,Trends!$A$3:$Z$94,20),E44*VLOOKUP(A44,Trends!$A$3:$Z$94,24)) -> 24224.70478 | V44: 19479.77571 | X44: 67402.26664 | Y44: =IF(ExFlg=0,H44*VLOOKUP(A44,Trends!$A$3:$Z$94,22),H44*VLOOKUP(A44,Trends!$A$3:$Z$94,26)) -> 40265.73398 | Z44: 27136.53265 | AB44: 24584.30586 | AD44: =IF($B44<121,VLOOKUP($B44,Lookups!A:H,8)*(1-VLOOKUP($B44,Lookups!$U$3:$W$103,2))^($A44-2018),"") ->  | AE44: =IF($B44<121,VLOOKUP($B44,Lookups!A:I,9)*(1-VLOOKUP($B44,Lookups!$U$3:$W$103,3))^($A44-2018),"") -> 
A45: 2060 | B45: 126 | D45: =VLOOKUP(B45,Lookups!A:B,2) -> 4582.880265 | E45: =VLOOKUP(B45,Lookups!A:C,3) -> 2474.103984 | G45: =VLOOKUP(B45,Lookups!A:D,4) -> 6515.866869 | H45: =VLOOKUP(B45,Lookups!A:E,5) -> 3826.627221 | J45: =VLOOKUP(A45,Trends!$A$3:$Q$94,IF(ExFlg=0,2,10))+Sens -> 1.058 | K45: 11.85923914 | L45: =VLOOKUP(A45,Trends!$A$3:$Q$94,IF(ExFlg=0,4,12))+Sens -> 1.057 | M45: 10.08004425 | O45: =VLOOKUP(A45,Trends!$A$3:$Q$94,IF(ExFlg=0,6,14))+Sens -> 1.058 | P45: 12.30145893 | Q45: =VLOOKUP(A45,Trends!$A$3:$Q$94,IF(ExFlg=0,8,16))+Sens -> 1.0605 | R45: 10.97533242 | T45: 46195.63587 | U45: =IF(ExFlg=0,E45*VLOOKUP(A45,Trends!$A$3:$Z$94,20),E45*VLOOKUP(A45,Trends!$A$3:$Z$94,24)) -> 25605.51295 | V45: 20590.12292 | X45: 71513.8049 | Y45: =IF(ExFlg=0,H45*VLOOKUP(A45,Trends!$A$3:$Z$94,22),H45*VLOOKUP(A45,Trends!$A$3:$Z$94,26)) -> 42721.94376 | Z45: 28791.86114 | AB45: 26057.97574 | AD45: =IF($B45<121,VLOOKUP($B45,Lookups!A:H,8)*(1-VLOOKUP($B45,Lookups!$U$3:$W$103,2))^($A45-2018),"") ->  | AE45: =IF($B45<121,VLOOKUP($B45,Lookups!A:I,9)*(1-VLOOKUP($B45,Lookups!$U$3:$W$103,3))^($A45-2018),"") -> 
A46: 2061 | B46: 127 | D46: =VLOOKUP(B46,Lookups!A:B,2) -> 4582.880265 | E46: =VLOOKUP(B46,Lookups!A:C,3) -> 2474.103984 | G46: =VLOOKUP(B46,Lookups!A:D,4) -> 6515.866869 | H46: =VLOOKUP(B46,Lookups!A:E,5) -> 3826.627221 | J46: =VLOOKUP(A46,Trends!$A$3:$Q$94,IF(ExFlg=0,2,10))+Sens -> 1.058 | K46: 12.54707501 | L46: =VLOOKUP(A46,Trends!$A$3:$Q$94,IF(ExFlg=0,4,12))+Sens -> 1.057 | M46: 10.65460677 | O46: =VLOOKUP(A46,Trends!$A$3:$Q$94,IF(ExFlg=0,6,14))+Sens -> 1.0575 | P46: 13.01494354 | Q46: =VLOOKUP(A46,Trends!$A$3:$Q$94,IF(ExFlg=0,8,16))+Sens -> 1.06 | R46: 11.63934003 | T46: 48828.78712 | U46: =IF(ExFlg=0,E46*VLOOKUP(A46,Trends!$A$3:$Z$94,20),E46*VLOOKUP(A46,Trends!$A$3:$Z$94,24)) -> 27065.02719 | V46: 21763.75993 | X46: 75840.3901 | Y46: =IF(ExFlg=0,H46*VLOOKUP(A46,Trends!$A$3:$Z$94,22),H46*VLOOKUP(A46,Trends!$A$3:$Z$94,26)) -> 45306.62135 | Z46: 30533.76874 | AB46: 27610.4617 | AD46: =IF($B46<121,VLOOKUP($B46,Lookups!A:H,8)*(1-VLOOKUP($B46,Lookups!$U$3:$W$103,2))^($A46-2018),"") ->  | AE46: =IF($B46<121,VLOOKUP($B46,Lookups!A:I,9)*(1-VLOOKUP($B46,Lookups!$U$3:$W$103,3))^($A46-2018),"") -> 
A47: 2062 | B47: 128 | D47: =VLOOKUP(B47,Lookups!A:B,2) -> 4582.880265 | E47: =VLOOKUP(B47,Lookups!A:C,3) -> 2474.103984 | G47: =VLOOKUP(B47,Lookups!A:D,4) -> 6515.866869 | H47: =VLOOKUP(B47,Lookups!A:E,5) -> 3826.627221 | J47: =VLOOKUP(A47,Trends!$A$3:$Q$94,IF(ExFlg=0,2,10))+Sens -> 1.0575 | K47: 13.27480537 | L47: =VLOOKUP(A47,Trends!$A$3:$Q$94,IF(ExFlg=0,4,12))+Sens -> 1.0565 | M47: 11.26191936 | O47: =VLOOKUP(A47,Trends!$A$3:$Q$94,IF(ExFlg=0,6,14))+Sens -> 1.057 | P47: 13.7633028 | Q47: =VLOOKUP(A47,Trends!$A$3:$Q$94,IF(ExFlg=0,8,16))+Sens -> 1.0595 | R47: 12.33770044 | T47: 51612.02799 | U47: =IF(ExFlg=0,E47*VLOOKUP(A47,Trends!$A$3:$Z$94,20),E47*VLOOKUP(A47,Trends!$A$3:$Z$94,24)) -> 28607.73374 | V47: 23004.29424 | X47: 80390.8135 | Y47: =IF(ExFlg=0,H47*VLOOKUP(A47,Trends!$A$3:$Z$94,22),H47*VLOOKUP(A47,Trends!$A$3:$Z$94,26)) -> 48025.01864 | Z47: 32365.79487 | AB47: 29245.32586 | AD47: =IF($B47<121,VLOOKUP($B47,Lookups!A:H,8)*(1-VLOOKUP($B47,Lookups!$U$3:$W$103,2))^($A47-2018),"") ->  | AE47: =IF($B47<121,VLOOKUP($B47,Lookups!A:I,9)*(1-VLOOKUP($B47,Lookups!$U$3:$W$103,3))^($A47-2018),"") -> 
A48: 2063 | B48: 129 | D48: =VLOOKUP(B48,Lookups!A:B,2) -> 4582.880265 | E48: =VLOOKUP(B48,Lookups!A:C,3) -> 2474.103984 | G48: =VLOOKUP(B48,Lookups!A:D,4) -> 6515.866869 | H48: =VLOOKUP(B48,Lookups!A:E,5) -> 3826.627221 | J48: =VLOOKUP(A48,Trends!$A$3:$Q$94,IF(ExFlg=0,2,10))+Sens -> 1.057 | K48: 14.03810667 | L48: =VLOOKUP(A48,Trends!$A$3:$Q$94,IF(ExFlg=0,4,12))+Sens -> 1.056 | M48: 11.8982178 | O48: =VLOOKUP(A48,Trends!$A$3:$Q$94,IF(ExFlg=0,6,14))+Sens -> 1.057 | P48: 14.54781106 | Q48: =VLOOKUP(A48,Trends!$A$3:$Q$94,IF(ExFlg=0,8,16))+Sens -> 1.059 | R48: 13.07179361 | T48: 54528.10757 | U48: =IF(ExFlg=0,E48*VLOOKUP(A48,Trends!$A$3:$Z$94,20),E48*VLOOKUP(A48,Trends!$A$3:$Z$94,24)) -> 30224.0707 | V48: 24304.03687 | X48: 85174.06691 | Y48: =IF(ExFlg=0,H48*VLOOKUP(A48,Trends!$A$3:$Z$94,22),H48*VLOOKUP(A48,Trends!$A$3:$Z$94,26)) -> 50882.50724 | Z48: 34291.55966 | AB48: 30962.41869 | AD48: =IF($B48<121,VLOOKUP($B48,Lookups!A:H,8)*(1-VLOOKUP($B48,Lookups!$U$3:$W$103,2))^($A48-2018),"") ->  | AE48: =IF($B48<121,VLOOKUP($B48,Lookups!A:I,9)*(1-VLOOKUP($B48,Lookups!$U$3:$W$103,3))^($A48-2018),"") -> 
A49: 2064 | B49: 130 | D49: =VLOOKUP(B49,Lookups!A:B,2) -> 4582.880265 | E49: =VLOOKUP(B49,Lookups!A:C,3) -> 2474.103984 | G49: =VLOOKUP(B49,Lookups!A:D,4) -> 6515.866869 | H49: =VLOOKUP(B49,Lookups!A:E,5) -> 3826.627221 | J49: =VLOOKUP(A49,Trends!$A$3:$Q$94,IF(ExFlg=0,2,10))+Sens -> 1.0565 | K49: 14.83827875 | L49: =VLOOKUP(A49,Trends!$A$3:$Q$94,IF(ExFlg=0,4,12))+Sens -> 1.0555 | M49: 12.564518 | O49: =VLOOKUP(A49,Trends!$A$3:$Q$94,IF(ExFlg=0,6,14))+Sens -> 1.0565 | P49: 15.37703629 | Q49: =VLOOKUP(A49,Trends!$A$3:$Q$94,IF(ExFlg=0,8,16))+Sens -> 1.0585 | R49: 13.84302943 | T49: 57581.68159 | U49: =IF(ExFlg=0,E49*VLOOKUP(A49,Trends!$A$3:$Z$94,20),E49*VLOOKUP(A49,Trends!$A$3:$Z$94,24)) -> 31916.61866 | V49: 25665.06293 | X49: 90199.33685 | Y49: =IF(ExFlg=0,H49*VLOOKUP(A49,Trends!$A$3:$Z$94,22),H49*VLOOKUP(A49,Trends!$A$3:$Z$94,26)) -> 53884.57517 | Z49: 36314.76168 | AB49: 32764.8976 | AD49: =IF($B49<121,VLOOKUP($B49,Lookups!A:H,8)*(1-VLOOKUP($B49,Lookups!$U$3:$W$103,2))^($A49-2018),"") ->  | AE49: =IF($B49<121,VLOOKUP($B49,Lookups!A:I,9)*(1-VLOOKUP($B49,Lookups!$U$3:$W$103,3))^($A49-2018),"") -> 
A50: 2065 | B50: 131 | D50: =VLOOKUP(B50,Lookups!A:B,2) -> 4582.880265 | E50: =VLOOKUP(B50,Lookups!A:C,3) -> 2474.103984 | G50: =VLOOKUP(B50,Lookups!A:D,4) -> 6515.866869 | H50: =VLOOKUP(B50,Lookups!A:E,5) -> 3826.627221 | J50: =VLOOKUP(A50,Trends!$A$3:$Q$94,IF(ExFlg=0,2,10))+Sens -> 1.0555 | K50: 15.6766415 | L50: =VLOOKUP(A50,Trends!$A$3:$Q$94,IF(ExFlg=0,4,12))+Sens -> 1.0545 | M50: 13.26184875 | O50: =VLOOKUP(A50,Trends!$A$3:$Q$94,IF(ExFlg=0,6,14))+Sens -> 1.0555 | P50: 16.24583884 | Q50: =VLOOKUP(A50,Trends!$A$3:$Q$94,IF(ExFlg=0,8,16))+Sens -> 1.0575 | R50: 14.65284666 | T50: 60777.46492 | U50: =IF(ExFlg=0,E50*VLOOKUP(A50,Trends!$A$3:$Z$94,20),E50*VLOOKUP(A50,Trends!$A$3:$Z$94,24)) -> 33687.99099 | V50: 27089.47393 | X50: 95475.99806 | Y50: =IF(ExFlg=0,H50*VLOOKUP(A50,Trends!$A$3:$Z$94,22),H50*VLOOKUP(A50,Trends!$A$3:$Z$94,26)) -> 57036.82282 | Z50: 38439.17524 | AB50: 34655.9793 | AD50: =IF($B50<121,VLOOKUP($B50,Lookups!A:H,8)*(1-VLOOKUP($B50,Lookups!$U$3:$W$103,2))^($A50-2018),"") ->  | AE50: =IF($B50<121,VLOOKUP($B50,Lookups!A:I,9)*(1-VLOOKUP($B50,Lookups!$U$3:$W$103,3))^($A50-2018),"") -> 
A51: 2066 | B51: 132 | D51: =VLOOKUP(B51,Lookups!A:B,2) -> 4582.880265 | E51: =VLOOKUP(B51,Lookups!A:C,3) -> 2474.103984 | G51: =VLOOKUP(B51,Lookups!A:D,4) -> 6515.866869 | H51: =VLOOKUP(B51,Lookups!A:E,5) -> 3826.627221 | J51: =VLOOKUP(A51,Trends!$A$3:$Q$94,IF(ExFlg=0,2,10))+Sens -> 1.0545 | K51: 16.54669511 | L51: =VLOOKUP(A51,Trends!$A$3:$Q$94,IF(ExFlg=0,4,12))+Sens -> 1.0555 | M51: 13.98461951 | O51: =VLOOKUP(A51,Trends!$A$3:$Q$94,IF(ExFlg=0,6,14))+Sens -> 1.0545 | P51: 17.14748289 | Q51: =VLOOKUP(A51,Trends!$A$3:$Q$94,IF(ExFlg=0,8,16))+Sens -> 1.0565 | R51: 15.49538534 | T51: 64089.83676 | U51: =IF(ExFlg=0,E51*VLOOKUP(A51,Trends!$A$3:$Z$94,20),E51*VLOOKUP(A51,Trends!$A$3:$Z$94,24)) -> 35523.9865 | V51: 28565.85026 | X51: 100965.8679 | Y51: =IF(ExFlg=0,H51*VLOOKUP(A51,Trends!$A$3:$Z$94,22),H51*VLOOKUP(A51,Trends!$A$3:$Z$94,26)) -> 60316.44013 | Z51: 40649.42782 | AB51: 36621.60891 | AD51: =IF($B51<121,VLOOKUP($B51,Lookups!A:H,8)*(1-VLOOKUP($B51,Lookups!$U$3:$W$103,2))^($A51-2018),"") ->  | AE51: =IF($B51<121,VLOOKUP($B51,Lookups!A:I,9)*(1-VLOOKUP($B51,Lookups!$U$3:$W$103,3))^($A51-2018),"") -> 
A52: 2067 | B52: 133 | D52: =VLOOKUP(B52,Lookups!A:B,2) -> 4582.880265 | E52: =VLOOKUP(B52,Lookups!A:C,3) -> 2474.103984 | G52: =VLOOKUP(B52,Lookups!A:D,4) -> 6515.866869 | H52: =VLOOKUP(B52,Lookups!A:E,5) -> 3826.627221 | J52: =VLOOKUP(A52,Trends!$A$3:$Q$94,IF(ExFlg=0,2,10))+Sens -> 1.0535 | K52: 17.44848999 | L52: =VLOOKUP(A52,Trends!$A$3:$Q$94,IF(ExFlg=0,4,12))+Sens -> 1.057 | M52: 14.76076589 | O52: =VLOOKUP(A52,Trends!$A$3:$Q$94,IF(ExFlg=0,6,14))+Sens -> 1.0535 | P52: 18.08202071 | Q52: =VLOOKUP(A52,Trends!$A$3:$Q$94,IF(ExFlg=0,8,16))+Sens -> 1.0555 | R52: 16.37087461 | T52: 67646.8227 | U52: =IF(ExFlg=0,E52*VLOOKUP(A52,Trends!$A$3:$Z$94,20),E52*VLOOKUP(A52,Trends!$A$3:$Z$94,24)) -> 37495.56775 | V52: 30151.25494 | X52: 106670.4395 | Y52: =IF(ExFlg=0,H52*VLOOKUP(A52,Trends!$A$3:$Z$94,22),H52*VLOOKUP(A52,Trends!$A$3:$Z$94,26)) -> 63724.319 | Z52: 42946.12049 | AB52: 38681.20796 | AD52: =IF($B52<121,VLOOKUP($B52,Lookups!A:H,8)*(1-VLOOKUP($B52,Lookups!$U$3:$W$103,2))^($A52-2018),"") ->  | AE52: =IF($B52<121,VLOOKUP($B52,Lookups!A:I,9)*(1-VLOOKUP($B52,Lookups!$U$3:$W$103,3))^($A52-2018),"") -> 
A53: 2068 | B53: 134 | D53: =VLOOKUP(B53,Lookups!A:B,2) -> 4582.880265 | E53: =VLOOKUP(B53,Lookups!A:C,3) -> 2474.103984 | G53: =VLOOKUP(B53,Lookups!A:D,4) -> 6515.866869 | H53: =VLOOKUP(B53,Lookups!A:E,5) -> 3826.627221 | J53: =VLOOKUP(A53,Trends!$A$3:$Q$94,IF(ExFlg=0,2,10))+Sens -> 1.0525 | K53: 18.38198421 | L53: =VLOOKUP(A53,Trends!$A$3:$Q$94,IF(ExFlg=0,4,12))+Sens -> 1.0565 | M53: 15.60212955 | O53: =VLOOKUP(A53,Trends!$A$3:$Q$94,IF(ExFlg=0,6,14))+Sens -> 1.0525 | P53: 19.04940882 | Q53: =VLOOKUP(A53,Trends!$A$3:$Q$94,IF(ExFlg=0,8,16))+Sens -> 1.0545 | R53: 17.27945815 | T53: 71502.69159 | U53: =IF(ExFlg=0,E53*VLOOKUP(A53,Trends!$A$3:$Z$94,20),E53*VLOOKUP(A53,Trends!$A$3:$Z$94,24)) -> 39632.81511 | V53: 31869.87648 | X53: 112590.6489 | Y53: =IF(ExFlg=0,H53*VLOOKUP(A53,Trends!$A$3:$Z$94,22),H53*VLOOKUP(A53,Trends!$A$3:$Z$94,26)) -> 67261.0187 | Z53: 45329.63017 | AB53: 40843.09047 | AD53: =IF($B53<121,VLOOKUP($B53,Lookups!A:H,8)*(1-VLOOKUP($B53,Lookups!$U$3:$W$103,2))^($A53-2018),"") ->  | AE53: =IF($B53<121,VLOOKUP($B53,Lookups!A:I,9)*(1-VLOOKUP($B53,Lookups!$U$3:$W$103,3))^($A53-2018),"") -> 
A54: 2069 | B54: 135 | D54: =VLOOKUP(B54,Lookups!A:B,2) -> 4582.880265 | E54: =VLOOKUP(B54,Lookups!A:C,3) -> 2474.103984 | G54: =VLOOKUP(B54,Lookups!A:D,4) -> 6515.866869 | H54: =VLOOKUP(B54,Lookups!A:E,5) -> 3826.627221 | J54: =VLOOKUP(A54,Trends!$A$3:$Q$94,IF(ExFlg=0,2,10))+Sens -> 1.052 | K54: 19.34703838 | L54: =VLOOKUP(A54,Trends!$A$3:$Q$94,IF(ExFlg=0,4,12))+Sens -> 1.0555 | M54: 16.48364986 | O54: =VLOOKUP(A54,Trends!$A$3:$Q$94,IF(ExFlg=0,6,14))+Sens -> 1.0515 | P54: 20.04950278 | Q54: =VLOOKUP(A54,Trends!$A$3:$Q$94,IF(ExFlg=0,8,16))+Sens -> 1.0535 | R54: 18.22118862 | T54: 75542.59367 | U54: =IF(ExFlg=0,E54*VLOOKUP(A54,Trends!$A$3:$Z$94,20),E54*VLOOKUP(A54,Trends!$A$3:$Z$94,24)) -> 41872.06917 | V54: 33670.5245 | X54: 118726.8392 | Y54: =IF(ExFlg=0,H54*VLOOKUP(A54,Trends!$A$3:$Z$94,22),H54*VLOOKUP(A54,Trends!$A$3:$Z$94,26)) -> 70926.74422 | Z54: 47800.09502 | AB54: 43090.28528 | AD54: =IF($B54<121,VLOOKUP($B54,Lookups!A:H,8)*(1-VLOOKUP($B54,Lookups!$U$3:$W$103,2))^($A54-2018),"") ->  | AE54: =IF($B54<121,VLOOKUP($B54,Lookups!A:I,9)*(1-VLOOKUP($B54,Lookups!$U$3:$W$103,3))^($A54-2018),"") -> 
A55: 2070 | B55: 136 | D55: =VLOOKUP(B55,Lookups!A:B,2) -> 4582.880265 | E55: =VLOOKUP(B55,Lookups!A:C,3) -> 2474.103984 | G55: =VLOOKUP(B55,Lookups!A:D,4) -> 6515.866869 | H55: =VLOOKUP(B55,Lookups!A:E,5) -> 3826.627221 | J55: =VLOOKUP(A55,Trends!$A$3:$Q$94,IF(ExFlg=0,2,10))+Sens -> 1.0515 | K55: 20.35308437 | L55: =VLOOKUP(A55,Trends!$A$3:$Q$94,IF(ExFlg=0,4,12))+Sens -> 1.0545 | M55: 17.39849243 | O55: =VLOOKUP(A55,Trends!$A$3:$Q$94,IF(ExFlg=0,6,14))+Sens -> 1.051 | P55: 21.08205218 | Q55: =VLOOKUP(A55,Trends!$A$3:$Q$94,IF(ExFlg=0,8,16))+Sens -> 1.0525 | R55: 19.19602221 | T55: 79735.20761 | U55: =IF(ExFlg=0,E55*VLOOKUP(A55,Trends!$A$3:$Z$94,20),E55*VLOOKUP(A55,Trends!$A$3:$Z$94,24)) -> 44195.96901 | V55: 35539.23861 | X55: 125078.7251 | Y55: =IF(ExFlg=0,H55*VLOOKUP(A55,Trends!$A$3:$Z$94,22),H55*VLOOKUP(A55,Trends!$A$3:$Z$94,26)) -> 74721.32504 | Z55: 50357.4001 | AB55: 45418.06233 | AD55: =IF($B55<121,VLOOKUP($B55,Lookups!A:H,8)*(1-VLOOKUP($B55,Lookups!$U$3:$W$103,2))^($A55-2018),"") ->  | AE55: =IF($B55<121,VLOOKUP($B55,Lookups!A:I,9)*(1-VLOOKUP($B55,Lookups!$U$3:$W$103,3))^($A55-2018),"") -> 
A56: 2071 | B56: 137 | D56: =VLOOKUP(B56,Lookups!A:B,2) -> 4582.880265 | E56: =VLOOKUP(B56,Lookups!A:C,3) -> 2474.103984 | G56: =VLOOKUP(B56,Lookups!A:D,4) -> 6515.866869 | H56: =VLOOKUP(B56,Lookups!A:E,5) -> 3826.627221 | J56: =VLOOKUP(A56,Trends!$A$3:$Q$94,IF(ExFlg=0,2,10))+Sens -> 1.0505 | K56: 21.40126822 | L56: =VLOOKUP(A56,Trends!$A$3:$Q$94,IF(ExFlg=0,4,12))+Sens -> 1.0535 | M56: 18.34671027 | O56: =VLOOKUP(A56,Trends!$A$3:$Q$94,IF(ExFlg=0,6,14))+Sens -> 1.0505 | P56: 22.15723684 | Q56: =VLOOKUP(A56,Trends!$A$3:$Q$94,IF(ExFlg=0,8,16))+Sens -> 1.0515 | R56: 20.20381338 | T56: =IF(B56<65,D56*K56,D56*M56) -> 84080.77643 | U56: =IF(ExFlg=0,E56*VLOOKUP(A56,Trends!$A$3:$Z$94,20),E56*VLOOKUP(A56,Trends!$A$3:$Z$94,24)) -> 46604.64932 | V56: 37476.12711 | X56: 131645.3582 | Y56: =IF(ExFlg=0,H56*VLOOKUP(A56,Trends!$A$3:$Z$94,22),H56*VLOOKUP(A56,Trends!$A$3:$Z$94,26)) -> 78644.1946 | Z56: 53001.16361 | AB56: 47826.20319 | AD56: =IF($B56<121,VLOOKUP($B56,Lookups!A:H,8)*(1-VLOOKUP($B56,Lookups!$U$3:$W$103,2))^($A56-2018),"") ->  | AE56: =IF($B56<121,VLOOKUP($B56,Lookups!A:I,9)*(1-VLOOKUP($B56,Lookups!$U$3:$W$103,3))^($A56-2018),"") -> 
A57: 2072 | B57: 138 | D57: =VLOOKUP(B57,Lookups!A:B,2) -> 4582.880265 | E57: =VLOOKUP(B57,Lookups!A:C,3) -> 2474.103984 | G57: =VLOOKUP(B57,Lookups!A:D,4) -> 6515.866869 | H57: =VLOOKUP(B57,Lookups!A:E,5) -> 3826.627221 | J57: =VLOOKUP(A57,Trends!$A$3:$Q$94,IF(ExFlg=0,2,10))+Sens -> 1.0495 | K57: 22.48203226 | L57: =VLOOKUP(A57,Trends!$A$3:$Q$94,IF(ExFlg=0,4,12))+Sens -> 1.0525 | M57: 19.32825927 | O57: =VLOOKUP(A57,Trends!$A$3:$Q$94,IF(ExFlg=0,6,14))+Sens -> 1.0495 | P57: 23.2761773 | Q57: =VLOOKUP(A57,Trends!$A$3:$Q$94,IF(ExFlg=0,8,16))+Sens -> 1.0505 | R57: 21.24430977 | T57: 88579.09797 | U57: =IF(ExFlg=0,E57*VLOOKUP(A57,Trends!$A$3:$Z$94,20),E57*VLOOKUP(A57,Trends!$A$3:$Z$94,24)) -> 49097.99806 | V57: 39481.09991 | X57: 138425.0942 | Y57: =IF(ExFlg=0,H57*VLOOKUP(A57,Trends!$A$3:$Z$94,22),H57*VLOOKUP(A57,Trends!$A$3:$Z$94,26)) -> 82694.37063 | Z57: 55730.72353 | AB57: 50314.23649 | AD57: =IF($B57<121,VLOOKUP($B57,Lookups!A:H,8)*(1-VLOOKUP($B57,Lookups!$U$3:$W$103,2))^($A57-2018),"") ->  | AE57: =IF($B57<121,VLOOKUP($B57,Lookups!A:I,9)*(1-VLOOKUP($B57,Lookups!$U$3:$W$103,3))^($A57-2018),"") -> 
A58: 2073 | B58: 139 | D58: =VLOOKUP(B58,Lookups!A:B,2) -> 4582.880265 | E58: =VLOOKUP(B58,Lookups!A:C,3) -> 2474.103984 | G58: =VLOOKUP(B58,Lookups!A:D,4) -> 6515.866869 | H58: =VLOOKUP(B58,Lookups!A:E,5) -> 3826.627221 | J58: =VLOOKUP(A58,Trends!$A$3:$Q$94,IF(ExFlg=0,2,10))+Sens -> 1.0485 | K58: 23.59489286 | L58: =VLOOKUP(A58,Trends!$A$3:$Q$94,IF(ExFlg=0,4,12))+Sens -> 1.0515 | M58: 20.34299288 | O58: =VLOOKUP(A58,Trends!$A$3:$Q$94,IF(ExFlg=0,6,14))+Sens -> 1.0485 | P58: 24.42834807 | Q58: =VLOOKUP(A58,Trends!$A$3:$Q$94,IF(ExFlg=0,8,16))+Sens -> 1.0495 | R58: 22.31714741 | T58: 93229.50061 | U58: =IF(ExFlg=0,E58*VLOOKUP(A58,Trends!$A$3:$Z$94,20),E58*VLOOKUP(A58,Trends!$A$3:$Z$94,24)) -> 51675.64295 | V58: 41553.85766 | X58: 145415.5614 | Y58: =IF(ExFlg=0,H58*VLOOKUP(A58,Trends!$A$3:$Z$94,22),H58*VLOOKUP(A58,Trends!$A$3:$Z$94,26)) -> 86870.43634 | Z58: 58545.12507 | AB58: 52881.4259 | AD58: =IF($B58<121,VLOOKUP($B58,Lookups!A:H,8)*(1-VLOOKUP($B58,Lookups!$U$3:$W$103,2))^($A58-2018),"") ->  | AE58: =IF($B58<121,VLOOKUP($B58,Lookups!A:I,9)*(1-VLOOKUP($B58,Lookups!$U$3:$W$103,3))^($A58-2018),"") -> 
A59: 2074 | B59: 140 | D59: =VLOOKUP(B59,Lookups!A:B,2) -> 4582.880265 | E59: =VLOOKUP(B59,Lookups!A:C,3) -> 2474.103984 | G59: =VLOOKUP(B59,Lookups!A:D,4) -> 6515.866869 | H59: =VLOOKUP(B59,Lookups!A:E,5) -> 3826.627221 | J59: =VLOOKUP(A59,Trends!$A$3:$Q$94,IF(ExFlg=0,2,10))+Sens -> 1.048 | K59: 24.73924516 | L59: =VLOOKUP(A59,Trends!$A$3:$Q$94,IF(ExFlg=0,4,12))+Sens -> 1.051 | M59: 21.39065701 | O59: =VLOOKUP(A59,Trends!$A$3:$Q$94,IF(ExFlg=0,6,14))+Sens -> 1.048 | P59: 25.61312296 | Q59: =VLOOKUP(A59,Trends!$A$3:$Q$94,IF(ExFlg=0,8,16))+Sens -> 1.049 | R59: 23.42184621 | T59: 98030.81989 | U59: =IF(ExFlg=0,E59*VLOOKUP(A59,Trends!$A$3:$Z$94,20),E59*VLOOKUP(A59,Trends!$A$3:$Z$94,24)) -> 54336.93857 | V59: 43693.88133 | X59: 152613.6317 | Y59: =IF(ExFlg=0,H59*VLOOKUP(A59,Trends!$A$3:$Z$94,22),H59*VLOOKUP(A59,Trends!$A$3:$Z$94,26)) -> 91170.52294 | Z59: 61443.10876 | AB59: 55526.75878 | AD59: =IF($B59<121,VLOOKUP($B59,Lookups!A:H,8)*(1-VLOOKUP($B59,Lookups!$U$3:$W$103,2))^($A59-2018),"") ->  | AE59: =IF($B59<121,VLOOKUP($B59,Lookups!A:I,9)*(1-VLOOKUP($B59,Lookups!$U$3:$W$103,3))^($A59-2018),"") -> 
